Workbook

Sheet START
A1: j

Sheet Instructions
D2: 2020
X4: Yes
X5: No
W7: Type of Entities Range:
X8: Parent Municipality
X9: Consolidated Information
F14: START
F15: Instructions
F16: Template names
F17: Lookup and lists | W17: MTREF Range: | X17: 2013
F18: Org structure | X18: 2014
F19: Contacts | X19: 2015
F20: A1-Sum | X20: 2016
F21: A2-FinPerf SC | X21: 2017
F22: A2A | X22: 2018
F23: A3-FinPerf V | X23: 2019
F24: A3A | X24: 2020
F25: A4-FinPerf RE | X25: 2021
F26: A5-Capex | X26: 2022
F27: A5A | X27: 2023
F28: A6-FinPos | X28: 2024
F29: A7-CFlow | X29: 2025
F30: A8-ResRecon | X30: 2026
F31: A9-Asset | X31: 2027
F32: A10-SerDel | X32: 2028
F33: SA1 | W33: MTREF Linked: | X33: 14
F34: SA2 | W34: MTREF: | X34: =INDEX(X17:X31,X33,1) -> 2026
F35: SA3
F36: SA4 | W36: Fin Year: | X36: =MTREF&"/"&RIGHT(MTREF,2)+1 -> 2026/27
F37: SA5
F38: SA6
F39: SA7
F40: SA8
F41: SA9
F42: SA10
F43: SA11
F44: SA12a
F45: SA12b
F46: SA13a
F47: SA13b
F48: SA14
F49: SA15
F50: SA16
F51: SA17
F52: SA18
F53: SA19
F54: SA20
F55: SA21
F56: SA22
F57: SA23
F58: SA24
F59: SA25
F60: SA26
F61: SA27
F62: SA28
F63: SA29
F64: SA30
F65: SA31
F66: SA32
F67: SA33
F68: SA34a
F69: SA34b
F70: SA34c
F71: SA34d
F72: SA34e
F73: SA35
F74: SA36
F75: SA37
F76: SA38
F77: LGDB_EXPORT

Sheet Template names (hidden)
A1: Common sheet headings
A2: Head1 | B2: =HLOOKUP(MTREF,Headings,2) -> 2024/25 | C2: Prior year -1
A3: Head1A | B3: =HLOOKUP(MTREF,Headings,3) -> 2023/24 | C3: Prior year -2
A4: Head1B | B4: =HLOOKUP(MTREF,Headings,4) -> 2022/23 | C4: Prior year -3
A5: Head2 | B5: =HLOOKUP(MTREF,Headings,5) -> Current Year 2025/26 | C5: Year in which budget is being prepared
A6: Head2A | B6: =HLOOKUP(MTREF,Headings,6) -> 2025/26 | C6: Year in which budget is being prepared
A7: Head3 | B7: =HLOOKUP(MTREF,Headings,7) -> 2026/27 Medium Term Revenue & Expenditure Framework | C7: MTREF name
A8: Head4 | B8: LTFS | C8: Long term financial strategy
A9: Head5 | B9: Audited Outcome
A10: Head5A | B10: Outcome
A11: Head5B | B11: Pre-audit outcome
A12: Head6 | B12: Original Budget
A13: Head7 | B13: Adjusted Budget
A14: Head8 | B14: Full Year Forecast
A15: Head9 | B15: =HLOOKUP(MTREF,Headings,8) -> Budget Year 2026/27 | C15: 1st year of MTREF | D15: Year1
A16: Head10 | B16: =HLOOKUP(MTREF,Headings,9) -> Budget Year +1 2027/28 | C16: 2nd year of MTREF | D16: Year2
A17: Head11 | B17: =HLOOKUP(MTREF,Headings,10) -> Budget Year +2 2028/29 | C17: 3rd year of MTREF | D17: Year3
A18: Head12 | B18: =HLOOKUP(MTREF,Headings,11) -> Forecast 2029/30 | C18: 1st yr of long term forecast | D18: Year4
A19: Head13 | B19: =HLOOKUP(MTREF,Headings,12) -> Forecast 2030/31 | C19: Next yr of long term forecast | D19: Year5
A20: Head14 | B20: =HLOOKUP(MTREF,Headings,13) -> Forecast 2031/32 | C20: Next yr of long term forecast | D20: Year6
A21: Head15 | B21: =HLOOKUP(MTREF,Headings,14) -> Forecast 2032/33 | C21: Next yr of long term forecast | D21: Year7
A22: Head16 | B22: =HLOOKUP(MTREF,Headings,15) -> Forecast 2033/34 | C22: Next yr of long term forecast | D22: Year8
A23: Head17 | B23: =HLOOKUP(MTREF,Headings,16) -> Forecast 2034/35 | C23: Next yr of long term forecast | D23: Year9
A24: Head18 | B24: =HLOOKUP(MTREF,Headings,17) -> Forecast 2035/36 | C24: Next yr of long term forecast | D24: Year10
A25: Head19 | B25: =HLOOKUP(MTREF,Headings,18) -> Forecast 2036/37 | C25: Next yr of long term forecast | D25: Year11
A26: Head20 | B26: =HLOOKUP(MTREF,Headings,19) -> Forecast 2037/38 | C26: Next yr of long term forecast | D26: Year12
A27: Head21 | B27: =HLOOKUP(MTREF,Headings,20) -> Forecast 2038/39 | C27: Next yr of long term forecast | D27: Year13
A28: Head22 | B28: =HLOOKUP(MTREF,Headings,21) -> Forecast 2039/40 | C28: Next yr of long term forecast | D28: Year14
A29: Head23 | B29: =HLOOKUP(MTREF,Headings,22) -> Forecast 2040/41 | C29: Next yr of long term forecast | D29: Year15
A30: Head24 | B30: Description
A31: Head25
A32: Head26 | B32: Vote Description
A33: Head27 | B33: Ref
A34: Head27a | B34: References
A35: Head28 | B35: Surplus/(Deficit) for the year | D35: Result
A36: Head29 | B36: =HLOOKUP(MTREF,Headings,23) -> Annual target 2026/27
A37: Head30 | B37: =HLOOKUP(MTREF,Headings,24) -> Revised target 2026/27
A38: Head31 | B38: Quarter ended 30 September
A39: Head32 | B39: Quarter ended 31 December
A40: Head33 | B40: Quarter ended 31 March
A41: Head34 | B41: Quarter ended 30 June
A42: Head35 | B42: Variance explanation
A43: Head36 | B43: YTD Actual 31 Dec
A44: Head37 | B44: YTD Budget 31 Dec
A45: Head38 | B45: Monthly actual
A46: Head39 | B46: YTD actual
A47: Head40 | B47: YTD budget
A48: Head41 | B48: YTD variance
A49: Head42 | B49: Surplus/ (Deficit) for the yr/period
A50: Head43 | B50: =Head3&" Summary" -> 2026/27 Medium Term Revenue & Expenditure Framework Summary
A51: Head44 | B51: 2001 Census
A52: Head45 | B52: 2011 Census
A53: Head46 | B53: - Adjustments Budget - January 2007
A54: Head47 | B54: Previous target year to complete
A55: Head48 | B55: Present value
A56: Head49
A57: Head50 | B57: Other Adjusts.
A58: Head51 | B58: Accum. Funds
A59: Head52 | B59: Multi-year capital
A60: Head53 | B60: Unfore. Unavoid.
A61: Head54 | B61: Prior Adjusted
A62: Head55 | B62: Nat. or Prov. Govt
A63: Head56 | B63: Total Adjusts.
A64: SFPerf1 | B64: Budgeted Financial Performance
A65: SFPerf2 | B65: Forecast Financial Performance
A66: SFPos1 | B66: Budgeted Financial Position
A67: SFPos2 | B67: Forecast Financial Position
A68: Cash1 | B68: Budget Cash Flow
A69: Cash2 | B69: Forecast Cash Flow
A70: RandM | B70: Expenditure includes repairs & maintenance of R'000
A71: Depart1 | B71: Department 1 - | D71: DEP1
A72: Depart2 | B72: Department 2 - | D72: DEP2
A73: Depart3 | B73: Department 3 - | D73: DEP3
A74: Depart4 | B74: Department 4 - | D74: DEP4
A75: Depart5 | B75: Department 5 - | D75: DEP5
A76: Depart6 | B76: Department 6 - | D76: DEP6
A77: Depart7 | B77: Department 7 - | D77: DEP7
A78: Depart8 | B78: Department 8 - | D78: DEP8
A79: Depart9 | B79: Department 9 - | D79: DEP9
A80: Depart10 | B80: Department 10 - | D80: DEP10
A81: Depart11 | B81: Department 11 - | D81: DEP11
A82: Depart12 | B82: Department 12 - | D82: DEP12
A83: Depart13 | B83: Department 13 - | D83: DEP13
A84: Depart14 | B84: Department 14 - | D84: DEP14
A87: Base year of forecast column selection names
A88: Choose | B88: ACT
B89: APP
B90: ADJ
A92: Standard nomenclature
A93: Muni | B93: ='Lookup and lists'!B28 -> DC43 Harry Gwala
A94: Municipal Entities | B94: 1 | C94: Type of report: | D94: 2
A95: =IF((MuniEntities=1)*(MuniType=2),"YES","NO") -> YES | B95: Does this municipality have entities (consolidated budget and entity budgets required)? YES/NO
A96: Entity 1 | B96: (Pty) Ltd Example 1 - Municipal entity - | D96: Ent1
A97: Entity 2 | B97: (Pty) Ltd Example 2 - Municipal entity - | D97: Ent2
A98: Entity 3 | B98: Municipal Entity Example 3 | D98: Ent3
A99: Budget approval tables | C99: Chart x-ref | D99: Sch/Tab/Ch | E99: Alternative for municipalities without entities | F99: Alternative for municipalities without entities
B100: =IF(Consolques="YES",E100,F100) -> Table A1 Consolidated Budget Summary | D100: Table A1 | E100: =D100&"Consolidated Budget Summary" -> Table A1 Consolidated Budget Summary | F100: =D100&"Budget Summary" -> Table A1 Budget Summary
B101: Table A2 Consolidated Budgeted Financial Performance (revenue and expenditure by functional classification) | C101: Charts 5, 6 | D101: Table A2 | E101: =D101&"Consolidated Budgeted Financial Performance (revenue and expenditure by functional classification)" -> Table A2 Consolidated Budgeted Financial Performance (revenue and expenditure by functional classification) | F101: =D101&"Budgeted Financial Performance (revenue and expenditure by functional classification)" -> Table A2 Budgeted Financial Performance (revenue and expenditure by functional classification)
B102: Table A3 Consolidated Budgeted Financial Performance (revenue and expenditure by municipal vote) | D102: Table A3 | E102: =D102&"Consolidated Budgeted Financial Performance (revenue and expenditure by municipal vote)" -> Table A3 Consolidated Budgeted Financial Performance (revenue and expenditure by municipal vote) | F102: =D102&"Budgeted Financial Performance (revenue and expenditure by municipal vote)" -> Table A3 Budgeted Financial Performance (revenue and expenditure by municipal vote)
B103: Table A4 Consolidated Budgeted Financial Performance (revenue and expenditure) | C103: Charts 1, 2, 3, 4 | D103: Table A4 | E103: =D103&"Consolidated Budgeted Financial Performance (revenue and expenditure)" -> Table A4 Consolidated Budgeted Financial Performance (revenue and expenditure) | F103: =D103&"Budgeted Financial Performance (revenue and expenditure)" -> Table A4 Budgeted Financial Performance (revenue and expenditure)
B104: Table A5 Consolidated Budgeted Capital Expenditure by vote, functional classification and funding | C104: Charts 7, 8, 9, 10, 20 | D104: Table A5 | E104: =D104&"Consolidated Budgeted Capital Expenditure by vote, functional classification and funding" -> Table A5 Consolidated Budgeted Capital Expenditure by vote, functional classification and funding | F104: =D104&"Budgeted Capital Expenditure by vote, functional classification and funding" -> Table A5 Budgeted Capital Expenditure by vote, functional classification and funding
B105: Table A6 Consolidated Budgeted Financial Position | D105: Table A6 | E105: =D105&"Consolidated Budgeted Financial Position" -> Table A6 Consolidated Budgeted Financial Position | F105: =D105&"Budgeted Financial Position" -> Table A6 Budgeted Financial Position
B106: Table A7 Consolidated Budgeted Cash Flows | D106: Table A7 | E106: =D106&"Consolidated Budgeted Cash Flows" -> Table A7 Consolidated Budgeted Cash Flows | F106: =D106&"Budgeted Cash Flows" -> Table A7 Budgeted Cash Flows
B107: Table A8 Consolidated Cash backed reserves/accumulated surplus reconciliation | D107: Table A8 | E107: =D107&"Consolidated Cash backed reserves/accumulated surplus reconciliation" -> Table A8 Consolidated Cash backed reserves/accumulated surplus reconciliation | F107: =D107&"Cash backed reserves/accumulated surplus reconciliation" -> Table A8 Cash backed reserves/accumulated surplus reconciliation
B108: Table A9 Consolidated Asset Management | D108: Table A9 | E108: =D108&"Consolidated Asset Management" -> Table A9 Consolidated Asset Management | F108: =D108&"Asset Management" -> Table A9 Asset Management
B109: Table A10 Consolidated basic service delivery measurement | D109: Table A10 | E109: =D109&"Consolidated basic service delivery measurement" -> Table A10 Consolidated basic service delivery measurement | F109: =D109&"Basic service delivery measurement" -> Table A10 Basic service delivery measurement
A110: Supportinging Tables to the Budget Approval Tables | C110: =$C$99 -> Chart x-ref | D110: =$D$99 -> Sch/Tab/Ch
A111: Supporting Table SA1 | B111: =A111&" Supportinging detail to 'Budgeted Financial Performance'" -> Supporting Table SA1 Supportinging detail to 'Budgeted Financial Performance'
A112: Supporting Table SA2 | B112: =IF(Consolques="YES",E112,F112) -> Supporting Table SA2 Consolidated Matrix Financial Performance Budget (revenue source/expenditure type & dept.) | E112: =A112&"Consolidated Matrix Financial Performance Budget (revenue source/expenditure type & dept.)" -> Supporting Table SA2 Consolidated Matrix Financial Performance Budget (revenue source/expenditure type & dept.) | F112: =A112&"Matrix Financial Performance Budget (revenue source/expenditure type and dept.)" -> Supporting Table SA2 Matrix Financial Performance Budget (revenue source/expenditure type and dept.)
A113: Supporting Table SA3 | B113: =A113&"Supportinging detail to 'Budgeted Financial Position'" -> Supporting Table SA3 Supportinging detail to 'Budgeted Financial Position'
A114: Supporting Table SA4 | B114: =A114&"Reconciliation of IDP strategic objectives and budget (revenue)" -> Supporting Table SA4 Reconciliation of IDP strategic objectives and budget (revenue) | C114: Chart 11
A115: Supporting Table SA5 | B115: =A115&"Reconciliation of IDP strategic objectives and budget (operating expenditure)" -> Supporting Table SA5 Reconciliation of IDP strategic objectives and budget (operating expenditure) | C115: Chart 12
A116: Supporting Table SA6 | B116: =A116&"Reconciliation of IDP strategic objectives and budget (capital expenditure)" -> Supporting Table SA6 Reconciliation of IDP strategic objectives and budget (capital expenditure) | C116: Chart 13
A117: Supporting Table SA7 | B117: =A117&" Measureable performance objectives" -> Supporting Table SA7 Measureable performance objectives
A118: Supporting Table SA8 | B118: =A118&" Performance indicators and benchmarks" -> Supporting Table SA8 Performance indicators and benchmarks | C118: Chts 15-19
A119: Supporting Table SA9 | B119: =A119&" Social, economic and demographic statistics and assumptions" -> Supporting Table SA9 Social, economic and demographic statistics and assumptions
A120: Supporting Table SA10 | B120: =A120&" Funding measurement" -> Supporting Table SA10 Funding measurement | C120: Chart 14
A121: Supporting Table SA11 | B121: =A121&" Property rates summary" -> Supporting Table SA11 Property rates summary
A122: Supporting Table SA12a | B122: =A122&" Property rates by category (current year)" -> Supporting Table SA12a Property rates by category (current year)
A123: Supporting Table SA12b | B123: =A123&" Property rates by category (budget year)" -> Supporting Table SA12b Property rates by category (budget year)
A124: Supporting Table SA13a | B124: =A124&" Service Tariffs by category" -> Supporting Table SA13a Service Tariffs by category
A125: Supporting Table SA13b | B125: =A125&" Service Tariffs by category - explanatory" -> Supporting Table SA13b Service Tariffs by category - explanatory
A126: Supporting Table SA14 | B126: =A126&" Household bills" -> Supporting Table SA14 Household bills
A127: Supporting Table SA15 | B127: =A127&" Investment particulars by type" -> Supporting Table SA15 Investment particulars by type
A128: Supporting Table SA16 | B128: =A128&" Investment particulars by maturity" -> Supporting Table SA16 Investment particulars by maturity
A129: Supporting Table SA17 | B129: =A129&" Borrowing" -> Supporting Table SA17 Borrowing
A130: Supporting Table SA18 | B130: =A130&" Transfers and grant receipts" -> Supporting Table SA18 Transfers and grant receipts
A131: Supporting Table SA19 | B131: =A131&" Expenditure on transfers and grant programme" -> Supporting Table SA19 Expenditure on transfers and grant programme
A132: Supporting Table SA20 | B132: =A132&" Reconciliation of transfers, grant receipts and unspent funds" -> Supporting Table SA20 Reconciliation of transfers, grant receipts and unspent funds
A133: Supporting Table SA21 | B133: =A133&" Transfers and grants made by the municipality" -> Supporting Table SA21 Transfers and grants made by the municipality
A134: Supporting Table SA22 | B134: =A134&" Summary councillor and staff benefits" -> Supporting Table SA22 Summary councillor and staff benefits
A135: Supporting Table SA23 | B135: =A135&" Salaries, allowances & benefits (political office bearers/councillors/senior managers)" -> Supporting Table SA23 Salaries, allowances & benefits (political office bearers/councillors/senior managers)
A136: Supporting Table SA24 | B136: =A136&" Summary of personnel numbers" -> Supporting Table SA24 Summary of personnel numbers
A137: Supporting Table SA25 | B137: =IF(Consolques="YES",E137,F137) -> Supporting Table SA25 Consolidated budgeted monthly revenue and expenditure | E137: =A137&" Consolidated budgeted monthly revenue and expenditure" -> Supporting Table SA25 Consolidated budgeted monthly revenue and expenditure | F137: =A137&" Budgeted monthly revenue and expenditure" -> Supporting Table SA25 Budgeted monthly revenue and expenditure
A138: Supporting Table SA26 | B138: Supporting Table SA26 Consolidated budgeted monthly revenue and expenditure (municipal vote) | E138: =A138&" Consolidated budgeted monthly revenue and expenditure (municipal vote)" -> Supporting Table SA26 Consolidated budgeted monthly revenue and expenditure (municipal vote) | F138: =A138&" Budgeted monthly revenue and expenditure (municipal vote)" -> Supporting Table SA26 Budgeted monthly revenue and expenditure (municipal vote)
A139: Supporting Table SA27 | B139: Supporting Table SA27 Consolidated budgeted monthly revenue and expenditure (functional classification) | E139: =A139&" Consolidated budgeted monthly revenue and expenditure (functional classification)" -> Supporting Table SA27 Consolidated budgeted monthly revenue and expenditure (functional classification) | F139: =A139&" Budgeted monthly revenue and expenditure (functional classification)" -> Supporting Table SA27 Budgeted monthly revenue and expenditure (functional classification)
A140: Supporting Table SA28 | B140: Supporting Table SA28 Consolidated budgeted monthly capital expenditure (municipal vote) | E140: =A140&" Consolidated budgeted monthly capital expenditure (municipal vote)" -> Supporting Table SA28 Consolidated budgeted monthly capital expenditure (municipal vote) | F140: =A140&" Budgeted monthly capital expenditure (municipal vote)" -> Supporting Table SA28 Budgeted monthly capital expenditure (municipal vote)
A141: Supporting Table SA29 | B141: Supporting Table SA29 Consolidated budgeted monthly capital expenditure (functional classification) | E141: =A141&" Consolidated budgeted monthly capital expenditure (functional classification)" -> Supporting Table SA29 Consolidated budgeted monthly capital expenditure (functional classification) | F141: =A141&" Budgeted monthly capital expenditure (functional classification)" -> Supporting Table SA29 Budgeted monthly capital expenditure (functional classification)
A142: Supporting Table SA30 | B142: Supporting Table SA30 Consolidated budgeted monthly cash flow | E142: =A142&" Consolidated budgeted monthly cash flow" -> Supporting Table SA30 Consolidated budgeted monthly cash flow | F142: =A142&" Budgeted monthly cash flow" -> Supporting Table SA30 Budgeted monthly cash flow
A143: Supporting Table SA31 | B143: Supporting Table SA31 Aggregated entity budget | E143: =A143&" Aggregated entity budget" -> Supporting Table SA31 Aggregated entity budget | F143: NOT REQUIRED - municipality does not have entities
A144: Supporting Table SA32 | B144: =A144&" List of external mechanisms" -> Supporting Table SA32 List of external mechanisms
A145: Supporting Table SA33 | B145: =A145&" Contracts having future budgetary implications" -> Supporting Table SA33 Contracts having future budgetary implications
A146: Supporting Table SA34a | B146: =IF(Consolques="YES",E146,F146) -> Supporting Table SA34a Consolidated capital expenditure on new assets by asset class | E146: =A146&" Consolidated capital expenditure on new assets by asset class" -> Supporting Table SA34a Consolidated capital expenditure on new assets by asset class | F146: =A146&" Capital expenditure on new assets by asset class" -> Supporting Table SA34a Capital expenditure on new assets by asset class
A147: Supporting Table SA34b | B147: Supporting Table SA34b Consolidated capital expenditure on the renewal of existing assets by asset class | E147: =A147&" Consolidated capital expenditure on the renewal of existing assets by asset class" -> Supporting Table SA34b Consolidated capital expenditure on the renewal of existing assets by asset class | F147: =A147&" Capital expenditure on the renewal of existing assets by asset class" -> Supporting Table SA34b Capital expenditure on the renewal of existing assets by asset class
A148: Supporting Table SA34c | B148: Supporting Table SA34c Consolidated repairs and maintenance by asset class | E148: =A148&" Consolidated repairs and maintenance by asset class" -> Supporting Table SA34c Consolidated repairs and maintenance by asset class | F148: =A148&" Repairs and maintenance expenditure by asset class" -> Supporting Table SA34c Repairs and maintenance expenditure by asset class
A149: Supporting Table SA34d | B149: =IF(Consolques="YES",E149,F149) -> Supporting Table SA34d Consolidated Depreciation by asset class | E149: =A149&" Consolidated Depreciation by asset class" -> Supporting Table SA34d Consolidated Depreciation by asset class | F149: =A149&" Depreciation by asset class" -> Supporting Table SA34d Depreciation by asset class
A150: Supporting Table SA34e | B150: =IF(Consolques="YES",E150,F150) -> Supporting Table SA34e Consolidated capital expenditure on the upgrading of existing assets by asset class | E150: =A150&" Consolidated capital expenditure on the upgrading of existing assets by asset class" -> Supporting Table SA34e Consolidated capital expenditure on the upgrading of existing assets by asset class | F150: =A150&" Capital expenditure on the upgrading of existing assets by asset class" -> Supporting Table SA34e Capital expenditure on the upgrading of existing assets by asset class
A151: Supporting Table SA35 | B151: Supporting Table SA35 Consolidated future financial implications of the capital budget | E151: =A151&" Consolidated future financial implications of the capital budget" -> Supporting Table SA35 Consolidated future financial implications of the capital budget | F151: =A151& " Future financial implications of the capital budget" -> Supporting Table SA35 Future financial implications of the capital budget
A152: Supporting Table SA36 | B152: Supporting Table SA36 Consolidated detailed capital budget | E152: =A152&" Consolidated detailed capital budget" -> Supporting Table SA36 Consolidated detailed capital budget | F152: =A152& " Detailed capital budget" -> Supporting Table SA36 Detailed capital budget
A153: Supporting Table SA37 | B153: Supporting Table SA37 Consolidated projects delayed from previous financial year/s | E153: =A153&" Consolidated projects delayed from previous financial year/s" -> Supporting Table SA37 Consolidated projects delayed from previous financial year/s | F153: =A153& " Projects delayed from previous financial year/s" -> Supporting Table SA37 Projects delayed from previous financial year/s
A154: Supporting Table SA38 | B154: =IF(Consolques="YES",E154,F154) -> Supporting Table SA38 Consolidated detailed operational projects | E154: =A154&" Consolidated detailed operational projects" -> Supporting Table SA38 Consolidated detailed operational projects | F154: =A154& " Detailed operational projects" -> Supporting Table SA38 Detailed operational projects
A156: Budget Charts | B156: Charts | C156: Cross reference
A157: Chart A1 | B157: =A157&"Revenue by Municipal Vote" -> Chart A1 Revenue by Municipal Vote
A158: Chart A2 | B158: =A158&"Expenditure by Municipal Vote" -> Chart A2 Expenditure by Municipal Vote
A159: Chart A3 | B159: =A159&"Revenue by Standard Classification" -> Chart A3 Revenue by Standard Classification | C159: A2
A160: Chart A4 | B160: =A160&"Expenditure by Standard Classification" -> Chart A4 Expenditure by Standard Classification | C160: A2
A161: Chart A5 | B161: =A161&"Revenue by Major Source (refer 'Minor' source for 'Other Revenue' allocation" -> Chart A5 Revenue by Major Source (refer 'Minor' source for 'Other Revenue' allocation | C161: A3
A162: Chart A6 | B162: =A162&"Revenue by Minor Source (Other)" -> Chart A6 Revenue by Minor Source (Other) | C162: A3
A163: Chart A7 | B163: =A163&"Expenditure by Major Type" -> Chart A7 Expenditure by Major Type | C163: A3
A164: Chart A8 | B164: =A164&"Expenditure by Minor Type (Other)" -> Chart A8 Expenditure by Minor Type (Other) | C164: A3
A165: Chart A9 | B165: =A165&"Capital Expenditure by Municipal Vote/Appropriation (Major)" -> Chart A9 Capital Expenditure by Municipal Vote/Appropriation (Major) | C165: A5
A166: Chart A10 | B166: =A166&"Capital Expenditure by Municipal Vote/Appropriation (Minor)" -> Chart A10 Capital Expenditure by Municipal Vote/Appropriation (Minor) | C166: A5
A167: Chart A11 | B167: =A166&"Capital Expenditure by Standard Classification" -> Chart A10 Capital Expenditure by Standard Classification | C167: A5
A168: Chart A12 | B168: =A168&"Capital expenditure performance trend" -> Chart A12 Capital expenditure performance trend | C168: A5
A169: Chart A13 | B169: =A169&"Capital funding by Source" -> Chart A13 Capital funding by Source | C169: A5
A170: Chart A14 | B170: =A170&"Cash flow trend" -> Chart A14 Cash flow trend | C170: A7
A171: Chart A15 | B171: =A171&"IDP Strategic Objective - Revenue" -> Chart A15 IDP Strategic Objective - Revenue | C171: Table A4
A172: Chart A16 | B172: =A172&"IDP Strategic Objective - Expenditure" -> Chart A16 IDP Strategic Objective - Expenditure | C172: Table A5
A173: Chart A17 | B173: =A173&"IDP Strategic Objective - Capital Expenditure" -> Chart A17 IDP Strategic Objective - Capital Expenditure | C173: Table A6
A174: Chart A18 | B174: =A174&"Debt (borrowing to Total Revenue)" -> Chart A18 Debt (borrowing to Total Revenue) | C174: Table A8
A175: Chart A19 | B175: =A175&"Debtors' trend analysis" -> Chart A19 Debtors' trend analysis | C175: Table A8
A176: Chart A20 | B176: =A176&"Distribution losses" -> Chart A20 Distribution losses | C176: Table A8
A177: Chart A21 | B177: =A177&"Borrowed funding of capital expenditure" -> Chart A21 Borrowed funding of capital expenditure | C177: Table A8
A178: Chart A22 | B178: =A178&"Expenditure analysis (% of Revenue)" -> Chart A22 Expenditure analysis (% of Revenue) | C178: Table A8
A179: Chart A23 | B179: =A179&"Increases in service charges" -> Chart A23 Increases in service charges | C179: Table A10

Sheet Lookup and lists (hidden)
A1: Description | B1: 2013 | C1: 2014 | D1: 2015 | E1: 2016 | F1: 2017 | G1: 2018 | H1: 2019 | I1: 2020 | J1: 2021 | K1: 2022 | L1: 2023 | M1: 2024 | N1: 2025 | O1: 2026 | P1: 2027 | Q1: Lists | Y1: Grants: | Z1: National - opex | AA1: Provincial - opex | AB1: National - capex | AC1: Provincial - capex
A2: ='Template names'!C2 -> Prior year -1 | B2: =B1-2&"/"&RIGHT(B1,2)-1 -> 2011/12 | C2: 2012/13 | D2: 2013/14 | E2: 2014/15 | F2: 2015/16 | G2: 2016/17 | H2: 2017/18 | I2: 2018/19 | J2: =J1-2&"/"&RIGHT(J1,2)-1 -> 2019/20 | K2: 2020/21 | L2: 2021/22 | M2: 2022/23 | N2: 2023/24 | O2: 2024/25 | P2: =P1-2&"/"&RIGHT(P1,2)-1 -> 2025/26 | Q2: Yes | R2: <1 | S2: <4 | T2: Market | U2: Land & impr. | V2: Yes | W2: Uniform | X2: Yrs | Z2: Local Government Equitable Share | AA2: Health subsidy | AB2: Municipal Infrastructure Grant (MIG) | AC2: Agriculture
A3: ='Template names'!C3 -> Prior year -2 | B3: =B1-3&"/"&RIGHT(B1,2)-2 -> 2010/11 | C3: 2011/12 | D3: 2012/13 | E3: 2013/14 | F3: 2014/15 | G3: 2015/16 | H3: 2016/17 | I3: 2017/18 | J3: =J1-3&"/"&RIGHT(J1,2)-2 -> 2018/19 | K3: 2019/20 | L3: 2020/21 | M3: 2021/22 | N3: 2022/23 | O3: 2023/24 | P3: =P1-3&"/"&RIGHT(P1,2)-2 -> 2024/25 | Q3: No | R3: 1 | S3: 4 | T3: Dep.Replace | U3: Land only | V3: No | W3: Variable | X3: Mths | Z3: RSC Levy Replacement | AA3: Ambulance subsidy | AB3: Public Transport and Systems | AC3: Education
A4: ='Template names'!C4 -> Prior year -3 | B4: =B1-4&"/"&RIGHT(B1,2)-3 -> 2009/10 | C4: 2010/11 | D4: 2011/12 | E4: 2012/13 | F4: 2013/14 | G4: 2014/15 | H4: 2015/16 | I4: 2016/17 | J4: =J1-4&"/"&RIGHT(J1,2)-3 -> 2017/18 | K4: 2018/19 | L4: 2019/20 | M4: 2020/21 | N4: 2021/22 | O4: 2022/23 | P4: =P1-4&"/"&RIGHT(P1,2)-3 -> 2023/24 | R4: 2 | S4: 5 | T4: Other | U4: Other | Z4: Finance Management | AA4: Housing | AB4: Rural Transport Services and Infrastructure | AC4: Health
A5: ='Template names'!C5 -> Year in which budget is being prepared | B5: ="Current Year "& B1-1&"/"&RIGHT(B1,2) -> Current Year 2012/13 | C5: Current Year 2013/14 | D5: Current Year 2014/15 | E5: Current Year 2015/16 | F5: Current Year 2016/17 | G5: Current Year 2017/18 | H5: Current Year 2018/19 | I5: Current Year 2019/20 | J5: ="Current Year "& J1-1&"/"&RIGHT(J1,2) -> Current Year 2020/21 | K5: Current Year 2021/22 | L5: Current Year 2022/23 | M5: Current Year 2023/24 | N5: Current Year 2024/25 | O5: Current Year 2025/26 | P5: ="Current Year "& P1-1&"/"&RIGHT(P1,2) -> Current Year 2026/27 | R5: 3 | S5: 6 | Z5: Municipal Systems Improvement | AA5: Sport and Recreation | AB5: Regional Bulk Infrastructure | AC5: Housing and Local Government
A6: ='Template names'!C6 -> Year in which budget is being prepared | B6: =B1-1&"/"&RIGHT(B1,2) -> 2012/13 | C6: 2013/14 | D6: 2014/15 | E6: 2015/16 | F6: 2016/17 | G6: 2017/18 | H6: 2018/19 | I6: 2019/20 | J6: =J1-1&"/"&RIGHT(J1,2) -> 2020/21 | K6: 2021/22 | L6: 2022/23 | M6: 2023/24 | N6: 2024/25 | O6: 2025/26 | P6: =P1-1&"/"&RIGHT(P1,2) -> 2026/27 | R6: 4 | S6: 6-10 | Z6: Water Services Operating Subsidy | AB6: Rural Households Infrastructure | AC6: Other Departments
A7: ='Template names'!C7 -> MTREF name | B7: =B1&"/"&RIGHT(B1,2)+1&" Medium Term Revenue & Expenditure Framework" -> 2013/14 Medium Term Revenue & Expenditure Framework | C7: 2014/15 Medium Term Revenue & Expenditure Framework | D7: 2015/16 Medium Term Revenue & Expenditure Framework | E7: 2016/17 Medium Term Revenue & Expenditure Framework | F7: 2017/18 Medium Term Revenue & Expenditure Framework | G7: 2018/19 Medium Term Revenue & Expenditure Framework | H7: 2019/20 Medium Term Revenue & Expenditure Framework | I7: 2020/21 Medium Term Revenue & Expenditure Framework | J7: =J1&"/"&RIGHT(J1,2)+1&" Medium Term Revenue & Expenditure Framework" -> 2021/22 Medium Term Revenue & Expenditure Framework | K7: 2022/23 Medium Term Revenue & Expenditure Framework | L7: 2023/24 Medium Term Revenue & Expenditure Framework | M7: 2024/25 Medium Term Revenue & Expenditure Framework | N7: 2025/26 Medium Term Revenue & Expenditure Framework | O7: 2026/27 Medium Term Revenue & Expenditure Framework | P7: =P1&"/"&RIGHT(P1,2)+1&" Medium Term Revenue & Expenditure Framework" -> 2027/28 Medium Term Revenue & Expenditure Framework | R7: 5 | S7: >10 | Z7: Energy Efficiency and Demand Management | AB7: Neighbourhood Development Partnership | AC7: Public Works, Roads, Transport
A8: ='Template names'!C15 -> 1st year of MTREF | B8: ="Budget Year "&B1&"/"&RIGHT(B1,2)+1 -> Budget Year 2013/14 | C8: Budget Year 2014/15 | D8: Budget Year 2015/16 | E8: Budget Year 2016/17 | F8: Budget Year 2017/18 | G8: Budget Year 2018/19 | H8: Budget Year 2019/20 | I8: Budget Year 2020/21 | J8: ="Budget Year "&J1&"/"&RIGHT(J1,2)+1 -> Budget Year 2021/22 | K8: Budget Year 2022/23 | L8: Budget Year 2023/24 | M8: Budget Year 2024/25 | N8: Budget Year 2025/26 | O8: Budget Year 2026/27 | P8: ="Budget Year "&P1&"/"&RIGHT(P1,2)+1 -> Budget Year 2027/28 | R8: >5 | Z8: Integrated National Electrification Programme | AB8: 2010 FIFA World Cup Stadiums Development | AC8: Sport and Recreation
A9: ='Template names'!C16 -> 2nd year of MTREF | B9: ="Budget Year +1 "&B1+1&"/"&RIGHT(B1,2)+2 -> Budget Year +1 2014/15 | C9: Budget Year +1 2015/16 | D9: Budget Year +1 2016/17 | E9: Budget Year +1 2017/18 | F9: Budget Year +1 2018/19 | G9: Budget Year +1 2019/20 | H9: Budget Year +1 2020/21 | I9: Budget Year +1 2021/22 | J9: ="Budget Year +1 "&J1+1&"/"&RIGHT(J1,2)+2 -> Budget Year +1 2022/23 | K9: Budget Year +1 2023/24 | L9: Budget Year +1 2024/25 | M9: Budget Year +1 2025/26 | N9: Budget Year +1 2026/27 | O9: Budget Year +1 2027/28 | P9: ="Budget Year +1 "&P1+1&"/"&RIGHT(P1,2)+2 -> Budget Year +1 2028/29 | Z9: Municipal Drought Relief
A10: ='Template names'!C17 -> 3rd year of MTREF | B10: ="Budget Year +2 "&B1+2&"/"&RIGHT(B1,2)+3 -> Budget Year +2 2015/16 | C10: Budget Year +2 2016/17 | D10: Budget Year +2 2017/18 | E10: Budget Year +2 2018/19 | F10: Budget Year +2 2019/20 | G10: Budget Year +2 2020/21 | H10: Budget Year +2 2021/22 | I10: Budget Year +2 2022/23 | J10: ="Budget Year +2 "&J1+2&"/"&RIGHT(J1,2)+3 -> Budget Year +2 2023/24 | K10: Budget Year +2 2024/25 | L10: Budget Year +2 2025/26 | M10: Budget Year +2 2026/27 | N10: Budget Year +2 2027/28 | O10: Budget Year +2 2028/29 | P10: ="Budget Year +2 "&P1+2&"/"&RIGHT(P1,2)+3 -> Budget Year +2 2029/30 | Z10: 2010 FIFA World Cup Operating
A11: ='Template names'!C18 -> 1st yr of long term forecast | B11: ="Forecast "&B1+3&"/"&RIGHT(B1,2)+4 -> Forecast 2016/17 | C11: Forecast 2017/18 | D11: Forecast 2018/19 | E11: Forecast 2019/20 | F11: Forecast 2020/21 | G11: Forecast 2021/22 | H11: Forecast 2022/23 | I11: Forecast 2023/24 | J11: ="Forecast "&J1+3&"/"&RIGHT(J1,2)+4 -> Forecast 2024/25 | K11: Forecast 2025/26 | L11: Forecast 2026/27 | M11: Forecast 2027/28 | N11: Forecast 2028/29 | O11: Forecast 2029/30 | P11: ="Forecast "&P1+3&"/"&RIGHT(P1,2)+4 -> Forecast 2030/31 | Z11: Electricity Demand Side Management
A12: ='Template names'!C19 -> Next yr of long term forecast | B12: ="Forecast "&B1+4&"/"&RIGHT(B1,2)+5 -> Forecast 2017/18 | C12: Forecast 2018/19 | D12: Forecast 2019/20 | E12: Forecast 2020/21 | F12: Forecast 2021/22 | G12: Forecast 2022/23 | H12: Forecast 2023/24 | I12: Forecast 2024/25 | J12: ="Forecast "&J1+4&"/"&RIGHT(J1,2)+5 -> Forecast 2025/26 | K12: Forecast 2026/27 | L12: Forecast 2027/28 | M12: Forecast 2028/29 | N12: Forecast 2029/30 | O12: Forecast 2030/31 | P12: ="Forecast "&P1+4&"/"&RIGHT(P1,2)+5 -> Forecast 2031/32 | Z12: EPWP Incentive
A13: ='Template names'!C20 -> Next yr of long term forecast | B13: ="Forecast "&B1+5&"/"&RIGHT(B1,2)+6 -> Forecast 2018/19 | C13: Forecast 2019/20 | D13: Forecast 2020/21 | E13: Forecast 2021/22 | F13: Forecast 2022/23 | G13: Forecast 2023/24 | H13: Forecast 2024/25 | I13: Forecast 2025/26 | J13: ="Forecast "&J1+5&"/"&RIGHT(J1,2)+6 -> Forecast 2026/27 | K13: Forecast 2027/28 | L13: Forecast 2028/29 | M13: Forecast 2029/30 | N13: Forecast 2030/31 | O13: Forecast 2031/32 | P13: ="Forecast "&P1+5&"/"&RIGHT(P1,2)+6 -> Forecast 2032/33
A14: ='Template names'!C21 -> Next yr of long term forecast | B14: ="Forecast "&B1+6&"/"&RIGHT(B1,2)+7 -> Forecast 2019/20 | C14: Forecast 2020/21 | D14: Forecast 2021/22 | E14: Forecast 2022/23 | F14: Forecast 2023/24 | G14: Forecast 2024/25 | H14: Forecast 2025/26 | I14: Forecast 2026/27 | J14: ="Forecast "&J1+6&"/"&RIGHT(J1,2)+7 -> Forecast 2027/28 | K14: Forecast 2028/29 | L14: Forecast 2029/30 | M14: Forecast 2030/31 | N14: Forecast 2031/32 | O14: Forecast 2032/33 | P14: ="Forecast "&P1+6&"/"&RIGHT(P1,2)+7 -> Forecast 2033/34 | Z14: Asset Class | AA14: Asset sub-class old | AB14: Asset sub-class | AC14: IUDF | AD14: MTSF
A15: ='Template names'!C22 -> Next yr of long term forecast | B15: ="Forecast "&B1+7&"/"&RIGHT(B1,2)+8 -> Forecast 2020/21 | C15: Forecast 2021/22 | D15: Forecast 2022/23 | E15: Forecast 2023/24 | F15: Forecast 2024/25 | G15: Forecast 2025/26 | H15: Forecast 2026/27 | I15: Forecast 2027/28 | J15: ="Forecast "&J1+7&"/"&RIGHT(J1,2)+8 -> Forecast 2028/29 | K15: Forecast 2029/30 | L15: Forecast 2030/31 | M15: Forecast 2031/32 | N15: Forecast 2032/33 | O15: Forecast 2033/34 | P15: ="Forecast "&P1+7&"/"&RIGHT(P1,2)+8 -> Forecast 2034/35
A16: ='Template names'!C23 -> Next yr of long term forecast | B16: ="Forecast "&B1+8&"/"&RIGHT(B1,2)+9 -> Forecast 2021/22 | C16: Forecast 2022/23 | D16: Forecast 2023/24 | E16: Forecast 2024/25 | F16: Forecast 2025/26 | G16: Forecast 2026/27 | H16: Forecast 2027/28 | I16: Forecast 2028/29 | J16: ="Forecast "&J1+8&"/"&RIGHT(J1,2)+9 -> Forecast 2029/30 | K16: Forecast 2030/31 | L16: Forecast 2031/32 | M16: Forecast 2032/33 | N16: Forecast 2033/34 | O16: Forecast 2034/35 | P16: ="Forecast "&P1+8&"/"&RIGHT(P1,2)+9 -> Forecast 2035/36 | Z16: Roads Infrastructure | AA16: Roads, Pavements & Bridges | AB16: Roads | AC16: Spatial integration | AD16: Quality basic education
A17: ='Template names'!C24 -> Next yr of long term forecast | B17: ="Forecast "&B1+9&"/"&RIGHT(B1,2)+10 -> Forecast 2022/23 | C17: Forecast 2023/24 | D17: Forecast 2024/25 | E17: Forecast 2025/26 | F17: Forecast 2026/27 | G17: Forecast 2027/28 | H17: Forecast 2028/29 | I17: Forecast 2029/30 | J17: ="Forecast "&J1+9&"/"&RIGHT(J1,2)+10 -> Forecast 2030/31 | K17: Forecast 2031/32 | L17: Forecast 2032/33 | M17: Forecast 2033/34 | N17: Forecast 2034/35 | O17: Forecast 2035/36 | P17: ="Forecast "&P1+9&"/"&RIGHT(P1,2)+10 -> Forecast 2036/37 | Z17: Storm water Infrastructure | AA17: Storm water | AB17: Road Structures | AC17: Inclusion and access | AD17: A long and healthy life for all South Africans
A18: ='Template names'!C25 -> Next yr of long term forecast | B18: ="Forecast "&B1+10&"/"&RIGHT(B1,2)+11 -> Forecast 2023/24 | C18: Forecast 2024/25 | D18: Forecast 2025/26 | E18: Forecast 2026/27 | F18: Forecast 2027/28 | G18: Forecast 2028/29 | H18: Forecast 2029/30 | I18: Forecast 2030/31 | J18: ="Forecast "&J1+10&"/"&RIGHT(J1,2)+11 -> Forecast 2031/32 | K18: Forecast 2032/33 | L18: Forecast 2033/34 | M18: Forecast 2034/35 | N18: Forecast 2035/36 | O18: Forecast 2036/37 | P18: ="Forecast "&P1+10&"/"&RIGHT(P1,2)+11 -> Forecast 2037/38 | Z18: Electrical Infrastructure | AA18: Generation | AB18: Road Furniture | AC18: Growth | AD18: All people in South Africa are and feel safe
A19: ='Template names'!C26 -> Next yr of long term forecast | B19: ="Forecast "&B1+11&"/"&RIGHT(B1,2)+12 -> Forecast 2024/25 | C19: Forecast 2025/26 | D19: Forecast 2026/27 | E19: Forecast 2027/28 | F19: Forecast 2028/29 | G19: Forecast 2029/30 | H19: Forecast 2030/31 | I19: Forecast 2031/32 | J19: ="Forecast "&J1+11&"/"&RIGHT(J1,2)+12 -> Forecast 2032/33 | K19: Forecast 2033/34 | L19: Forecast 2034/35 | M19: Forecast 2035/36 | N19: Forecast 2036/37 | O19: Forecast 2037/38 | P19: ="Forecast "&P1+11&"/"&RIGHT(P1,2)+12 -> Forecast 2038/39 | Z19: Water Supply Infrastructure | AA19: Transmission & Reticulation | AB19: Capital Spares | AC19: Governance | AD19: Decent employment through inclusive growth
A20: ='Template names'!C27 -> Next yr of long term forecast | B20: ="Forecast "&B1+12&"/"&RIGHT(B1,2)+13 -> Forecast 2025/26 | C20: Forecast 2026/27 | D20: Forecast 2027/28 | E20: Forecast 2028/29 | F20: Forecast 2029/30 | G20: Forecast 2030/31 | H20: Forecast 2031/32 | I20: Forecast 2032/33 | J20: ="Forecast "&J1+12&"/"&RIGHT(J1,2)+13 -> Forecast 2033/34 | K20: Forecast 2034/35 | L20: Forecast 2035/36 | M20: Forecast 2036/37 | N20: Forecast 2037/38 | O20: Forecast 2038/39 | P20: ="Forecast "&P1+12&"/"&RIGHT(P1,2)+13 -> Forecast 2039/40 | Z20: Sanitation Infrastructure | AA20: Street Lighting | AB20: Drainage Collection | AD20: A skilled and capable workforce to support an inclusive growth path
A21: ='Template names'!C28 -> Next yr of long term forecast | B21: ="Forecast "&B1+13&"/"&RIGHT(B1,2)+14 -> Forecast 2026/27 | C21: Forecast 2027/28 | D21: Forecast 2028/29 | E21: Forecast 2029/30 | F21: Forecast 2030/31 | G21: Forecast 2031/32 | H21: Forecast 2032/33 | I21: Forecast 2033/34 | J21: ="Forecast "&J1+13&"/"&RIGHT(J1,2)+14 -> Forecast 2034/35 | K21: Forecast 2035/36 | L21: Forecast 2036/37 | M21: Forecast 2037/38 | N21: Forecast 2038/39 | O21: Forecast 2039/40 | P21: ="Forecast "&P1+13&"/"&RIGHT(P1,2)+14 -> Forecast 2040/41 | Z21: Solid Waste Infrastructure | AA21: Dams & Reservoirs | AB21: Storm water Conveyance | AD21: An efficient, competitive and responsive economic infrastructure network
A22: ='Template names'!C29 -> Next yr of long term forecast | B22: ="Forecast "&B1+14&"/"&RIGHT(B1,2)+15 -> Forecast 2027/28 | C22: Forecast 2028/29 | D22: Forecast 2029/30 | E22: Forecast 2030/31 | F22: Forecast 2031/32 | G22: Forecast 2032/33 | H22: Forecast 2033/34 | I22: Forecast 2034/35 | J22: ="Forecast "&J1+14&"/"&RIGHT(J1,2)+15 -> Forecast 2035/36 | K22: Forecast 2036/37 | L22: Forecast 2037/38 | M22: Forecast 2038/39 | N22: Forecast 2039/40 | O22: Forecast 2040/41 | P22: ="Forecast "&P1+14&"/"&RIGHT(P1,2)+15 -> Forecast 2041/42 | Z22: Rail Infrastructure | AA22: Water purification | AB22: Attenuation | AD22: Vibrant, equitable, sustainable rural communities contributing towards food security for all
A23: Adjustments Budget | B23: ="Annual target " & B1&"/"&RIGHT(B1,2)+1 -> Annual target 2013/14 | C23: Annual target 2014/15 | D23: Annual target 2015/16 | E23: Annual target 2016/17 | F23: Annual target 2017/18 | G23: Annual target 2018/19 | H23: Annual target 2019/20 | I23: Annual target 2020/21 | J23: ="Annual target " & J1&"/"&RIGHT(J1,2)+1 -> Annual target 2021/22 | K23: Annual target 2022/23 | L23: Annual target 2023/24 | M23: Annual target 2024/25 | N23: Annual target 2025/26 | O23: Annual target 2026/27 | P23: ="Annual target " & P1&"/"&RIGHT(P1,2)+1 -> Annual target 2027/28 | Z23: Coastal Infrastructure | AA23: Reticulation | AB23: Power Plants | AD23: Sustainable human settlements and improved quality of household life
A24: =A23 -> Adjustments Budget | B24: ="Revised target "& B1&"/"&RIGHT(B1,2)+1 -> Revised target 2013/14 | C24: Revised target 2014/15 | D24: Revised target 2015/16 | E24: Revised target 2016/17 | F24: Revised target 2017/18 | G24: Revised target 2018/19 | H24: Revised target 2019/20 | I24: Revised target 2020/21 | J24: ="Revised target "& J1&"/"&RIGHT(J1,2)+1 -> Revised target 2021/22 | K24: Revised target 2022/23 | L24: Revised target 2023/24 | M24: Revised target 2024/25 | N24: Revised target 2025/26 | O24: Revised target 2026/27 | P24: ="Revised target "& P1&"/"&RIGHT(P1,2)+1 -> Revised target 2027/28 | Z24: Information and Communication Infrastructure | AA24: Sewerage purification | AB24: HV Substations | AD24: Responsive, accountable, effective and efficient local government
A25: NOTE: This sheet should not be directly amended - select headings from sheet 'S' | Z25: Community Facilities | AA25: Waste Management | AB25: HV Switching Station | AD25: Protect and enhance our environmental assets and natural resources
Z26: Sport and Recreation Facilities | AA26: Transportation | AB26: HV Transmission Conductors | AD26: Create a better South Africa and contribute to a better Africa and a better world
A27: Name link | B27: 128 | Z27: Heritage assets | AA27: Gas | AB27: MV Substations | AD27: An efficient, effective and development-oriented public service
A28: Name of Muni | B28: =INDEX(B29:B307,B27,1) -> DC43 Harry Gwala | Z28: Revenue Generating | AA28: Parks & gardens | AB28: MV Switching Stations | AD28: A comprehensive, responsive and sustainable social protection system
B29: Choose name from list | C29: Set name on 'Instructions' sheet | Z29: Non-revenue Generating | AA29: Sportsfields & stadia | AB29: MV Networks | AD29: A diverse, socially cohesive society with a common national identity
B30: BUF Buffalo City | C30: EC EASTERN CAPE | Z30: Operational Buildings | AA30: Swimming pools | AB30: LV Networks
B31: NMA Nelson Mandela Bay | C31: EC EASTERN CAPE | Z31: Housing | AA31: Community halls | AB31: Capital Spares
B32: EC101 Dr Beyers Naude | C32: EC EASTERN CAPE | Z32: Biological or Cultivated Assets | AA32: Libraries | AB32: Dams and Weirs
B33: EC102 Blue Crane Route | C33: EC EASTERN CAPE | Z33: Servitudes | AA33: Recreational facilities | AB33: Boreholes
B34: EC104 Makana | C34: EC EASTERN CAPE | Z34: Licences and Rights | AA34: Fire, safety & emergency | AB34: Reservoirs
B35: EC105 Ndlambe | C35: EC EASTERN CAPE | Z35: Computer Equipment | AA35: Security and policing | AB35: Pump Stations
B36: EC106 Sundays River Valley | C36: EC EASTERN CAPE | Z36: Furniture and Office Equipment | AA36: Buses | AB36: Water Treatment Works
B37: EC108 Kouga | C37: EC EASTERN CAPE | Z37: Machinery and Equipment | AA37: Clinics | AB37: Bulk Mains
B38: EC109 Kou-Kamma | C38: EC EASTERN CAPE | Z38: Transport Assets | AA38: Museums & Art Galleries | AB38: Distribution
B39: DC10 Sarah Baartman | C39: EC EASTERN CAPE | Z39: Land | AA39: Cemeteries | AB39: Distribution Points
B40: EC121 Mbhashe | C40: EC EASTERN CAPE | Z40: Zoo's, Marine and Non-biological Animals | AA40: Social rental housing | AB40: PRV Stations
B41: EC122 Mnquma | C41: EC EASTERN CAPE | AA41: Buildings | AB41: Capital Spares
B42: EC123 Great Kei | C42: EC EASTERN CAPE | AA42: Housing development | AB42: Pump Station
B43: EC124 Amahlathi | C43: EC EASTERN CAPE | AA43: General vehicles | AB43: Reticulation
B44: EC126 Ngqushwa | C44: EC EASTERN CAPE | AA44: Specialised vehicles - Refuse | AB44: Waste Water Treatment Works
B45: EC129 Raymond Mhlaba | C45: EC EASTERN CAPE | AA45: Specialised vehicles - Fire | AB45: Outfall Sewers
B46: DC12 Amathole | C46: EC EASTERN CAPE | AA46: Specialised vehicles - Conservancy | AB46: Toilet Facilities
B47: EC131 Inxuba Yethemba | C47: EC EASTERN CAPE | AA47: Specialised vehicles - Ambulances | AB47: Capital Spares
B48: EC135 Intsika Yethu | C48: EC EASTERN CAPE | AA48: Plant & equipment | AB48: Landfill Sites
B49: EC136 Emalahleni (Ec) | C49: EC EASTERN CAPE | AA49: Computers - hardware/equipment | AB49: Waste Transfer Stations
B50: EC137 Dr. A.B Xuma | C50: EC EASTERN CAPE | AA50: Furniture and other office equipment | AB50: Waste Processing Facilities
B51: EC138 Sakhisizwe | C51: EC EASTERN CAPE | AA51: Abattoirs | AB51: Waste Drop-off Points
B52: EC139 Enoch Mgijima | C52: EC EASTERN CAPE | AA52: Markets | AB52: Waste Separation Facilities
B53: DC13 Chris Hani | C53: EC EASTERN CAPE | AA53: Civic Land and Buildings | AB53: Electricity Generation Facilities
B54: EC141 Elundini | C54: EC EASTERN CAPE | AA54: Other Buildings | AB54: Capital Spares
B55: EC142 Senqu | C55: EC EASTERN CAPE | AA55: Other Land | AB55: Rail Lines
B56: EC145 Walter Sisulu | C56: EC EASTERN CAPE | AA56: Surplus Assets - (Investment or Inventory) | AB56: Rail Structures
B57: DC14 Joe Gqabi | C57: EC EASTERN CAPE | AA57: Computers - software & programming | AB57: Rail Furniture
B58: EC153 Ngquza Hills | C58: EC EASTERN CAPE | AA58: Other | AB58: Drainage Collection
B59: EC154 Port St Johns | C59: EC EASTERN CAPE | AB59: Storm water Conveyance
B60: EC155 Nyandeni | C60: EC EASTERN CAPE | Z60: SA16 - Investments | AB60: Attenuation
B61: EC156 Mhlontlo | C61: EC EASTERN CAPE | Z61: Security | AA61: Interest rate | AB61: MV Substations
B62: EC157 King Sabata Dalindyebo | C62: EC EASTERN CAPE | Z62: Yes | AA62: Fixed | AB62: LV Networks
B63: DC15 O .R. Tambo | C63: EC EASTERN CAPE | Z63: No | AA63: Variable | AB63: Capital Spares
B64: EC441 Matatiele | C64: EC EASTERN CAPE | AB64: Sand Pumps
B65: EC442 Umzimvubu | C65: EC EASTERN CAPE | AB65: Piers
B66: EC443 Winnie Madikizela Mandela | C66: EC EASTERN CAPE | Z66: SA36, SA37 - Capital projects | AB66: Revetments
B67: EC444 Ntabankulu | C67: EC EASTERN CAPE | Z67: Yes | AB67: Promenades
B68: DC44 Alfred Nzo | C68: EC EASTERN CAPE | Z68: No | AB68: Capital Spares
B69: MAN Mangaung | C69: FS FREE STATE | AB69: Data Centres
B70: FS161 Letsemeng | C70: FS FREE STATE | AB70: Core Layers
B71: FS162 Kopanong | C71: FS FREE STATE | AB71: Distribution Layers
B72: FS163 Mohokare | C72: FS FREE STATE | AB72: Capital Spares
B73: DC16 Xhariep | C73: FS FREE STATE | AB73: Halls
B74: FS181 Masilonyana | C74: FS FREE STATE | AB74: Centres
B75: FS182 Tokologo | C75: FS FREE STATE | AB75: Crèches
B76: FS183 Tswelopele | C76: FS FREE STATE | AB76: Clinics/Care Centres
B77: FS184 Matjhabeng | C77: FS FREE STATE | AB77: Fire/Ambulance Stations
B78: FS185 Nala | C78: FS FREE STATE | AB78: Testing Stations
B79: DC18 Lejweleputswa | C79: FS FREE STATE | AB79: Museums
B80: FS191 Setsoto | C80: FS FREE STATE | AB80: Galleries
B81: FS192 Dihlabeng | C81: FS FREE STATE | AB81: Theatres
B82: FS193 Nketoana | C82: FS FREE STATE | AB82: Libraries
B83: FS194 Maluti-a-Phofung | C83: FS FREE STATE | AB83: Cemeteries/Crematoria
B84: FS195 Phumelela | C84: FS FREE STATE | AB84: Police
B85: FS196 Mantsopa | C85: FS FREE STATE | AB85: Purls
B86: DC19 Thabo Mofutsanyana | C86: FS FREE STATE | AB86: Public Open Space
B87: FS201 Moqhaka | C87: FS FREE STATE | AB87: Nature Reserves
B88: FS203 Ngwathe | C88: FS FREE STATE | AB88: Public Ablution Facilities
B89: FS204 Metsimaholo | C89: FS FREE STATE | AB89: Markets
B90: FS205 Mafube | C90: FS FREE STATE | AB90: Stalls
B91: DC20 Fezile Dabi | C91: FS FREE STATE | AB91: Abattoirs
B92: EKU City of Ekurhuleni | C92: GT GAUTENG | AB92: Airports
B93: JHB City Of Johannesburg | C93: GT GAUTENG | AB93: Taxi Ranks/Bus Terminals
B94: TSH City Of Tshwane | C94: GT GAUTENG | AB94: Capital Spares
B95: GT421 Emfuleni | C95: GT GAUTENG | AB95: Indoor Facilities
B96: GT422 Midvaal | C96: GT GAUTENG | AB96: Outdoor Facilities
B97: GT423 Lesedi | C97: GT GAUTENG | AB97: Capital Spares
B98: DC42 Sedibeng | C98: GT GAUTENG | AB98: Monuments
B99: GT481 Mogale City | C99: GT GAUTENG | AB99: Historic Buildings
B100: GT484 Merafong City | C100: GT GAUTENG | AB100: Works of Art
B101: GT485 Rand West City | C101: GT GAUTENG | AB101: Conservation Areas
B102: DC48 West Rand | C102: GT GAUTENG | AB102: Other Heritage
B103: ETH eThekwini | C103: KZN KWAZULU-NATAL | AB103: Improved Property
B104: KZN212 Umdoni | C104: KZN KWAZULU-NATAL | AB104: Unimproved Property
B105: KZN213 Umzumbe | C105: KZN KWAZULU-NATAL | AB105: Municipal Offices
B106: KZN214 uMuziwabantu | C106: KZN KWAZULU-NATAL | AB106: Pay/Enquiry Points
B107: KZN216 Ray Nkonyeni | C107: KZN KWAZULU-NATAL | AB107: Building Plan Offices
B108: DC21 Ugu | C108: KZN KWAZULU-NATAL | AB108: Workshops
B109: KZN221 uMshwathi | C109: KZN KWAZULU-NATAL | AB109: Yards
B110: KZN222 uMngeni | C110: KZN KWAZULU-NATAL | AB110: Stores
B111: KZN223 Mpofana | C111: KZN KWAZULU-NATAL | AB111: Laboratories
B112: KZN224 Impendle | C112: KZN KWAZULU-NATAL | AB112: Training Centres
B113: KZN225 Msunduzi | C113: KZN KWAZULU-NATAL | AB113: Manufacturing Plant
B114: KZN226 Mkhambathini | C114: KZN KWAZULU-NATAL | AB114: Depots
B115: KZN227 Richmond | C115: KZN KWAZULU-NATAL | AB115: Capital Spares
B116: DC22 uMgungundlovu | C116: KZN KWAZULU-NATAL | AB116: Staff Housing
B117: KZN235 Okhahlamba | C117: KZN KWAZULU-NATAL | AB117: Social Housing
B118: KZN237 Inkosi Langalibalele | C118: KZN KWAZULU-NATAL | AB118: Capital Spares
B119: KZN238 Alfred Duma | C119: KZN KWAZULU-NATAL | AB119: Water Rights
B120: DC23 Uthukela | C120: KZN KWAZULU-NATAL | AB120: Effluent Licenses
B121: KZN241 Endumeni | C121: KZN KWAZULU-NATAL | AB121: Solid Waste Licenses
B122: KZN242 Nquthu | C122: KZN KWAZULU-NATAL | AB122: Computer Software and Applications
B123: KZN244 Msinga | C123: KZN KWAZULU-NATAL | AB123: Load Settlement Software Applications
B124: KZN245 Umvoti | C124: KZN KWAZULU-NATAL | AB124: Unspecified
B125: DC24 Umzinyathi | C125: KZN KWAZULU-NATAL
B126: KZN252 Newcastle | C126: KZN KWAZULU-NATAL
B127: KZN253 Emadlangeni | C127: KZN KWAZULU-NATAL
B128: KZN254 Dannhauser | C128: KZN KWAZULU-NATAL
B129: DC25 Amajuba | C129: KZN KWAZULU-NATAL
B130: KZN261 eDumbe | C130: KZN KWAZULU-NATAL
B131: KZN262 uPhongolo | C131: KZN KWAZULU-NATAL
B132: KZN263 Abaqulusi | C132: KZN KWAZULU-NATAL
B133: KZN265 Nongoma | C133: KZN KWAZULU-NATAL
B134: KZN266 Ulundi | C134: KZN KWAZULU-NATAL
B135: DC26 Zululand | C135: KZN KWAZULU-NATAL
B136: KZN271 Umhlabuyalingana | C136: KZN KWAZULU-NATAL
B137: KZN272 Jozini | C137: KZN KWAZULU-NATAL
B138: KZN275 Mtubatuba | C138: KZN KWAZULU-NATAL
B139: KZN276 Hlabisa Big Five | C139: KZN KWAZULU-NATAL
B140: DC27 Umkhanyakude | C140: KZN KWAZULU-NATAL
B141: KZN281 Mfolozi | C141: KZN KWAZULU-NATAL
B142: KZN282 uMhlathuze | C142: KZN KWAZULU-NATAL
B143: KZN284 uMlalazi | C143: KZN KWAZULU-NATAL
B144: KZN285 Mthonjaneni | C144: KZN KWAZULU-NATAL
B145: KZN286 Nkandla | C145: KZN KWAZULU-NATAL
B146: DC28 King Cetshwayo | C146: KZN KWAZULU-NATAL
B147: KZN291 Mandeni | C147: KZN KWAZULU-NATAL
B148: KZN292 KwaDukuza | C148: KZN KWAZULU-NATAL
B149: KZN293 Ndwedwe | C149: KZN KWAZULU-NATAL
B150: KZN294 Maphumulo | C150: KZN KWAZULU-NATAL
B151: DC29 iLembe | C151: KZN KWAZULU-NATAL
B152: KZN433 Greater Kokstad | C152: KZN KWAZULU-NATAL
B153: KZN434 Johannes Phumani Phungula | C153: KZN KWAZULU-NATAL
B154: KZN435 Umzimkhulu | C154: KZN KWAZULU-NATAL
B155: KZN436 Dr Nkosazana Dlamini Zuma | C155: KZN KWAZULU-NATAL
B156: DC43 Harry Gwala | C156: KZN KWAZULU-NATAL
B157: LIM331 Greater Giyani | C157: LIM LIMPOPO
B158: LIM332 Greater Letaba | C158: LIM LIMPOPO
B159: LIM333 Greater Tzaneen | C159: LIM LIMPOPO
B160: LIM334 Ba-Phalaborwa | C160: LIM LIMPOPO
B161: LIM335 Maruleng | C161: LIM LIMPOPO
B162: DC33 Mopani | C162: LIM LIMPOPO
B163: LIM341 Musina | C163: LIM LIMPOPO
B164: LIM343 Thulamela | C164: LIM LIMPOPO
B165: LIM344 Makhado | C165: LIM LIMPOPO
B166: LIM345 Collins Chabane | C166: LIM LIMPOPO
B167: DC34 Vhembe | C167: LIM LIMPOPO
B168: LIM351 Blouberg | C168: LIM LIMPOPO
B169: LIM353 Molemole | C169: LIM LIMPOPO
B170: LIM354 Polokwane | C170: LIM LIMPOPO
B171: LIM355 Lepelle-Nkumpi | C171: LIM LIMPOPO
B172: DC35 Capricorn | C172: LIM LIMPOPO
B173: LIM361 Thabazimbi | C173: LIM LIMPOPO
B174: LIM362 Lephalale | C174: LIM LIMPOPO
B175: LIM366 Bela Bela | C175: LIM LIMPOPO
B176: LIM367 Mogalakwena | C176: LIM LIMPOPO
B177: LIM368 Modimolle-Mookgopong | C177: LIM LIMPOPO
B178: DC36 Waterberg | C178: LIM LIMPOPO
B179: LIM471 Ephraim Mogale | C179: LIM LIMPOPO
B180: LIM472 Elias Motsoaledi | C180: LIM LIMPOPO
B181: LIM473 Makhuduthamaga | C181: LIM LIMPOPO
B182: LIM476 Tubatse Fetakgomo | C182: LIM LIMPOPO
B183: DC47 Sekhukhune | C183: LIM LIMPOPO
B184: MP301 Albert Luthuli | C184: MP MPUMALANGA
B185: MP302 Msukaligwa | C185: MP MPUMALANGA
B186: MP303 Mkhondo | C186: MP MPUMALANGA
B187: MP304 Pixley Ka Seme (MP) | C187: MP MPUMALANGA
B188: MP305 Lekwa | C188: MP MPUMALANGA
B189: MP306 Dipaleseng | C189: MP MPUMALANGA
B190: MP307 Govan Mbeki | C190: MP MPUMALANGA
B191: DC30 Gert Sibande | C191: MP MPUMALANGA
B192: MP311 Victor Khanye | C192: MP MPUMALANGA
B193: MP312 Emalahleni (Mp) | C193: MP MPUMALANGA
B194: MP313 Steve Tshwete | C194: MP MPUMALANGA
B195: MP314 Emakhazeni | C195: MP MPUMALANGA
B196: MP315 Thembisile Hani | C196: MP MPUMALANGA
B197: MP316 Dr J.S. Moroka | C197: MP MPUMALANGA
B198: DC31 Nkangala | C198: MP MPUMALANGA
B199: MP321 Thaba Chweu | C199: MP MPUMALANGA
B200: MP324 Nkomazi | C200: MP MPUMALANGA
... 87 more rows

Sheet Org structure
A1: Organisational Structure Votes | C1: Organisational Structure Sub-Votes | E1: Display Sub-Votes
A2: =B2&" - "&C2 -> Vote 01 - Summary Council | B2: Vote 01 | C2: Summary Council
A3: =B8&" - "&C8 -> Vote 02 - Summary Municipal Manager | B3: 01.1 | C3: Mayor | D3: =CONCATENATE(B3, " - ", C3) -> 01.1 - Mayor | E3: 01.1 - Mayor
A4: =B13&" - "&C13 -> Vote 03 - Summary Budget And Treasury Office | B4: 01.2 | C4: Deputy Mayor | D4: =CONCATENATE(B4, " - ", C4) -> 01.2 - Deputy Mayor | E4: 01.2 - Deputy Mayor
A5: =B17&" - "&C17 -> Vote 04 - Summary Corporate Services | B5: 01.3 | C5: Speaker | D5: =CONCATENATE(B5, " - ", C5) -> 01.3 - Speaker | E5: 01.3 - Speaker
A6: =B23&" - "&C23 -> Vote 05 - Summary Social Services & Development Planing | B6: 01.4 | C6: Exco | D6: =CONCATENATE(B6, " - ", C6) -> 01.4 - Exco | E6: 01.4 - Exco
A7: =B35&" - "&C35 -> Vote 06 - Summary Infrastructure Services | B7: 01.5 | C7: Council General | D7: =CONCATENATE(B7, " - ", C7) -> 01.5 - Council General | E7: 01.5 - Council General
A8: =B42&" - "&C42 -> Vote 07 - Summary Water Services | B8: Vote 02 | C8: Summary Municipal Manager
A9: =B54&" - "&C54 -> Vote 08 - | B9: 02.1 | C9: Municipal Manager Administration | D9: =CONCATENATE(B9, " - ", C9) -> 02.1 - Municipal Manager Administration | E9: 02.1 - Municipal Manager Administration
A10: Vote 09 - | B10: 02.2 | C10: Internal Audit Unit | D10: =CONCATENATE(B10, " - ", C10) -> 02.2 - Internal Audit Unit | E10: 02.2 - Internal Audit Unit
A11: Vote 10 - | B11: 02.3 | C11: Monitoring And Evaluation( Pob) Support Services | D11: =CONCATENATE(B11, " - ", C11) -> 02.3 - Monitoring And Evaluation( Pob) Support Services | E11: 02.3 - Monitoring And Evaluation( Pob) Support Services
A12: Vote 11 - | B12: 02.4 | C12: Idp & Pms | D12: =CONCATENATE(B12, " - ", C12) -> 02.4 - Idp & Pms | E12: 02.4 - Idp & Pms
A13: Vote 12 - | B13: Vote 03 | C13: Summary Budget And Treasury Office
A14: Vote 13 - | B14: 03.1 | C14: Budget & Treasury Administration | D14: =CONCATENATE(B14, " - ", C14) -> 03.1 - Budget & Treasury Administration | E14: 03.1 - Budget & Treasury Administration
A15: Vote 14 - | B15: 03.2 | C15: Income Expenditure & Accounting Support | D15: =CONCATENATE(B15, " - ", C15) -> 03.2 - Income Expenditure & Accounting Support | E15: 03.2 - Income Expenditure & Accounting Support
A16: Vote 15 - Other | B16: 03.3 | C16: Budgeting & Supply Chain Management | D16: =CONCATENATE(B16, " - ", C16) -> 03.3 - Budgeting & Supply Chain Management | E16: 03.3 - Budgeting & Supply Chain Management
B17: Vote 04 | C17: Summary Corporate Services
B18: 04.1 | C18: Corporate Services Administration | D18: =CONCATENATE(B18, " - ", C18) -> 04.1 - Corporate Services Administration | E18: 04.1 - Corporate Services Administration
B19: 04.2 | C19: Human Resources & Labour Relations | D19: =CONCATENATE(B19, " - ", C19) -> 04.2 - Human Resources & Labour Relations | E19: 04.2 - Human Resources & Labour Relations
B20: 04.3 | C20: Administration & Ict | D20: =CONCATENATE(B20, " - ", C20) -> 04.3 - Administration & Ict | E20: 04.3 - Administration & Ict
B21: 04.4 | C21: Communication & Legal Support | D21: =CONCATENATE(B21, " - ", C21) -> 04.4 - Communication & Legal Support | E21: 04.4 - Communication & Legal Support
B22: 04.5 | C22: Learnerships And Internships | D22: =CONCATENATE(B22, " - ", C22) -> 04.5 - Learnerships And Internships | E22: 04.5 - Learnerships And Internships
B23: Vote 05 | C23: Summary Social Services & Development Planing
B24: 05.1 | C24: Social Econ & Develop Planning Admin. | D24: =CONCATENATE(B24, " - ", C24) -> 05.1 - Social Econ & Develop Planning Admin. | E24: 05.1 - Social Econ & Develop Planning Admin.
B25: 05.2 | C25: Special Programmes | D25: 05.2 - Special Programmes | E25: 05.2 - Special Programmes
B26: 05.3 | C26: Social Services | D26: 05.3 - Social Services | E26: 05.3 - Social Services
B27: 05.4 | C27: Strategic Planning; Idp & Pms | D27: 05.4 - Strategic Planning; Idp & Pms | E27: 05.4 - Strategic Planning; Idp & Pms
B28: 05.5 | C28: Development Planning | D28: 05.5 - Development Planning | E28: 05.5 - Development Planning
B29: 05.6 | C29: Office Of The Ceo | D29: 05.6 - Office Of The Ceo | E29: 05.6 - Office Of The Ceo
B30: 05.7 | C30: Corporate Services | D30: 05.7 - Corporate Services | E30: 05.7 - Corporate Services
B31: 05.8 | C31: Chief Financial Officer | D31: 05.8 - Chief Financial Officer | E31: 05.8 - Chief Financial Officer
B32: 05.9 | C32: Tourism | D32: 05.9 - Tourism | E32: 05.9 - Tourism
B33: 05.10 | C33: Local Economic Development | D33: 05.10 - Local Economic Development | E33: 05.10 - Local Economic Development
B34: 05.11 | C34: Local Economic Development (Rep Fx) | D34: 05.11 - Local Economic Development (Rep Fx) | E34: 05.11 - Local Economic Development (Rep Fx)
B35: Vote 06 | C35: Summary Infrastructure Services
B36: 06.1 | C36: Infrastructure Services Administration | D36: =CONCATENATE(B36, " - ", C36) -> 06.1 - Infrastructure Services Administration | E36: 06.1 - Infrastructure Services Administration
B37: 06.2 | C37: Municipal Works & Professional Services | D37: 06.2 - Municipal Works & Professional Services | E37: 06.2 - Municipal Works & Professional Services
B38: 06.3 | C38: Project & Infra Grant Management | D38: 06.3 - Project & Infra Grant Management | E38: 06.3 - Project & Infra Grant Management
B39: 06.4 | C39: Reporting Function | D39: 06.4 - Reporting Function | E39: 06.4 - Reporting Function
B40: 06.5 | C40: Reporting Function | D40: 06.5 - Reporting Function | E40: 06.5 - Reporting Function
B41: 06.6 | C41: Reporting Function | D41: 06.6 - Reporting Function | E41: 06.6 - Reporting Function
B42: Vote 07 | C42: Summary Water Services
B43: 07.1 | C43: Water Services Administration | D43: =CONCATENATE(B43, " - ", C43) -> 07.1 - Water Services Administration | E43: 07.1 - Water Services Administration
B44: 07.2 | C44: Water Infrastructure Planning & Design | D44: 07.2 - Water Infrastructure Planning & Design | E44: 07.2 - Water Infrastructure Planning & Design
B45: 07.3 | C45: Water Operations & Maintenance | D45: 07.3 - Water Operations & Maintenance | E45: 07.3 - Water Operations & Maintenance
B46: 07.4 | C46: Sanitation Operations & Maintenance | D46: 07.4 - Sanitation Operations & Maintenance | E46: 07.4 - Sanitation Operations & Maintenance
B47: 07.5 | C47: Customer Care Services | D47: 07.5 - Customer Care Services | E47: 07.5 - Customer Care Services
B48: 07.6 | C48: Water Regulation/Governance | D48: 07.6 - Water Regulation/Governance | E48: 07.6 - Water Regulation/Governance
B49: 07.7 | C49: Dr Nkosozana Dlamini Zuma Lm | D49: 07.7 - Dr Nkosozana Dlamini Zuma Lm | E49: 07.7 - Dr Nkosozana Dlamini Zuma Lm
B50: 07.8 | C50: Umzimkhulu | D50: 07.8 - Umzimkhulu | E50: 07.8 - Umzimkhulu
B51: 07.9 | C51: Kokstad | D51: 07.9 - Kokstad | E51: 07.9 - Kokstad
B52: 07.10 | C52: Ubuhlebezwe | D52: 07.10 - Ubuhlebezwe | E52: 07.10 - Ubuhlebezwe
B53: 07.11 | C53: Reporting Function | D53: 07.11 - Reporting Function | E53: 07.11 - Reporting Function
B54: Vote 08
B55: Vote 09
B56: Vote 10
B57: Vote 11
B58: Vote 12
B59: Vote 13
B60: Vote 14
B61: Vote 15 | C61: Other

Sheet Contacts
A1: =muni&" - "&" Contact Information" -> DC43 Harry Gwala - Contact Information
A3: A. GENERAL INFORMATION
A4: Municipality | B4: =muni -> DC43 Harry Gwala | C4: =IF(B4="Choose name from List","Set name on 'Instructions' sheet", "") -> 
A6: Grade | B6: 4 | C6: 1 Grade in terms of the Remuneration of Public Office Bearers Act.
A8: Province | B8: =IF(B4>" ",VLOOKUP(B4,'Lookup and lists'!B29:C307,2, FALSE)," ") -> KZN KWAZULU-NATAL
A10: Web Address | B10: www.harrygwala.gov.za
A12: e-mail Address
A14: B. CONTACT INFORMATION
A15: Postal address:
A16: P.O. Box | B16: Private Bag x 501
A17: City / Town | B17: Ixopo
A18: Postal Code | B18: 3276
A20: Street address
A21: Building | B21: Harry Gwala District Municipality
A22: Street No. & Name | B22: 40 Main street
A23: City / Town | B23: Ixopo
A24: Postal Code | B24: 3276
A26: General Contacts
A27: Telephone number | B27: 039 834 8700
A28: Fax number | B28: 039 834 1701
A30: C. POLITICAL LEADERSHIP
A31: Speaker: | C31: Secretary/PA to the Speaker:
A32: ID Number | C32: ID Number
A33: Title | B33: Mr | C33: Title | D33: Ms
A34: Name | B34: Cllr M.S.D Mdunge | C34: Name | D34: Bongekile Msiya
A35: Telephone number | B35: 039 834 8769 | C35: Telephone number | D35: 039 834 8769
A36: Cell number | B36: 083 758 0035 | C36: Cell number | D36: 076 515 2717
A37: Fax number | B37: 039 834 1701 | C37: Fax number | D37: 039 834 1701
A38: E-mail address | B38: Mdungem@harrygwaladm.gov.za | C38: E-mail address | D38: msiyab@harrygwaladm.gov.za
A40: Mayor/Executive Mayor: | C40: Secretary/PA to the Mayor/Executive Mayor:
A41: ID Number | C41: ID Number
A42: Title | B42: Mr. | C42: Title | D42: Ms
A43: Name | B43: Cllr Z.D Nxumalo | C43: Name | D43: Asande Nkomo
A44: Telephone number | B44: 039 834 1701 | C44: Telephone number | D44: 039 834 8736
A45: Cell number | B45: 083 464 3726 | C45: Cell number | D45: 062 770 3920
A46: Fax number | B46: 039 834 1701 | C46: Fax number | D46: 039 834 1701
A47: E-mail address | B47: NxumaloZ@harrygwaladm.gov.za | C47: E-mail address | D47: nkomoa@harrygwaladm.gov.za
A49: Deputy Mayor/Executive Mayor: | C49: Secretary/PA to the Deputy Mayor/Executive Mayor:
A50: ID Number | C50: ID Number
A51: Title | B51: Ms | C51: Title | D51: Ms
A52: Name | B52: Cllr N.T. Jojozi | C52: Name | D52: Yonela Ludidi
A53: Telephone number | B53: 039 834 8781 | C53: Telephone number | D53: 039 834 8781
A54: Cell number | B54: 06 0501 8649 | C54: Cell number | D54: 061 065 0690
A55: Fax number | B55: 039 834 1701 | C55: Fax number | D55: 039 834 1701
A56: E-mail address | B56: JojoziT@harrygwaladm.gov.za | C56: E-mail address | D56: ludidiy@harrygwaladm.gov.za
A58: D. MANAGEMENT LEADERSHIP
A59: Municipal Manager: | C59: Secretary/PA to the Municipal Manager:
A60: ID Number | C60: ID Number
A61: Title | B61: Mr | C61: Title | D61: Ms.
A62: Name | B62: GM SINEKE | C62: Name | D62: NELLY MADOLO
A63: Telephone number | B63: 039 834 8707 | C63: Telephone number | D63: 039 834 8707
A64: Cell number | B64: 076 794 7046 | C64: Cell number | D64: 074 437 4356
A65: Fax number | B65: 039 834 1701/1750 | C65: Fax number | D65: 039 834 1701/1750
A66: E-mail address | B66: SinekeG@harrygwaladm.gov.za | C66: E-mail address | D66: madolon@harrygwaladm.gov.za
A68: Chief Financial Officer | C68: Secretary/PA to the Chief Financial Officer
A69: ID Number | C69: ID Number
A70: Title | B70: Mr. | C70: Title | D70: Ms.
A71: Name | B71: Themba B Mnguni | C71: Name | D71: Samkelisiwe Pearl Mzindle
A72: Telephone number | B72: 039 834 8702 | C72: Telephone number | D72: 039 834 8701
A73: Cell number | B73: 083 567 5681 | C73: Cell number | D73: 076 494 2607
A74: Fax number | B74: 039 834 1701 | C74: Fax number | D74: 039 834 1701
A75: E-mail address | B75: MnguniT@harrygwaladm.gov.za | C75: E-mail address | D75: MzindleS@harrygwaladm.gov.za
A77: Official responsible for submitting financial information | C77: Official responsible for submitting financial information
A78: ID Number | C78: ID Number
A79: Title | B79: Ms. | C79: Title
A80: Name | B80: AMANDA NONGALO | C80: Name
A81: Telephone number | B81: 039 834 8738 | C81: Telephone number
A82: Cell number | B82: 072 203 1724 | C82: Cell number
A83: Fax number | B83: 039 834 1701 | C83: Fax number
A84: E-mail address | B84: NongaloA@harrygwaladm.gov.za | C84: E-mail address
A85: Official responsible for submitting financial information | C85: Official responsible for submitting financial information
A86: ID Number | C86: ID Number
A87: Title | C87: Title
A88: Name | C88: Name
A89: Telephone number | C89: Telephone number
A90: Cell number | C90: Cell number
A91: Fax number | C91: Fax number
A92: E-mail address | C92: E-mail address
A93: Official responsible for submitting financial information | C93: Official responsible for submitting financial information
A94: ID Number | C94: ID Number
A95: Title | C95: Title
A96: Name | C96: Name
A97: Telephone number | C97: Telephone number
A98: Cell number | C98: Cell number
A99: Fax number | C99: Fax number
A100: E-mail address | C100: E-mail address
A101: Official responsible for submitting financial information | C101: Official responsible for submitting financial information
A102: ID Number | C102: ID Number
A103: Title | C103: Title
A104: Name | C104: Name
A105: Telephone number | C105: Telephone number
A106: Cell number | C106: Cell number
A107: Fax number | C107: Fax number
A108: E-mail address | C108: E-mail address
A109: Official responsible for submitting financial information | C109: Official responsible for submitting financial information
A110: ID Number | C110: ID Number
A111: Title | C111: Title
A112: Name | C112: Name
A113: Telephone number | C113: Telephone number
A114: Cell number | C114: Cell number
A115: Fax number | C115: Fax number
A116: E-mail address | C116: E-mail address
A117: Official responsible for submitting financial information | C117: Official responsible for submitting financial information
A118: ID Number | C118: ID Number
A119: Title | C119: Title
A120: Name | C120: Name
A121: Telephone number | C121: Telephone number
A122: Cell number | C122: Cell number
A123: Fax number | C123: Fax number
A124: E-mail address | C124: E-mail address
A125: Official responsible for submitting financial information | C125: Official responsible for submitting financial information
A126: ID Number | C126: ID Number
A127: Title | C127: Title
A128: Name | C128: Name
A129: Telephone number | C129: Telephone number
A130: Cell number | C130: Cell number
A131: Fax number | C131: Fax number
A132: E-mail address | C132: E-mail address
A133: Official responsible for submitting financial information
A134: ID Number
A135: Title
A136: Name
A137: Telephone number
A138: Cell number
A139: Fax number
A140: E-mail address

Sheet A1-Sum
A1: =muni&" - "&Approve1 -> DC43 Harry Gwala - Table A1 Consolidated Budget Summary
A2: =desc -> Description | B2: =head1b -> 2022/23 | C2: =head1A -> 2023/24 | D2: =Head1 -> 2024/25 | E2: =Head2 -> Current Year 2025/26 | I2: =Head3 -> 2026/27 Medium Term Revenue & Expenditure Framework
A3: R thousands | B3: =Head5 -> Audited Outcome | C3: =Head5 -> Audited Outcome | D3: =Head5 -> Audited Outcome | E3: =Head6 -> Original Budget | F3: =Head7 -> Adjusted Budget | G3: =Head8 -> Full Year Forecast | H3: =Head5b -> Pre-audit outcome | I3: =Head9 -> Budget Year 2026/27 | J3: =Head10 -> Budget Year +1 2027/28 | K3: =Head11 -> Budget Year +2 2028/29
A4: Financial Performance
A5: Property rates | B5: ='A4-FinPerf RE'!C24 -> 0 | C5: ='A4-FinPerf RE'!D24 -> 0 | D5: ='A4-FinPerf RE'!E24 -> 0 | E5: ='A4-FinPerf RE'!F24 -> 0 | F5: ='A4-FinPerf RE'!G24 -> 0 | G5: ='A4-FinPerf RE'!H24 -> 0 | H5: ='A4-FinPerf RE'!I24 -> 0 | I5: ='A4-FinPerf RE'!J24 -> 0 | J5: ='A4-FinPerf RE'!K24 -> 0 | K5: ='A4-FinPerf RE'!L24 -> 0
A6: Service charges | B6: =SUM('A4-FinPerf RE'!C6:C9) -> 77,674 | C6: =SUM('A4-FinPerf RE'!D6:D9) -> 72,558 | D6: =SUM('A4-FinPerf RE'!E6:E9) -> 76,533 | E6: =SUM('A4-FinPerf RE'!F6:F9) -> 81,589 | F6: =SUM('A4-FinPerf RE'!G6:G9) -> 86,639 | G6: =SUM('A4-FinPerf RE'!H6:H9) -> 86,639 | H6: =SUM('A4-FinPerf RE'!I6:I9) -> 56,279 | I6: =SUM('A4-FinPerf RE'!J6:J9) -> 91,838 | J6: =SUM('A4-FinPerf RE'!K6:K9) -> 97,348 | K6: =SUM('A4-FinPerf RE'!L6:L9) -> 103,189
A7: Investment revenue | B7: ='A4-FinPerf RE'!C14 -> 10,858 | C7: ='A4-FinPerf RE'!D14 -> 21,988 | D7: ='A4-FinPerf RE'!E14 -> 28,012 | E7: ='A4-FinPerf RE'!F14 -> 26,043 | F7: ='A4-FinPerf RE'!G14 -> 26,043 | G7: ='A4-FinPerf RE'!H14 -> 26,043 | H7: ='A4-FinPerf RE'!I14 -> 15,868 | I7: ='A4-FinPerf RE'!J14 -> 27,572 | J7: ='A4-FinPerf RE'!K14 -> 29,185 | K7: ='A4-FinPerf RE'!L14 -> 30,889
A8: Transfer and subsidies - Operational | B8: ='A4-FinPerf RE'!C28 -> 452,460 | C8: ='A4-FinPerf RE'!D28 -> 477,532 | D8: ='A4-FinPerf RE'!E28 -> 534,708 | E8: ='A4-FinPerf RE'!F28 -> 596,989 | F8: ='A4-FinPerf RE'!G28 -> 596,989 | G8: ='A4-FinPerf RE'!H28 -> 596,989 | H8: ='A4-FinPerf RE'!I28 -> 417,013 | I8: ='A4-FinPerf RE'!J28 -> 607,089 | J8: ='A4-FinPerf RE'!K28 -> 639,342 | K8: ='A4-FinPerf RE'!L28 -> 654,931
A9: Other own revenue | B9: ='A4-FinPerf RE'!C35-SUM(B5:B8) -> 19,422 | C9: ='A4-FinPerf RE'!D35-SUM(C5:C8) -> 19,807 | D9: ='A4-FinPerf RE'!E35-SUM(D5:D8) -> 16,989 | E9: ='A4-FinPerf RE'!F35-SUM(E5:E8) -> 19,194 | F9: ='A4-FinPerf RE'!G35-SUM(F5:F8) -> 13,891 | G9: ='A4-FinPerf RE'!H35-SUM(G5:G8) -> 13,891 | H9: ='A4-FinPerf RE'!I35-SUM(H5:H8) -> 9,716 | I9: ='A4-FinPerf RE'!J35-SUM(I5:I8) -> 14,722 | J9: ='A4-FinPerf RE'!K35-SUM(J5:J8) -> 15,598 | K9: ='A4-FinPerf RE'!L35-SUM(K5:K8) -> 16,527
A10: ='A4-FinPerf RE'!A35 -> Total Revenue (excluding capital transfers and contributions) | B10: =SUM(B5:B9) -> 560,414 | C10: =SUM(C5:C9) -> 591,885 | D10: 656,242 | E10: 723,815 | F10: 723,562 | G10: 723,562 | H10: 498,876 | I10: 741,220 | J10: 781,473 | K10: 805,535
A11: Employee costs | B11: ='A4-FinPerf RE'!C37 -> 244,161 | C11: ='A4-FinPerf RE'!D37 -> 254,727 | D11: ='A4-FinPerf RE'!E37 -> 261,114 | E11: ='A4-FinPerf RE'!F37 -> 291,721 | F11: ='A4-FinPerf RE'!G37 -> 310,807 | G11: ='A4-FinPerf RE'!H37 -> 310,807 | H11: ='A4-FinPerf RE'!I37 -> 181,170 | I11: ='A4-FinPerf RE'!J37 -> 323,261 | J11: ='A4-FinPerf RE'!K37 -> 336,115 | K11: ='A4-FinPerf RE'!L37 -> 349,456
A12: Remuneration of councillors | B12: ='A4-FinPerf RE'!C38 -> 6,988 | C12: ='A4-FinPerf RE'!D38 -> 6,932 | D12: ='A4-FinPerf RE'!E38 -> 7,581 | E12: ='A4-FinPerf RE'!F38 -> 8,059 | F12: ='A4-FinPerf RE'!G38 -> 8,101 | G12: ='A4-FinPerf RE'!H38 -> 8,101 | H12: ='A4-FinPerf RE'!I38 -> 5,240 | I12: ='A4-FinPerf RE'!J38 -> 8,426 | J12: ='A4-FinPerf RE'!K38 -> 8,763 | K12: ='A4-FinPerf RE'!L38 -> 9,113
A13: Depreciation, amortisation and impairment | B13: ='A4-FinPerf RE'!C42 -> 92,787 | C13: ='A4-FinPerf RE'!D42 -> 236,930 | D13: ='A4-FinPerf RE'!E42 -> 116,317 | E13: ='A4-FinPerf RE'!F42 -> 107,788 | F13: ='A4-FinPerf RE'!G42 -> 107,788 | G13: ='A4-FinPerf RE'!H42 -> 107,788 | H13: ='A4-FinPerf RE'!I42 -> 89,508 | I13: ='A4-FinPerf RE'!J42 -> 114,839 | J13: ='A4-FinPerf RE'!K42 -> 118,634 | K13: ='A4-FinPerf RE'!L42 -> 122,437
A14: Interest, Dividends and Rent on Land | B14: ='A4-FinPerf RE'!C43 -> 113 | C14: ='A4-FinPerf RE'!D43 -> 2 | D14: ='A4-FinPerf RE'!E43 -> 0 | E14: ='A4-FinPerf RE'!F43 -> 54 | F14: ='A4-FinPerf RE'!G43 -> 54 | G14: ='A4-FinPerf RE'!H43 -> 54 | H14: ='A4-FinPerf RE'!I43 -> 0 | I14: ='A4-FinPerf RE'!J43 -> 56 | J14: ='A4-FinPerf RE'!K43 -> 58 | K14: ='A4-FinPerf RE'!L43 -> 61
A15: Inventory consumed and bulk purchases | B15: ='A4-FinPerf RE'!C39+'A4-FinPerf RE'!C40 -> 33,421 | C15: ='A4-FinPerf RE'!D39+'A4-FinPerf RE'!D40 -> 33,598 | D15: ='A4-FinPerf RE'!E39+'A4-FinPerf RE'!E40 -> 58,827 | E15: ='A4-FinPerf RE'!F39+'A4-FinPerf RE'!F40 -> 39,635 | F15: ='A4-FinPerf RE'!G39+'A4-FinPerf RE'!G40 -> 46,030 | G15: ='A4-FinPerf RE'!H39+'A4-FinPerf RE'!H40 -> 46,030 | H15: ='A4-FinPerf RE'!I39+'A4-FinPerf RE'!I40 -> 33,736 | I15: ='A4-FinPerf RE'!J39+'A4-FinPerf RE'!J40 -> 39,696 | J15: ='A4-FinPerf RE'!K39+'A4-FinPerf RE'!K40 -> 41,007 | K15: ='A4-FinPerf RE'!L39+'A4-FinPerf RE'!L40 -> 42,320
A16: Transfers and subsidies | B16: ='A4-FinPerf RE'!C45 -> 15,290 | C16: ='A4-FinPerf RE'!D45 -> 0 | D16: ='A4-FinPerf RE'!E45 -> 0 | E16: ='A4-FinPerf RE'!F45 -> 23,360 | F16: ='A4-FinPerf RE'!G45 -> 23,360 | G16: ='A4-FinPerf RE'!H45 -> 23,360 | H16: ='A4-FinPerf RE'!I45 -> 14,000 | I16: ='A4-FinPerf RE'!J45 -> 23,374 | J16: ='A4-FinPerf RE'!K45 -> 25,889 | K16: ='A4-FinPerf RE'!L45 -> 25,405
A17: Other expenditure | B17: ='A4-FinPerf RE'!C50-SUM(B11:B16) -> 205,058 | C17: ='A4-FinPerf RE'!D50-SUM(C11:C16) -> 208,963 | D17: ='A4-FinPerf RE'!E50-SUM(D11:D16) -> 267,652 | E17: ='A4-FinPerf RE'!F50-SUM(E11:E16) -> 348,556 | F17: ='A4-FinPerf RE'!G50-SUM(F11:F16) -> 394,280 | G17: ='A4-FinPerf RE'!H50-SUM(G11:G16) -> 394,280 | H17: ='A4-FinPerf RE'!I50-SUM(H11:H16) -> 195,102 | I17: ='A4-FinPerf RE'!J50-SUM(I11:I16) -> 360,994 | J17: ='A4-FinPerf RE'!K50-SUM(J11:J16) -> 375,247 | K17: ='A4-FinPerf RE'!L50-SUM(K11:K16) -> 387,304
A18: ='A4-FinPerf RE'!A50 -> Total Expenditure | B18: =SUM(B11:B17) -> 597,818 | C18: =SUM(C11:C17) -> 741,152 | D18: =SUM(D11:D17) -> 711,491 | E18: 819,174 | F18: 890,421 | G18: 890,421 | H18: 518,756 | I18: 870,647 | J18: 905,714 | K18: 936,096
A19: ='A4-FinPerf RE'!A51 -> Surplus/(Deficit) | B19: =B10-B18 -> (37,403) | C19: =C10-C18 -> (149,267) | D19: =D10-D18 -> (55,249) | E19: (95,360) | F19: (166,858) | G19: (166,858) | H19: (19,880) | I19: (129,426) | J19: (124,241) | K19: (130,560)
A20: ='A4-FinPerf RE'!A52 -> Transfers and subsidies - capital (monetary allocations) | B20: ='A4-FinPerf RE'!C52 -> 283,338 | C20: ='A4-FinPerf RE'!D52 -> 332,319 | D20: ='A4-FinPerf RE'!E52 -> 317,693 | E20: ='A4-FinPerf RE'!F52 -> 293,458 | F20: ='A4-FinPerf RE'!G52 -> 293,458 | G20: ='A4-FinPerf RE'!H52 -> 293,458 | H20: ='A4-FinPerf RE'!I52 -> 174,464 | I20: ='A4-FinPerf RE'!J52 -> 328,867 | J20: ='A4-FinPerf RE'!K52 -> 389,426 | K20: ='A4-FinPerf RE'!L52 -> 373,731
A21: ='A4-FinPerf RE'!A53 -> Transfers and subsidies - capital (in-kind) | B21: ='A4-FinPerf RE'!C53 -> 3,888 | C21: ='A4-FinPerf RE'!D53 -> 0 | D21: ='A4-FinPerf RE'!E53 -> 0 | E21: ='A4-FinPerf RE'!F53 -> 0 | F21: ='A4-FinPerf RE'!G53 -> 0 | G21: ='A4-FinPerf RE'!H53 -> 0 | H21: ='A4-FinPerf RE'!I53 -> 0 | I21: ='A4-FinPerf RE'!J53 -> 0 | J21: ='A4-FinPerf RE'!K53 -> 0 | K21: ='A4-FinPerf RE'!L53 -> 0
A22: ='A4-FinPerf RE'!A54 -> Surplus/(Deficit) after capital transfers & contributions | B22: =B19+SUM(B20:B21) -> 249,822 | C22: =C19+SUM(C20:C21) -> 183,052 | D22: 262,444 | E22: 198,099 | F22: 126,600 | G22: 126,600 | H22: 154,584 | I22: 199,441 | J22: 265,185 | K22: 243,171
A23: ='A4-FinPerf RE'!A60 -> Share of Surplus/Deficit attributable to Associate | B23: ='A4-FinPerf RE'!C60 -> 0 | C23: ='A4-FinPerf RE'!D60 -> 0 | D23: ='A4-FinPerf RE'!E60 -> 0 | E23: ='A4-FinPerf RE'!F60 -> 0 | F23: ='A4-FinPerf RE'!G60 -> 0 | G23: ='A4-FinPerf RE'!H60 -> 0 | H23: ='A4-FinPerf RE'!I60 -> 0 | I23: ='A4-FinPerf RE'!J60 -> 0 | J23: ='A4-FinPerf RE'!K60 -> 0 | K23: ='A4-FinPerf RE'!L60 -> 0
A24: ='A4-FinPerf RE'!A62 -> Surplus/(Deficit) for the year | B24: =B22+B23 -> 249,822 | C24: =C22+C23 -> 183,052 | D24: 262,444 | E24: 198,099 | F24: 126,600 | G24: 126,600 | H24: 154,584 | I24: 199,441 | J24: 265,185 | K24: 243,171
A25: Capital expenditure & funds sources
A26: Capital expenditure | B26: ='A5-Capex'!C63 -> 269,118 | C26: ='A5-Capex'!D63 -> 309,604 | D26: ='A5-Capex'!E63 -> 349,075 | E26: ='A5-Capex'!F63 -> 302,060 | F26: ='A5-Capex'!G63 -> 331,597 | G26: ='A5-Capex'!H63 -> 331,597 | H26: ='A5-Capex'!I63 -> 189,599 | I26: ='A5-Capex'!J63 -> 329,349 | J26: ='A5-Capex'!K63 -> 383,719 | K26: ='A5-Capex'!L63 -> 383,592
A27: Transfers recognised - capital | B27: ='A5-Capex'!C70 -> 251,309 | C27: ='A5-Capex'!D70 -> 298,048 | D27: ='A5-Capex'!E70 -> 276,005 | E27: ='A5-Capex'!F70 -> 260,147 | F27: ='A5-Capex'!G70 -> 255,511 | G27: ='A5-Capex'!H70 -> 255,511 | H27: ='A5-Capex'!I70 -> 165,850 | I27: ='A5-Capex'!J70 -> 286,126 | J27: ='A5-Capex'!K70 -> 338,791 | K27: ='A5-Capex'!L70 -> 332,976
A29: ='A5-Capex'!A72 -> Borrowing | B29: ='A5-Capex'!C72 -> 0 | C29: ='A5-Capex'!D72 -> 0 | D29: ='A5-Capex'!E72 -> 0 | E29: ='A5-Capex'!F72 -> 0 | F29: ='A5-Capex'!G72 -> 0 | G29: ='A5-Capex'!H72 -> 0 | H29: ='A5-Capex'!I72 -> 0 | I29: ='A5-Capex'!J72 -> 0 | J29: ='A5-Capex'!K72 -> 0 | K29: ='A5-Capex'!L72 -> 0
A30: ='A5-Capex'!A73 -> Internally generated funds | B30: ='A5-Capex'!C73 -> 17,809 | C30: ='A5-Capex'!D73 -> 11,555 | D30: ='A5-Capex'!E73 -> 73,070 | E30: ='A5-Capex'!F73 -> 41,912 | F30: ='A5-Capex'!G73 -> 76,086 | G30: ='A5-Capex'!H73 -> 76,086 | H30: ='A5-Capex'!I73 -> 23,749 | I30: ='A5-Capex'!J73 -> 43,223 | J30: ='A5-Capex'!K73 -> 44,928 | K30: ='A5-Capex'!L73 -> 50,616
A31: Total sources of capital funds | B31: =+B27+B29+B30 -> 269,118 | C31: =+C27+C29+C30 -> 309,604 | D31: 349,075 | E31: 302,060 | F31: 331,597 | G31: 331,597 | H31: 189,599 | I31: 329,349 | J31: 383,719 | K31: 383,592
A32: Financial position
A33: ='A6-FinPos'!A14 -> Total current assets | B33: ='A6-FinPos'!C14 -> 194,402 | C33: ='A6-FinPos'!D14 -> 243,572 | D33: ='A6-FinPos'!E14 -> 308,794 | E33: ='A6-FinPos'!F14 -> 219,492 | F33: ='A6-FinPos'!G14 -> 250,110 | G33: ='A6-FinPos'!H14 -> 250,110 | H33: ='A6-FinPos'!I14 -> 32,524 | I33: ='A6-FinPos'!J14 -> 266,547 | J33: ='A6-FinPos'!K14 -> 297,469 | K33: ='A6-FinPos'!L14 -> 309,214
A34: ='A6-FinPos'!A26 -> Total non current assets | B34: ='A6-FinPos'!C26 -> 2,890,917 | C34: ='A6-FinPos'!D26 -> 2,961,999 | D34: ='A6-FinPos'!E26 -> 3,184,996 | E34: ='A6-FinPos'!F26 -> 3,446,443 | F34: ='A6-FinPos'!G26 -> 3,444,536 | G34: ='A6-FinPos'!H26 -> 3,444,536 | H34: ='A6-FinPos'!I26 -> 99,024 | I34: ='A6-FinPos'!J26 -> 3,706,037 | J34: ='A6-FinPos'!K26 -> 4,007,710 | K34: ='A6-FinPos'!L26 -> 4,309,334
A35: ='A6-FinPos'!A38 -> Total current liabilities | B35: ='A6-FinPos'!C38 -> 151,972 | C35: ='A6-FinPos'!D38 -> 135,087 | D35: ='A6-FinPos'!E38 -> 187,569 | E35: ='A6-FinPos'!F38 -> 121,261 | F35: ='A6-FinPos'!G38 -> 192,338 | G35: ='A6-FinPos'!H38 -> 192,338 | H35: ='A6-FinPos'!I38 -> (24,265) | I35: ='A6-FinPos'!J38 -> 226,914 | J35: ='A6-FinPos'!K38 -> 226,514 | K35: ='A6-FinPos'!L38 -> 226,114
A36: ='A6-FinPos'!A44 -> Total non current liabilities | B36: ='A6-FinPos'!C44 -> (0) | C36: ='A6-FinPos'!D44 -> (0) | D36: ='A6-FinPos'!E44 -> (0) | E36: ='A6-FinPos'!F44 -> 0 | F36: ='A6-FinPos'!G44 -> 0 | G36: ='A6-FinPos'!H44 -> 0 | H36: ='A6-FinPos'!I44 -> 0 | I36: ='A6-FinPos'!J44 -> 0 | J36: ='A6-FinPos'!K44 -> 0 | K36: ='A6-FinPos'!L44 -> 0
A37: Community wealth/Equity | B37: ='A6-FinPos'!C51 -> 2,941,983 | C37: ='A6-FinPos'!D51 -> 3,262,762 | D37: ='A6-FinPos'!E51 -> 3,305,231 | E37: ='A6-FinPos'!F51 -> 3,514,683 | F37: ='A6-FinPos'!G51 -> 3,539,376 | G37: ='A6-FinPos'!H51 -> 3,539,376 | H37: ='A6-FinPos'!I51 -> 184,727 | I37: ='A6-FinPos'!J51 -> 3,746,346 | J37: ='A6-FinPos'!K51 -> 4,091,527 | K37: ='A6-FinPos'!L51 -> 4,405,713
A38: Cash flows
A39: Net cash from (used) operating | B39: ='A7-CFlow'!C17 -> 1,524,477 | C39: ='A7-CFlow'!D17 -> 1,810,099 | D39: ='A7-CFlow'!E17 -> 1,491,140 | E39: ='A7-CFlow'!F17 -> 367,947 | F39: ='A7-CFlow'!G17 -> 304,039 | G39: ='A7-CFlow'!H17 -> 304,039 | H39: ='A7-CFlow'!I17 -> 1,401,657 | I39: ='A7-CFlow'!J17 -> 317,552 | J39: ='A7-CFlow'!K17 -> 410,354 | K39: ='A7-CFlow'!L17 -> 396,647
A40: Net cash from (used) investing | B40: ='A7-CFlow'!C30 -> (269,118) | C40: ='A7-CFlow'!D30 -> (309,604) | D40: ='A7-CFlow'!E30 -> (350,553) | E40: ='A7-CFlow'!F30 -> (346,012) | F40: ='A7-CFlow'!G30 -> (375,549) | G40: ='A7-CFlow'!H30 -> (375,549) | H40: ='A7-CFlow'!I30 -> (184,864) | I40: ='A7-CFlow'!J30 -> (328,192) | J40: ='A7-CFlow'!K30 -> (382,640) | K40: ='A7-CFlow'!L30 -> (382,552)
A41: Net cash from (used) financing | B41: ='A7-CFlow'!C39 -> 0 | C41: ='A7-CFlow'!D39 -> (434) | D41: ='A7-CFlow'!E39 -> (15) | E41: ='A7-CFlow'!F39 -> (1,831) | F41: ='A7-CFlow'!G39 -> (1,831) | G41: ='A7-CFlow'!H39 -> (1,831) | H41: ='A7-CFlow'!I39 -> (979) | I41: ='A7-CFlow'!J39 -> (1,831) | J41: ='A7-CFlow'!K39 -> (1,831) | K41: ='A7-CFlow'!L39 -> (1,831)
A42: =LEFT('A7-CFlow'!A43,37) -> Cash/cash equivalents at the year end | B42: ='A7-CFlow'!C43 -> 1,305,586 | C42: ='A7-CFlow'!D43 -> 1,624,702 | D42: ='A7-CFlow'!E43 -> 1,350,002 | E42: ='A7-CFlow'!F43 -> 183,682 | F42: ='A7-CFlow'!G43 -> 223,121 | G42: ='A7-CFlow'!H43 -> 223,121 | H42: ='A7-CFlow'!I43 -> 1,215,814 | I42: ='A7-CFlow'!J43 -> 220,880 | J42: ='A7-CFlow'!K43 -> 246,764 | K42: ='A7-CFlow'!L43 -> 259,028
A44: Cash backing/surplus reconciliation
A45: ='A8-ResRecon'!A4 -> Cash and investments available | B45: ='A8-ResRecon'!C8 -> 1,305,586 | C45: ='A8-ResRecon'!D8 -> 1,624,702 | D45: ='A8-ResRecon'!E8 -> 1,350,002 | E45: ='A8-ResRecon'!F8 -> 183,682 | F45: ='A8-ResRecon'!G8 -> 223,121 | G45: ='A8-ResRecon'!H8 -> 223,121 | H45: ='A8-ResRecon'!I8 -> 1,215,814 | I45: ='A8-ResRecon'!J8 -> 220,880 | J45: ='A8-ResRecon'!K8 -> 246,764 | K45: ='A8-ResRecon'!L8 -> 259,028
A46: ='A8-ResRecon'!A10 -> Application of cash and investments | B46: ='A8-ResRecon'!C18 -> (646,212) | C46: ='A8-ResRecon'!D18 -> (208,917) | D46: ='A8-ResRecon'!E18 -> (100,028) | E46: ='A8-ResRecon'!F18 -> 65,945 | F46: ='A8-ResRecon'!G18 -> 164,698 | G46: ='A8-ResRecon'!H18 -> 164,698 | H46: ='A8-ResRecon'!I18 -> 81,980 | I46: ='A8-ResRecon'!J18 -> 192,150 | J46: ='A8-ResRecon'!K18 -> 188,044 | K46: ='A8-ResRecon'!L18 -> 189,890
A47: Balance - surplus (shortfall) | B47: =B45-B46 -> 1,951,798 | C47: =C45-C46 -> 1,833,619 | D47: 1,450,030 | E47: 117,737 | F47: 58,423 | G47: 58,423 | H47: 1,133,835 | I47: 28,730 | J47: 58,719 | K47: 69,138
A48: Asset management
A49: Asset register summary (WDV) | B49: ='A9-Asset'!C180 -> 2,209,283 | C49: ='A9-Asset'!D180 -> 2,357,654 | D49: ='A9-Asset'!E180 -> 2,562,534 | E49: ='A9-Asset'!F180 -> 2,806,919 | F49: ='A9-Asset'!G180 -> 2,788,089 | G49: ='A9-Asset'!H180 -> 2,788,089 | I49: ='A9-Asset'!I180 -> 3,049,590 | J49: ='A9-Asset'!J180 -> 3,351,262 | K49: ='A9-Asset'!K180 -> 3,652,887
A50: ='A9-Asset'!A183 -> Depreciation | B50: ='A9-Asset'!C183 -> 93,063 | C50: ='A9-Asset'!D183 -> 236,930 | D50: ='A9-Asset'!E183 -> 116,317 | E50: ='A9-Asset'!F183 -> 107,788 | F50: ='A9-Asset'!G183 -> 107,788 | G50: ='A9-Asset'!H183 -> 107,788 | I50: ='A9-Asset'!I183 -> 114,839 | J50: ='A9-Asset'!J183 -> 118,634 | K50: ='A9-Asset'!K183 -> 122,437
A51: Renewal and Upgrading of Existing Assets | B51: ='A9-Asset'!C40+'A9-Asset'!C75 -> 11,853 | C51: ='A9-Asset'!D40+'A9-Asset'!D75 -> 19,933 | D51: ='A9-Asset'!E40+'A9-Asset'!E75 -> 38,005 | E51: ='A9-Asset'!F40+'A9-Asset'!F75 -> 41,526 | F51: ='A9-Asset'!G40+'A9-Asset'!G75 -> 35,688 | G51: ='A9-Asset'!H40+'A9-Asset'!H75 -> 35,688 | I51: ='A9-Asset'!I40+'A9-Asset'!I75 -> 88,865 | J51: ='A9-Asset'!J40+'A9-Asset'!J75 -> 160,290 | K51: ='A9-Asset'!K40+'A9-Asset'!K75 -> 190,166
A52: Repairs and Maintenance | B52: ='A9-Asset'!C184 -> 52,468 | C52: ='A9-Asset'!D184 -> 43,781 | D52: ='A9-Asset'!E184 -> 40,466 | E52: ='A9-Asset'!F184 -> 45,192 | F52: ='A9-Asset'!G184 -> 47,246 | G52: ='A9-Asset'!H184 -> 47,246 | I52: ='A9-Asset'!I184 -> 30,805 | J52: ='A9-Asset'!J184 -> 31,822 | K52: ='A9-Asset'!K184 -> 32,840
A54: Free services
A55: Cost of Free Basic Services provided | B55: ='A10-SerDel'!C60 -> 1,775 | C55: ='A10-SerDel'!D60 -> 1,828 | D55: ='A10-SerDel'!E60 -> 3,315 | E55: ='A10-SerDel'!F60 -> (768) | F55: ='A10-SerDel'!G60 -> 0 | G55: ='A10-SerDel'!H60 -> 0 | I55: ='A10-SerDel'!I60 -> 0 | J55: ='A10-SerDel'!J60 -> 0 | K55: ='A10-SerDel'!K60 -> 0
A56: Revenue cost of free services provided | B56: ='A10-SerDel'!C79 -> 0 | C56: ='A10-SerDel'!D79 -> 0 | D56: ='A10-SerDel'!E79 -> 0 | E56: ='A10-SerDel'!F79 -> 0 | F56: ='A10-SerDel'!G79 -> 0 | G56: ='A10-SerDel'!H79 -> 0 | I56: ='A10-SerDel'!I79 -> 0 | J56: ='A10-SerDel'!J79 -> 0 | K56: ='A10-SerDel'!K79 -> 0
A57: Households below minimum service level
A58: ='A10-SerDel'!A5 -> Water: | B58: ='A10-SerDel'!C14 -> 0 | C58: ='A10-SerDel'!D14 -> 0 | D58: ='A10-SerDel'!E14 -> 0 | E58: ='A10-SerDel'!F14 -> 88 | F58: ='A10-SerDel'!G14 -> 88 | G58: ='A10-SerDel'!H14 -> 88 | I58: ='A10-SerDel'!I14 -> 93 | J58: ='A10-SerDel'!J14 -> 99 | K58: ='A10-SerDel'!K14 -> 105
A59: ='A10-SerDel'!A16 -> Sanitation/sewerage: | B59: ='A10-SerDel'!C26 -> 0 | C59: ='A10-SerDel'!D26 -> 0 | D59: ='A10-SerDel'!E26 -> 0 | E59: ='A10-SerDel'!F26 -> 0 | F59: ='A10-SerDel'!G26 -> 0 | G59: ='A10-SerDel'!H26 -> 0 | I59: ='A10-SerDel'!I26 -> 0 | J59: ='A10-SerDel'!J26 -> 0 | K59: ='A10-SerDel'!K26 -> 0
A60: ='A10-SerDel'!A28 -> Energy: | B60: ='A10-SerDel'!C35 -> 0 | C60: ='A10-SerDel'!D35 -> 0 | D60: ='A10-SerDel'!E35 -> 0 | E60: ='A10-SerDel'!F35 -> 0 | F60: ='A10-SerDel'!G35 -> 0 | G60: ='A10-SerDel'!H35 -> 0 | I60: ='A10-SerDel'!I35 -> 0 | J60: ='A10-SerDel'!J35 -> 0 | K60: ='A10-SerDel'!K35 -> 0
A61: ='A10-SerDel'!A37 -> Refuse: | B61: ='A10-SerDel'!C45 -> 0 | C61: ='A10-SerDel'!D45 -> 0 | D61: ='A10-SerDel'!E45 -> 0 | E61: ='A10-SerDel'!F45 -> 0 | F61: ='A10-SerDel'!G45 -> 0 | G61: ='A10-SerDel'!H45 -> 0 | I61: ='A10-SerDel'!I45 -> 0 | J61: ='A10-SerDel'!J45 -> 0 | K61: ='A10-SerDel'!K45 -> 0

Sheet A2-FinPerf SC
A1: =muni&" - "&Approve3 -> DC43 Harry Gwala - Table A2 Consolidated Budgeted Financial Performance (revenue and expenditure by functional classification)
A2: ="Functional Classification "&desc -> Functional Classification Description | B2: =head27 -> Ref | C2: =head1b -> 2022/23 | D2: =head1A -> 2023/24 | E2: =Head1 -> 2024/25 | F2: =Head2 -> Current Year 2025/26 | I2: =Head3 -> 2026/27 Medium Term Revenue & Expenditure Framework
A3: R thousand | B3: 1 | C3: =Head5 -> Audited Outcome | D3: =Head5 -> Audited Outcome | E3: =Head5 -> Audited Outcome | F3: =Head6 -> Original Budget | G3: =Head7 -> Adjusted Budget | H3: =Head8 -> Full Year Forecast | I3: =Head9 -> Budget Year 2026/27 | J3: =Head10 -> Budget Year +1 2027/28 | K3: =Head11 -> Budget Year +2 2028/29
A4: Revenue - Functional
A5: Governance and administration | C5: =SUM(C6:C8) -> 449,558 | D5: =SUM(D6:D8) -> 490,123 | E5: 523,673 | F5: 551,433 | G5: 549,438 | H5: 549,438 | I5: 578,951 | J5: 610,006 | K5: 626,743
A6: Executive and council | C6: =A2A!C6 -> 0 | D6: =A2A!D6 -> 0 | E6: =A2A!E6 -> 0 | F6: =A2A!F6 -> 0 | G6: =A2A!G6 -> 0 | H6: =A2A!H6 -> 0 | I6: =A2A!I6 -> 0 | J6: =A2A!J6 -> 0 | K6: =A2A!K6 -> 0
A7: Finance and administration | C7: =A2A!C9 -> 449,558 | D7: =A2A!D9 -> 490,123 | E7: =A2A!E9 -> 523,673 | F7: =A2A!F9 -> 551,433 | G7: =A2A!G9 -> 549,438 | H7: =A2A!H9 -> 549,438 | I7: =A2A!I9 -> 578,951 | J7: =A2A!J9 -> 610,006 | K7: =A2A!K9 -> 626,743
A8: Internal audit | C8: =A2A!C23 -> 0 | D8: =A2A!D23 -> 0 | E8: =A2A!E23 -> 0 | F8: =A2A!F23 -> 0 | G8: =A2A!G23 -> 0 | H8: =A2A!H23 -> 0 | I8: =A2A!I23 -> 0 | J8: =A2A!J23 -> 0 | K8: =A2A!K23 -> 0
A9: Community and public safety | C9: =SUM(C10:C14) -> 32 | D9: =SUM(D10:D14) -> 42 | E9: 38 | F9: 18 | G9: 84 | H9: 84 | I9: 89 | J9: 94 | K9: 100
A10: Community and social services | C10: =A2A!C26 -> 32 | D10: =A2A!D26 -> 42 | E10: =A2A!E26 -> 38 | F10: =A2A!F26 -> 18 | G10: =A2A!G26 -> 84 | H10: =A2A!H26 -> 84 | I10: =A2A!I26 -> 89 | J10: =A2A!J26 -> 94 | K10: =A2A!K26 -> 100
A11: Sport and recreation | C11: =A2A!C48 -> 0 | D11: =A2A!D48 -> 0 | E11: =A2A!E48 -> 0 | F11: =A2A!F48 -> 0 | G11: =A2A!G48 -> 0 | H11: =A2A!H48 -> 0 | I11: =A2A!I48 -> 0 | J11: =A2A!J48 -> 0 | K11: =A2A!K48 -> 0
A12: Public safety | C12: =A2A!C54 -> 0 | D12: =A2A!D54 -> 0 | E12: =A2A!E54 -> 0 | F12: =A2A!F54 -> 0 | G12: =A2A!G54 -> 0 | H12: =A2A!H54 -> 0 | I12: =A2A!I54 -> 0 | J12: =A2A!J54 -> 0 | K12: =A2A!K54 -> 0
A13: Housing | C13: =A2A!C63 -> 0 | D13: =A2A!D63 -> 0 | E13: =A2A!E63 -> 0 | F13: =A2A!F63 -> 0 | G13: =A2A!G63 -> 0 | H13: =A2A!H63 -> 0 | I13: =A2A!I63 -> 0 | J13: =A2A!J63 -> 0 | K13: =A2A!K63 -> 0
A14: Health | C14: =A2A!C66 -> 0 | D14: =A2A!D66 -> 0 | E14: =A2A!E66 -> 0 | F14: =A2A!F66 -> 0 | G14: =A2A!G66 -> 0 | H14: =A2A!H66 -> 0 | I14: =A2A!I66 -> 0 | J14: =A2A!J66 -> 0 | K14: =A2A!K66 -> 0
A15: Economic and environmental services | C15: =SUM(C16:C18) -> 3,888 | D15: =SUM(D16:D18) -> 0 | E15: 24,064 | F15: 23,000 | G15: 23,000 | H15: 23,000 | I15: 23,000 | J15: 25,500 | K15: 25,000
A16: Planning and development | C16: =A2A!C75 -> 3,888 | D16: =A2A!D75 -> 0 | E16: =A2A!E75 -> 24,064 | F16: =A2A!F75 -> 23,000 | G16: =A2A!G75 -> 23,000 | H16: =A2A!H75 -> 23,000 | I16: =A2A!I75 -> 23,000 | J16: =A2A!J75 -> 25,500 | K16: =A2A!K75 -> 25,000
A17: Road transport | C17: =A2A!C86 -> 0 | D17: =A2A!D86 -> 0 | E17: =A2A!E86 -> 0 | F17: =A2A!F86 -> 0 | G17: =A2A!G86 -> 0 | H17: =A2A!H86 -> 0 | I17: =A2A!I86 -> 0 | J17: =A2A!J86 -> 0 | K17: =A2A!K86 -> 0
A18: Environmental protection | C18: =A2A!C91 -> 0 | D18: =A2A!D91 -> 0 | E18: =A2A!E91 -> 0 | F18: =A2A!F91 -> 0 | G18: =A2A!G91 -> 0 | H18: =A2A!H91 -> 0 | I18: =A2A!I91 -> 0 | J18: =A2A!J91 -> 0 | K18: =A2A!K91 -> 0
A19: Trading services | C19: =SUM(C20:C23) -> 394,162 | D19: =SUM(D20:D23) -> 434,040 | E19: 426,160 | F19: 442,822 | G19: 444,498 | H19: 444,498 | I19: 468,047 | J19: =SUM(J20:J23) -> 535,299 | K19: 527,424
A20: Energy sources | C20: =A2A!C99 -> 0 | D20: =A2A!D99 -> 0 | E20: =A2A!E99 -> 0 | F20: =A2A!F99 -> 0 | G20: =A2A!G99 -> 0 | H20: =A2A!H99 -> 0 | I20: =A2A!I99 -> 0 | J20: =A2A!J99 -> 0 | K20: =A2A!K99 -> 0
A21: Water management | C21: =A2A!C103 -> 381,035 | D21: =A2A!D103 -> 420,226 | E21: =A2A!E103 -> 412,843 | F21: =A2A!F103 -> 426,870 | G21: =A2A!G103 -> 430,633 | H21: =A2A!H103 -> 430,633 | I21: =A2A!I103 -> 453,351 | J21: =A2A!J103 -> 519,721 | K21: =A2A!K103 -> 510,911
A22: Waste water management | C22: =A2A!C107 -> 13,126 | D22: =A2A!D107 -> 13,814 | E22: =A2A!E107 -> 13,317 | F22: =A2A!F107 -> 15,952 | G22: =A2A!G107 -> 13,865 | H22: =A2A!H107 -> 13,865 | I22: =A2A!I107 -> 14,697 | J22: =A2A!J107 -> 15,578 | K22: =A2A!K107 -> 16,513
A23: Waste management | C23: =A2A!C112 -> 0 | D23: =A2A!D112 -> 0 | E23: =A2A!E112 -> 0 | F23: =A2A!F112 -> 0 | G23: =A2A!G112 -> 0 | H23: =A2A!H112 -> 0 | I23: =A2A!I112 -> 0 | J23: =A2A!J112 -> 0 | K23: =A2A!K112 -> 0
A24: Other | B24: 4 | C24: =A2A!C117 -> 0 | D24: =A2A!D117 -> 0 | E24: =A2A!E117 -> 0 | F24: =A2A!F117 -> 0 | G24: =A2A!G117 -> 0 | H24: =A2A!H117 -> 0 | I24: =A2A!I117 -> 0 | J24: =A2A!J117 -> 0 | K24: =A2A!K117 -> 0
A25: ="Total "&A4 -> Total Revenue - Functional | B25: 2 | C25: =C5+C9+C15+C19+C24 -> 847,640 | D25: =D5+D9+D15+D19+D24 -> 924,204 | E25: =E5+E9+E15+E19+E24 -> 973,935 | F25: 1,017,273 | G25: 1,017,020 | H25: 1,017,020 | I25: =I5+I9+I15+I19+I24 -> 1,070,087 | J25: 1,170,899 | K25: 1,179,267
A27: Expenditure - Functional
A28: Governance and administration | C28: =SUM(C29:C31) -> 284,782 | D28: =SUM(D29:D31) -> 282,513 | E28: 268,495 | F28: 308,803 | G28: 359,882 | H28: 359,882 | I28: 358,232 | J28: 371,039 | K28: 384,120
A29: Executive and council | C29: =A2A!C128 -> 29,054 | D29: =A2A!D128 -> 30,252 | E29: =A2A!E128 -> 35,024 | F29: =A2A!F128 -> 52,195 | G29: =A2A!G128 -> 53,471 | H29: =A2A!H128 -> 53,471 | I29: =A2A!I128 -> 47,983 | J29: =A2A!J128 -> 49,713 | K29: =A2A!K128 -> 51,482
A30: Finance and administration | C30: =A2A!C131 -> 244,498 | D30: =A2A!D131 -> 243,702 | E30: =A2A!E131 -> 225,155 | F30: =A2A!F131 -> 246,716 | G30: =A2A!G131 -> 296,425 | H30: =A2A!H131 -> 296,425 | I30: =A2A!I131 -> 299,764 | J30: =A2A!J131 -> 310,429 | K30: =A2A!K131 -> 321,313
A31: Internal audit | C31: =A2A!C145 -> 11,230 | D31: =A2A!D145 -> 8,559 | E31: =A2A!E145 -> 8,316 | F31: =A2A!F145 -> 9,892 | G31: =A2A!G145 -> 9,986 | H31: =A2A!H145 -> 9,986 | I31: =A2A!I145 -> 10,485 | J31: =A2A!J145 -> 10,897 | K31: =A2A!K145 -> 11,325
A32: Community and public safety | C32: =SUM(C33:C37) -> 17,993 | D32: =SUM(D33:D37) -> 19,285 | E32: 18,204 | F32: 22,765 | G32: 20,654 | H32: 20,654 | I32: 20,193 | J32: 20,983 | K32: 21,802
A33: Community and social services | C33: =A2A!C148 -> 17,993 | D33: =A2A!D148 -> 19,285 | E33: =A2A!E148 -> 18,204 | F33: =A2A!F148 -> 22,765 | G33: =A2A!G148 -> 20,654 | H33: =A2A!H148 -> 20,654 | I33: =A2A!I148 -> 20,193 | J33: =A2A!J148 -> 20,983 | K33: =A2A!K148 -> 21,802
A34: Sport and recreation | C34: =A2A!C170 -> 0 | D34: =A2A!D170 -> 0 | E34: =A2A!E170 -> 0 | F34: =A2A!F170 -> 0 | G34: =A2A!G170 -> 0 | H34: =A2A!H170 -> 0 | I34: =A2A!I170 -> 0 | J34: =A2A!J170 -> 0 | K34: =A2A!K170 -> 0
A35: Public safety | C35: =A2A!C176 -> 0 | D35: =A2A!D176 -> 0 | E35: =A2A!E176 -> 0 | F35: =A2A!F176 -> 0 | G35: =A2A!G176 -> 0 | H35: =A2A!H176 -> 0 | I35: =A2A!I176 -> 0 | J35: =A2A!J176 -> 0 | K35: =A2A!K176 -> 0
A36: Housing | C36: =A2A!C185 -> 0 | D36: =A2A!D185 -> 0 | E36: =A2A!E185 -> 0 | F36: =A2A!F185 -> 0 | G36: =A2A!G185 -> 0 | H36: =A2A!H185 -> 0 | I36: =A2A!I185 -> 0 | J36: =A2A!J185 -> 0 | K36: =A2A!K185 -> 0
A37: Health | C37: =A2A!C188 -> 0 | D37: =A2A!D188 -> 0 | E37: =A2A!E188 -> 0 | F37: =A2A!F188 -> 0 | G37: =A2A!G188 -> 0 | H37: =A2A!H188 -> 0 | I37: =A2A!I188 -> 0 | J37: =A2A!J188 -> 0 | K37: =A2A!K188 -> 0
A38: Economic and environmental services | C38: =SUM(C39:C41) -> 152,099 | D38: =SUM(D39:D41) -> 294,606 | E38: 200,808 | F38: 217,958 | G38: 220,252 | H38: 220,252 | I38: 208,120 | J38: 219,387 | K38: 225,468
A39: Planning and development | C39: =A2A!C197 -> 152,099 | D39: =A2A!D197 -> 294,606 | E39: =A2A!E197 -> 200,808 | F39: =A2A!F197 -> 217,958 | G39: =A2A!G197 -> 220,252 | H39: =A2A!H197 -> 220,252 | I39: =A2A!I197 -> 208,120 | J39: =A2A!J197 -> 219,387 | K39: =A2A!K197 -> 225,468
A40: Road transport | C40: =A2A!C208 -> 0 | D40: =A2A!D208 -> 0 | E40: =A2A!E208 -> 0 | F40: =A2A!F208 -> 0 | G40: =A2A!G208 -> 0 | H40: =A2A!H208 -> 0 | I40: =A2A!I208 -> 0 | J40: =A2A!J208 -> 0 | K40: =A2A!K208 -> 0
A41: Environmental protection | C41: =A2A!C213 -> 0 | D41: =A2A!D213 -> 0 | E41: =A2A!E213 -> 0 | F41: =A2A!F213 -> 0 | G41: =A2A!G213 -> 0 | H41: =A2A!H213 -> 0 | I41: =A2A!I213 -> 0 | J41: =A2A!J213 -> 0 | K41: =A2A!K213 -> 0
A42: Trading services | C42: =SUM(C43:C46) -> 179,556 | D42: =SUM(D43:D46) -> 193,055 | E42: 245,367 | F42: =SUM(F43:F46) -> 269,549 | G42: 289,533 | H42: 289,533 | I42: 283,999 | J42: 294,197 | K42: =SUM(K43:K46) -> 304,593
A43: Energy sources | C43: =A2A!C221 -> 0 | D43: =A2A!D221 -> 0 | E43: =A2A!E221 -> 0 | F43: =A2A!F221 -> 0 | G43: =A2A!G221 -> 0 | H43: =A2A!H221 -> 0 | I43: =A2A!I221 -> 0 | J43: =A2A!J221 -> 0 | K43: =A2A!K221 -> 0
A44: Water management | C44: =A2A!C225 -> 177,046 | D44: =A2A!D225 -> 192,868 | E44: =A2A!E225 -> 245,183 | F44: =A2A!F225 -> 260,256 | G44: =A2A!G225 -> 280,387 | H44: =A2A!H225 -> 280,387 | I44: =A2A!I225 -> 274,317 | J44: =A2A!J225 -> 284,191 | K44: =A2A!K225 -> 294,262
A45: Waste water management | C45: =A2A!C229 -> 2,509 | D45: =A2A!D229 -> 187 | E45: =A2A!E229 -> 185 | F45: =A2A!F229 -> 9,292 | G45: =A2A!G229 -> 9,146 | H45: =A2A!H229 -> 9,146 | I45: =A2A!I229 -> 9,681 | J45: =A2A!J229 -> 10,006 | K45: =A2A!K229 -> 10,331
A46: Waste management | C46: =A2A!C234 -> 0 | D46: =A2A!D234 -> 0 | E46: =A2A!E234 -> 0 | F46: =A2A!F234 -> 0 | G46: =A2A!G234 -> 0 | H46: =A2A!H234 -> 0 | I46: =A2A!I234 -> 0 | J46: =A2A!J234 -> 0 | K46: =A2A!K234 -> 0
A47: Other | B47: 4 | C47: =A2A!C239 -> 0 | D47: =A2A!D239 -> 0 | E47: =A2A!E239 -> 0 | F47: =A2A!F239 -> 100 | G47: =A2A!G239 -> 100 | H47: =A2A!H239 -> 100 | I47: =A2A!I239 -> 104 | J47: =A2A!J239 -> 108 | K47: =A2A!K239 -> 112
A48: ="Total "&A27 -> Total Expenditure - Functional | B48: 3 | C48: =C28+C32+C38+C42+C47 -> 634,430 | D48: =D28+D32+D38+D42+D47 -> 789,459 | E48: =E28+E32+E38+E42+E47 -> 732,875 | F48: =F28+F32+F38+F42+F47 -> 819,174 | G48: 890,421 | H48: 890,421 | I48: 870,647 | J48: 905,714 | K48: 936,096
A49: =result -> Surplus/(Deficit) for the year | C49: =C25-C48 -> 213,210 | D49: =D25-D48 -> 134,745 | E49: 241,060 | F49: 198,099 | G49: 126,600 | H49: 126,600 | I49: 199,441 | J49: 265,185 | K49: 243,171
A50: =head27a -> References
A51: 1. Government Finance Statistics Functions and Sub-functions are standardised to assist the compilation of national and international accounts for comparison purposes
A52: 2. Total Revenue by functional classification must reconcile to Total Operating Revenue shown in Budgeted Financial Performance (revenue and expenditure)
A53: 3. Total Expenditure by Functional Classification must reconcile to Total Operating Expenditure shown in Budgeted Financial Performance (revenue and expenditure)
A54: 4. All amounts must be classified under a functional classification . The GFS function 'Other' is only for Abbatoirs, Air Transport, Forestry, Licensing and Regulation, Markets and Tourism - and if used must be supported by footnotes. Nothing else may be placed under 'Other'. Assign associate share to relevant classification.

Sheet A2A
A1: =muni&" - "&Approve3 -> DC43 Harry Gwala - Table A2 Consolidated Budgeted Financial Performance (revenue and expenditure by functional classification)
A2: ="Functional Classification "&desc -> Functional Classification Description | B2: =head27 -> Ref | C2: =head1b -> 2022/23 | D2: =head1A -> 2023/24 | E2: =Head1 -> 2024/25 | F2: =Head2 -> Current Year 2025/26 | I2: =Head3 -> 2026/27 Medium Term Revenue & Expenditure Framework
A3: R thousand | B3: 1 | C3: =Head5 -> Audited Outcome | D3: =Head5 -> Audited Outcome | E3: =Head5 -> Audited Outcome | F3: =Head6 -> Original Budget | G3: =Head7 -> Adjusted Budget | H3: =Head8 -> Full Year Forecast | I3: =Head9 -> Budget Year 2026/27 | J3: =Head10 -> Budget Year +1 2027/28 | K3: =Head11 -> Budget Year +2 2028/29
A4: Revenue - Functional
A5: Municipal governance and administration | C5: =C6+C9+C23 -> 449,558 | D5: =D6+D9+D23 -> 490,123 | E5: 523,673 | F5: 551,433 | G5: 549,438 | H5: 549,438 | I5: 578,951 | J5: 610,006 | K5: 626,743
A6: Executive and council | C6: =SUM(C7:C8) -> 0 | D6: =SUM(D7:D8) -> 0 | E6: 0 | F6: 0 | G6: 0 | H6: 0 | I6: 0 | J6: 0 | K6: 0
A7: Mayor and Council | C7: 0 | D7: 0 | E7: 0 | F7: 0 | G7: 0 | H7: 0 | I7: 0 | J7: 0 | K7: 0
A8: Municipal Manager, Town Secretary and Chief Executive
A9: Finance and administration | C9: =SUM(C10:C22) -> 449,558 | D9: =SUM(D10:D22) -> 490,123 | E9: 523,673 | F9: 551,433 | G9: 549,438 | H9: 549,438 | I9: 578,951 | J9: 610,006 | K9: 626,743
A10: Administrative and Corporate Support | C10: 11,295 | D10: 22,481 | E10: 28,676 | F10: 25,089 | G10: 25,166 | H10: 25,166 | I10: 26,680 | J10: 28,281 | K10: 29,977
A11: Asset Management
A12: Finance | C12: 434,507 | D12: 466,268 | E12: 494,212 | F12: 526,344 | G12: 524,272 | H12: 524,272 | I12: 552,271 | J12: 581,725 | K12: 596,765
A13: Fleet Management
A14: Human Resources | C14: 0 | D14: 0 | E14: 0 | F14: 0 | G14: 0 | H14: 0 | I14: 0 | J14: 0 | K14: 0
A15: Information Technology | C15: 0 | D15: 0 | E15: 0 | F15: 0 | G15: 0 | H15: 0 | I15: 0 | J15: 0 | K15: 0
A16: Legal Services
A17: Marketing, Customer Relations, Publicity and Media Co-ordination
A18: Property Services
A19: Risk Management
A20: Security Services
A21: Supply Chain Management | C21: 3,755 | D21: 1,374 | E21: 785 | F21: 0 | G21: 0 | H21: 0 | I21: 0 | J21: 0 | K21: 0
A22: Valuation Service
A23: Internal audit | C23: =SUM(C24:C24) -> 0 | D23: =SUM(D24:D24) -> 0 | E23: 0 | F23: 0 | G23: 0 | H23: 0 | I23: 0 | J23: 0 | K23: 0
A24: Governance Function | C24: 0 | D24: 0 | E24: 0 | F24: 0 | G24: 0 | H24: 0 | I24: 0 | J24: 0 | K24: 0
A25: Community and public safety | C25: =C26+C48+C54+C63+C66 -> 32 | D25: =D26+D48+D54+D63+D66 -> 42 | E25: 38 | F25: 18 | G25: 84 | H25: 84 | I25: 89 | J25: 94 | K25: 100
A26: Community and social services | C26: =SUM(C27:C47) -> 32 | D26: =SUM(D27:D47) -> 42 | E26: 38 | F26: 18 | G26: 84 | H26: 84 | I26: 89 | J26: 94 | K26: 100
A27: Aged Care
A28: Agricultural
A29: Animal Care and Diseases
A30: Cemeteries, Funeral Parlours and Crematoriums
A31: Child Care Facilities
A32: Community Halls and Facilities
A33: Consumer Protection
A34: Cultural Matters
A35: Disaster Management | C35: 32 | D35: 42 | E35: 38 | F35: 18 | G35: 84 | H35: 84 | I35: 89 | J35: 94 | K35: 100
A36: Education
A37: Indigenous and Customary Law
A38: Industrial Promotion
A39: Language Policy
A40: Libraries and Archives
A41: Literacy Programmes
A42: Media Services
A43: Museums and Art Galleries
A44: Population Development
A45: Provincial Cultural Matters
A46: Theatres
A47: Zoo's
A48: Sport and recreation | C48: =SUM(C49:C53) -> 0 | D48: =SUM(D49:D53) -> 0 | E48: 0 | F48: 0 | G48: 0 | H48: 0 | I48: 0 | J48: 0 | K48: 0
A49: Beaches and Jetties
A50: Casinos, Racing, Gambling, Wagering
A51: Community Parks (including Nurseries)
A52: Recreational Facilities
A53: Sports Grounds and Stadiums
A54: Public safety | C54: =SUM(C55:C62) -> 0 | D54: =SUM(D55:D62) -> 0 | E54: 0 | F54: 0 | G54: 0 | H54: 0 | I54: 0 | J54: 0 | K54: 0
A55: Civil Defence
A56: Cleansing
A57: Control of Public Nuisances
A58: Fencing and Fences
A59: Fire Fighting and Protection
A60: Licensing and Control of Animals
A61: Police Forces, Traffic and Street Parking Control
A62: Pounds
A63: Housing | C63: =SUM(C64:C65) -> 0 | D63: =SUM(D64:D65) -> 0 | E63: 0 | F63: 0 | G63: 0 | H63: 0 | I63: 0 | J63: 0 | K63: 0
A64: Housing
A65: Informal Settlements
A66: Health | C66: =SUM(C67:C73) -> 0 | D66: =SUM(D67:D73) -> 0 | E66: 0 | F66: 0 | G66: 0 | H66: 0 | I66: 0 | J66: 0 | K66: 0
A67: Ambulance
A68: Health Services
A69: Laboratory Services
A70: Food Control
A71: Health Surveillance and Prevention of Communicable Diseases including immunizations
A72: Vector Control
A73: Chemical Safety
A74: Economic and environmental services | C74: =C75+C86+C91 -> 3,888 | D74: =D75+D86+D91 -> 0 | E74: 24,064 | F74: 23,000 | G74: 23,000 | H74: 23,000 | I74: 23,000 | J74: 25,500 | K74: 25,000
A75: Planning and development | C75: =SUM(C76:C85) -> 3,888 | D75: =SUM(D76:D85) -> 0 | E75: 24,064 | F75: 23,000 | G75: 23,000 | H75: 23,000 | I75: 23,000 | J75: 25,500 | K75: 25,000
A76: Billboards
A77: Corporate Wide Strategic Planning (IDPs, LEDs)
A78: Central City Improvement District
A79: Development Facilitation
A80: Economic Development/Planning | C80: 0 | D80: 0 | E80: 0 | F80: 23,000 | G80: 23,000 | H80: 23,000 | I80: 23,000 | J80: 25,500 | K80: 25,000
A81: Regional Planning and Development
A82: Town Planning, Building Regulations and Enforcement, and City Engineer
A83: Project Management Unit | C83: 3,888 | D83: 0 | E83: 24,064 | F83: 0 | G83: 0 | H83: 0 | I83: 0 | J83: 0 | K83: 0
A84: Provincial Planning
A85: Support to Local Municipalities | C85: 0 | D85: 0 | E85: 0 | F85: 0 | G85: 0 | H85: 0 | I85: 0 | J85: 0 | K85: 0
A86: Road transport | C86: =SUM(C87:C90) -> 0 | D86: =SUM(D87:D90) -> 0 | E86: 0 | F86: 0 | G86: 0 | H86: 0 | I86: 0 | J86: 0 | K86: 0
A87: Public Transport
A88: Road and Traffic Regulation
A89: Roads
A90: Taxi Ranks
A91: Environmental protection | C91: =SUM(C92:C97) -> 0 | D91: =SUM(D92:D97) -> 0 | E91: 0 | F91: 0 | G91: 0 | H91: 0 | I91: 0 | J91: 0 | K91: 0
A92: Biodiversity and Landscape
A93: Coastal Protection
A94: Indigenous Forests
A95: Nature Conservation
A96: Pollution Control
A97: Soil Conservation
A98: Trading services | C98: =C99+C103+C107+C112 -> 394,162 | D98: =D99+D103+D107+D112 -> 434,040 | E98: 426,160 | F98: 442,822 | G98: 444,498 | H98: 444,498 | I98: 468,047 | J98: 535,299 | K98: =K99+K103+K107+K112 -> 527,424
A99: Energy sources | C99: =SUM(C100:C102) -> 0 | D99: =SUM(D100:D102) -> 0 | E99: 0 | F99: 0 | G99: 0 | H99: 0 | I99: 0 | J99: 0 | K99: 0
A100: Electricity | C100: 0 | D100: 0 | E100: 0 | F100: 0 | G100: 0 | H100: 0 | I100: 0 | J100: 0 | K100: 0
A101: Street Lighting and Signal Systems
A102: Nonelectric Energy
A103: Water management | C103: =SUM(C104:C106) -> 381,035 | D103: =SUM(D104:D106) -> 420,226 | E103: 412,843 | F103: 426,870 | G103: 430,633 | H103: 430,633 | I103: 453,351 | J103: 519,721 | K103: 510,911
A104: Water Treatment | C104: 0 | D104: 0 | E104: 0 | F104: 0 | G104: 0 | H104: 0 | I104: 0 | J104: 0 | K104: 0
A105: Water Distribution | C105: 80,617 | D105: 75,206 | E105: 78,893 | F105: 81,594 | G105: 85,357 | H105: 85,357 | I105: 90,479 | J105: 95,908 | K105: 101,662
A106: Water Storage | C106: 300,419 | D106: 345,021 | E106: 333,950 | F106: 345,276 | G106: 345,276 | H106: 345,276 | I106: 362,872 | J106: 423,813 | K106: 409,249
A107: Waste water management | C107: =SUM(C108:C111) -> 13,126 | D107: =SUM(D108:D111) -> 13,814 | E107: 13,317 | F107: 15,952 | G107: 13,865 | H107: 13,865 | I107: 14,697 | J107: 15,578 | K107: 16,513
A108: Public Toilets
A109: Sewerage | C109: 13,126 | D109: 13,814 | E109: 13,317 | F109: 15,952 | G109: 13,865 | H109: 13,865 | I109: 14,697 | J109: 15,578 | K109: 16,513
A110: Storm Water Management
A111: Waste Water Treatment
A112: Waste management | C112: =SUM(C113:C116) -> 0 | D112: =SUM(D113:D116) -> 0 | E112: 0 | F112: 0 | G112: 0 | H112: 0 | I112: 0 | J112: 0 | K112: 0
A113: Recycling
A114: Solid Waste Disposal (Landfill Sites)
A115: Solid Waste Removal
A116: Street Cleaning
A117: Other | C117: =SUM(C118:C123) -> 0 | D117: =SUM(D118:D123) -> 0 | E117: 0 | F117: 0 | G117: 0 | H117: 0 | I117: 0 | J117: 0 | K117: 0
A118: Abattoirs
A119: Air Transport
A120: Forestry
A121: Licensing and Regulation
A122: Markets
A123: Tourism
A124: ="Total "&A4 -> Total Revenue - Functional | B124: 2 | C124: =C5+C25+C74+C98+C117 -> 847,640 | D124: =D5+D25+D74+D98+D117 -> 924,204 | E124: 973,935 | F124: 1,017,273 | G124: 1,017,020 | H124: 1,017,020 | I124: 1,070,087 | J124: 1,170,899 | K124: 1,179,267
A126: Expenditure - Functional
A127: =A5 -> Municipal governance and administration | C127: =C128+C131+C145 -> 284,782 | D127: =D128+D131+D145 -> 282,513 | E127: 268,495 | F127: 308,803 | G127: 359,882 | H127: 359,882 | I127: 358,232 | J127: 371,039 | K127: 384,120
A128: Executive and council | C128: =SUM(C129:C130) -> 29,054 | D128: =SUM(D129:D130) -> 30,252 | E128: 35,024 | F128: 52,195 | G128: 53,471 | H128: 53,471 | I128: 47,983 | J128: 49,713 | K128: 51,482
A129: Mayor and Council | C129: 20,425 | D129: 18,316 | E129: 20,187 | F129: 24,808 | G129: 25,612 | H129: 25,612 | I129: 27,509 | J129: 28,512 | K129: 29,536
A130: Municipal Manager, Town Secretary and Chief Executive | C130: 8,629 | D130: 11,936 | E130: 14,837 | F130: 27,386 | G130: 27,859 | H130: 27,859 | I130: 20,474 | J130: 21,202 | K130: 21,945
A131: Finance and administration | C131: =SUM(C132:C144) -> 244,498 | D131: =SUM(D132:D144) -> 243,702 | E131: 225,155 | F131: 246,716 | G131: 296,425 | H131: 296,425 | I131: 299,764 | J131: 310,429 | K131: 321,313
A132: Administrative and Corporate Support | C132: 128,609 | D132: 117,357 | E132: 84,398 | F132: 112,761 | G132: 130,770 | H132: 130,770 | I132: 114,734 | J132: 118,986 | K132: 123,346
A133: Asset Management
A134: Finance | C134: 19,572 | D134: 25,723 | E134: 27,138 | F134: 27,302 | G134: 39,254 | H134: 39,254 | I134: 47,962 | J134: 49,557 | K134: 51,191
A135: Fleet Management
A136: Human Resources | C136: 12,343 | D136: 11,127 | E136: 14,104 | F136: 16,477 | G136: 18,368 | H136: 18,368 | I136: 18,310 | J136: 18,978 | K136: 19,661
A137: Information Technology | C137: 64,643 | D137: 69,378 | E137: 79,102 | F137: 72,071 | G137: 89,040 | H137: 89,040 | I137: 99,034 | J137: 102,411 | K137: 105,816
A138: Legal Services | C138: 1,925 | D138: 1,970 | E138: 2,029 | F138: 2,774 | G138: 3,005 | H138: 3,005 | I138: 3,126 | J138: 3,250 | K138: 3,380
A139: Marketing, Customer Relations, Publicity and Media Co-ordination | C139: 2,181 | D139: 2,232 | E139: 1,988 | F139: 2,836 | G139: 3,027 | H139: 3,027 | I139: 3,147 | J139: 3,269 | K139: 3,396
A140: Property Services
A141: Risk Management
A142: Security Services
A143: Supply Chain Management | C143: 15,225 | D143: 15,916 | E143: 16,397 | F143: 12,494 | G143: 12,960 | H143: 12,960 | I143: 13,451 | J143: 13,978 | K143: 14,523
A144: Valuation Service
A145: Internal audit | C145: =SUM(C146:C146) -> 11,230 | D145: =SUM(D146:D146) -> 8,559 | E145: 8,316 | F145: 9,892 | G145: 9,986 | H145: 9,986 | I145: 10,485 | J145: 10,897 | K145: 11,325
A146: Governance Function | C146: 11,230 | D146: 8,559 | E146: 8,316 | F146: 9,892 | G146: 9,986 | H146: 9,986 | I146: 10,485 | J146: 10,897 | K146: 11,325
A147: Community and public safety | C147: =C148+C170+C176+C185+C188 -> 17,993 | D147: =D148+D170+D176+D185+D188 -> 19,285 | E147: 18,204 | F147: 22,765 | G147: 20,654 | H147: 20,654 | I147: 20,193 | J147: 20,983 | K147: 21,802
A148: Community and social services | C148: =SUM(C149:C169) -> 17,993 | D148: =SUM(D149:D169) -> 19,285 | E148: 18,204 | F148: 22,765 | G148: 20,654 | H148: 20,654 | I148: 20,193 | J148: 20,983 | K148: 21,802
A149: Aged Care
A150: Agricultural
A151: Animal Care and Diseases
A152: Cemeteries, Funeral Parlours and Crematoriums
A153: Child Care Facilities
A154: Community Halls and Facilities
A155: Consumer Protection
A156: Cultural Matters
A157: Disaster Management | C157: 17,993 | D157: 19,285 | E157: 18,204 | F157: 22,765 | G157: 20,654 | H157: 20,654 | I157: 20,193 | J157: 20,983 | K157: 21,802
A158: Education
A159: =A37 -> Indigenous and Customary Law
A160: Industrial Promotion
A161: Language Policy
A162: Libraries and Archives
A163: Literacy Programmes
A164: Media Services
A165: Museums and Art Galleries
A166: Population Development
A167: Provincial Cultural Matters
A168: Theatres
A169: Zoo's
A170: Sport and recreation | C170: =SUM(C171:C175) -> 0 | D170: =SUM(D171:D175) -> 0 | E170: 0 | F170: 0 | G170: 0 | H170: 0 | I170: 0 | J170: 0 | K170: 0
A171: Beaches and Jetties
A172: Casinos, Racing, Gambling, Wagering
A173: Community Parks (including Nurseries)
A174: Recreational Facilities
A175: Sports Grounds and Stadiums
A176: Public safety | C176: =SUM(C177:C184) -> 0 | D176: =SUM(D177:D184) -> 0 | E176: 0 | F176: 0 | G176: 0 | H176: 0 | I176: 0 | J176: 0 | K176: 0
A177: Civil Defence
A178: Cleansing
A179: =A57 -> Control of Public Nuisances
A180: Fencing and Fences
A181: Fire Fighting and Protection
A182: Licensing and Control of Animals
A183: Police Forces, Traffic and Street Parking Control
A184: Pounds
A185: =A63 -> Housing | C185: =SUM(C186:C187) -> 0 | D185: =SUM(D186:D187) -> 0 | E185: 0 | F185: 0 | G185: 0 | H185: 0 | I185: 0 | J185: 0 | K185: 0
A186: Housing
A187: Informal Settlements
A188: Health | C188: =SUM(C189:C195) -> 0 | D188: =SUM(D189:D195) -> 0 | E188: 0 | F188: 0 | G188: 0 | H188: 0 | I188: 0 | J188: 0 | K188: 0
A189: Ambulance
A190: Health Services
A191: Laboratory Services
A192: Food Control
A193: Health Surveillance and Prevention of Communicable Diseases including immunizations
A194: Vector Control
A195: Chemical Safety
A196: Economic and environmental services | C196: =C197+C208+C213 -> 152,099 | D196: =D197+D208+D213 -> 294,606 | E196: 200,808 | F196: 217,958 | G196: 220,252 | H196: 220,252 | I196: 208,120 | J196: 219,387 | K196: 225,468
A197: Planning and development | C197: =SUM(C198:C207) -> 152,099 | D197: =SUM(D198:D207) -> 294,606 | E197: 200,808 | F197: 217,958 | G197: 220,252 | H197: 220,252 | I197: 208,120 | J197: 219,387 | K197: 225,468
A198: Billboards
A199: Corporate Wide Strategic Planning (IDPs, LEDs) | C199: 3,691 | D199: 4,638 | E199: 4,252 | F199: 3,434 | G199: 3,471 | H199: 3,471 | I199: 3,610 | J199: 3,754 | K199: 3,904
A200: Central City Improvement District
A201: Development Facilitation
... 51 more rows

Sheet A3-FinPerf V
A1: =muni&" - "&Approve2 -> DC43 Harry Gwala - Table A3 Consolidated Budgeted Financial Performance (revenue and expenditure by municipal vote)
A2: =Vdesc -> Vote Description | B2: =head27 -> Ref | C2: =head1b -> 2022/23 | D2: =head1A -> 2023/24 | E2: =Head1 -> 2024/25 | F2: =Head2 -> Current Year 2025/26 | I2: =Head3 -> 2026/27 Medium Term Revenue & Expenditure Framework | L2: =Head4 -> LTFS
A3: R thousand | C3: =Head5 -> Audited Outcome | D3: =Head5 -> Audited Outcome | E3: =Head5 -> Audited Outcome | F3: =Head6 -> Original Budget | G3: =Head7 -> Adjusted Budget | H3: =Head8 -> Full Year Forecast | I3: =Head9 -> Budget Year 2026/27 | J3: =Head10 -> Budget Year +1 2027/28 | K3: =Head11 -> Budget Year +2 2028/29 | L3: =Head12 -> Forecast 2029/30 | M3: =Head13 -> Forecast 2030/31 | N3: =Head14 -> Forecast 2031/32 | O3: =Head15 -> Forecast 2032/33 | P3: =Head16 -> Forecast 2033/34 | Q3: =Head17 -> Forecast 2034/35 | R3: =Head18 -> Forecast 2035/36 | S3: =Head19 -> Forecast 2036/37 | T3: =Head20 -> Forecast 2037/38 | U3: =Head21 -> Forecast 2038/39 | V3: =Head22 -> Forecast 2039/40 | W3: =Head23 -> Forecast 2040/41
A4: Revenue by Vote | B4: 1
A5: =A3A!A5 -> Vote 01 - Summary Council | C5: =A3A!C5 -> 0 | D5: =A3A!D5 -> 0 | E5: =A3A!E5 -> 0 | F5: =A3A!F5 -> 0 | G5: =A3A!G5 -> 0 | H5: =A3A!H5 -> 0 | I5: =A3A!I5 -> 0 | J5: =A3A!J5 -> 0 | K5: =A3A!K5 -> 0
A6: =A3A!A11 -> Vote 02 - Summary Municipal Manager | C6: =A3A!C11 -> 0 | D6: =A3A!D11 -> 0 | E6: =A3A!E11 -> 0 | F6: =A3A!F11 -> 0 | G6: =A3A!G11 -> 0 | H6: =A3A!H11 -> 0 | I6: =A3A!I11 -> 0 | J6: =A3A!J11 -> 0 | K6: =A3A!K11 -> 0
A7: =A3A!A16 -> Vote 03 - Summary Budget And Treasury Office | C7: =A3A!C16 -> 449,162 | D7: =A3A!D16 -> 489,676 | E7: =A3A!E16 -> 523,056 | F7: =A3A!F16 -> 549,507 | G7: =A3A!G16 -> 547,435 | H7: =A3A!H16 -> 547,435 | I7: =A3A!I16 -> 576,861 | J7: =A3A!J16 -> 607,832 | K7: =A3A!K16 -> 624,485
A8: =A3A!A20 -> Vote 04 - Summary Corporate Services | C8: =A3A!C20 -> 372 | D8: =A3A!D20 -> 418 | E8: =A3A!E20 -> 393 | F8: =A3A!F20 -> 410 | G8: =A3A!G20 -> 410 | H8: =A3A!H20 -> 410 | I8: =A3A!I20 -> 435 | J8: =A3A!J20 -> 461 | K8: =A3A!K20 -> 489
A9: =A3A!A26 -> Vote 05 - Summary Social Services & Development Planing | C9: =A3A!C26 -> 32 | D9: =A3A!D26 -> 42 | E9: =A3A!E26 -> 38 | F9: =A3A!F26 -> 24,479 | G9: =A3A!G26 -> 24,545 | H9: =A3A!H26 -> 24,545 | I9: =A3A!I26 -> 24,605 | J9: =A3A!J26 -> 27,160 | K9: =A3A!K26 -> 26,712
A10: =A3A!A38 -> Vote 06 - Summary Infrastructure Services | C10: =A3A!C38 -> 308,606 | D10: =A3A!D38 -> 348,937 | E10: =A3A!E38 -> 361,419 | F10: =A3A!F38 -> 350,081 | G10: =A3A!G38 -> 350,081 | H10: =A3A!H38 -> 350,081 | I10: =A3A!I38 -> 367,966 | J10: =A3A!J38 -> 429,212 | K10: =A3A!K38 -> 414,972
A11: =A3A!A45 -> Vote 07 - Summary Water Services | C11: =A3A!C45 -> 89,467 | D11: =A3A!D45 -> 85,131 | E11: =A3A!E45 -> 89,029 | F11: =A3A!F45 -> 92,795 | G11: =A3A!G45 -> 94,548 | H11: =A3A!H45 -> 94,548 | I11: =A3A!I45 -> 100,221 | J11: =A3A!J45 -> 106,234 | K11: =A3A!K45 -> 112,608
A12: ='Org structure'!A9 -> Vote 08 - | C12: =A3A!C57 -> 0 | D12: =A3A!D57 -> 0 | E12: =A3A!E57 -> 0 | F12: =A3A!F57 -> 0 | G12: =A3A!G57 -> 0 | H12: =A3A!H57 -> 0 | I12: =A3A!I57 -> 0 | J12: =A3A!J57 -> 0 | K12: =A3A!K57 -> 0
A13: ='Org structure'!A10 -> Vote 09 - | C13: =A3A!C58 -> 0 | D13: =A3A!D58 -> 0 | E13: =A3A!E58 -> 0 | F13: =A3A!F58 -> 0 | G13: =A3A!G58 -> 0 | H13: =A3A!H58 -> 0 | I13: =A3A!I58 -> 0 | J13: =A3A!J58 -> 0 | K13: =A3A!K58 -> 0
A14: ='Org structure'!A11 -> Vote 10 - | C14: =A3A!C59 -> 0 | D14: =A3A!D59 -> 0 | E14: =A3A!E59 -> 0 | F14: =A3A!F59 -> 0 | G14: =A3A!G59 -> 0 | H14: =A3A!H59 -> 0 | I14: =A3A!I59 -> 0 | J14: =A3A!J59 -> 0 | K14: =A3A!K59 -> 0
A15: ='Org structure'!A12 -> Vote 11 - | C15: =A3A!C60 -> 0 | D15: =A3A!D60 -> 0 | E15: =A3A!E60 -> 0 | F15: =A3A!F60 -> 0 | G15: =A3A!G60 -> 0 | H15: =A3A!H60 -> 0 | I15: =A3A!I60 -> 0 | J15: =A3A!J60 -> 0 | K15: =A3A!K60 -> 0 | L15: =A5A!#REF! -> 
A16: ='Org structure'!A13 -> Vote 12 - | C16: =A3A!C61 -> 0 | D16: =A3A!D61 -> 0 | E16: =A3A!E61 -> 0 | F16: =A3A!F61 -> 0 | G16: =A3A!G61 -> 0 | H16: =A3A!H61 -> 0 | I16: =A3A!I61 -> 0 | J16: =A3A!J61 -> 0 | K16: =A3A!K61 -> 0 | L16: =A5A!#REF! -> 
A17: ='Org structure'!A14 -> Vote 13 - | C17: =A3A!C62 -> 0 | D17: =A3A!D62 -> 0 | E17: =A3A!E62 -> 0 | F17: =A3A!F62 -> 0 | G17: =A3A!G62 -> 0 | H17: =A3A!H62 -> 0 | I17: =A3A!I62 -> 0 | J17: =A3A!J62 -> 0 | K17: =A3A!K62 -> 0 | L17: =A5A!#REF! -> 
A18: ='Org structure'!A15 -> Vote 14 - | C18: =A3A!C63 -> 0 | D18: =A3A!D63 -> 0 | E18: =A3A!E63 -> 0 | F18: =A3A!F63 -> 0 | G18: =A3A!G63 -> 0 | H18: =A3A!H63 -> 0 | I18: =A3A!I63 -> 0 | J18: =A3A!J63 -> 0 | K18: =A3A!K63 -> 0 | L18: =A5A!#REF! -> 
A19: ='Org structure'!A16 -> Vote 15 - Other | C19: =A3A!C64 -> 0 | D19: =A3A!D64 -> 0 | E19: =A3A!E64 -> 0 | F19: =A3A!F64 -> 0 | G19: =A3A!G64 -> 0 | H19: =A3A!H64 -> 0 | I19: =A3A!I64 -> 0 | J19: =A3A!J64 -> 0 | K19: =A3A!K64 -> 0 | L19: =A5A!#REF! -> 
A20: Total Revenue by Vote | B20: 2 | C20: =SUM(C5:C19) -> 847,640 | D20: =SUM(D5:D19) -> 924,204 | E20: 973,935 | F20: 1,017,273 | G20: 1,017,020 | H20: 1,017,020 | I20: 1,070,087 | J20: 1,170,899 | K20: 1,179,267
A22: Expenditure by Vote to be appropriated | B22: 1
A23: =A3A!A68 -> Vote 01 - Summary Council | C23: =A3A!C68 -> 18,112 | D23: =A3A!D68 -> 15,581 | E23: =A3A!E68 -> 17,788 | F23: =A3A!F68 -> 20,567 | G23: =A3A!G68 -> 21,741 | H23: =A3A!H68 -> 21,741 | I23: =A3A!I68 -> 23,633 | J23: =A3A!J68 -> 24,496 | K23: =A3A!K68 -> 25,379
A24: =A3A!A74 -> Vote 02 - Summary Municipal Manager | C24: =A3A!C74 -> 22,172 | D24: =A3A!D74 -> 23,229 | E24: =A3A!E74 -> 27,120 | F24: =A3A!F74 -> 31,264 | G24: =A3A!G74 -> 31,513 | H24: =A3A!H74 -> 31,513 | I24: =A3A!I74 -> 32,251 | J24: =A3A!J74 -> 33,442 | K24: =A3A!K74 -> 34,663
A25: =A3A!A79 -> Vote 03 - Summary Budget And Treasury Office | C25: =A3A!C79 -> 94,176 | D25: =A3A!D79 -> 97,677 | E25: =A3A!E79 -> 69,768 | F25: =A3A!F79 -> 64,749 | G25: =A3A!G79 -> 76,727 | H25: =A3A!H79 -> 76,727 | I25: =A3A!I79 -> 76,942 | J25: =A3A!J79 -> 79,837 | K25: =A3A!K79 -> 82,902
A26: =A3A!A83 -> Vote 04 - Summary Corporate Services | C26: =A3A!C83 -> 90,554 | D26: =A3A!D83 -> 93,168 | E26: =A3A!E83 -> 106,598 | F26: =A3A!F83 -> 110,299 | G26: =A3A!G83 -> 130,947 | H26: =A3A!H83 -> 130,947 | I26: =A3A!I83 -> 141,503 | J26: =A3A!J83 -> 146,405 | K26: =A3A!K83 -> 151,365
A27: =A3A!A89 -> Vote 05 - Summary Social Services & Development Planing | C27: =A3A!C89 -> 50,486 | D27: =A3A!D89 -> 56,417 | E27: =A3A!E89 -> 55,654 | F27: =A3A!F89 -> 97,924 | G27: =A3A!G89 -> 98,040 | H27: =A3A!H89 -> 98,040 | I27: =A3A!I89 -> 102,806 | J27: =A3A!J89 -> 108,198 | K27: =A3A!K89 -> 110,599
A28: =A3A!A101 -> Vote 06 - Summary Infrastructure Services | C28: =A3A!C101 -> 122,016 | D28: =A3A!D101 -> 257,942 | E28: =A3A!E101 -> 162,332 | F28: =A3A!F101 -> 165,408 | G28: =A3A!G101 -> 165,843 | H28: =A3A!H101 -> 165,843 | I28: =A3A!I101 -> 151,334 | J28: =A3A!J101 -> 158,855 | K28: =A3A!K101 -> 164,161
A29: =A3A!A108 -> Vote 07 - Summary Water Services | C29: =A3A!C108 -> 236,914 | D29: =A3A!D108 -> 245,444 | E29: =A3A!E108 -> 293,615 | F29: =A3A!F108 -> 328,964 | G29: =A3A!G108 -> 365,610 | H29: =A3A!H108 -> 365,610 | I29: =A3A!I108 -> 342,177 | J29: =A3A!J108 -> 354,481 | K29: =A3A!K108 -> 367,027
A30: ='Org structure'!A9 -> Vote 08 - | C30: =A3A!C120 -> 0 | D30: =A3A!D120 -> 0 | E30: =A3A!E120 -> 0 | F30: =A3A!F120 -> 0 | G30: =A3A!G120 -> 0 | H30: =A3A!H120 -> 0 | I30: =A3A!I120 -> 0 | J30: =A3A!J120 -> 0 | K30: =A3A!K120 -> 0
A31: ='Org structure'!A10 -> Vote 09 - | C31: =A3A!C121 -> 0 | D31: =A3A!D121 -> 0 | E31: =A3A!E121 -> 0 | F31: =A3A!F121 -> 0 | G31: =A3A!G121 -> 0 | H31: =A3A!H121 -> 0 | I31: =A3A!I121 -> 0 | J31: =A3A!J121 -> 0 | K31: =A3A!K121 -> 0
A32: ='Org structure'!A11 -> Vote 10 - | C32: =A3A!C122 -> 0 | D32: =A3A!D122 -> 0 | E32: =A3A!E122 -> 0 | F32: =A3A!F122 -> 0 | G32: =A3A!G122 -> 0 | H32: =A3A!H122 -> 0 | I32: =A3A!I122 -> 0 | J32: =A3A!J122 -> 0 | K32: =A3A!K122 -> 0
A33: ='Org structure'!A12 -> Vote 11 - | C33: =A3A!C123 -> 0 | D33: =A3A!D123 -> 0 | E33: =A3A!E123 -> 0 | F33: =A3A!F123 -> 0 | G33: =A3A!G123 -> 0 | H33: =A3A!H123 -> 0 | I33: =A3A!I123 -> 0 | J33: =A3A!J123 -> 0 | K33: =A3A!K123 -> 0 | L33: =A3A!#REF! -> 
A34: ='Org structure'!A13 -> Vote 12 - | C34: =A3A!C124 -> 0 | D34: =A3A!D124 -> 0 | E34: =A3A!E124 -> 0 | F34: =A3A!F124 -> 0 | G34: =A3A!G124 -> 0 | H34: =A3A!H124 -> 0 | I34: =A3A!I124 -> 0 | J34: =A3A!J124 -> 0 | K34: =A3A!K124 -> 0 | L34: =A3A!#REF! -> 
A35: ='Org structure'!A14 -> Vote 13 - | C35: =A3A!C125 -> 0 | D35: =A3A!D125 -> 0 | E35: =A3A!E125 -> 0 | F35: =A3A!F125 -> 0 | G35: =A3A!G125 -> 0 | H35: =A3A!H125 -> 0 | I35: =A3A!I125 -> 0 | J35: =A3A!J125 -> 0 | K35: =A3A!K125 -> 0 | L35: =A3A!#REF! -> 
A36: ='Org structure'!A15 -> Vote 14 - | C36: =A3A!C126 -> 0 | D36: =A3A!D126 -> 0 | E36: =A3A!E126 -> 0 | F36: =A3A!F126 -> 0 | G36: =A3A!G126 -> 0 | H36: =A3A!H126 -> 0 | I36: =A3A!I126 -> 0 | J36: =A3A!J126 -> 0 | K36: =A3A!K126 -> 0 | L36: =A3A!#REF! -> 
A37: ='Org structure'!A16 -> Vote 15 - Other | C37: =A3A!C127 -> 0 | D37: =A3A!D127 -> 0 | E37: =A3A!E127 -> 0 | F37: =A3A!F127 -> 0 | G37: =A3A!G127 -> 0 | H37: =A3A!H127 -> 0 | I37: =A3A!I127 -> 0 | J37: =A3A!J127 -> 0 | K37: =A3A!K127 -> 0 | L37: =A3A!#REF! -> 
A38: Total Expenditure by Vote | B38: 2 | C38: =SUM(C23:C37) -> 634,430 | D38: =SUM(D23:D37) -> 789,459 | E38: =SUM(E23:E37) -> 732,875 | F38: 819,174 | G38: 890,421 | H38: 890,421 | I38: 870,647 | J38: 905,714 | K38: 936,096 | L38: =SUM(L23:L29) -> 0 | M38: 0 | N38: 0 | O38: 0 | P38: 0 | Q38: 0 | R38: 0 | S38: 0 | T38: 0 | U38: 0 | V38: 0 | W38: 0
A39: =result -> Surplus/(Deficit) for the year | B39: 2 | C39: =C20-C38 -> 213,210 | D39: =D20-D38 -> 134,745 | E39: 241,060 | F39: 198,099 | G39: 126,600 | H39: 126,600 | I39: 199,441 | J39: 265,185 | K39: 243,171 | L39: 0 | M39: 0 | N39: 0 | O39: 0 | P39: 0 | Q39: 0 | R39: 0 | S39: 0 | T39: 0 | U39: 0 | V39: 0 | W39: 0
A40: =head27a -> References
A41: 1. Insert 'Vote'; e.g. department, if different to functional classification structure
A42: 2. Must reconcile to Budgeted Financial Performance (revenue and expenditure)
A43: 3. Assign share in 'associate' to relevant Vote

Sheet A3A
A1: =muni&" - "&Approve2&"A" -> DC43 Harry Gwala - Table A3 Consolidated Budgeted Financial Performance (revenue and expenditure by municipal vote)A
A2: =Vdesc -> Vote Description | B2: =head27 -> Ref | C2: =head1b -> 2022/23 | D2: =head1A -> 2023/24 | E2: =Head1 -> 2024/25 | F2: =Head2 -> Current Year 2025/26 | I2: =Head3 -> 2026/27 Medium Term Revenue & Expenditure Framework | L2: =Head4 -> LTFS
A3: R thousand | C3: =Head5 -> Audited Outcome | D3: =Head5 -> Audited Outcome | E3: =Head5 -> Audited Outcome | F3: =Head6 -> Original Budget | G3: =Head7 -> Adjusted Budget | H3: =Head8 -> Full Year Forecast | I3: =Head9 -> Budget Year 2026/27 | J3: =Head10 -> Budget Year +1 2027/28 | K3: =Head11 -> Budget Year +2 2028/29 | L3: =Head12 -> Forecast 2029/30 | M3: =Head13 -> Forecast 2030/31 | N3: =Head14 -> Forecast 2031/32 | O3: =Head15 -> Forecast 2032/33 | P3: =Head16 -> Forecast 2033/34 | Q3: =Head17 -> Forecast 2034/35 | R3: =Head18 -> Forecast 2035/36 | S3: =Head19 -> Forecast 2036/37 | T3: =Head20 -> Forecast 2037/38 | U3: =Head21 -> Forecast 2038/39 | V3: =Head22 -> Forecast 2039/40 | W3: =Head23 -> Forecast 2040/41
A4: Revenue by Vote | B4: 1
A5: ='Org structure'!A2 -> Vote 01 - Summary Council | C5: =SUM(C6:C10) -> 0 | D5: 0 | E5: 0 | F5: 0 | G5: 0 | H5: 0 | I5: 0 | J5: 0 | K5: 0
A6: ='Org structure'!E3 -> 01.1 - Mayor | C6: 0 | D6: 0 | E6: 0 | F6: 0 | G6: 0 | H6: 0 | I6: 0 | J6: 0 | K6: 0
A7: ='Org structure'!E4 -> 01.2 - Deputy Mayor | C7: 0 | D7: 0 | E7: 0 | F7: 0 | G7: 0 | H7: 0 | I7: 0 | J7: 0 | K7: 0
A8: ='Org structure'!E5 -> 01.3 - Speaker | C8: 0 | D8: 0 | E8: 0 | F8: 0 | G8: 0 | H8: 0 | I8: 0 | J8: 0 | K8: 0
A9: ='Org structure'!E6 -> 01.4 - Exco | C9: 0 | D9: 0 | E9: 0 | F9: 0 | G9: 0 | H9: 0 | I9: 0 | J9: 0 | K9: 0
A10: ='Org structure'!E7 -> 01.5 - Council General | C10: 0 | D10: 0 | E10: 0 | F10: 0 | G10: 0 | H10: 0 | I10: 0 | J10: 0 | K10: 0
A11: ='Org structure'!A3 -> Vote 02 - Summary Municipal Manager | C11: =SUM(C12:C15) -> 0 | D11: 0 | E11: 0 | F11: 0 | G11: 0 | H11: 0 | I11: 0 | J11: 0 | K11: 0
A12: ='Org structure'!E9 -> 02.1 - Municipal Manager Administration | C12: 0 | D12: 0 | E12: 0 | F12: 0 | G12: 0 | H12: 0 | I12: 0 | J12: 0 | K12: 0
A13: ='Org structure'!E10 -> 02.2 - Internal Audit Unit | C13: 0 | D13: 0 | E13: 0 | F13: 0 | G13: 0 | H13: 0 | I13: 0 | J13: 0 | K13: 0
A14: ='Org structure'!E11 -> 02.3 - Monitoring And Evaluation( Pob) Support Services | C14: 0 | D14: 0 | E14: 0 | F14: 0 | G14: 0 | H14: 0 | I14: 0 | J14: 0 | K14: 0
A15: ='Org structure'!E12 -> 02.4 - Idp & Pms | C15: 0 | D15: 0 | E15: 0 | F15: 0 | G15: 0 | H15: 0 | I15: 0 | J15: 0 | K15: 0
A16: ='Org structure'!A4 -> Vote 03 - Summary Budget And Treasury Office | C16: =SUM(C17:C19) -> 449,162 | D16: 489,676 | E16: 523,056 | F16: 549,507 | G16: 547,435 | H16: 547,435 | I16: 576,861 | J16: 607,832 | K16: 624,485
A17: ='Org structure'!E14 -> 03.1 - Budget & Treasury Administration | C17: 434,507 | D17: 466,268 | E17: 494,212 | F17: 524,882 | G17: 522,811 | H17: 522,811 | I17: 550,755 | J17: 580,160 | K17: 595,152
A18: ='Org structure'!E15 -> 03.2 - Income Expenditure & Accounting Support | C18: 10,900 | D18: 22,035 | E18: 28,059 | F18: 24,625 | G18: 24,625 | H18: 24,625 | I18: 26,106 | J18: 27,672 | K18: 29,333
A19: ='Org structure'!E16 -> 03.3 - Budgeting & Supply Chain Management | C19: 3,755 | D19: 1,374 | E19: 785 | F19: 0 | G19: 0 | H19: 0 | I19: 0 | J19: 0 | K19: 0
A20: ='Org structure'!A5 -> Vote 04 - Summary Corporate Services | C20: =SUM(C21:C25) -> 372 | D20: 418 | E20: 393 | F20: 410 | G20: 410 | H20: 410 | I20: 435 | J20: 461 | K20: 489
A21: ='Org structure'!E18 -> 04.1 - Corporate Services Administration | C21: 372 | D21: 418 | E21: 393 | F21: 410 | G21: 410 | H21: 410 | I21: 435 | J21: 461 | K21: 489
A22: ='Org structure'!E19 -> 04.2 - Human Resources & Labour Relations | C22: 0 | D22: 0 | E22: 0 | F22: 0 | G22: 0 | H22: 0 | I22: 0 | J22: 0 | K22: 0
A23: ='Org structure'!E20 -> 04.3 - Administration & Ict | C23: 0 | D23: 0 | E23: 0 | F23: 0 | G23: 0 | H23: 0 | I23: 0 | J23: 0 | K23: 0
A24: ='Org structure'!E21 -> 04.4 - Communication & Legal Support | C24: 0 | D24: 0 | E24: 0 | F24: 0 | G24: 0 | H24: 0 | I24: 0 | J24: 0 | K24: 0
A25: ='Org structure'!E22 -> 04.5 - Learnerships And Internships | C25: 0 | D25: 0 | E25: 0 | F25: 0 | G25: 0 | H25: 0 | I25: 0 | J25: 0 | K25: 0
A26: ='Org structure'!A6 -> Vote 05 - Summary Social Services & Development Planing | C26: =SUM(C27:C37) -> 32 | D26: 42 | E26: 38 | F26: 24,479 | G26: 24,545 | H26: 24,545 | I26: 24,605 | J26: 27,160 | K26: 26,712
A27: ='Org structure'!E24 -> 05.1 - Social Econ & Develop Planning Admin. | C27: 0 | D27: 0 | E27: 0 | F27: 0 | G27: 0 | H27: 0 | I27: 0 | J27: 0 | K27: 0
A28: ='Org structure'!E25 -> 05.2 - Special Programmes | C28: 0 | D28: 0 | E28: 0 | F28: 0 | G28: 0 | H28: 0 | I28: 0 | J28: 0 | K28: 0
A29: ='Org structure'!E26 -> 05.3 - Social Services | C29: 32 | D29: 42 | E29: 38 | F29: 18 | G29: 84 | H29: 84 | I29: 89 | J29: 94 | K29: 100
A30: ='Org structure'!E27 -> 05.4 - Strategic Planning; Idp & Pms | C30: 0 | D30: 0 | E30: 0 | F30: 0 | G30: 0 | H30: 0 | I30: 0 | J30: 0 | K30: 0
A31: ='Org structure'!E28 -> 05.5 - Development Planning | C31: 0 | D31: 0 | E31: 0 | F31: 0 | G31: 0 | H31: 0 | I31: 0 | J31: 0 | K31: 0
A32: ='Org structure'!E29 -> 05.6 - Office Of The Ceo | C32: 0 | D32: 0 | E32: 0 | F32: 0 | G32: 0 | H32: 0 | I32: 0 | J32: 0 | K32: 0
A33: ='Org structure'!E30 -> 05.7 - Corporate Services | C33: 0 | D33: 0 | E33: 0 | F33: 0 | G33: 0 | H33: 0 | I33: 0 | J33: 0 | K33: 0
A34: ='Org structure'!E31 -> 05.8 - Chief Financial Officer | C34: 0 | D34: 0 | E34: 0 | F34: 1,462 | G34: 1,462 | H34: 1,462 | I34: 1,516 | J34: 1,566 | K34: 1,613
A35: ='Org structure'!E32 -> 05.9 - Tourism | C35: 0 | D35: 0 | E35: 0 | F35: 0 | G35: 0 | H35: 0 | I35: 0 | J35: 0 | K35: 0
A36: ='Org structure'!E33 -> 05.10 - Local Economic Development | C36: 0 | D36: 0 | E36: 0 | F36: 0 | G36: 0 | H36: 0 | I36: 0 | J36: 0 | K36: 0
A37: ='Org structure'!E34 -> 05.11 - Local Economic Development (Rep Fx) | C37: 0 | D37: 0 | E37: 0 | F37: 23,000 | G37: 23,000 | H37: 23,000 | I37: 23,000 | J37: 25,500 | K37: 25,000
A38: ='Org structure'!A7 -> Vote 06 - Summary Infrastructure Services | C38: =SUM(C39:C44) -> 308,606 | D38: 348,937 | E38: 361,419 | F38: 350,081 | G38: 350,081 | H38: 350,081 | I38: 367,966 | J38: 429,212 | K38: 414,972
A39: ='Org structure'!E36 -> 06.1 - Infrastructure Services Administration | C39: 3,888 | D39: 0 | E39: 24,064 | F39: 0 | G39: 0 | H39: 0 | I39: 0 | J39: 0 | K39: 0
A40: ='Org structure'!E37 -> 06.2 - Municipal Works & Professional Services | C40: 0 | D40: 0 | E40: 0 | F40: 0 | G40: 0 | H40: 0 | I40: 0 | J40: 0 | K40: 0
A41: ='Org structure'!E38 -> 06.3 - Project & Infra Grant Management | C41: 0 | D41: 0 | E41: 0 | F41: 0 | G41: 0 | H41: 0 | I41: 0 | J41: 0 | K41: 0
A42: ='Org structure'!E39 -> 06.4 - Reporting Function | C42: 4,300 | D42: 3,916 | E42: 3,405 | F42: 4,805 | G42: 4,805 | H42: 4,805 | I42: 5,094 | J42: 5,399 | K42: 5,723
A43: ='Org structure'!E40 -> 06.5 - Reporting Function | C43: 300,419 | D43: 345,021 | E43: 333,950 | F43: 345,276 | G43: 345,276 | H43: 345,276 | I43: 362,872 | J43: 423,813 | K43: 409,249
A44: ='Org structure'!E41 -> 06.6 - Reporting Function | C44: 0 | D44: 0 | E44: 0 | F44: 0 | G44: 0 | H44: 0 | I44: 0 | J44: 0 | K44: 0
A45: ='Org structure'!A8 -> Vote 07 - Summary Water Services | C45: =SUM(C46:C56) -> 89,467 | D45: 85,131 | E45: 89,029 | F45: 92,795 | G45: 94,548 | H45: 94,548 | I45: 100,221 | J45: 106,234 | K45: 112,608
A46: ='Org structure'!E43 -> 07.1 - Water Services Administration | C46: 76,317 | D46: 71,289 | E46: 75,488 | F46: 76,789 | G46: 80,552 | H46: 80,552 | I46: 85,385 | J46: 90,508 | K46: 95,939
A47: ='Org structure'!E44 -> 07.2 - Water Infrastructure Planning & Design | C47: 0 | D47: 0 | E47: 0 | F47: 0 | G47: 0 | H47: 0 | I47: 0 | J47: 0 | K47: 0
A48: ='Org structure'!E45 -> 07.3 - Water Operations & Maintenance | C48: 0 | D48: 0 | E48: 0 | F48: 0 | G48: 0 | H48: 0 | I48: 0 | J48: 0 | K48: 0
A49: ='Org structure'!E46 -> 07.4 - Sanitation Operations & Maintenance | C49: 13,126 | D49: 13,814 | E49: 13,317 | F49: 15,952 | G49: 13,865 | H49: 13,865 | I49: 14,697 | J49: 15,578 | K49: 16,513
A50: ='Org structure'!E47 -> 07.5 - Customer Care Services | C50: 0 | D50: 0 | E50: 0 | F50: 0 | G50: 0 | H50: 0 | I50: 0 | J50: 0 | K50: 0
A51: ='Org structure'!E48 -> 07.6 - Water Regulation/Governance | C51: 0 | D51: 0 | E51: 0 | F51: 0 | G51: 0 | H51: 0 | I51: 0 | J51: 0 | K51: 0
A52: ='Org structure'!E49 -> 07.7 - Dr Nkosozana Dlamini Zuma Lm | C52: 23 | D52: 28 | E52: 224 | F52: 54 | G52: 131 | H52: 131 | I52: 139 | J52: 147 | K52: 156
A53: ='Org structure'!E50 -> 07.8 - Umzimkhulu | C53: 0 | D53: 0 | E53: 0 | F53: 0 | G53: 0 | H53: 0 | I53: 0 | J53: 0 | K53: 0
A54: ='Org structure'!E51 -> 07.9 - Kokstad | C54: 0 | D54: 0 | E54: 0 | F54: 0 | G54: 0 | H54: 0 | I54: 0 | J54: 0 | K54: 0
A55: ='Org structure'!E52 -> 07.10 - Ubuhlebezwe | C55: 0 | D55: 0 | E55: 0 | F55: 0 | G55: 0 | H55: 0 | I55: 0 | J55: 0 | K55: 0
A56: ='Org structure'!E53 -> 07.11 - Reporting Function | C56: 0 | D56: 0 | E56: 0 | F56: 0 | G56: 0 | H56: 0 | I56: 0 | J56: 0 | K56: 0
A57: ='Org structure'!A9 -> Vote 08 - | C57: 0 | D57: 0 | E57: 0 | F57: 0 | G57: 0 | H57: 0 | I57: 0 | J57: 0 | K57: 0
A58: ='Org structure'!A10 -> Vote 09 - | C58: 0 | D58: 0 | E58: 0 | F58: 0 | G58: 0 | H58: 0 | I58: 0 | J58: 0 | K58: 0
A59: ='Org structure'!A11 -> Vote 10 - | C59: 0 | D59: 0 | E59: 0 | F59: 0 | G59: 0 | H59: 0 | I59: 0 | J59: 0 | K59: 0
A60: ='Org structure'!A12 -> Vote 11 - | C60: 0 | D60: 0 | E60: 0 | F60: 0 | G60: 0 | H60: 0 | I60: 0 | J60: 0 | K60: 0
A61: ='Org structure'!A13 -> Vote 12 - | C61: 0 | D61: 0 | E61: 0 | F61: 0 | G61: 0 | H61: 0 | I61: 0 | J61: 0 | K61: 0
A62: ='Org structure'!A14 -> Vote 13 - | C62: 0 | D62: 0 | E62: 0 | F62: 0 | G62: 0 | H62: 0 | I62: 0 | J62: 0 | K62: 0
A63: ='Org structure'!A15 -> Vote 14 - | C63: 0 | D63: 0 | E63: 0 | F63: 0 | G63: 0 | H63: 0 | I63: 0 | J63: 0 | K63: 0
A64: ='Org structure'!A16 -> Vote 15 - Other | C64: 0 | D64: 0 | E64: 0 | F64: 0 | G64: 0 | H64: 0 | I64: 0 | J64: 0 | K64: 0
A65: Total Revenue by Vote | B65: 2 | C65: =C5+C11+C16+C20+C26+C38+C45+C57+C58+C59+C60+C61+C62+C63+C64 -> 847,640 | D65: 924,204 | E65: 973,935 | F65: 1,017,273 | G65: 1,017,020 | H65: 1,017,020 | I65: 1,070,087 | J65: 1,170,899 | K65: 1,179,267 | L65: =SUM(L52:L56) -> 0 | M65: 0 | N65: 0 | O65: 0 | P65: 0 | Q65: 0 | R65: 0 | S65: 0 | T65: 0 | U65: 0 | V65: 0 | W65: 0
A67: Expenditure by Vote | B67: 1
A68: ='Org structure'!A2 -> Vote 01 - Summary Council | C68: =SUM(C69:C73) -> 18,112 | D68: 15,581 | E68: 17,788 | F68: 20,567 | G68: 21,741 | H68: 21,741 | I68: 23,633 | J68: 24,496 | K68: 25,379
A69: ='Org structure'!E3 -> 01.1 - Mayor | C69: 2,420 | D69: 2,182 | E69: 3,961 | F69: 4,247 | G69: 4,817 | H69: 4,817 | I69: 5,006 | J69: 5,204 | K69: 5,411
A70: ='Org structure'!E4 -> 01.2 - Deputy Mayor | C70: 1,245 | D70: 1,311 | E70: 1,368 | F70: 2,055 | G70: 2,054 | H70: 2,054 | I70: 2,136 | J70: 2,221 | K70: 2,310
A71: ='Org structure'!E5 -> 01.3 - Speaker | C71: 773 | D71: 830 | E71: 883 | F71: 919 | G71: 919 | H71: 919 | I71: 955 | J71: 994 | K71: 1,033
A72: ='Org structure'!E6 -> 01.4 - Exco | C72: 1,340 | D72: 1,395 | E72: 1,692 | F72: 1,815 | G72: 1,819 | H72: 1,819 | I72: 1,891 | J72: 1,967 | K72: 2,046
A73: ='Org structure'!E7 -> 01.5 - Council General | C73: 12,334 | D73: 9,863 | E73: 9,884 | F73: 11,532 | G73: 12,133 | H73: 12,133 | I73: 13,644 | J73: 14,110 | K73: 14,580
A74: ='Org structure'!A3 -> Vote 02 - Summary Municipal Manager | C74: =SUM(C75:C78) -> 22,172 | D74: 23,229 | E74: 27,120 | F74: 31,264 | G74: 31,513 | H74: 31,513 | I74: 32,251 | J74: 33,442 | K74: 34,663
A75: ='Org structure'!E9 -> 02.1 - Municipal Manager Administration | C75: 8,629 | D75: 11,936 | E75: 14,837 | F75: 17,130 | G75: 17,657 | H75: 17,657 | I75: 17,890 | J75: 18,529 | K75: 19,180
A76: ='Org structure'!E10 -> 02.2 - Internal Audit Unit | C76: 11,230 | D76: 8,559 | E76: 8,316 | F76: 9,892 | G76: 9,986 | H76: 9,986 | I76: 10,485 | J76: 10,897 | K76: 11,325
A77: ='Org structure'!E11 -> 02.3 - Monitoring And Evaluation( Pob) Support Services | C77: 2,313 | D77: 2,735 | E77: 2,399 | F77: 4,241 | G77: 3,871 | H77: 3,871 | I77: 3,877 | J77: 4,016 | K77: 4,157
A78: ='Org structure'!E12 -> 02.4 - Idp & Pms | C78: 0 | D78: 0 | E78: 1,567 | F78: 0 | G78: 0 | H78: 0 | I78: 0 | J78: 0 | K78: 0
A79: ='Org structure'!A4 -> Vote 03 - Summary Budget And Treasury Office | C79: =SUM(C80:C82) -> 94,176 | D79: 97,677 | E79: 69,768 | F79: 64,749 | G79: 76,727 | H79: 76,727 | I79: 76,942 | J79: 79,837 | K79: 82,902
A80: ='Org structure'!E14 -> 03.1 - Budget & Treasury Administration | C80: 19,572 | D80: 25,723 | E80: 27,138 | F80: 23,283 | G80: 35,237 | H80: 35,237 | I80: 33,825 | J80: 35,018 | K80: 36,317
A81: ='Org structure'!E15 -> 03.2 - Income Expenditure & Accounting Support | C81: 59,378 | D81: 56,038 | E81: 26,234 | F81: 28,972 | G81: 28,529 | H81: 28,529 | I81: 29,666 | J81: 30,841 | K81: 32,062
A82: ='Org structure'!E16 -> 03.3 - Budgeting & Supply Chain Management | C82: 15,225 | D82: 15,916 | E82: 16,397 | F82: 12,494 | G82: 12,960 | H82: 12,960 | I82: 13,451 | J82: 13,978 | K82: 14,523
A83: ='Org structure'!A5 -> Vote 04 - Summary Corporate Services | C83: =SUM(C84:C88) -> 90,554 | D83: 93,168 | E83: 106,598 | F83: 110,299 | G83: 130,947 | H83: 130,947 | I83: 141,503 | J83: 146,405 | K83: 151,365
A84: ='Org structure'!E18 -> 04.1 - Corporate Services Administration | C84: 11,643 | D84: 10,693 | E84: 11,363 | F84: 18,977 | G84: 20,534 | H84: 20,534 | I84: 21,033 | J84: 21,766 | K84: 22,508
A85: ='Org structure'!E19 -> 04.2 - Human Resources & Labour Relations | C85: 12,343 | D85: 11,127 | E85: 14,104 | F85: 16,477 | G85: 18,368 | H85: 18,368 | I85: 18,310 | J85: 18,978 | K85: 19,661
A86: ='Org structure'!E20 -> 04.3 - Administration & Ict | C86: 64,643 | D86: 69,378 | E86: 79,102 | F86: 72,071 | G86: 89,040 | H86: 89,040 | I86: 99,034 | J86: 102,411 | K86: 105,816
A87: ='Org structure'!E21 -> 04.4 - Communication & Legal Support | C87: 1,925 | D87: 1,970 | E87: 2,029 | F87: 2,229 | G87: 2,460 | H87: 2,460 | I87: 2,558 | J87: 2,660 | K87: 2,767
A88: ='Org structure'!E22 -> 04.5 - Learnerships And Internships | C88: 0 | D88: 0 | E88: 0 | F88: 545 | G88: 545 | H88: 545 | I88: 567 | J88: 590 | K88: 614
A89: ='Org structure'!A6 -> Vote 05 - Summary Social Services & Development Planing | C89: =SUM(C90:C100) -> 50,486 | D89: 56,417 | E89: 55,654 | F89: 97,924 | G89: 98,040 | H89: 98,040 | I89: 102,806 | J89: 108,198 | K89: 110,599
A90: ='Org structure'!E24 -> 05.1 - Social Econ & Develop Planning Admin. | C90: 20,588 | D90: 22,742 | E90: 24,673 | F90: 28,726 | G90: 30,941 | H90: 30,941 | I90: 31,406 | J90: 34,238 | K90: 34,082
A91: ='Org structure'!E25 -> 05.2 - Special Programmes | C91: 3,945 | D91: 5,204 | E91: 5,638 | F91: 12,330 | G91: 11,666 | H91: 11,666 | I91: 12,813 | J91: 13,254 | K91: 13,698
A92: ='Org structure'!E26 -> 05.3 - Social Services | C92: 17,993 | D92: 19,285 | E92: 18,204 | F92: 22,765 | G92: 20,654 | H92: 20,654 | I92: 20,193 | J92: 20,983 | K92: 21,802
A93: ='Org structure'!E27 -> 05.4 - Strategic Planning; Idp & Pms | C93: 3,691 | D93: 4,638 | E93: 2,685 | F93: 3,434 | G93: 3,471 | H93: 3,471 | I93: 3,610 | J93: 3,754 | K93: 3,904
A94: ='Org structure'!E28 -> 05.5 - Development Planning | C94: 4,270 | D94: 4,548 | E94: 4,454 | F94: 6,212 | G94: 6,846 | H94: 6,846 | I94: 9,418 | J94: 9,766 | K94: 10,123
A95: ='Org structure'!E29 -> 05.6 - Office Of The Ceo | C95: 0 | D95: 0 | E95: 0 | F95: 10,256 | G95: 10,202 | H95: 10,202 | I95: 2,584 | J95: 2,673 | K95: 2,765
A96: ='Org structure'!E30 -> 05.7 - Corporate Services | C96: 0 | D96: 0 | E96: 0 | F96: 7,615 | G96: 7,615 | H96: 7,615 | I96: 7,920 | J96: 8,236 | K96: 8,566
A97: ='Org structure'!E31 -> 05.8 - Chief Financial Officer | C97: 0 | D97: 0 | E97: 0 | F97: 4,019 | G97: 4,017 | H97: 4,017 | I97: 14,137 | J97: 14,540 | K97: 14,874
A98: ='Org structure'!E32 -> 05.9 - Tourism | C98: 0 | D98: 0 | E98: 0 | F98: 100 | G98: 100 | H98: 100 | I98: 104 | J98: 108 | K98: 112
A99: ='Org structure'!E33 -> 05.10 - Local Economic Development | C99: 0 | D99: 0 | E99: 0 | F99: 370 | G99: 430 | H99: 430 | I99: 447 | J99: 465 | K99: 484
A100: ='Org structure'!E34 -> 05.11 - Local Economic Development (Rep Fx) | C100: 0 | D100: 0 | E100: 0 | F100: 2,097 | G100: 2,097 | H100: 2,097 | I100: 175 | J100: 182 | K100: 189
A101: ='Org structure'!A7 -> Vote 06 - Summary Infrastructure Services | C101: =SUM(C102:C107) -> 122,016 | D101: 257,942 | E101: 162,332 | F101: 165,408 | G101: 165,843 | H101: 165,843 | I101: 151,334 | J101: 158,855 | K101: 164,161
A102: ='Org structure'!E36 -> 06.1 - Infrastructure Services Administration | C102: 24,660 | D102: 66,378 | E102: 19,885 | F102: 34,081 | G102: 38,061 | H102: 38,061 | I102: 30,177 | J102: 31,782 | K102: 32,954
A103: ='Org structure'!E37 -> 06.2 - Municipal Works & Professional Services | C103: 6,848 | D103: 7,023 | E103: 6,639 | F103: 7,302 | G103: 4,930 | H103: 4,930 | I103: 5,127 | J103: 5,319 | K103: 5,516
A104: ='Org structure'!E38 -> 06.3 - Project & Infra Grant Management | C104: 88,098 | D104: 184,072 | E104: 135,267 | F104: 123,407 | G104: 121,809 | H104: 121,809 | I104: 114,946 | J104: 120,627 | K104: 124,519
A105: ='Org structure'!E39 -> 06.4 - Reporting Function | C105: 0 | D105: 0 | E105: 0 | F105: 0 | G105: 0 | H105: 0 | I105: 0 | J105: 0 | K105: 0
A106: ='Org structure'!E40 -> 06.5 - Reporting Function | C106: 0 | D106: 0 | E106: 0 | F106: 0 | G106: 0 | H106: 0 | I106: 0 | J106: 0 | K106: 0
A107: ='Org structure'!E41 -> 06.6 - Reporting Function | C107: 2,411 | D107: 468 | E107: 541 | F107: 618 | G107: 1,042 | H107: 1,042 | I107: 1,084 | J107: 1,127 | K107: 1,172
A108: ='Org structure'!A8 -> Vote 07 - Summary Water Services | C108: =SUM(C109:C119) -> 236,914 | D108: 245,444 | E108: 293,615 | F108: 328,964 | G108: 365,610 | H108: 365,610 | I108: 342,177 | J108: 354,481 | K108: 367,027
A109: ='Org structure'!E43 -> 07.1 - Water Services Administration | C109: 45,543 | D109: 65,302 | E109: 99,735 | F109: 124,017 | G109: 133,784 | H109: 133,784 | I109: 126,569 | J109: 130,897 | K109: 135,265
A110: ='Org structure'!E44 -> 07.2 - Water Infrastructure Planning & Design | C110: 0 | D110: 91 | E110: 0 | F110: 340 | G110: 340 | H110: 340 | I110: 1,553 | J110: 1,607 | K110: 1,661
A111: ='Org structure'!E45 -> 07.3 - Water Operations & Maintenance | C111: 101,041 | D111: 98,328 | E111: 116,109 | F111: 95,824 | G111: 113,876 | H111: 113,876 | I111: 112,535 | J111: 116,736 | K111: 121,052
A112: ='Org structure'!E46 -> 07.4 - Sanitation Operations & Maintenance | C112: 2,509 | D112: 187 | E112: 185 | F112: 9,292 | G112: 9,146 | H112: 9,146 | I112: 9,681 | J112: 10,006 | K112: 10,331
A113: ='Org structure'!E47 -> 07.5 - Customer Care Services | C113: 2,181 | D113: 2,232 | E113: 1,988 | F113: 2,836 | G113: 3,027 | H113: 3,027 | I113: 3,147 | J113: 3,269 | K113: 3,396
A114: ='Org structure'!E48 -> 07.6 - Water Regulation/Governance | C114: 9,338 | D114: 9,951 | E114: 8,725 | F114: 8,392 | G114: 8,035 | H114: 8,035 | I114: 8,334 | J114: 8,612 | K114: 8,891
A115: ='Org structure'!E49 -> 07.7 - Dr Nkosozana Dlamini Zuma Lm | C115: 6,407 | D115: 6,102 | E115: 6,771 | F115: 7,692 | G115: 10,048 | H115: 10,048 | I115: 10,445 | J115: 10,849 | K115: 11,267
A116: ='Org structure'!E50 -> 07.8 - Umzimkhulu | C116: 21,016 | D116: 22,668 | E116: 16,979 | F116: 25,170 | G116: 24,870 | H116: 24,870 | I116: 21,358 | J116: 22,088 | K116: 22,824
A117: ='Org structure'!E51 -> 07.9 - Kokstad | C117: 3,651 | D117: 3,621 | E117: 4,011 | F117: 4,617 | G117: 5,195 | H117: 5,195 | I117: 5,402 | J117: 5,616 | K117: 5,838
A118: ='Org structure'!E52 -> 07.10 - Ubuhlebezwe | C118: 26,514 | D118: 18,234 | E118: 19,039 | F118: 19,718 | G118: 33,978 | H118: 33,978 | I118: 18,911 | J118: 19,590 | K118: 20,281
A119: ='Org structure'!E53 -> 07.11 - Reporting Function | C119: 18,714 | D119: 18,728 | E119: 20,074 | F119: 31,066 | G119: 23,310 | H119: 23,310 | I119: 24,242 | J119: 25,212 | K119: 26,220
A120: ='Org structure'!A9 -> Vote 08 - | C120: 0 | D120: 0 | E120: 0 | F120: 0 | G120: 0 | H120: 0 | I120: 0 | J120: 0 | K120: 0
A121: ='Org structure'!A10 -> Vote 09 - | C121: 0 | D121: 0 | E121: 0 | F121: 0 | G121: 0 | H121: 0 | I121: 0 | J121: 0 | K121: 0
A122: ='Org structure'!A11 -> Vote 10 - | C122: 0 | D122: 0 | E122: 0 | F122: 0 | G122: 0 | H122: 0 | I122: 0 | J122: 0 | K122: 0
A123: ='Org structure'!A12 -> Vote 11 - | C123: 0 | D123: 0 | E123: 0 | F123: 0 | G123: 0 | H123: 0 | I123: 0 | J123: 0 | K123: 0
A124: ='Org structure'!A13 -> Vote 12 - | C124: 0 | D124: 0 | E124: 0 | F124: 0 | G124: 0 | H124: 0 | I124: 0 | J124: 0 | K124: 0
A125: ='Org structure'!A14 -> Vote 13 - | C125: 0 | D125: 0 | E125: 0 | F125: 0 | G125: 0 | H125: 0 | I125: 0 | J125: 0 | K125: 0
A126: ='Org structure'!A15 -> Vote 14 - | C126: 0 | D126: 0 | E126: 0 | F126: 0 | G126: 0 | H126: 0 | I126: 0 | J126: 0 | K126: 0
A127: ='Org structure'!A16 -> Vote 15 - Other | C127: 0 | D127: 0 | E127: 0 | F127: 0 | G127: 0 | H127: 0 | I127: 0 | J127: 0 | K127: 0
A128: Total Expenditure by Vote | B128: 2 | C128: =C68+C74+C79+C83+C89+C101+C108+C120+C121+C122+C123+C124+C125+C126+C127 -> 634,430 | D128: 789,459 | E128: 732,875 | F128: 819,174 | G128: 890,421 | H128: 890,421 | I128: 870,647 | J128: 905,714 | K128: 936,096 | L128: =SUM(L68:L119) -> 0 | M128: 0 | N128: 0 | O128: 0 | P128: 0 | Q128: 0 | R128: 0 | S128: 0 | T128: 0 | U128: 0 | V128: 0 | W128: 0
A130: =result -> Surplus/(Deficit) for the year | B130: 2 | C130: =C65-C128 -> 213,210 | D130: 134,745 | E130: 241,060 | F130: 198,099 | G130: 126,600 | H130: 126,600 | I130: 199,441 | J130: 265,185 | K130: 243,171 | L130: 0 | M130: 0 | N130: 0 | O130: 0 | P130: 0 | Q130: 0 | R130: 0 | S130: 0 | T130: 0 | U130: 0 | V130: 0 | W130: 0
A131: =head27a -> References
A132: 1. Insert 'Vote'; e.g. Department, if different to Functional structure
A133: 2. Must reconcile to Financial Performance ('Revenue and Expenditure by Functional Classification' and 'Revenue and Expenditure')
A134: 3. Assign share in 'associate' to relevant Vote

Sheet A4-FinPerf RE
A1: =muni&" - "&Approve4 -> DC43 Harry Gwala - Table A4 Consolidated Budgeted Financial Performance (revenue and expenditure)
A2: =desc -> Description | B2: =head27 -> Ref | C2: =head1b -> 2022/23 | D2: =head1A -> 2023/24 | E2: =Head1 -> 2024/25 | F2: =Head2 -> Current Year 2025/26 | J2: =Head3 -> 2026/27 Medium Term Revenue & Expenditure Framework | M2: =Head4 -> LTFS
A3: R thousand | B3: 1 | C3: =Head5 -> Audited Outcome | D3: =Head5 -> Audited Outcome | E3: =Head5 -> Audited Outcome | F3: =Head6 -> Original Budget | G3: =Head7 -> Adjusted Budget | H3: =Head8 -> Full Year Forecast | I3: =Head5b -> Pre-audit outcome | J3: =Head9 -> Budget Year 2026/27 | K3: =Head10 -> Budget Year +1 2027/28 | L3: =Head11 -> Budget Year +2 2028/29 | M3: =Head12 -> Forecast 2029/30 | N3: =Head13 -> Forecast 2030/31 | O3: =Head14 -> Forecast 2031/32 | P3: =Head15 -> Forecast 2032/33 | Q3: =Head16 -> Forecast 2033/34 | R3: =Head17 -> Forecast 2034/35 | S3: =Head18 -> Forecast 2035/36 | T3: =Head19 -> Forecast 2036/37 | U3: =Head20 -> Forecast 2037/38 | V3: =Head21 -> Forecast 2038/39 | W3: =Head22 -> Forecast 2039/40 | X3: =Head23 -> Forecast 2040/41
A4: Revenue
A5: Exchange Revenue
A6: Service charges - Electricity | B6: 2 | C6: ='SA1'!C21 -> 0 | D6: ='SA1'!D21 -> 0 | E6: ='SA1'!E21 -> 0 | F6: ='SA1'!F21 -> 0 | G6: ='SA1'!G21 -> 0 | H6: ='SA1'!H21 -> 0 | I6: ='SA1'!I21 -> 0 | J6: ='SA1'!J21 -> 0 | K6: ='SA1'!K21 -> 0 | L6: ='SA1'!L21 -> 0
A7: Service charges - Water | B7: 2 | C7: ='SA1'!C33 -> 64,525 | D7: ='SA1'!D33 -> 59,302 | E7: ='SA1'!E33 -> 63,688 | F7: ='SA1'!F33 -> 68,071 | G7: ='SA1'!G33 -> 73,110 | H7: ='SA1'!H33 -> 73,110 | I7: ='SA1'!I33 -> 47,442 | J7: ='SA1'!J33 -> 77,497 | K7: ='SA1'!K33 -> 82,146 | L7: ='SA1'!L33 -> 87,075
A8: Service charges - Waste Water Management | B8: 2 | C8: ='SA1'!C47 -> 13,149 | D8: ='SA1'!D47 -> 13,256 | E8: ='SA1'!E47 -> 12,845 | F8: ='SA1'!F47 -> 13,518 | G8: ='SA1'!G47 -> 13,529 | H8: ='SA1'!H47 -> 13,529 | I8: ='SA1'!I47 -> 8,838 | J8: ='SA1'!J47 -> 14,341 | K8: ='SA1'!K47 -> 15,202 | L8: ='SA1'!L47 -> 16,114
A9: Service charges - Waste Management | B9: 2 | C9: ='SA1'!C59 -> 0 | D9: ='SA1'!D59 -> 0 | E9: ='SA1'!E59 -> 0 | F9: ='SA1'!F59 -> 0 | G9: ='SA1'!G59 -> 0 | H9: ='SA1'!H59 -> 0 | I9: ='SA1'!I59 -> 0 | J9: ='SA1'!J59 -> 0 | K9: ='SA1'!K59 -> 0 | L9: ='SA1'!L59 -> 0
A10: Sale of Goods and Rendering of Services | B10: 2 | C10: ='SA1'!C110 -> 741 | D10: ='SA1'!D110 -> 178 | E10: ='SA1'!E110 -> 141 | F10: ='SA1'!F110 -> 791 | G10: ='SA1'!G110 -> 146 | H10: ='SA1'!H110 -> 146 | I10: ='SA1'!I110 -> 76 | J10: ='SA1'!J110 -> 159 | K10: ='SA1'!K110 -> 169 | L10: ='SA1'!L110 -> 179
A11: Agency services | B11: 2 | C11: ='SA1'!C138 -> 0 | D11: ='SA1'!D138 -> 0 | E11: ='SA1'!E138 -> 0 | F11: ='SA1'!F138 -> 0 | G11: ='SA1'!G138 -> 0 | H11: ='SA1'!H138 -> 0 | I11: ='SA1'!I138 -> 0 | J11: ='SA1'!J138 -> 0 | K11: ='SA1'!K138 -> 0 | L11: ='SA1'!L138 -> 0
A12: Interest | C12: ='SA1'!C139 -> 0 | D12: ='SA1'!D139 -> 0 | E12: ='SA1'!E139 -> 0 | F12: ='SA1'!F139 -> 0 | G12: ='SA1'!G139 -> 0 | H12: ='SA1'!H139 -> 0 | I12: ='SA1'!I139 -> 0 | J12: ='SA1'!J139 -> 0 | K12: ='SA1'!K139 -> 0 | L12: ='SA1'!L139 -> 0
A13: Interest earned from Receivables | B13: 2 | C13: ='SA1'!C156 -> 14,117 | D13: ='SA1'!D156 -> 16,536 | E13: ='SA1'!E156 -> 14,599 | F13: ='SA1'!F156 -> 16,055 | G13: ='SA1'!G156 -> 12,757 | H13: ='SA1'!H156 -> 12,757 | I13: ='SA1'!I156 -> 8,456 | J13: ='SA1'!J156 -> 13,523 | K13: ='SA1'!K156 -> 14,334 | L13: ='SA1'!L156 -> 15,194 | M13: ='SA1'!M156 -> 0 | N13: ='SA1'!N156 -> 0 | O13: ='SA1'!O156 -> 0 | P13: ='SA1'!P156 -> 0 | Q13: ='SA1'!Q156 -> 0 | R13: ='SA1'!R156 -> 0 | S13: ='SA1'!S156 -> 0 | T13: ='SA1'!T156 -> 0 | U13: ='SA1'!U156 -> 0 | V13: ='SA1'!V156 -> 0 | W13: ='SA1'!W156 -> 0 | X13: ='SA1'!X156 -> 0
A14: Interest earned from Current and Non Current Assets | B14: 2 | C14: ='SA1'!C161 -> 10,858 | D14: ='SA1'!D161 -> 21,988 | E14: ='SA1'!E161 -> 28,012 | F14: ='SA1'!F161 -> 26,043 | G14: ='SA1'!G161 -> 26,043 | H14: ='SA1'!H161 -> 26,043 | I14: ='SA1'!I161 -> 15,868 | J14: ='SA1'!J161 -> 27,572 | K14: ='SA1'!K161 -> 29,185 | L14: ='SA1'!L161 -> 30,889 | M14: ='SA1'!M161 -> 0 | N14: ='SA1'!N161 -> 0 | O14: ='SA1'!O161 -> 0 | P14: ='SA1'!P161 -> 0 | Q14: ='SA1'!Q161 -> 0 | R14: ='SA1'!R161 -> 0 | S14: ='SA1'!S161 -> 0 | T14: ='SA1'!T161 -> 0 | U14: ='SA1'!U161 -> 0 | V14: ='SA1'!V161 -> 0 | W14: ='SA1'!W161 -> 0 | X14: ='SA1'!X161 -> 0
A15: Dividends | B15: 2 | C15: ='SA1'!C165 -> 0 | D15: ='SA1'!D165 -> 0 | E15: ='SA1'!E165 -> 0 | F15: ='SA1'!F165 -> 0 | G15: ='SA1'!G165 -> 0 | H15: ='SA1'!H165 -> 0 | I15: ='SA1'!I165 -> 0 | J15: ='SA1'!J165 -> 0 | K15: ='SA1'!K165 -> 0 | L15: ='SA1'!L165 -> 0
A16: Rent on Land | B16: 2 | C16: ='SA1'!C170 -> 0 | D16: ='SA1'!D170 -> 0 | E16: ='SA1'!E170 -> 0 | F16: ='SA1'!F170 -> 0 | G16: ='SA1'!G170 -> 0 | H16: ='SA1'!H170 -> 0 | I16: ='SA1'!I170 -> 0 | J16: ='SA1'!J170 -> 0 | K16: ='SA1'!K170 -> 0 | L16: ='SA1'!L170 -> 0
A17: Rental from Fixed Assets | B17: 2 | C17: ='SA1'!C184 -> 0 | D17: ='SA1'!D184 -> 0 | E17: ='SA1'!E184 -> 0 | F17: ='SA1'!F184 -> 0 | G17: ='SA1'!G184 -> 0 | H17: ='SA1'!H184 -> 0 | I17: ='SA1'!I184 -> 0 | J17: ='SA1'!J184 -> 0 | K17: ='SA1'!K184 -> 0 | L17: ='SA1'!L184 -> 0
A18: Licence and permits | B18: 2 | C18: ='SA1'!C200 -> 0 | D18: ='SA1'!D200 -> 0 | E18: ='SA1'!E200 -> 0 | F18: ='SA1'!F200 -> 0 | G18: ='SA1'!G200 -> 0 | H18: ='SA1'!H200 -> 0 | I18: ='SA1'!I200 -> 0 | J18: ='SA1'!J200 -> 0 | K18: ='SA1'!K200 -> 0 | L18: ='SA1'!L200 -> 0
A19: Special rating levies | B19: 2 | C19: ='SA1'!C213 -> 0 | D19: ='SA1'!D213 -> 0 | E19: ='SA1'!E213 -> 0 | F19: ='SA1'!F213 -> 0 | G19: ='SA1'!G213 -> 0 | H19: ='SA1'!H213 -> 0 | I19: ='SA1'!I213 -> 0 | J19: ='SA1'!J213 -> 0 | K19: ='SA1'!K213 -> 0 | L19: ='SA1'!L213 -> 0
A20: Construction Contract Revenue | B20: 2 | C20: ='SA1'!C214 -> 0 | D20: ='SA1'!D214 -> 0 | E20: ='SA1'!E214 -> 0 | F20: ='SA1'!F214 -> 0 | G20: ='SA1'!G214 -> 0 | H20: ='SA1'!H214 -> 0 | I20: ='SA1'!I214 -> 0 | J20: ='SA1'!J214 -> 0 | K20: ='SA1'!K214 -> 0 | L20: ='SA1'!L214 -> 0
A21: Development Charges | B21: 2 | C21: ='SA1'!C215 -> 0 | D21: ='SA1'!D215 -> 0 | E21: ='SA1'!E215 -> 0 | F21: ='SA1'!F215 -> 0 | G21: ='SA1'!G215 -> 0 | H21: ='SA1'!H215 -> 0 | I21: ='SA1'!I215 -> 0 | J21: ='SA1'!J215 -> 0 | K21: ='SA1'!K215 -> 0 | L21: ='SA1'!L215 -> 0
A22: Operational Revenue | B22: 2 | C22: ='SA1'!C236 -> 810 | D22: ='SA1'!D236 -> 1,241 | E22: ='SA1'!E236 -> 678 | F22: ='SA1'!F236 -> 706 | G22: ='SA1'!G236 -> 647 | H22: ='SA1'!H236 -> 647 | I22: ='SA1'!I236 -> 541 | J22: ='SA1'!J236 -> 686 | K22: ='SA1'!K236 -> 727 | L22: ='SA1'!L236 -> 771
A23: Non-Exchange Revenue
A24: Property rates | B24: 2 | C24: ='SA1'!C252 -> 0 | D24: ='SA1'!D252 -> 0 | E24: ='SA1'!E252 -> 0 | F24: ='SA1'!F252 -> 0 | G24: ='SA1'!G252 -> 0 | H24: ='SA1'!H252 -> 0 | I24: ='SA1'!I252 -> 0 | J24: ='SA1'!J252 -> 0 | K24: ='SA1'!K252 -> 0 | L24: ='SA1'!L252 -> 0
A25: Surcharges and Taxes | B25: 2 | C25: ='SA1'!C256 -> 0 | D25: ='SA1'!D256 -> 0 | E25: ='SA1'!E256 -> 0 | F25: ='SA1'!F256 -> 0 | G25: ='SA1'!G256 -> 0 | H25: ='SA1'!H256 -> 0 | I25: ='SA1'!I256 -> 0 | J25: ='SA1'!J256 -> 0 | K25: ='SA1'!K256 -> 0 | L25: ='SA1'!L256 -> 0
A26: Fines, penalties and forfeits | B26: 2 | C26: ='SA1'!C261 -> 0 | D26: ='SA1'!D261 -> 478 | E26: ='SA1'!E261 -> 786 | F26: ='SA1'!F261 -> 1,643 | G26: ='SA1'!G261 -> 340 | H26: ='SA1'!H261 -> 340 | I26: ='SA1'!I261 -> 170 | J26: ='SA1'!J261 -> 354 | K26: ='SA1'!K261 -> 368 | L26: ='SA1'!L261 -> 383
A27: Licences or permits | B27: 2 | C27: ='SA1'!C277 -> 0 | D27: ='SA1'!D277 -> 0 | E27: ='SA1'!E277 -> 0 | F27: ='SA1'!F277 -> 0 | G27: ='SA1'!G277 -> 0 | H27: ='SA1'!H277 -> 0 | I27: ='SA1'!I277 -> 0 | J27: ='SA1'!J277 -> 0 | K27: ='SA1'!K277 -> 0 | L27: ='SA1'!L277 -> 0
A28: Transfer and subsidies - Operational | B28: 2 | C28: ='SA1'!C306 -> 452,460 | D28: ='SA1'!D306 -> 477,532 | E28: ='SA1'!E306 -> 534,708 | F28: ='SA1'!F306 -> 596,989 | G28: ='SA1'!G306 -> 596,989 | H28: ='SA1'!H306 -> 596,989 | I28: ='SA1'!I306 -> 417,013 | J28: ='SA1'!J306 -> 607,089 | K28: ='SA1'!K306 -> 639,342 | L28: ='SA1'!L306 -> 654,931
A29: Interest | B29: 2 | C29: ='SA1'!C315 -> 0 | D29: ='SA1'!D315 -> 0 | E29: ='SA1'!E315 -> 0 | F29: ='SA1'!F315 -> 0 | G29: ='SA1'!G315 -> 0 | H29: ='SA1'!H315 -> 0 | I29: ='SA1'!I315 -> 0 | J29: ='SA1'!J315 -> 0 | K29: ='SA1'!K315 -> 0 | L29: ='SA1'!L315 -> 0
A30: Fuel Levy | B30: 2 | C30: ='SA1'!C316 -> 0 | D30: ='SA1'!D316 -> 0 | E30: ='SA1'!E316 -> 0 | F30: ='SA1'!F316 -> 0 | G30: ='SA1'!G316 -> 0 | H30: ='SA1'!H316 -> 0 | I30: ='SA1'!I316 -> 0 | J30: ='SA1'!J316 -> 0 | K30: ='SA1'!K316 -> 0 | L30: ='SA1'!L316 -> 0
A31: Operational Revenue | B31: 2 | C31: ='SA1'!C322 -> 0 | D31: ='SA1'!D322 -> 0 | E31: ='SA1'!E322 -> 0 | F31: ='SA1'!F322 -> 0 | G31: ='SA1'!G322 -> 0 | H31: ='SA1'!H322 -> 0 | I31: ='SA1'!I322 -> 0 | J31: ='SA1'!J322 -> 0 | K31: ='SA1'!K322 -> 0 | L31: ='SA1'!L322 -> 0
A32: Gains on disposal of Fixed and Intangible Assets | B32: 2 | C32: ='SA1'!C330 -> 0 | D32: ='SA1'!D330 -> 0 | E32: ='SA1'!E330 -> 0 | F32: ='SA1'!F330 -> 0 | G32: ='SA1'!G330 -> 0 | H32: ='SA1'!H330 -> 0 | I32: ='SA1'!I330 -> 474 | J32: ='SA1'!J330 -> 0 | K32: ='SA1'!K330 -> 0 | L32: ='SA1'!L330 -> 0
A33: Other Gains | B33: 2 | C33: ='SA1'!C354 -> 3,755 | D33: ='SA1'!D354 -> 1,374 | E33: ='SA1'!E354 -> 785 | F33: ='SA1'!F354 -> 0 | G33: ='SA1'!G354 -> 0 | H33: ='SA1'!H354 -> 0 | I33: ='SA1'!I354 -> 0 | J33: ='SA1'!J354 -> 0 | K33: ='SA1'!K354 -> 0 | L33: ='SA1'!L354 -> 0
A34: Discontinued Operations | C34: ='SA1'!C355 -> 0 | D34: ='SA1'!D355 -> 0 | E34: ='SA1'!E355 -> 0 | F34: ='SA1'!F355 -> 0 | G34: ='SA1'!G355 -> 0 | H34: ='SA1'!H355 -> 0 | I34: ='SA1'!I355 -> 0 | J34: ='SA1'!J355 -> 0 | K34: ='SA1'!K355 -> 0 | L34: ='SA1'!L355 -> 0
A35: Total Revenue (excluding capital transfers and contributions) | C35: =SUM(C6:C22)+SUM(C24:C34) -> 560,414 | D35: 591,885 | E35: 656,242 | F35: 723,815 | G35: 723,562 | H35: 723,562 | I35: 498,876 | J35: 741,220 | K35: 781,473 | L35: 805,535
A36: Expenditure
A37: Employee related costs | B37: 2 | C37: ='SA1'!C403 -> 244,161 | D37: ='SA1'!D403 -> 254,727 | E37: ='SA1'!E403 -> 261,114 | F37: ='SA1'!F403 -> 291,721 | G37: ='SA1'!G403 -> 310,807 | H37: ='SA1'!H403 -> 310,807 | I37: ='SA1'!I403 -> 181,170 | J37: ='SA1'!J403 -> 323,261 | K37: ='SA1'!K403 -> 336,115 | L37: ='SA1'!L403 -> 349,456 | M37: ='SA1'!M71 -> 0 | N37: ='SA1'!N71 -> 0 | O37: ='SA1'!O71 -> 0 | P37: ='SA1'!P71 -> 0 | Q37: ='SA1'!Q71 -> 0 | R37: ='SA1'!R71 -> 0 | S37: ='SA1'!S71 -> 0 | T37: ='SA1'!T71 -> 0
A38: Remuneration of councillors | B38: 2 | C38: ='SA1'!C421 -> 6,988 | D38: ='SA1'!D421 -> 6,932 | E38: ='SA1'!E421 -> 7,581 | F38: ='SA1'!F421 -> 8,059 | G38: ='SA1'!G421 -> 8,101 | H38: ='SA1'!H421 -> 8,101 | I38: ='SA1'!I421 -> 5,240 | J38: ='SA1'!J421 -> 8,426 | K38: ='SA1'!K421 -> 8,763 | L38: ='SA1'!L421 -> 9,113
A39: Bulk purchases - electricity | B39: 2 | C39: ='SA1'!C433 -> 0 | D39: ='SA1'!D433 -> 0 | E39: ='SA1'!E433 -> 0 | F39: ='SA1'!F433 -> 0 | G39: ='SA1'!G433 -> 0 | H39: ='SA1'!H433 -> 0 | I39: ='SA1'!I433 -> 0 | J39: ='SA1'!J433 -> 0 | K39: ='SA1'!K433 -> 0 | L39: ='SA1'!L433 -> 0
A40: Inventory consumed | B40: 2,8 | C40: ='SA1'!C444 -> 33,421 | D40: ='SA1'!D444 -> 33,598 | E40: ='SA1'!E444 -> 58,827 | F40: ='SA1'!F444 -> 39,635 | G40: ='SA1'!G444 -> 46,030 | H40: ='SA1'!H444 -> 46,030 | I40: ='SA1'!I444 -> 33,736 | J40: ='SA1'!J444 -> 39,696 | K40: ='SA1'!K444 -> 41,007 | L40: ='SA1'!L444 -> 42,320
A41: Debt impairment | B41: 2,3 | C41: ='SA1'!C478 -> (1,202) | D41: ='SA1'!D478 -> 10,796 | E41: ='SA1'!E478 -> 2,907 | F41: ='SA1'!F478 -> 31,530 | G41: ='SA1'!G478 -> 31,530 | H41: ='SA1'!H478 -> 31,530 | I41: ='SA1'!I478 -> 0 | J41: ='SA1'!J478 -> 32,791 | K41: ='SA1'!K478 -> 33,873 | L41: ='SA1'!L478 -> 34,957
A42: Depreciation, amortisation and impairment | B42: 2 | C42: ='SA1'!C537 -> 92,787 | D42: ='SA1'!D537 -> 236,930 | E42: ='SA1'!E537 -> 116,317 | F42: ='SA1'!F537 -> 107,788 | G42: ='SA1'!G537 -> 107,788 | H42: ='SA1'!H537 -> 107,788 | I42: ='SA1'!I537 -> 89,508 | J42: ='SA1'!J537 -> 114,839 | K42: ='SA1'!K537 -> 118,634 | L42: ='SA1'!L537 -> 122,437
A43: Interest, Dividends and Rent on Land | B43: 2 | C43: ='SA1'!C542 -> 113 | D43: ='SA1'!D542 -> 2 | E43: ='SA1'!E542 -> 0 | F43: ='SA1'!F542 -> 54 | G43: ='SA1'!G542 -> 54 | H43: ='SA1'!H542 -> 54 | I43: ='SA1'!I542 -> 0 | J43: ='SA1'!J542 -> 56 | K43: ='SA1'!K542 -> 58 | L43: ='SA1'!L542 -> 61
A44: Contracted services | B44: 2 | C44: ='SA1'!C547 -> 134,263 | D44: ='SA1'!D547 -> 122,694 | E44: ='SA1'!E547 -> 159,115 | F44: ='SA1'!F547 -> 173,856 | G44: ='SA1'!G547 -> 204,025 | H44: ='SA1'!H547 -> 204,025 | I44: ='SA1'!I547 -> 115,528 | J44: ='SA1'!J547 -> 164,407 | K44: ='SA1'!K547 -> 172,301 | L44: ='SA1'!L547 -> 177,831
A45: Transfers and subsidies | B45: 2 | C45: ='SA1'!C557 -> 15,290 | D45: ='SA1'!D557 -> 0 | E45: ='SA1'!E557 -> 0 | F45: ='SA1'!F557 -> 23,360 | G45: ='SA1'!G557 -> 23,360 | H45: ='SA1'!H557 -> 23,360 | I45: ='SA1'!I557 -> 14,000 | J45: ='SA1'!J557 -> 23,374 | K45: ='SA1'!K557 -> 25,889 | L45: ='SA1'!L557 -> 25,405
A46: Irrecoverable debts written off | B46: 2 | C46: ='SA1'!C572 -> 0 | D46: ='SA1'!D572 -> 0 | E46: ='SA1'!E572 -> 16,809 | F46: ='SA1'!F572 -> 42,327 | G46: ='SA1'!G572 -> 42,340 | H46: ='SA1'!H572 -> 42,340 | I46: ='SA1'!I572 -> 9,585 | J46: ='SA1'!J572 -> 44,880 | K46: ='SA1'!K572 -> 46,362 | L46: ='SA1'!L572 -> 47,845
A47: Operational costs | B47: 2 | C47: ='SA1'!C671 -> 69,121 | D47: ='SA1'!D671 -> 74,283 | E47: ='SA1'!E671 -> 88,821 | F47: ='SA1'!F671 -> 100,844 | G47: ='SA1'!G671 -> 116,385 | H47: ='SA1'!H671 -> 116,385 | I47: ='SA1'!I671 -> 68,922 | J47: ='SA1'!J671 -> 114,262 | K47: ='SA1'!K671 -> 117,904 | L47: ='SA1'!L671 -> 121,710
A48: Disposal of Fixed and Intangible Assets | B48: 2 | C48: ='SA1'!C679 -> 2,875 | D48: ='SA1'!D679 -> 1,190 | E48: ='SA1'!E679 -> 0 | F48: ='SA1'!F679 -> 0 | G48: ='SA1'!G679 -> 0 | H48: ='SA1'!H679 -> 0 | I48: ='SA1'!I679 -> 1,067 | J48: ='SA1'!J679 -> 4,654 | K48: ='SA1'!K679 -> 4,807 | L48: ='SA1'!L679 -> 4,961
A49: Other Losses | B49: 2 | C49: ='SA1'!C714 -> 0 | D49: ='SA1'!D714 -> 0 | E49: ='SA1'!E714 -> 0 | F49: ='SA1'!F714 -> 0 | G49: ='SA1'!G714 -> 0 | H49: ='SA1'!H714 -> 0 | I49: ='SA1'!I714 -> 0 | J49: ='SA1'!J714 -> 0 | K49: ='SA1'!K714 -> 0 | L49: ='SA1'!L714 -> 0
A50: Total Expenditure | C50: =SUM(C37:C49) -> 597,818 | D50: =SUM(D37:D49) -> 741,152 | E50: 711,491 | F50: 819,174 | G50: 890,421 | H50: 890,421 | I50: 518,756 | J50: 870,647 | K50: 905,714 | L50: 936,096 | M50: =SUM(M37:M49) -> 0 | N50: 0 | O50: 0 | P50: 0 | Q50: 0 | R50: 0 | S50: 0 | T50: 0 | U50: 0 | V50: 0 | W50: 0 | X50: 0
A51: Surplus/(Deficit) | C51: =C35-C50 -> (37,403) | D51: =D35-D50 -> (149,267) | E51: (55,249) | F51: (95,360) | G51: (166,858) | H51: (166,858) | I51: (19,880) | J51: (129,426) | K51: (124,241) | L51: (130,560) | M51: =M35+M50 -> 0 | N51: 0 | O51: 0 | P51: 0 | Q51: 0 | R51: 0 | S51: 0 | T51: 0 | U51: 0 | V51: 0 | W51: 0 | X51: 0
A52: Transfers and subsidies - capital (monetary allocations) | B52: 6 | C52: ='SA1'!C729 -> 283,338 | D52: ='SA1'!D729 -> 332,319 | E52: ='SA1'!E729 -> 317,693 | F52: ='SA1'!F729 -> 293,458 | G52: ='SA1'!G729 -> 293,458 | H52: ='SA1'!H729 -> 293,458 | I52: ='SA1'!I729 -> 174,464 | J52: ='SA1'!J729 -> 328,867 | K52: ='SA1'!K729 -> 389,426 | L52: ='SA1'!L729 -> 373,731
A53: Transfers and subsidies - capital (in-kind) | B53: 6 | C53: ='SA1'!C743 -> 3,888 | D53: ='SA1'!D743 -> 0 | E53: ='SA1'!E743 -> 0 | F53: ='SA1'!F743 -> 0 | G53: ='SA1'!G743 -> 0 | H53: ='SA1'!H743 -> 0 | I53: ='SA1'!I743 -> 0 | J53: ='SA1'!J743 -> 0 | K53: ='SA1'!K743 -> 0 | L53: ='SA1'!L743 -> 0
A54: Surplus/(Deficit) after capital transfers & contributions | C54: =SUM(C51:C53) -> 249,822 | D54: =SUM(D51:D53) -> 183,052 | E54: 262,444 | F54: 198,099 | G54: 126,600 | H54: 126,600 | I54: 154,584 | J54: 199,441 | K54: 265,185 | L54: 243,171
A55: Income Tax | C55: ='SA1'!C748 -> 0 | D55: ='SA1'!D748 -> 0 | E55: ='SA1'!E748 -> 0 | F55: ='SA1'!F748 -> 0 | G55: ='SA1'!G748 -> 0 | H55: ='SA1'!H748 -> 0 | I55: ='SA1'!I748 -> 0 | J55: ='SA1'!J748 -> 0 | K55: ='SA1'!K748 -> 0 | L55: ='SA1'!L748 -> 0
A56: Surplus/(Deficit) after income tax | C56: =+C54-C55 -> 249,822 | D56: =+D54-D55 -> 183,052 | E56: 262,444 | F56: 198,099 | G56: 126,600 | H56: 126,600 | I56: 154,584 | J56: 199,441 | K56: 265,185 | L56: 243,171 | M56: 0 | N56: 0 | O56: 0 | P56: 0 | Q56: 0
A57: Share of Surplus/Deficit attributable to Joint Venture | C57: ='SA1'!C750 -> 0 | D57: ='SA1'!D750 -> 0 | E57: ='SA1'!E750 -> 0 | F57: ='SA1'!F750 -> 0 | G57: ='SA1'!G750 -> 0 | H57: ='SA1'!H750 -> 0 | I57: ='SA1'!I750 -> 0 | J57: ='SA1'!J750 -> 0 | K57: ='SA1'!K750 -> 0 | L57: ='SA1'!L750 -> 0
A58: Share of Surplus/Deficit attributable to Minorities | C58: ='SA1'!C751 -> 0 | D58: ='SA1'!D751 -> 0 | E58: ='SA1'!E751 -> 0 | F58: ='SA1'!F751 -> 0 | G58: ='SA1'!G751 -> 0 | H58: ='SA1'!H751 -> 0 | I58: ='SA1'!I751 -> 0 | J58: ='SA1'!J751 -> 0 | K58: ='SA1'!K751 -> 0 | L58: ='SA1'!L751 -> 0
A59: Surplus/(Deficit) attributable to municipality | C59: =SUM(C56:C58) -> 249,822 | D59: =SUM(D56:D58) -> 183,052 | E59: 262,444 | F59: 198,099 | G59: 126,600 | H59: 126,600 | I59: 154,584 | J59: 199,441 | K59: 265,185 | L59: 243,171 | M59: 0 | N59: 0 | O59: 0 | P59: 0 | Q59: 0
A60: Share of Surplus/Deficit attributable to Associate | B60: 7 | C60: ='SA1'!C753 -> 0 | D60: ='SA1'!D753 -> 0 | E60: ='SA1'!E753 -> 0 | F60: ='SA1'!F753 -> 0 | G60: ='SA1'!G753 -> 0 | H60: ='SA1'!H753 -> 0 | I60: ='SA1'!I753 -> 0 | J60: ='SA1'!J753 -> 0 | K60: ='SA1'!K753 -> 0 | L60: ='SA1'!L753 -> 0
A61: Intercompany/Parent subsidiary transactions | C61: ='SA1'!C754 -> 0 | D61: ='SA1'!D754 -> 0 | E61: ='SA1'!E754 -> 0 | F61: ='SA1'!F754 -> 0 | G61: ='SA1'!G754 -> 0 | H61: ='SA1'!H754 -> 0 | I61: ='SA1'!I754 -> 0 | J61: ='SA1'!J754 -> 0 | K61: ='SA1'!K754 -> 0 | L61: ='SA1'!L754 -> 0
A62: =result -> Surplus/(Deficit) for the year | B62: 1 | C62: =SUM(C59:C61) -> 249,822 | D62: =SUM(D59:D61) -> 183,052 | E62: 262,444 | F62: 198,099 | G62: 126,600 | H62: 126,600 | I62: 154,584 | J62: 199,441 | K62: 265,185 | L62: 243,171 | M62: 0 | N62: 0 | O62: 0 | P62: 0 | Q62: 0 | R62: =R38+R61 -> 0 | S62: 0 | T62: 0 | U62: 0 | V62: 0 | W62: 0 | X62: 0
A63: References
A64: 1. Classifications are revenue sources and expenditure type
A65: 2. Detail to be provided in Table SA1 | O65: =O62-'A4-FinPerf RE'!J62 -> (199,441) | P65: =P62-'A4-FinPerf RE'!K62 -> (265,185) | Q65: =Q62-'A4-FinPerf RE'!L62 -> (243,171)
A66: 3. Debt impairment includes Impairment and Reversal of Impairment Losses
A67: 4. Expenditure type components previously shown under repairs and maintenance should be allocated back to the originating expenditure group/item; e.g. employee costs
A68: 5. Repairs & maintenance detailed in Table A9 and Table SA34c
A69: 6. Contributions are funds provided by external organisations to assist with infrastructure development; e.g. developer contributions (detail to be provided in Table SA1)
A70: 7. Equity method ( Includes Joint Ventures)
A71: 8. All materials consumed including water consumed and materials used in operations.

Sheet A4 Funding (hidden)
A1: Western Cape: Saldanha Bay (WC014) - Table A4 Funding Tool Summary for 4th Quarter ended 30 June 2024
A2: A4 Code | B2: A4 Description | C2: Type | D2: Classification | E2: =head1b -> 2022/23 | F2: =head1A -> 2023/24 | G2: =Head1 -> 2024/25 | H2: =Head2 -> Current Year 2025/26 | L2: =Head3 -> 2026/27 Medium Term Revenue & Expenditure Framework
A3: R thousands | E3: =Head5 -> Audited Outcome | F3: =Head5 -> Audited Outcome | G3: =Head5 -> Audited Outcome | H3: =Head6 -> Original Budget | I3: =Head7 -> Adjusted Budget | J3: =Head8 -> Full Year Forecast | K3: =Head5b -> Pre-audit outcome | L3: =Head9 -> Budget Year 2026/27 | M3: =Head10 -> Budget Year +1 2027/28 | N3: =Head11 -> Budget Year +2 2028/29
A4: 0300 | B4: Exchange Revenue / Service charges - Electricity | C4: Non-Cash | D4: Debtor accrual - service charges electricity accrued through exchange receivables | E4: ='SA3'!C15 -> 0 | F4: ='SA3'!D15 -> 0 | G4: ='SA3'!E15 -> 0 | H4: ='SA3'!F15 -> 0 | I4: ='SA3'!G15 -> 0 | J4: ='SA3'!H15 -> 0 | K4: ='SA3'!I15 -> 0 | L4: ='SA3'!J15 -> 0 | M4: ='SA3'!K15 -> 0 | N4: ='SA3'!L15 -> 0
D5: Non-Cash Total | E5: =SUM(E4) -> 0 | F5: =SUM(F4) -> 0 | G5: 0 | H5: 0 | I5: 0 | J5: 0 | K5: 0 | L5: 0 | M5: 0 | N5: 0
B6: Exchange Revenue / Service charges - Electricity Total
A7: 0400 | B7: Exchange Revenue / Service charges - Water | C7: Non-Cash | D7: Debtor accrual - service charges water accrued through exchange receivables | E7: ='SA3'!C18 -> 178,639 | F7: ='SA3'!D18 -> 176,499 | G7: ='SA3'!E18 -> 171,769 | H7: ='SA3'!F18 -> 147,466 | I7: ='SA3'!G18 -> 153,997 | J7: ='SA3'!H18 -> 153,997 | K7: ='SA3'!I18 -> (7,434) | L7: ='SA3'!J18 -> 135,159 | M7: ='SA3'!K18 -> 116,159 | N7: ='SA3'!L18 -> 97,056
D8: Non-Cash Total
B9: Exchange Revenue / Service charges - Water Total
A10: 0500 | B10: Exchange Revenue / Service charges - Waste Water Management | C10: Non-Cash | D10: Debtor accrual - service charges waste water management accrued through exchange receivables | E10: ='SA3'!C17 -> 63,018 | F10: ='SA3'!D17 -> 56,527 | G10: ='SA3'!E17 -> 63,880 | H10: ='SA3'!F17 -> 55,385 | I10: ='SA3'!G17 -> 60,719 | J10: ='SA3'!H17 -> 60,719 | K10: ='SA3'!I17 -> (1,192) | L10: ='SA3'!J17 -> 51,959 | M10: ='SA3'!K17 -> 48,650 | N10: ='SA3'!L17 -> 45,404
D11: Non-Cash Total
B12: Exchange Revenue / Service charges - Waste Water Management Total
A13: 0600 | B13: Exchange Revenue / Service charges - Waste Management | C13: Non-Cash | D13: Debtor accrual - service charges waste management accrued through exchange receivables | E13: ='SA3'!C16 -> 0 | F13: ='SA3'!D16 -> 0 | G13: ='SA3'!E16 -> 0 | H13: ='SA3'!F16 -> 0 | I13: ='SA3'!G16 -> 0 | J13: ='SA3'!H16 -> 0 | K13: ='SA3'!I16 -> 0 | L13: ='SA3'!J16 -> 0 | M13: ='SA3'!K16 -> 0 | N13: ='SA3'!L16 -> 0
D14: Non-Cash Total
B15: Exchange Revenue / Service charges - Waste Management Total
A16: 0700 | B16: Exchange Revenue / Sale of Goods and Rendering of Services | C16: Cash | D16: Cash sales of goods and rendering of services | E16: ='SA3'!C119 -> 2,172,396 | F16: 0 | G16: 0 | H16: 0 | I16: 0 | J16: 0 | K16: 0 | L16: 0 | M16: 0 | N16: 0
D17: Proceeds sale of PPE | E17: 0 | F17: 0 | G17: 0 | H17: 0 | I17: 0 | J17: 0 | K17: 0 | L17: 0 | M17: 0 | N17: 0
D18: Cash Total | E18: 0 | F18: 0 | G18: 0 | H18: 0 | I18: 0 | J18: 0 | K18: 0 | L18: 0 | M18: 0 | N18: 0
B19: Exchange Revenue / Sale of Goods and Rendering of Services Total | E19: 0 | F19: 0 | G19: 0 | H19: 0 | I19: 0 | J19: 0 | K19: 0 | L19: 0 | M19: 0 | N19: 0
A20: 0800 | B20: Exchange Revenue / Agency services | C20: Cash | D20: Cash - agency services | E20: 0 | F20: 0 | G20: 0 | H20: 0 | I20: 0 | J20: 0 | K20: 0 | L20: 0 | M20: 0 | N20: 0
D21: Cash Total | E21: 0 | F21: 0 | G21: 0 | H21: 0 | I21: 0 | J21: 0 | K21: 0 | L21: 0 | M21: 0 | N21: 0
B22: Exchange Revenue / Agency services Total | E22: 0 | F22: 0 | G22: 0 | H22: 0 | I22: 0 | J22: 0 | K22: 0 | L22: 0 | M22: 0 | N22: 0
A23: 0900 | B23: Exchange Revenue / Interest | C23: Non-Cash | D23: Deemed interest | E23: 0 | F23: 0 | G23: 0 | H23: 0 | I23: 0 | J23: 0 | K23: 0 | L23: 0 | M23: 0 | N23: 0
D24: Non-Cash Total
B25: Exchange Revenue / Interest Total
A26: 1000 | B26: Exchange Revenue / Interest earned from Receivables | C26: Non-Cash | D26: Affiliates/related parties/associated companies | E26: 0 | F26: 0 | G26: 0 | H26: 0 | I26: 0 | J26: 0 | K26: 0 | L26: 0 | M26: 0 | N26: 0
D27: Debtor accrual - interest outstanding debtors accrued through exchange receivables | E27: 0 | F27: 0 | G27: 0 | H27: 0 | I27: 0 | J27: 0 | K27: 0 | L27: 0 | M27: 0 | N27: 0
D28: SARS | E28: 0 | F28: 0 | G28: 0 | H28: 0 | I28: 0 | J28: 0 | K28: 0 | L28: 0 | M28: 0 | N28: 0
D29: Non-Cash Total | E29: 0 | F29: 0 | G29: 0 | H29: 0 | I29: 0 | J29: 0 | K29: 0 | L29: 0 | M29: 0 | N29: 0
B30: Exchange Revenue / Interest earned from Receivables Total | E30: 0 | F30: 0 | G30: 0 | H30: 0 | I30: 0 | J30: 0 | K30: 0 | L30: 0 | M30: 0 | N30: 0
A31: 1100 | B31: Exchange Revenue / Interest earned from Current and Non Current Assets | C31: Cash | D31: Cash - interest external investments | E31: 0 | F31: 0 | G31: 0 | H31: 0 | I31: 0 | J31: 0 | K31: 0 | L31: 0 | M31: 0 | N31: 0
D32: Cash Total | E32: 0 | F32: 0 | G32: 0 | H32: 0 | I32: 0 | J32: 0 | K32: 0 | L32: 0 | M32: 0 | N32: 0
B33: Exchange Revenue / Interest earned from Current and Non Current Assets Total | E33: 0 | F33: 0 | G33: 0 | H33: 0 | I33: 0 | J33: 0 | K33: 0 | L33: 0 | M33: 0 | N33: 0
A34: 1200 | B34: Exchange Revenue / Dividends | C34: Cash | D34: Cash - dividends received | E34: 0 | F34: 0 | G34: 0 | H34: 0 | I34: 0 | J34: 0 | K34: 0 | L34: 0 | M34: 0 | N34: 0
D35: Cash Total | E35: 0 | F35: 0 | G35: 0 | H35: 0 | I35: 0 | J35: 0 | K35: 0 | L35: 0 | M35: 0 | N35: 0
B36: Exchange Revenue / Dividends Total | E36: 0 | F36: 0 | G36: 0 | H36: 0 | I36: 0 | J36: 0 | K36: 0 | L36: 0 | M36: 0 | N36: 0
A37: 1300 | B37: Exchange Revenue / Rent on Land | C37: Cash | D37: Cash - rent on land | E37: 0 | F37: 0 | G37: 0 | H37: 0 | I37: 0 | J37: 0 | K37: 0 | L37: 0 | M37: 0 | N37: 0
D38: Cash Total | E38: 0 | F38: 0 | G38: 0 | H38: 0 | I38: 0 | J38: 0 | K38: 0 | L38: 0 | M38: 0 | N38: 0
B39: Exchange Revenue / Rent on Land Total | E39: 0 | F39: 0 | G39: 0 | H39: 0 | I39: 0 | J39: 0 | K39: 0 | L39: 0 | M39: 0 | N39: 0
A40: 1400 | B40: Exchange Revenue / Rental from Fixed Assets | C40: Cash | D40: Cash - rental from fixed assets | E40: 0 | F40: 0 | G40: 0 | H40: 0 | I40: 0 | J40: 0 | K40: 0 | L40: 0 | M40: 0 | N40: 0
D41: Cash Total | E41: 0 | F41: 0 | G41: 0 | H41: 0 | I41: 0 | J41: 0 | K41: 0 | L41: 0 | M41: 0 | N41: 0
B42: Exchange Revenue / Rental from Fixed Assets Total | E42: 0 | F42: 0 | G42: 0 | H42: 0 | I42: 0 | J42: 0 | K42: 0 | L42: 0 | M42: 0 | N42: 0
A43: 1500 | B43: Exchange Revenue / Licence and permits | C43: Cash | D43: Cash - licence and permits | E43: 0 | F43: 0 | G43: 0 | H43: 0 | I43: 0 | J43: 0 | K43: 0 | L43: 0 | M43: 0 | N43: 0
D44: Cash Total | E44: 0 | F44: 0 | G44: 0 | H44: 0 | I44: 0 | J44: 0 | K44: 0 | L44: 0 | M44: 0 | N44: 0
B45: Exchange Revenue / Licence and permits Total | E45: 0 | F45: 0 | G45: 0 | H45: 0 | I45: 0 | J45: 0 | K45: 0 | L45: 0 | M45: 0 | N45: 0
A46: 1550 | B46: Exchange Revenue / Special rating levies | C46: Cash | D46: Cash - Special rating levies | E46: 0 | F46: 0 | G46: 0 | H46: 0 | I46: 0 | J46: 0 | K46: 0 | L46: 0 | M46: 0 | N46: 0
D47: Cash Total | E47: 0 | F47: 0 | G47: 0 | H47: 0 | I47: 0 | J47: 0 | K47: 0 | L47: 0 | M47: 0 | N47: 0
B48: Exchange Revenue / Special rating levies Total | E48: 0 | F48: 0 | G48: 0 | H48: 0 | I48: 0 | J48: 0 | K48: 0 | L48: 0 | M48: 0 | N48: 0
A49: 1600 | B49: Exchange Revenue / Operational Revenue | C49: Cash | D49: Cash - Operating revenue | E49: 0 | F49: 0 | G49: 0 | H49: 0 | I49: 0 | J49: 0 | K49: 0 | L49: 0 | M49: 0 | N49: 0
D50: Cash Total | E50: 0 | F50: 0 | G50: 0 | H50: 0 | I50: 0 | J50: 0 | K50: 0 | L50: 0 | M50: 0 | N50: 0
B51: Exchange Revenue / Operational Revenue Total | E51: 0 | F51: 0 | G51: 0 | H51: 0 | I51: 0 | J51: 0 | K51: 0 | L51: 0 | M51: 0 | N51: 0
A52: 1800 | B52: Non-Exchange Revenue / Property rates | C52: Non-Cash | D52: Debtor accrual - property rates accrued through non-exchange receivables | E52: 0 | F52: 0 | G52: 0 | H52: 0 | I52: 0 | J52: 0 | K52: 0 | L52: 0 | M52: 0 | N52: 0
D53: Non-Cash Total | E53: 0 | F53: 0 | G53: 0 | H53: 0 | I53: 0 | J53: 0 | K53: 0 | L53: 0 | M53: 0 | N53: 0
B54: Non-Exchange Revenue / Property rates Total | E54: 0 | F54: 0 | G54: 0 | H54: 0 | I54: 0 | J54: 0 | K54: 0 | L54: 0 | M54: 0 | N54: 0
A55: 1900 | B55: Non-Exchange Revenue / Surcharges and Taxes | C55: Non-Cash | D55: Debtor accrual - surcharges & taxes accrued through non-exchange receivables | E55: 0 | F55: 0 | G55: 0 | H55: 0 | I55: 0 | J55: 0 | K55: 0 | L55: 0 | M55: 0 | N55: 0
D56: Non-Cash Total | E56: 0 | F56: 0 | G56: 0 | H56: 0 | I56: 0 | J56: 0 | K56: 0 | L56: 0 | M56: 0 | N56: 0
B57: Non-Exchange Revenue / Surcharges and Taxes Total | E57: 0 | F57: 0 | G57: 0 | H57: 0 | I57: 0 | J57: 0 | K57: 0 | L57: 0 | M57: 0 | N57: 0
A58: 2000 | B58: Non-Exchange Revenue / Fines, penalties and forfeits | C58: Non-Cash | D58: Debtor accrual - Fines, penalties and forfeits revenue accrued through non-exchanges receivables | E58: 0 | F58: 0 | G58: 0 | H58: 0 | I58: 0 | J58: 0 | K58: 0 | L58: 0 | M58: 0 | N58: 0
D59: Non-Cash Total | E59: 0 | F59: 0 | G59: 0 | H59: 0 | I59: 0 | J59: 0 | K59: 0 | L59: 0 | M59: 0 | N59: 0
B60: Non-Exchange Revenue / Fines, penalties and forfeits Total | E60: 0 | F60: 0 | G60: 0 | H60: 0 | I60: 0 | J60: 0 | K60: 0 | L60: 0 | M60: 0 | N60: 0
A61: 2100 | B61: Non-Exchange Revenue / Licences or permits | C61: Cash | D61: Cash - licences or permits | E61: 0 | F61: 0 | G61: 0 | H61: 0 | I61: 0 | J61: 0 | K61: 0 | L61: 0 | M61: 0 | N61: 0
D62: Cash Total | E62: 0 | F62: 0 | G62: 0 | H62: 0 | I62: 0 | J62: 0 | K62: 0 | L62: 0 | M62: 0 | N62: 0
B63: Non-Exchange Revenue / Licences or permits Total | E63: 0 | F63: 0 | G63: 0 | H63: 0 | I63: 0 | J63: 0 | K63: 0 | L63: 0 | M63: 0 | N63: 0
A64: 2200 | B64: Non-Exchange Revenue / Transfer and subsidies - Operational | C64: Cash | D64: Cash - Operational transfers and subsidies | E64: 0 | F64: 0 | G64: 0 | H64: 0 | I64: 0 | J64: 0 | K64: 0 | L64: 0 | M64: 0 | N64: 0
D65: Cash Total | E65: 0 | F65: 0 | G65: 0 | H65: 0 | I65: 0 | J65: 0 | K65: 0 | L65: 0 | M65: 0 | N65: 0
C66: Non-Cash | D66: Operational allocation in-kind | E66: 0 | F66: 0 | G66: 0 | H66: 0 | I66: 0 | J66: 0 | K66: 0 | L66: 0 | M66: 0 | N66: 0
D67: Non-Cash Total | E67: 0 | F67: 0 | G67: 0 | H67: 0 | I67: 0 | J67: 0 | K67: 0 | L67: 0 | M67: 0 | N67: 0
B68: Non-Exchange Revenue / Transfer and subsidies - Operational Total | E68: 0 | F68: 0 | G68: 0 | H68: 0 | I68: 0 | J68: 0 | K68: 0 | L68: 0 | M68: 0 | N68: 0
A69: 2300 | B69: Non-Exchange Revenue / Interest | C69: Non-Cash | D69: Debtor accrual - interest outstanding property rates accrued through non-exchange receivables | E69: 0 | F69: 0 | G69: 0 | H69: 0 | I69: 0 | J69: 0 | K69: 0 | L69: 0 | M69: 0 | N69: 0
D70: Debtor accrual - interest outstanding service charges electricity accrued through exchange receivables | E70: 0 | F70: 0 | G70: 0 | H70: 0 | I70: 0 | J70: 0 | K70: 0 | L70: 0 | M70: 0 | N70: 0
D71: Debtor accrual - interest outstanding service charges waste management accrued through exchange receivables | E71: 0 | F71: 0 | G71: 0 | H71: 0 | I71: 0 | J71: 0 | K71: 0 | L71: 0 | M71: 0 | N71: 0
D72: Debtor accrual - interest outstanding service charges waste water management accrued through exchange receivables | E72: 0 | F72: 0 | G72: 0 | H72: 0 | I72: 0 | J72: 0 | K72: 0 | L72: 0 | M72: 0 | N72: 0
D73: Debtor accrual - interest outstanding service charges water accrued through exchange receivables | E73: 0 | F73: 0 | G73: 0 | H73: 0 | I73: 0 | J73: 0 | K73: 0 | L73: 0 | M73: 0 | N73: 0
D74: Non-Cash Total | E74: 0 | F74: 0 | G74: 0 | H74: 0 | I74: 0 | J74: 0 | K74: 0 | L74: 0 | M74: 0 | N74: 0
B75: Non-Exchange Revenue / Interest Total | E75: 0 | F75: 0 | G75: 0 | H75: 0 | I75: 0 | J75: 0 | K75: 0 | L75: 0 | M75: 0 | N75: 0
A76: 2400 | B76: Non-Exchange Revenue / Fuel Levy | C76: Cash | D76: Cash collection fuel levy | E76: 0 | F76: 0 | G76: 0 | H76: 0 | I76: 0 | J76: 0 | K76: 0 | L76: 0 | M76: 0 | N76: 0
D77: Cash Total | E77: 0 | F77: 0 | G77: 0 | H77: 0 | I77: 0 | J77: 0 | K77: 0 | L77: 0 | M77: 0 | N77: 0
B78: Non-Exchange Revenue / Fuel Levy Total | E78: 0 | F78: 0 | G78: 0 | H78: 0 | I78: 0 | J78: 0 | K78: 0 | L78: 0 | M78: 0 | N78: 0
A79: 2500 | B79: Non-Exchange Revenue / Operational Revenue | C79: Non-Cash | D79: Debtor accrual - availability charges electricity accrued through non-exchange receivables | E79: 0 | F79: 0 | G79: 0 | H79: 0 | I79: 0 | J79: 0 | K79: 0 | L79: 0 | M79: 0 | N79: 0
D80: Debtor accrual - availability charges waste management accrued through non-exchange receivables | E80: 0 | F80: 0 | G80: 0 | H80: 0 | I80: 0 | J80: 0 | K80: 0 | L80: 0 | M80: 0 | N80: 0
D81: Debtor accrual - availability charges waste water management accrued through non-exchange receivables | E81: 0 | F81: 0 | G81: 0 | H81: 0 | I81: 0 | J81: 0 | K81: 0 | L81: 0 | M81: 0 | N81: 0
D82: Debtor accrual - availability charges water accrued through non-exchange receivables | E82: 0 | F82: 0 | G82: 0 | H82: 0 | I82: 0 | J82: 0 | K82: 0 | L82: 0 | M82: 0 | N82: 0
D83: Non-Cash Total | E83: 0 | F83: 0 | G83: 0 | H83: 0 | I83: 0 | J83: 0 | K83: 0 | L83: 0 | M83: 0 | N83: 0
B84: Non-Exchange Revenue / Operational Revenue Total | E84: 0 | F84: 0 | G84: 0 | H84: 0 | I84: 0 | J84: 0 | K84: 0 | L84: 0 | M84: 0 | N84: 0
A85: 2600 | B85: Non-Exchange Revenue / Gains on disposal of Assets | C85: Non-Cash | D85: Biological assets | E85: 0 | F85: 0 | G85: 0 | H85: 0 | I85: 0 | J85: 0 | K85: 0 | L85: 0 | M85: 0 | N85: 0
D86: Discontinued operations | E86: 0 | F86: 0 | G86: 0 | H86: 0 | I86: 0 | J86: 0 | K86: 0 | L86: 0 | M86: 0 | N86: 0
D87: Heritage assets | E87: 0 | F87: 0 | G87: 0 | H87: 0 | I87: 0 | J87: 0 | K87: 0 | L87: 0 | M87: 0 | N87: 0
D88: Intangible assets | E88: 0 | F88: 0 | G88: 0 | H88: 0 | I88: 0 | J88: 0 | K88: 0 | L88: 0 | M88: 0 | N88: 0
D89: Investment property | E89: 0 | F89: 0 | G89: 0 | H89: 0 | I89: 0 | J89: 0 | K89: 0 | L89: 0 | M89: 0 | N89: 0
D90: Land | E90: 0 | F90: 0 | G90: 0 | H90: 0 | I90: 0 | J90: 0 | K90: 0 | L90: 0 | M90: 0 | N90: 0
D91: Living resources | E91: 0 | F91: 0 | G91: 0 | H91: 0 | I91: 0 | J91: 0 | K91: 0 | L91: 0 | M91: 0 | N91: 0
D92: Other assets | E92: 0 | F92: 0 | G92: 0 | H92: 0 | I92: 0 | J92: 0 | K92: 0 | L92: 0 | M92: 0 | N92: 0
D93: PPE | E93: 0 | F93: 0 | G93: 0 | H93: 0 | I93: 0 | J93: 0 | K93: 0 | L93: 0 | M93: 0 | N93: 0
D94: Non-Cash Total | E94: 0 | F94: 0 | G94: 0 | H94: 0 | I94: 0 | J94: 0 | K94: 0 | L94: 0 | M94: 0 | N94: 0
B95: Non-Exchange Revenue / Gains on disposal of Assets Total | E95: 0 | F95: 0 | G95: 0 | H95: 0 | I95: 0 | J95: 0 | K95: 0 | L95: 0 | M95: 0 | N95: 0
A96: 2700 | B96: Non-Exchange Revenue / Other Gains | C96: Non-Cash | D96: Fair value adjustment actuarial assesments - leave gratuity | E96: 0 | F96: 0 | G96: 0 | H96: 0 | I96: 0 | J96: 0 | K96: 0 | L96: 0 | M96: 0 | N96: 0
D97: Fair value adjustment actuarial assesments - long service awards | E97: 0 | F97: 0 | G97: 0 | H97: 0 | I97: 0 | J97: 0 | K97: 0 | L97: 0 | M97: 0 | N97: 0
D98: Fair value adjustment actuarial assesments - medical aid | E98: 0 | F98: 0 | G98: 0 | H98: 0 | I98: 0 | J98: 0 | K98: 0 | L98: 0 | M98: 0 | N98: 0
D99: Fair value adjustment actuarial assesments - pension funds | E99: 0 | F99: 0 | G99: 0 | H99: 0 | I99: 0 | J99: 0 | K99: 0 | L99: 0 | M99: 0 | N99: 0
D100: Fair value adjustment biological assets | E100: 0 | F100: 0 | G100: 0 | H100: 0 | I100: 0 | J100: 0 | K100: 0 | L100: 0 | M100: 0 | N100: 0
D101: Fair value adjustment heritage assets | E101: 0 | F101: 0 | G101: 0 | H101: 0 | I101: 0 | J101: 0 | K101: 0 | L101: 0 | M101: 0 | N101: 0
D102: Fair value adjustment interest rate swap | E102: 0 | F102: 0 | G102: 0 | H102: 0 | I102: 0 | J102: 0 | K102: 0 | L102: 0 | M102: 0 | N102: 0
D103: Fair value adjustment investment property | E103: 0 | F103: 0 | G103: 0 | H103: 0 | I103: 0 | J103: 0 | K103: 0 | L103: 0 | M103: 0 | N103: 0
D104: Fair value adjustment investments | E104: 0 | F104: 0 | G104: 0 | H104: 0 | I104: 0 | J104: 0 | K104: 0 | L104: 0 | M104: 0 | N104: 0
D105: Fair value adjustment living resources | E105: 0 | F105: 0 | G105: 0 | H105: 0 | I105: 0 | J105: 0 | K105: 0 | L105: 0 | M105: 0 | N105: 0
D106: Foreign exchange | E106: 0 | F106: 0 | G106: 0 | H106: 0 | I106: 0 | J106: 0 | K106: 0 | L106: 0 | M106: 0 | N106: 0
D107: Inventory - fair value assessment | E107: 0 | F107: 0 | G107: 0 | H107: 0 | I107: 0 | J107: 0 | K107: 0 | L107: 0 | M107: 0 | N107: 0
D108: Inventory - increase in net realisable value | E108: 0 | F108: 0 | G108: 0 | H108: 0 | I108: 0 | J108: 0 | K108: 0 | L108: 0 | M108: 0 | N108: 0
D109: Debt Waived | E109: 0 | F109: 0 | G109: 0 | H109: 0 | I109: 0 | J109: 0 | K109: 0 | L109: 0 | M109: 0 | N109: 0
D110: Non-Cash Total | E110: 0 | F110: 0 | G110: 0 | H110: 0 | I110: 0 | J110: 0 | K110: 0 | L110: 0 | M110: 0 | N110: 0
B111: Non-Exchange Revenue / Other Gains Total | E111: 0 | F111: 0 | G111: 0 | H111: 0 | I111: 0 | J111: 0 | K111: 0 | L111: 0 | M111: 0 | N111: 0
A112: 2800 | B112: Revenue / Discontinued Operations | C112: Non-Cash | D112: Discontinued operations | E112: 0 | F112: 0 | G112: 0 | H112: 0 | I112: 0 | J112: 0 | K112: 0 | L112: 0 | M112: 0 | N112: 0
D113: Non-Cash Total | E113: 0 | F113: 0 | G113: 0 | H113: 0 | I113: 0 | J113: 0 | K113: 0 | L113: 0 | M113: 0 | N113: 0
B114: Revenue / Discontinued Operations Total | E114: 0 | F114: 0 | G114: 0 | H114: 0 | I114: 0 | J114: 0 | K114: 0 | L114: 0 | M114: 0 | N114: 0
A115: 3100 | B115: Expenditure / Employee related costs | C115: Non-Cash | D115: Cost capitalised to PPE (credit account) | E115: 0 | F115: 0 | G115: 0 | H115: 0 | I115: 0 | J115: 0 | K115: 0 | L115: 0 | M115: 0 | N115: 0
D116: Creditor accrual - Employee related expenditure accrued through payables from non-exchange transactions | E116: 0 | F116: 0 | G116: 0 | H116: 0 | I116: 0 | J116: 0 | K116: 0 | L116: 0 | M116: 0 | N116: 0
D117: In-kind benefits | E117: 0 | F117: 0 | G117: 0 | H117: 0 | I117: 0 | J117: 0 | K117: 0 | L117: 0 | M117: 0 | N117: 0
D118: In-kind benefits - cost capitalised to PPE (credit account) | E118: 0 | F118: 0 | G118: 0 | H118: 0 | I118: 0 | J118: 0 | K118: 0 | L118: 0 | M118: 0 | N118: 0
D119: Post-retirement benefit: medical | E119: 0 | F119: 0 | G119: 0 | H119: 0 | I119: 0 | J119: 0 | K119: 0 | L119: 0 | M119: 0 | N119: 0
D120: Post-retirement benefit: pension | E120: 0 | F120: 0 | G120: 0 | H120: 0 | I120: 0 | J120: 0 | K120: 0 | L120: 0 | M120: 0 | N120: 0
D121: Non-Cash Total | E121: 0 | F121: 0 | G121: 0 | H121: 0 | I121: 0 | J121: 0 | K121: 0 | L121: 0 | M121: 0 | N121: 0
B122: Expenditure / Employee related costs Total | E122: 0 | F122: 0 | G122: 0 | H122: 0 | I122: 0 | J122: 0 | K122: 0 | L122: 0 | M122: 0 | N122: 0
A123: 3200 | B123: Expenditure / Remuneration of councillors | C123: Non-Cash | D123: Creditor Accrual - councillor remuneration accrued through payables from non-exchange transactions | E123: 0 | F123: 0 | G123: 0 | H123: 0 | I123: 0 | J123: 0 | K123: 0 | L123: 0 | M123: 0 | N123: 0
D124: In-kind benefits to councillors | E124: 0 | F124: 0 | G124: 0 | H124: 0 | I124: 0 | J124: 0 | K124: 0 | L124: 0 | M124: 0 | N124: 0
D125: Use of personal facilities | E125: 0 | F125: 0 | G125: 0 | H125: 0 | I125: 0 | J125: 0 | K125: 0 | L125: 0 | M125: 0 | N125: 0
D126: Non-Cash Total | E126: 0 | F126: 0 | G126: 0 | H126: 0 | I126: 0 | J126: 0 | K126: 0 | L126: 0 | M126: 0 | N126: 0
B127: Expenditure / Remuneration of councillors Total | E127: 0 | F127: 0 | G127: 0 | H127: 0 | I127: 0 | J127: 0 | K127: 0 | L127: 0 | M127: 0 | N127: 0
A128: 3300 | B128: Expenditure / Bulk purchases - electricity | C128: Non-Cash | D128: Creditor accrual - bulk purchases electricity accrued through payables from exchange transactions | E128: 0 | F128: 0 | G128: 0 | H128: 0 | I128: 0 | J128: 0 | K128: 0 | L128: 0 | M128: 0 | N128: 0
D129: Non-Cash Total | E129: 0 | F129: 0 | G129: 0 | H129: 0 | I129: 0 | J129: 0 | K129: 0 | L129: 0 | M129: 0 | N129: 0
B130: Expenditure / Bulk purchases - electricity Total | E130: 0 | F130: 0 | G130: 0 | H130: 0 | I130: 0 | J130: 0 | K130: 0 | L130: 0 | M130: 0 | N130: 0
A131: 3400 | B131: Expenditure / Inventory consumed | C131: Non-Cash | D131: Creditor accrual - bulk purchases water accrued through payables from exchange transactions | E131: 0 | F131: 0 | G131: 0 | H131: 0 | I131: 0 | J131: 0 | K131: 0 | L131: 0 | M131: 0 | N131: 0
D132: Inventory consumed - agricultural | E132: 0 | F132: 0 | G132: 0 | H132: 0 | I132: 0 | J132: 0 | K132: 0 | L132: 0 | M132: 0 | N132: 0
D133: Inventory consumed - capitalisation of inventory consumed | E133: 0 | F133: 0 | G133: 0 | H133: 0 | I133: 0 | J133: 0 | K133: 0 | L133: 0 | M133: 0 | N133: 0
D134: Inventory consumed - finished Goods | E134: 0 | F134: 0 | G134: 0 | H134: 0 | I134: 0 | J134: 0 | K134: 0 | L134: 0 | M134: 0 | N134: 0
D135: Inventory consumed - housing stock | E135: 0 | F135: 0 | G135: 0 | H135: 0 | I135: 0 | J135: 0 | K135: 0 | L135: 0 | M135: 0 | N135: 0
D136: Inventory consumed - land | E136: 0 | F136: 0 | G136: 0 | H136: 0 | I136: 0 | J136: 0 | K136: 0 | L136: 0 | M136: 0 | N136: 0
D137: Inventory consumed - materials and supplies | E137: 0 | F137: 0 | G137: 0 | H137: 0 | I137: 0 | J137: 0 | K137: 0 | L137: 0 | M137: 0 | N137: 0
D138: Inventory consumed - standard rated | E138: 0 | F138: 0 | G138: 0 | H138: 0 | I138: 0 | J138: 0 | K138: 0 | L138: 0 | M138: 0 | N138: 0
D139: Inventory consumed - water | E139: 0 | F139: 0 | G139: 0 | H139: 0 | I139: 0 | J139: 0 | K139: 0 | L139: 0 | M139: 0 | N139: 0
D140: Inventory consumed - zero rated | E140: 0 | F140: 0 | G140: 0 | H140: 0 | I140: 0 | J140: 0 | K140: 0 | L140: 0 | M140: 0 | N140: 0
D141: Non-Cash Total | E141: 0 | F141: 0 | G141: 0 | H141: 0 | I141: 0 | J141: 0 | K141: 0 | L141: 0 | M141: 0 | N141: 0
B142: Expenditure / Inventory consumed Total | E142: 0 | F142: 0 | G142: 0 | H142: 0 | I142: 0 | J142: 0 | K142: 0 | L142: 0 | M142: 0 | N142: 0
A143: 3500 | B143: Expenditure / Debt impairment | C143: Non-Cash | D143: Impairment loss - exchange revenue - electricity | E143: 0 | F143: 0 | G143: 0 | H143: 0 | I143: 0 | J143: 0 | K143: 0 | L143: 0 | M143: 0 | N143: 0
D144: Impairment loss - exchange revenue - other | E144: 0 | F144: 0 | G144: 0 | H144: 0 | I144: 0 | J144: 0 | K144: 0 | L144: 0 | M144: 0 | N144: 0
D145: Impairment loss - exchange revenue - waste management | E145: 0 | F145: 0 | G145: 0 | H145: 0 | I145: 0 | J145: 0 | K145: 0 | L145: 0 | M145: 0 | N145: 0
D146: Impairment loss - exchange revenue - waste water management | E146: 0 | F146: 0 | G146: 0 | H146: 0 | I146: 0 | J146: 0 | K146: 0 | L146: 0 | M146: 0 | N146: 0
D147: Impairment loss - exchange revenue - water | E147: 0 | F147: 0 | G147: 0 | H147: 0 | I147: 0 | J147: 0 | K147: 0 | L147: 0 | M147: 0 | N147: 0
D148: Impairment loss - non-exchange revenue - other | E148: 0 | F148: 0 | G148: 0 | H148: 0 | I148: 0 | J148: 0 | K148: 0 | L148: 0 | M148: 0 | N148: 0
D149: Impairment loss - non-exchange revenue - prop rates | E149: 0 | F149: 0 | G149: 0 | H149: 0 | I149: 0 | J149: 0 | K149: 0 | L149: 0 | M149: 0 | N149: 0
D150: Impairment loss - non-exchange revenue - serv charges | E150: 0 | F150: 0 | G150: 0 | H150: 0 | I150: 0 | J150: 0 | K150: 0 | L150: 0 | M150: 0 | N150: 0
D151: Impairment loss - non-exchange revenue - serv charges - electricity | E151: 0 | F151: 0 | G151: 0 | H151: 0 | I151: 0 | J151: 0 | K151: 0 | L151: 0 | M151: 0 | N151: 0
D152: Impairment loss - non-exchange revenue - serv charges - waste management | E152: 0 | F152: 0 | G152: 0 | H152: 0 | I152: 0 | J152: 0 | K152: 0 | L152: 0 | M152: 0 | N152: 0
D153: Impairment loss - non-exchange revenue - serv charges - waste water management | E153: 0 | F153: 0 | G153: 0 | H153: 0 | I153: 0 | J153: 0 | K153: 0 | L153: 0 | M153: 0 | N153: 0
D154: Impairment loss - non-exchange revenue - serv charges - water | E154: 0 | F154: 0 | G154: 0 | H154: 0 | I154: 0 | J154: 0 | K154: 0 | L154: 0 | M154: 0 | N154: 0
D155: Reversal of Impairment loss - exchange revenue - electricity | E155: 0 | F155: 0 | G155: 0 | H155: 0 | I155: 0 | J155: 0 | K155: 0 | L155: 0 | M155: 0 | N155: 0
D156: Reversal of Impairment loss - non-exchange revenue - other | E156: 0 | F156: 0 | G156: 0 | H156: 0 | I156: 0 | J156: 0 | K156: 0 | L156: 0 | M156: 0 | N156: 0
D157: Reversal of Impairment loss - non-exchange revenue - prop rates | E157: 0 | F157: 0 | G157: 0 | H157: 0 | I157: 0 | J157: 0 | K157: 0 | L157: 0 | M157: 0 | N157: 0
D158: Reversal of Impairment loss - non-exchange revenue - serv charges | E158: 0 | F158: 0 | G158: 0 | H158: 0 | I158: 0 | J158: 0 | K158: 0 | L158: 0 | M158: 0 | N158: 0
D159: Reversal of Impairment loss - non-exchange revenue - serv charges - electricity | E159: 0 | F159: 0 | G159: 0 | H159: 0 | I159: 0 | J159: 0 | K159: 0 | L159: 0 | M159: 0 | N159: 0
D160: Reversal of Impairment loss - non-exchange revenue - serv charges - waste management | E160: 0 | F160: 0 | G160: 0 | H160: 0 | I160: 0 | J160: 0 | K160: 0 | L160: 0 | M160: 0 | N160: 0
D161: Reversal of Impairment loss - non-exchange revenue - serv charges - waste water mangement | E161: 0 | F161: 0 | G161: 0 | H161: 0 | I161: 0 | J161: 0 | K161: 0 | L161: 0 | M161: 0 | N161: 0
D162: Reversal of Impairment loss - non-exchange revenue - serv charges - water | E162: 0 | F162: 0 | G162: 0 | H162: 0 | I162: 0 | J162: 0 | K162: 0 | L162: 0 | M162: 0 | N162: 0
D163: Reversal of Impairment loss - exchange revenue - waste management | E163: 0 | F163: 0 | G163: 0 | H163: 0 | I163: 0 | J163: 0 | K163: 0 | L163: 0 | M163: 0 | N163: 0
D164: Reversal of Impairment loss - exchange revenue - waste water management | E164: 0 | F164: 0 | G164: 0 | H164: 0 | I164: 0 | J164: 0 | K164: 0 | L164: 0 | M164: 0 | N164: 0
D165: Reversal of Impairment loss - exchange revenue - water | E165: 0 | F165: 0 | G165: 0 | H165: 0 | I165: 0 | J165: 0 | K165: 0 | L165: 0 | M165: 0 | N165: 0
D166: Reversal of Impairment loss - exchange revenue - other | E166: 0 | F166: 0 | G166: 0 | H166: 0 | I166: 0 | J166: 0 | K166: 0 | L166: 0 | M166: 0 | N166: 0
D167: Non-Cash Total | E167: 0 | F167: 0 | G167: 0 | H167: 0 | I167: 0 | J167: 0 | K167: 0 | L167: 0 | M167: 0 | N167: 0
B168: Expenditure / Debt impairment Total | E168: 0 | F168: 0 | G168: 0 | H168: 0 | I168: 0 | J168: 0 | K168: 0 | L168: 0 | M168: 0 | N168: 0
A169: 3600 | B169: Expenditure / Depreciation and amortisation | C169: Non-Cash | D169: Amortisation - intangible assets | E169: 0 | F169: 0 | G169: 0 | H169: 0 | I169: 0 | J169: 0 | K169: 0 | L169: 0 | M169: 0 | N169: 0
D170: Depreciation - biological or cultivated assets | E170: 0 | F170: 0 | G170: 0 | H170: 0 | I170: 0 | J170: 0 | K170: 0 | L170: 0 | M170: 0 | N170: 0
D171: Depreciation - heritage assets | E171: 0 | F171: 0 | G171: 0 | H171: 0 | I171: 0 | J171: 0 | K171: 0 | L171: 0 | M171: 0 | N171: 0
D172: Depreciation - intangible assets | E172: 0 | F172: 0 | G172: 0 | H172: 0 | I172: 0 | J172: 0 | K172: 0 | L172: 0 | M172: 0 | N172: 0
D173: Depreciation - investment property | E173: 0 | F173: 0 | G173: 0 | H173: 0 | I173: 0 | J173: 0 | K173: 0 | L173: 0 | M173: 0 | N173: 0
D174: Depreciation - living resources | E174: 0 | F174: 0 | G174: 0 | H174: 0 | I174: 0 | J174: 0 | K174: 0 | L174: 0 | M174: 0 | N174: 0
D175: Depreciation - PPE | E175: 0 | F175: 0 | G175: 0 | H175: 0 | I175: 0 | J175: 0 | K175: 0 | L175: 0 | M175: 0 | N175: 0
D176: Depreciation - Land | E176: 0 | F176: 0 | G176: 0 | H176: 0 | I176: 0 | J176: 0 | K176: 0 | L176: 0 | M176: 0 | N176: 0
D177: Impairment loss - biological or cultivated assets | E177: 0 | F177: 0 | G177: 0 | H177: 0 | I177: 0 | J177: 0 | K177: 0 | L177: 0 | M177: 0 | N177: 0
D178: Impairment loss - heritage assets | E178: 0 | F178: 0 | G178: 0 | H178: 0 | I178: 0 | J178: 0 | K178: 0 | L178: 0 | M178: 0 | N178: 0
D179: Impairment loss - intangible assets | E179: 0 | F179: 0 | G179: 0 | H179: 0 | I179: 0 | J179: 0 | K179: 0 | L179: 0 | M179: 0 | N179: 0
D180: Impairment loss - investment property | E180: 0 | F180: 0 | G180: 0 | H180: 0 | I180: 0 | J180: 0 | K180: 0 | L180: 0 | M180: 0 | N180: 0
D181: Impairment loss - living resources | E181: 0 | F181: 0 | G181: 0 | H181: 0 | I181: 0 | J181: 0 | K181: 0 | L181: 0 | M181: 0 | N181: 0
D182: Impairment loss - PPE | E182: 0 | F182: 0 | G182: 0 | H182: 0 | I182: 0 | J182: 0 | K182: 0 | L182: 0 | M182: 0 | N182: 0
D183: Impairment loss - PPE - construction WIP | E183: 0 | F183: 0 | G183: 0 | H183: 0 | I183: 0 | J183: 0 | K183: 0 | L183: 0 | M183: 0 | N183: 0
D184: Reversal impairment loss - biological or cultivated assets | E184: 0 | F184: 0 | G184: 0 | H184: 0 | I184: 0 | J184: 0 | K184: 0 | L184: 0 | M184: 0 | N184: 0
D185: Reversal impairment loss - investment property | E185: 0 | F185: 0 | G185: 0 | H185: 0 | I185: 0 | J185: 0 | K185: 0 | L185: 0 | M185: 0 | N185: 0
D186: Reversal impairment loss - living resources | E186: 0 | F186: 0 | G186: 0 | H186: 0 | I186: 0 | J186: 0 | K186: 0 | L186: 0 | M186: 0 | N186: 0
D187: Reversal impairment loss - PPE | E187: 0 | F187: 0 | G187: 0 | H187: 0 | I187: 0 | J187: 0 | K187: 0 | L187: 0 | M187: 0 | N187: 0
D188: Reversal impairment loss - PPE - construction WIP | E188: 0 | F188: 0 | G188: 0 | H188: 0 | I188: 0 | J188: 0 | K188: 0 | L188: 0 | M188: 0 | N188: 0
D189: Reversal of impairment loss - heritage assets | E189: 0 | F189: 0 | G189: 0 | H189: 0 | I189: 0 | J189: 0 | K189: 0 | L189: 0 | M189: 0 | N189: 0
D190: Reversal of impairment loss - intangible assets | E190: 0 | F190: 0 | G190: 0 | H190: 0 | I190: 0 | J190: 0 | K190: 0 | L190: 0 | M190: 0 | N190: 0
D191: Non-Cash Total | E191: 0 | F191: 0 | G191: 0 | H191: 0 | I191: 0 | J191: 0 | K191: 0 | L191: 0 | M191: 0 | N191: 0
B192: Expenditure / Depreciation and amortisation Total | E192: 0 | F192: 0 | G192: 0 | H192: 0 | I192: 0 | J192: 0 | K192: 0 | L192: 0 | M192: 0 | N192: 0
A193: 3700 | B193: Expenditure / Interest | C193: Cash | D193: Direct cash payment | E193: 0 | F193: 0 | G193: 0 | H193: 0 | I193: 0 | J193: 0 | K193: 0 | L193: 0 | M193: 0 | N193: 0
D194: Cash Total | E194: 0 | F194: 0 | G194: 0 | H194: 0 | I194: 0 | J194: 0 | K194: 0 | L194: 0 | M194: 0 | N194: 0
C195: Non-Cash | D195: Accrual of finance charges - discounting of financial instruments | E195: 0 | F195: 0 | G195: 0 | H195: 0 | I195: 0 | J195: 0 | K195: 0 | L195: 0 | M195: 0 | N195: 0
D196: Accrual of finance charges - interest costs intercompany/parentsubsidiary transactions | E196: 0 | F196: 0 | G196: 0 | H196: 0 | I196: 0 | J196: 0 | K196: 0 | L196: 0 | M196: 0 | N196: 0
D197: Accrual of finance charges - interest costs long service awards | E197: 0 | F197: 0 | G197: 0 | H197: 0 | I197: 0 | J197: 0 | K197: 0 | L197: 0 | M197: 0 | N197: 0
D198: Accrual of finance charges - interest costs non-current provisions | E198: 0 | F198: 0 | G198: 0 | H198: 0 | I198: 0 | J198: 0 | K198: 0 | L198: 0 | M198: 0 | N198: 0
D199: Non-Cash Total | E199: 0 | F199: 0 | G199: 0 | H199: 0 | I199: 0 | J199: 0 | K199: 0 | L199: 0 | M199: 0 | N199: 0
B200: Expenditure / Interest Total | E200: 0 | F200: 0 | G200: 0 | H200: 0 | I200: 0 | J200: 0 | K200: 0 | L200: 0 | M200: 0 | N200: 0
... 111 more rows

Sheet A5-Capex
A2: =Vdesc -> Vote Description | B2: =head27 -> Ref | C2: =head1b -> 2022/23 | D2: =head1A -> 2023/24 | E2: =Head1 -> 2024/25 | F2: =Head2 -> Current Year 2025/26 | J2: =Head3 -> 2026/27 Medium Term Revenue & Expenditure Framework
A3: R thousand | B3: 1 | C3: =Head5 -> Audited Outcome | D3: =Head5 -> Audited Outcome | E3: =Head5 -> Audited Outcome | F3: =Head6 -> Original Budget | G3: =Head7 -> Adjusted Budget | H3: =Head8 -> Full Year Forecast | I3: =Head5b -> Pre-audit outcome | J3: =Head9 -> Budget Year 2026/27 | K3: =Head10 -> Budget Year +1 2027/28 | L3: =Head11 -> Budget Year +2 2028/29
A4: Capital expenditure - Vote
A5: Multi-year expenditure to be appropriated | B5: 2
A6: =A5A!A6 -> Vote 01 - Summary Council | C6: =A5A!C6 -> 0 | D6: =A5A!D6 -> 0 | E6: =A5A!E6 -> 0 | F6: =A5A!F6 -> 0 | G6: =A5A!G6 -> 0 | H6: =A5A!H6 -> 0 | I6: =A5A!I6 -> 0 | J6: =A5A!J6 -> 0 | K6: =A5A!K6 -> 0 | L6: =A5A!L6 -> 0
A7: =A5A!A7 -> Vote 02 - Summary Municipal Manager | C7: =A5A!C7 -> 0 | D7: =A5A!D7 -> 0 | E7: =A5A!E7 -> 0 | F7: =A5A!F7 -> 1,364 | G7: =A5A!G7 -> 500 | H7: =A5A!H7 -> 500 | I7: =A5A!I7 -> 0 | J7: =A5A!J7 -> 0 | K7: =A5A!K7 -> 0 | L7: =A5A!L7 -> 0
A8: =A5A!A9 -> Vote 03 - Summary Budget And Treasury Office | C8: =A5A!C9 -> 275 | D8: =A5A!D9 -> 0 | E8: =A5A!E9 -> 0 | F8: =A5A!F9 -> 2,279 | G8: =A5A!G9 -> 2,100 | H8: =A5A!H9 -> 2,100 | I8: =A5A!I9 -> 144 | J8: =A5A!J9 -> 150 | K8: =A5A!K9 -> 156 | L8: =A5A!L9 -> 1,852
A9: =A5A!A11 -> Vote 04 - Summary Corporate Services | C9: =A5A!C11 -> 7,727 | D9: =A5A!D11 -> 4,385 | E9: =A5A!E11 -> 11,900 | F9: =A5A!F11 -> 3,374 | G9: =A5A!G11 -> 7,909 | H9: =A5A!H11 -> 7,909 | I9: =A5A!I11 -> 3,207 | J9: =A5A!J11 -> 8,064 | K9: =A5A!K11 -> 8,387 | L9: =A5A!L11 -> 8,225
A10: =A5A!A15 -> Vote 05 - Summary Social Services & Development Planing | C10: =A5A!C15 -> 408 | D10: =A5A!D15 -> 986 | E10: =A5A!E15 -> 0 | F10: =A5A!F15 -> 7,101 | G10: =A5A!G15 -> 6,472 | H10: =A5A!H15 -> 6,472 | I10: =A5A!I15 -> 722 | J10: =A5A!J15 -> 3,652 | K10: =A5A!K15 -> 3,773 | L10: =A5A!L15 -> 5,542
A11: =A5A!A20 -> Vote 06 - Summary Infrastructure Services | C11: =A5A!C20 -> 47,306 | D11: =A5A!D20 -> 78,007 | E11: =A5A!E20 -> 136,524 | F11: =A5A!F20 -> 99,656 | G11: =A5A!G20 -> 101,111 | H11: =A5A!H20 -> 101,111 | I11: =A5A!I20 -> 70,464 | J11: =A5A!J20 -> 140,433 | K11: =A5A!K20 -> 237,748 | L11: =A5A!L20 -> 257,065
A12: =A5A!A24 -> Vote 07 - Summary Water Services | C12: =A5A!C24 -> 213,402 | D12: =A5A!D24 -> 226,226 | E12: =A5A!E24 -> 198,273 | F12: =A5A!F24 -> 177,670 | G12: =A5A!G24 -> 208,829 | H12: =A5A!H24 -> 208,829 | I12: =A5A!I24 -> 112,445 | J12: =A5A!J24 -> 173,872 | K12: =A5A!K24 -> 130,351 | L12: =A5A!L24 -> 106,155
A13: ='Org structure'!A9 -> Vote 08 - | C13: =A5A!C28 -> 0 | D13: =A5A!D28 -> 0 | E13: =A5A!E28 -> 0 | F13: =A5A!F28 -> 0 | G13: =A5A!G28 -> 0 | H13: =A5A!H28 -> 0 | I13: =A5A!I28 -> 0 | J13: =A5A!J28 -> 0 | K13: =A5A!K28 -> 0 | L13: =A5A!L28 -> 0
A14: ='Org structure'!A10 -> Vote 09 - | C14: =A5A!C29 -> 0 | D14: =A5A!D29 -> 0 | E14: =A5A!E29 -> 0 | F14: =A5A!F29 -> 0 | G14: =A5A!G29 -> 0 | H14: =A5A!H29 -> 0 | I14: =A5A!I29 -> 0 | J14: =A5A!J29 -> 0 | K14: =A5A!K29 -> 0 | L14: =A5A!L29 -> 0
A15: ='Org structure'!A11 -> Vote 10 - | C15: =A5A!C30 -> 0 | D15: =A5A!D30 -> 0 | E15: =A5A!E30 -> 0 | F15: =A5A!F30 -> 0 | G15: =A5A!G30 -> 0 | H15: =A5A!H30 -> 0 | I15: =A5A!I30 -> 0 | J15: =A5A!J30 -> 0 | K15: =A5A!K30 -> 0 | L15: =A5A!L30 -> 0
A16: ='Org structure'!A12 -> Vote 11 - | C16: =A5A!C31 -> 0 | D16: =A5A!D31 -> 0 | E16: =A5A!E31 -> 0 | F16: =A5A!F31 -> 0 | G16: =A5A!G31 -> 0 | H16: =A5A!H31 -> 0 | I16: =A5A!I31 -> 0 | J16: =A5A!J31 -> 0 | K16: =A5A!K31 -> 0 | L16: =A5A!L31 -> 0
A17: ='Org structure'!A13 -> Vote 12 - | C17: =A5A!C32 -> 0 | D17: =A5A!D32 -> 0 | E17: =A5A!E32 -> 0 | F17: =A5A!F32 -> 0 | G17: =A5A!G32 -> 0 | H17: =A5A!H32 -> 0 | I17: =A5A!I32 -> 0 | J17: =A5A!J32 -> 0 | K17: =A5A!K32 -> 0 | L17: =A5A!L32 -> 0
A18: ='Org structure'!A14 -> Vote 13 - | C18: =A5A!C33 -> 0 | D18: =A5A!D33 -> 0 | E18: =A5A!E33 -> 0 | F18: =A5A!F33 -> 0 | G18: =A5A!G33 -> 0 | H18: =A5A!H33 -> 0 | I18: =A5A!I33 -> 0 | J18: =A5A!J33 -> 0 | K18: =A5A!K33 -> 0 | L18: =A5A!L33 -> 0
A19: ='Org structure'!A15 -> Vote 14 - | C19: =A5A!C34 -> 0 | D19: =A5A!D34 -> 0 | E19: =A5A!E34 -> 0 | F19: =A5A!F34 -> 0 | G19: =A5A!G34 -> 0 | H19: =A5A!H34 -> 0 | I19: =A5A!I34 -> 0 | J19: =A5A!J34 -> 0 | K19: =A5A!K34 -> 0 | L19: =A5A!L34 -> 0
A20: ='Org structure'!A16 -> Vote 15 - Other | C20: =A5A!C35 -> 0 | D20: =A5A!D35 -> 0 | E20: =A5A!E35 -> 0 | F20: =A5A!F35 -> 0 | G20: =A5A!G35 -> 0 | H20: =A5A!H35 -> 0 | I20: =A5A!I35 -> 0 | J20: =A5A!J35 -> 0 | K20: =A5A!K35 -> 0 | L20: =A5A!L35 -> 0
A21: Capital multi-year expenditure sub-total | B21: 7 | C21: =SUM(C6:C20) -> 269,118 | D21: =SUM(D6:D20) -> 309,604 | E21: 346,697 | F21: 291,443 | G21: 326,921 | H21: =SUM(H6:H20) -> 326,921 | I21: 186,983 | J21: 326,172 | K21: 380,414 | L21: 378,839
A23: Single-year expenditure to be appropriated | B23: 2
A24: =A5A!A40 -> Vote 01 - Summary Council | C24: =A5A!C40 -> 0 | D24: =A5A!D40 -> 0 | E24: =A5A!E40 -> 0 | F24: =A5A!F40 -> 0 | G24: =A5A!G40 -> 0 | H24: =A5A!H40 -> 0 | I24: =A5A!I40 -> 0 | J24: =A5A!J40 -> 0 | K24: =A5A!K40 -> 0 | L24: =A5A!L40 -> 0
A25: =A5A!A41 -> Vote 02 - Summary Municipal Manager | C25: =A5A!C41 -> 0 | D25: =A5A!D41 -> 0 | E25: =A5A!E41 -> 0 | F25: =A5A!F41 -> 0 | G25: =A5A!G41 -> 0 | H25: =A5A!H41 -> 0 | I25: =A5A!I41 -> 0 | J25: =A5A!J41 -> 0 | K25: =A5A!K41 -> 0 | L25: =A5A!L41 -> 0
A26: =A5A!A42 -> Vote 03 - Summary Budget And Treasury Office | C26: =A5A!C42 -> 0 | D26: =A5A!D42 -> 0 | E26: =A5A!E42 -> 0 | F26: =A5A!F42 -> 180 | G26: =A5A!G42 -> 180 | H26: =A5A!H42 -> 180 | I26: =A5A!I42 -> 0 | J26: =A5A!J42 -> 0 | K26: =A5A!K42 -> 0 | L26: =A5A!L42 -> 0
A27: =A5A!A44 -> Vote 04 - Summary Corporate Services | C27: =A5A!C44 -> 0 | D27: =A5A!D44 -> 0 | E27: =A5A!E44 -> 101 | F27: =A5A!F44 -> 5,136 | G27: =A5A!G44 -> 3,497 | H27: =A5A!H44 -> 3,497 | I27: =A5A!I44 -> 2,616 | J27: =A5A!J44 -> 2,137 | K27: =A5A!K44 -> 2,222 | L27: =A5A!L44 -> 3,636
A28: =A5A!A47 -> Vote 05 - Summary Social Services & Development Planing | C28: =A5A!C47 -> 0 | D28: =A5A!D47 -> 0 | E28: =A5A!E47 -> 0 | F28: =A5A!F47 -> 0 | G28: =A5A!G47 -> 0 | H28: =A5A!H47 -> 0 | I28: =A5A!I47 -> 0 | J28: =A5A!J47 -> 0 | K28: =A5A!K47 -> 0 | L28: =A5A!L47 -> 0
A29: =A5A!A48 -> Vote 06 - Summary Infrastructure Services | C29: =A5A!C48 -> 0 | D29: =A5A!D48 -> 0 | E29: =A5A!E48 -> 0 | F29: =A5A!F48 -> 2,000 | G29: =A5A!G48 -> 1,000 | H29: =A5A!H48 -> 1,000 | I29: =A5A!I48 -> 0 | J29: =A5A!J48 -> 1,040 | K29: =A5A!K48 -> 1,082 | L29: =A5A!L48 -> 1,116
A30: =A5A!A50 -> Vote 07 - Summary Water Services | C30: =A5A!C50 -> 0 | D30: =A5A!D50 -> 0 | E30: =A5A!E50 -> 2,278 | F30: =A5A!F50 -> 3,300 | G30: =A5A!G50 -> 0 | H30: =A5A!H50 -> 0 | I30: =A5A!I50 -> 0 | J30: =A5A!J50 -> 0 | K30: =A5A!K50 -> 0 | L30: =A5A!L50 -> 0
A31: ='Org structure'!A9 -> Vote 08 - | C31: =A5A!C52 -> 0 | D31: =A5A!D52 -> 0 | E31: =A5A!E52 -> 0 | F31: =A5A!F52 -> 0 | G31: =A5A!G52 -> 0 | H31: =A5A!H52 -> 0 | I31: =A5A!I52 -> 0 | J31: =A5A!J52 -> 0 | K31: =A5A!K52 -> 0 | L31: =A5A!L52 -> 0
A32: ='Org structure'!A10 -> Vote 09 - | C32: =A5A!C53 -> 0 | D32: =A5A!D53 -> 0 | E32: =A5A!E53 -> 0 | F32: =A5A!F53 -> 0 | G32: =A5A!G53 -> 0 | H32: =A5A!H53 -> 0 | I32: =A5A!I53 -> 0 | J32: =A5A!J53 -> 0 | K32: =A5A!K53 -> 0 | L32: =A5A!L53 -> 0
A33: ='Org structure'!A11 -> Vote 10 - | C33: =A5A!C54 -> 0 | D33: =A5A!D54 -> 0 | E33: =A5A!E54 -> 0 | F33: =A5A!F54 -> 0 | G33: =A5A!G54 -> 0 | H33: =A5A!H54 -> 0 | I33: =A5A!I54 -> 0 | J33: =A5A!J54 -> 0 | K33: =A5A!K54 -> 0 | L33: =A5A!L54 -> 0
A34: ='Org structure'!A12 -> Vote 11 - | C34: =A5A!C55 -> 0 | D34: =A5A!D55 -> 0 | E34: =A5A!E55 -> 0 | F34: =A5A!F55 -> 0 | G34: =A5A!G55 -> 0 | H34: =A5A!H55 -> 0 | I34: =A5A!I55 -> 0 | J34: =A5A!J55 -> 0 | K34: =A5A!K55 -> 0 | L34: =A5A!L55 -> 0
A35: ='Org structure'!A13 -> Vote 12 - | C35: =A5A!C56 -> 0 | D35: =A5A!D56 -> 0 | E35: =A5A!E56 -> 0 | F35: =A5A!F56 -> 0 | G35: =A5A!G56 -> 0 | H35: =A5A!H56 -> 0 | I35: =A5A!I56 -> 0 | J35: =A5A!J56 -> 0 | K35: =A5A!K56 -> 0 | L35: =A5A!L56 -> 0
A36: ='Org structure'!A14 -> Vote 13 - | C36: =A5A!C57 -> 0 | D36: =A5A!D57 -> 0 | E36: =A5A!E57 -> 0 | F36: =A5A!F57 -> 0 | G36: =A5A!G57 -> 0 | H36: =A5A!H57 -> 0 | I36: =A5A!I57 -> 0 | J36: =A5A!J57 -> 0 | K36: =A5A!K57 -> 0 | L36: =A5A!L57 -> 0
A37: ='Org structure'!A15 -> Vote 14 - | C37: =A5A!C58 -> 0 | D37: =A5A!D58 -> 0 | E37: =A5A!E58 -> 0 | F37: =A5A!F58 -> 0 | G37: =A5A!G58 -> 0 | H37: =A5A!H58 -> 0 | I37: =A5A!I58 -> 0 | J37: =A5A!J58 -> 0 | K37: =A5A!K58 -> 0 | L37: =A5A!L58 -> 0
A38: ='Org structure'!A16 -> Vote 15 - Other | C38: =A5A!C59 -> 0 | D38: =A5A!D59 -> 0 | E38: =A5A!E59 -> 0 | F38: =A5A!F59 -> 0 | G38: =A5A!G59 -> 0 | H38: =A5A!H59 -> 0 | I38: =A5A!I59 -> 0 | J38: =A5A!J59 -> 0 | K38: =A5A!K59 -> 0 | L38: =A5A!L59 -> 0
A39: Capital single-year expenditure sub-total | C39: =SUM(C24:C38) -> 0 | D39: =SUM(D24:D38) -> 0 | E39: 2,378 | F39: 10,616 | G39: 4,677 | H39: 4,677 | I39: 2,616 | J39: 3,177 | K39: 3,304 | L39: 4,753
A40: Total Capital Expenditure - Vote | C40: =C39+C21 -> 269,118 | D40: =D39+D21 -> 309,604 | E40: 349,075 | F40: 302,060 | G40: 331,597 | H40: 331,597 | I40: 189,599 | J40: 329,349 | K40: 383,719 | L40: 383,592
A42: Capital Expenditure - Functional
A43: Governance and administration | C43: =SUM(C44:C46) -> 8,002 | D43: =SUM(D44:D46) -> 4,385 | E43: 12,001 | F43: 17,434 | G43: 19,057 | H43: 19,057 | I43: 5,968 | J43: 13,849 | K43: 14,379 | L43: 19,090
A44: Executive and council | C44: 0 | D44: 0 | E44: 0 | F44: 0 | G44: 0 | H44: 0 | I44: 0 | J44: 0 | K44: 0 | L44: 0
A45: Finance and administration | C45: 8,002 | D45: 4,385 | E45: 12,001 | F45: 16,071 | G45: 18,557 | H45: 18,557 | I45: 5,968 | J45: 13,849 | K45: 14,379 | L45: 19,090
A46: Internal audit | C46: 0 | D46: 0 | E46: 0 | F46: 1,364 | G46: 500 | H46: 500 | I46: 0 | J46: 0 | K46: 0 | L46: 0
A47: Community and public safety | C47: =SUM(C48:C52) -> 270 | D47: =SUM(D48:D52) -> 986 | E47: 0 | F47: 0 | G47: 0 | H47: 0 | I47: 0 | J47: 0 | K47: 0 | L47: 0
A48: Community and social services | C48: 270 | D48: 986 | E48: 0 | F48: 0 | G48: 0 | H48: 0 | I48: 0 | J48: 0 | K48: 0 | L48: 0
A49: Sport and recreation
A50: Public safety
A51: Housing
A52: Health
A53: Economic and environmental services | C53: =SUM(C54:C56) -> 41,851 | D53: =SUM(D54:D56) -> 60,631 | E53: 134,763 | F53: 95,891 | G53: 102,939 | H53: 102,939 | I53: 71,186 | J53: 132,573 | K53: 221,124 | L53: 237,258
A54: Planning and development | C54: 41,851 | D54: 60,631 | E54: 134,763 | F54: 95,891 | G54: 102,939 | H54: 102,939 | I54: 71,186 | J54: 132,573 | K54: 221,124 | L54: 237,258
A55: Road transport
A56: Environmental protection
A57: Trading services | C57: =SUM(C58:C61) -> 218,995 | D57: =SUM(D58:D61) -> 243,602 | E57: 202,311 | F57: 188,734 | G57: 209,601 | H57: 209,601 | I57: 112,445 | J57: 182,927 | K57: 148,216 | L57: 127,245
A58: Energy sources
A59: Water management | C59: 174,461 | D59: 178,637 | E59: 182,256 | F59: 188,473 | G59: 204,467 | H59: 204,467 | I59: 109,057 | J59: 182,927 | K59: 148,216 | L59: 127,245
A60: Waste water management | C60: 44,534 | D60: 64,965 | E60: 20,055 | F60: 261 | G60: 5,135 | H60: 5,135 | I60: 3,388 | J60: 0 | K60: 0 | L60: 0
A61: Waste management
A62: Other
A63: Total Capital Expenditure - Functional | B63: 3 | C63: =C43+C47+C53+C57+C62 -> 269,118 | D63: =D43+D47+D53+D57+D62 -> 309,604 | E63: 349,075 | F63: 302,060 | G63: 331,597 | H63: 331,597 | I63: 189,599 | J63: 329,349 | K63: 383,719 | L63: =L43+L47+L53+L57+L62 -> 383,592
A65: Funded by:
A66: National Government | C66: 247,421 | D66: 298,048 | E66: 255,079 | F66: 259,997 | G66: 255,361 | H66: 255,361 | I66: 165,850 | J66: 285,971 | K66: 338,631 | L66: 332,810
A67: Provincial Government | C67: 3,888 | D67: 0 | E67: 20,926 | F67: 0 | G67: 0 | H67: 0 | I67: 0 | J67: 0 | K67: 0 | L67: 0
A68: District Municipality | C68: 0 | D68: 0 | E68: 0 | F68: 150 | G68: 150 | H68: 150 | I68: 0 | J68: 155 | K68: 160 | L68: 166
A69: Transfers and subsidies - capital (monetary allocations) (Nat / Prov Departm Agencies, Households, Non-profit Institutions, Private Enterprises, Public Corporatons, Higher Educ Institutions)
A70: Transfers recognised - capital | B70: 4 | C70: =SUM(C66:C69) -> 251,309 | D70: 298,048 | E70: 276,005 | F70: 260,147 | G70: 255,511 | H70: 255,511 | I70: 165,850 | J70: 286,126 | K70: 338,791 | L70: 332,976
A72: Borrowing | B72: 6 | C72: 0 | D72: 0 | E72: 0 | F72: 0 | G72: 0 | H72: 0 | I72: 0 | J72: 0 | K72: 0 | L72: 0
A73: Internally generated funds | C73: 17,809 | D73: 11,555 | E73: 73,070 | F73: 41,912 | G73: 76,086 | H73: 76,086 | I73: 23,749 | J73: 43,223 | K73: 44,928 | L73: 50,616
A74: Total Capital Funding | B74: 7 | C74: =+C70+C72+C73 -> 269,118 | D74: =+D70+D72+D73 -> 309,604 | E74: 349,075 | F74: 302,060 | G74: 331,597 | H74: 331,597 | I74: 189,599 | J74: 329,349 | K74: 383,719 | L74: 383,592
A75: =head27a -> References
A76: 1. Municipalities may choose to appropriate for capital expenditure for three years or for one year (if one year appropriation projected expenditure required for yr2 and yr3).
A77: 2. Include capital component of PPP unitary payment. Note that capital transfers are only appropriated to municipalities for the budget year
A78: 3. Capital expenditure by functional classification must reconcile to the appropriations by vote
A79: 4. Must reconcile to supporting table SA20 and to Budgeted Financial Performance (revenue and expenditure)
A81: 6. Include finance leases and PPP capital funding component of unitary payment - total borrowing/repayments to reconcile to changes in Table SA17
A82: 7. Total Capital Funding must balance with Total Capital Expenditure
A83: 8. Include any capitalised interest (MFMA section 46) as part of relevant capital budget

Sheet A5A
A1: =muni&" - "&Approve5 -> DC43 Harry Gwala - Table A5 Consolidated Budgeted Capital Expenditure by vote, functional classification and funding
A2: =Vdesc -> Vote Description | B2: =head27 -> Ref | C2: =head1b -> 2022/23 | D2: =head1A -> 2023/24 | E2: =Head1 -> 2024/25 | F2: =Head2 -> Current Year 2025/26 | J2: =Head3 -> 2026/27 Medium Term Revenue & Expenditure Framework | N2: ="Multi-year appropriation for "&Head9& " in the "&Head2A&" Annual Budget" -> Multi-year appropriation for Budget Year 2026/27 in the 2025/26 Annual Budget | R2: ="Multi-year appropriation for "&RIGHT(Head10,7)& " in the "&Head2A&" Annual Budget" -> Multi-year appropriation for 2027/28 in the 2025/26 Annual Budget | V2: New multi-year appropriations (funds for new and existing projects)
A3: R thousand | B3: 1 | C3: =Head5 -> Audited Outcome | D3: =Head5 -> Audited Outcome | E3: =Head5 -> Audited Outcome | F3: =Head6 -> Original Budget | G3: =Head7 -> Adjusted Budget | H3: =Head8 -> Full Year Forecast | I3: =Head5b -> Pre-audit outcome | J3: =Head9 -> Budget Year 2026/27 | K3: =Head10 -> Budget Year +1 2027/28 | L3: =Head11 -> Budget Year +2 2028/29 | N3: ="Appropriation for "&RIGHT(Head9,7) -> Appropriation for 2026/27 | O3: ="Adjustments in "&Head2A -> Adjustments in 2025/26 | P3: ="Downward adjustments for "&RIGHT(Head9,7) -> Downward adjustments for 2026/27 | Q3: Appropriation carried forward | R3: ="Appropriation for "&RIGHT(Head9,7) -> Appropriation for 2026/27 | S3: ="Adjustments in "&Head2A -> Adjustments in 2025/26 | T3: ="Downward adjustments for "&RIGHT(Head9,7) -> Downward adjustments for 2026/27 | U3: Appropriation carried forward | V3: =Head9 -> Budget Year 2026/27 | W3: =Head10 -> Budget Year +1 2027/28 | X3: =Head11 -> Budget Year +2 2028/29
A4: Capital expenditure - Municipal Vote
A5: Multi-year expenditure appropriation | B5: 2
A6: ='Org structure'!A2 -> Vote 01 - Summary Council | C6: 0 | D6: 0 | E6: 0 | F6: 0 | G6: 0 | H6: 0 | I6: 0 | J6: 0 | K6: 0 | L6: 0 | N6: 0 | O6: 0 | P6: 0 | Q6: 0 | R6: 0 | S6: 0 | T6: 0 | U6: 0 | V6: 0 | W6: 0
A7: ='Org structure'!A3 -> Vote 02 - Summary Municipal Manager | C7: =SUM(C8:C8) -> 0 | D7: 0 | E7: 0 | F7: 1,364 | G7: 500 | H7: 500 | I7: 0 | J7: 0 | K7: 0 | L7: 0 | N7: =SUM(N8:N8) -> 0 | O7: 0 | P7: 0 | Q7: 0 | R7: 0 | S7: 0 | T7: 0 | U7: 0 | V7: 0 | W7: 0 | X7: 0
A8: ='Org structure'!E10 -> 02.2 - Internal Audit Unit | C8: 0 | D8: 0 | E8: 0 | F8: 1,364 | G8: 500 | H8: 500 | I8: 0 | J8: =Q8+V8 -> 0 | K8: =U8+W8 -> 0 | L8: =X8 -> 0 | N8: 0 | O8: 0 | P8: 0 | Q8: =SUM(N8:P8) -> 0 | R8: 0 | S8: 0 | T8: 0 | U8: =SUM(R8:T8) -> 0 | V8: 0 | W8: 0 | X8: 0
A9: ='Org structure'!A4 -> Vote 03 - Summary Budget And Treasury Office | C9: =SUM(C10:C10) -> 275 | D9: 0 | E9: 0 | F9: 2,279 | G9: 2,100 | H9: 2,100 | I9: 144 | J9: 150 | K9: 156 | L9: 1,852 | N9: =SUM(N10:N10) -> 150 | O9: 0 | P9: 0 | Q9: 150 | R9: 156 | S9: 0 | T9: 0 | U9: 156 | V9: 0 | W9: 0 | X9: 1,852
A10: ='Org structure'!E14 -> 03.1 - Budget & Treasury Administration | C10: 275 | D10: 0 | E10: 0 | F10: 2,279 | G10: 2,100 | H10: 2,100 | I10: 144 | J10: =Q10+V10 -> 150 | K10: =U10+W10 -> 156 | L10: =X10 -> 1,852 | N10: 150 | O10: 0 | P10: 0 | Q10: =SUM(N10:P10) -> 150 | R10: 156 | S10: 0 | T10: 0 | U10: =SUM(R10:T10) -> 156 | V10: 0 | W10: 0 | X10: 1,852
A11: ='Org structure'!A5 -> Vote 04 - Summary Corporate Services | C11: =SUM(C12:C14) -> 7,727 | D11: 4,385 | E11: 11,900 | F11: 3,374 | G11: 7,909 | H11: 7,909 | I11: 3,207 | J11: 8,064 | K11: 8,387 | L11: 8,225 | N11: =SUM(N12:N14) -> 8,064 | O11: 0 | P11: 0 | Q11: 8,064 | R11: 8,387 | S11: 0 | T11: 0 | U11: 8,387 | V11: 0 | W11: 0 | X11: 8,225
A12: ='Org structure'!E18 -> 04.1 - Corporate Services Administration | C12: 6,978 | D12: 3,309 | E12: 11,351 | F12: 1,346 | G12: 5,598 | H12: 5,598 | I12: 2,702 | J12: =Q12+V12 -> 3,216 | K12: =U12+W12 -> 3,345 | L12: =X12 -> 5,822 | N12: 3,216 | O12: 0 | P12: 0 | Q12: =SUM(N12:P12) -> 3,216 | R12: 3,345 | S12: 0 | T12: 0 | U12: =SUM(R12:T12) -> 3,345 | V12: 0 | W12: 0 | X12: 5,822
A13: ='Org structure'!E19 -> 04.2 - Human Resources & Labour Relations | C13: 0 | D13: 0 | E13: 0 | F13: 364 | G13: 300 | H13: 300 | I13: 0 | J13: =Q13+V13 -> 311 | K13: =U13+W13 -> 324 | L13: =X13 -> 312 | N13: 311 | O13: 0 | P13: 0 | Q13: =SUM(N13:P13) -> 311 | R13: 324 | S13: 0 | T13: 0 | U13: =SUM(R13:T13) -> 324 | V13: 0 | W13: 0 | X13: 312
A14: ='Org structure'!E20 -> 04.3 - Administration & Ict | C14: 749 | D14: 1,075 | E14: 549 | F14: 1,664 | G14: 2,010 | H14: 2,010 | I14: 505 | J14: =Q14+V14 -> 4,537 | K14: =U14+W14 -> 4,718 | L14: =X14 -> 2,091 | N14: 4,537 | O14: 0 | P14: 0 | Q14: =SUM(N14:P14) -> 4,537 | R14: 4,718 | S14: 0 | T14: 0 | U14: =SUM(R14:T14) -> 4,718 | V14: 0 | W14: 0 | X14: 2,091
A15: ='Org structure'!A6 -> Vote 05 - Summary Social Services & Development Planing | C15: =SUM(C16:C19) -> 408 | D15: 986 | E15: 0 | F15: 7,101 | G15: 6,472 | H15: 6,472 | I15: 722 | J15: 3,652 | K15: 3,773 | L15: 5,542 | N15: =SUM(N16:N19) -> 3,652 | O15: 0 | P15: 0 | Q15: 3,652 | R15: 3,773 | S15: 0 | T15: 0 | U15: 3,773 | V15: 0 | W15: 0 | X15: 5,542
A16: ='Org structure'!E24 -> 05.1 - Social Econ & Develop Planning Admin. | C16: 138 | D16: 0 | E16: 0 | F16: 1,850 | G16: 1,450 | H16: 1,450 | I16: 722 | J16: =Q16+V16 -> 0 | K16: =U16+W16 -> 0 | L16: =X16 -> 0 | N16: 0 | O16: 0 | P16: 0 | Q16: =SUM(N16:P16) -> 0 | R16: 0 | S16: 0 | T16: 0 | U16: =SUM(R16:T16) -> 0 | V16: 0 | W16: 0 | X16: 0
A17: ='Org structure'!E26 -> 05.3 - Social Services | C17: 270 | D17: 986 | E17: 0 | F17: 0 | G17: 0 | H17: 0 | I17: 0 | J17: =Q17+V17 -> 0 | K17: =U17+W17 -> 0 | L17: =X17 -> 0 | N17: 0 | O17: 0 | P17: 0 | Q17: =SUM(N17:P17) -> 0 | R17: 0 | S17: 0 | T17: 0 | U17: =SUM(R17:T17) -> 0 | V17: 0 | W17: 0 | X17: 0
A18: ='Org structure'!E31 -> 05.8 - Chief Financial Officer | C18: 0 | D18: 0 | E18: 0 | F18: 5,101 | G18: 4,872 | H18: 4,872 | I18: 0 | J18: =Q18+V18 -> 3,497 | K18: =U18+W18 -> 3,613 | L18: =X18 -> 5,376 | N18: 3,497 | O18: 0 | P18: 0 | Q18: =SUM(N18:P18) -> 3,497 | R18: 3,613 | S18: 0 | T18: 0 | U18: =SUM(R18:T18) -> 3,613 | V18: 0 | W18: 0 | X18: 5,376
A19: ='Org structure'!E34 -> 05.11 - Local Economic Development (Rep Fx) | C19: 0 | D19: 0 | E19: 0 | F19: 150 | G19: 150 | H19: 150 | I19: 0 | J19: =Q19+V19 -> 155 | K19: =U19+W19 -> 160 | L19: =X19 -> 166 | N19: 155 | O19: 0 | P19: 0 | Q19: =SUM(N19:P19) -> 155 | R19: 160 | S19: 0 | T19: 0 | U19: =SUM(R19:T19) -> 160 | V19: 0 | W19: 0 | X19: 166
A20: ='Org structure'!A7 -> Vote 06 - Summary Infrastructure Services | C20: =SUM(C21:C23) -> 47,306 | D20: 78,007 | E20: 136,524 | F20: 99,656 | G20: 101,111 | H20: 101,111 | I20: 70,464 | J20: 140,433 | K20: 237,748 | L20: 257,065 | N20: =SUM(N21:N23) -> 140,433 | O20: 0 | P20: 0 | Q20: 140,433 | R20: 237,748 | S20: 0 | T20: 0 | U20: 237,748 | V20: 0 | W20: 0 | X20: 257,065
A21: ='Org structure'!E36 -> 06.1 - Infrastructure Services Administration | C21: 41,712 | D21: 60,631 | E21: 131,837 | F21: 85,640 | G21: 96,275 | H21: 96,275 | I21: 69,708 | J21: =Q21+V21 -> 128,758 | K21: =U21+W21 -> 217,283 | L21: =X21 -> 233,292 | N21: 128,758 | O21: 0 | P21: 0 | Q21: =SUM(N21:P21) -> 128,758 | R21: 217,283 | S21: 0 | T21: 0 | U21: =SUM(R21:T21) -> 217,283 | V21: 0 | W21: 0 | X21: 233,292
A22: ='Org structure'!E38 -> 06.3 - Project & Infra Grant Management | C22: 0 | D22: 0 | E22: 2,926 | F22: 6,251 | G22: 4,064 | H22: 4,064 | I22: 756 | J22: =Q22+V22 -> 2,620 | K22: =U22+W22 -> 2,600 | L22: =X22 -> 2,683 | N22: 2,620 | O22: 0 | P22: 0 | Q22: =SUM(N22:P22) -> 2,620 | R22: 2,600 | S22: 0 | T22: 0 | U22: =SUM(R22:T22) -> 2,600 | V22: 0 | W22: 0 | X22: 2,683
A23: ='Org structure'!E41 -> 06.6 - Reporting Function | C23: 5,594 | D23: 17,376 | E23: 1,760 | F23: 7,764 | G23: 772 | H23: 772 | I23: 0 | J23: =Q23+V23 -> 9,055 | K23: =U23+W23 -> 17,865 | L23: =X23 -> 21,090 | N23: 9,055 | O23: 0 | P23: 0 | Q23: =SUM(N23:P23) -> 9,055 | R23: 17,865 | S23: 0 | T23: 0 | U23: =SUM(R23:T23) -> 17,865 | V23: 0 | W23: 0 | X23: 21,090
A24: ='Org structure'!A8 -> Vote 07 - Summary Water Services | C24: =SUM(C25:C27) -> 213,402 | D24: 226,226 | E24: 198,273 | F24: 177,670 | G24: 208,829 | H24: 208,829 | I24: 112,445 | J24: 173,872 | K24: 130,351 | L24: 106,155 | N24: =SUM(N25:N27) -> 173,872 | O24: 0 | P24: 0 | Q24: 173,872 | R24: 130,351 | S24: 0 | T24: 0 | U24: 130,351 | V24: 0 | W24: 0 | X24: 106,155
A25: ='Org structure'!E43 -> 07.1 - Water Services Administration | C25: 168,601 | D25: 161,261 | E25: 178,218 | F25: 177,409 | G25: 203,694 | H25: 203,694 | I25: 109,057 | J25: =Q25+V25 -> 173,872 | K25: =U25+W25 -> 130,351 | L25: =X25 -> 106,155 | N25: 173,872 | O25: 0 | P25: 0 | Q25: =SUM(N25:P25) -> 173,872 | R25: 130,351 | S25: 0 | T25: 0 | U25: =SUM(R25:T25) -> 130,351 | V25: 0 | W25: 0 | X25: 106,155
A26: ='Org structure'!E44 -> 07.2 - Water Infrastructure Planning & Design | C26: 267 | D26: 0 | E26: 0 | F26: 0 | G26: 0 | H26: 0 | I26: 0 | J26: =Q26+V26 -> 0 | K26: =U26+W26 -> 0 | L26: =X26 -> 0 | N26: 0 | O26: 0 | P26: 0 | Q26: =SUM(N26:P26) -> 0 | R26: 0 | S26: 0 | T26: 0 | U26: =SUM(R26:T26) -> 0 | V26: 0 | W26: 0 | X26: 0
A27: ='Org structure'!E46 -> 07.4 - Sanitation Operations & Maintenance | C27: 44,534 | D27: 64,965 | E27: 20,055 | F27: 261 | G27: 5,135 | H27: 5,135 | I27: 3,388 | J27: =Q27+V27 -> 0 | K27: =U27+W27 -> 0 | L27: =X27 -> 0 | N27: 0 | O27: 0 | P27: 0 | Q27: =SUM(N27:P27) -> 0 | R27: 0 | S27: 0 | T27: 0 | U27: =SUM(R27:T27) -> 0 | V27: 0 | W27: 0 | X27: 0
A28: ='Org structure'!A9 -> Vote 08 - | C28: 0 | D28: 0 | E28: 0 | F28: 0 | G28: 0 | H28: 0 | I28: 0 | J28: 0 | K28: 0 | L28: 0 | N28: 0 | O28: 0 | P28: 0 | Q28: 0 | R28: 0 | S28: 0 | T28: 0 | U28: 0 | V28: 0 | W28: 0 | X28: 0
A29: ='Org structure'!A10 -> Vote 09 - | C29: 0 | D29: 0 | E29: 0 | F29: 0 | G29: 0 | H29: 0 | I29: 0 | J29: 0 | K29: 0 | L29: 0 | N29: 0 | O29: 0 | P29: 0 | Q29: 0 | R29: 0 | S29: 0 | T29: 0 | U29: 0 | V29: 0 | W29: 0 | X29: 0
A30: ='Org structure'!A11 -> Vote 10 - | C30: 0 | D30: 0 | E30: 0 | F30: 0 | G30: 0 | H30: 0 | I30: 0 | J30: 0 | K30: 0 | L30: 0 | N30: 0 | O30: 0 | P30: 0 | Q30: 0 | R30: 0 | S30: 0 | T30: 0 | U30: 0 | V30: 0 | W30: 0 | X30: 0
A31: ='Org structure'!A12 -> Vote 11 - | C31: 0 | D31: 0 | E31: 0 | F31: 0 | G31: 0 | H31: 0 | I31: 0 | J31: 0 | K31: 0 | L31: 0 | N31: 0 | O31: 0 | P31: 0 | Q31: 0 | R31: 0 | S31: 0 | T31: 0 | U31: 0 | V31: 0 | W31: 0 | X31: 0
A32: ='Org structure'!A13 -> Vote 12 - | C32: 0 | D32: 0 | E32: 0 | F32: 0 | G32: 0 | H32: 0 | I32: 0 | J32: 0 | K32: 0 | L32: 0 | N32: 0 | O32: 0 | P32: 0 | Q32: 0 | R32: 0 | S32: 0 | T32: 0 | U32: 0 | V32: 0 | W32: 0 | X32: 0
A33: ='Org structure'!A14 -> Vote 13 - | C33: 0 | D33: 0 | E33: 0 | F33: 0 | G33: 0 | H33: 0 | I33: 0 | J33: 0 | K33: 0 | L33: 0 | N33: 0 | O33: 0 | P33: 0 | Q33: 0 | R33: 0 | S33: 0 | T33: 0 | U33: 0 | V33: 0 | W33: 0 | X33: 0
A34: ='Org structure'!A15 -> Vote 14 - | C34: 0 | D34: 0 | E34: 0 | F34: 0 | G34: 0 | H34: 0 | I34: 0 | J34: 0 | K34: 0 | L34: 0 | N34: 0 | O34: 0 | P34: 0 | Q34: 0 | R34: 0 | S34: 0 | T34: 0 | U34: 0 | V34: 0 | W34: 0 | X34: 0
A35: ='Org structure'!A16 -> Vote 15 - Other | C35: 0 | D35: 0 | E35: 0 | F35: 0 | G35: 0 | H35: 0 | I35: 0 | J35: 0 | K35: 0 | L35: 0 | N35: 0 | O35: 0 | P35: 0 | Q35: 0 | R35: 0 | S35: 0 | T35: 0 | U35: 0 | V35: 0 | W35: 0 | X35: 0
A36: Capital multi-year expenditure sub-total | C36: =C6+C7+C9+C11+C15+C20+C24+C28+C29+C30+C31+C32+C33+C34+C35 -> 269,118 | D36: 309,604 | E36: 346,697 | F36: 291,443 | G36: 326,921 | H36: 326,921 | I36: 186,983 | J36: 326,172 | K36: 380,414 | L36: 378,839 | N36: =N6+N7+N9+N11+N15+N20+N24+N28+N29+N30+N31+N32+N33+N34+N35 -> 326,172 | O36: 0 | P36: 0 | Q36: 326,172 | R36: 380,414 | S36: 0 | T36: 0 | U36: 380,414 | V36: 0 | W36: 0
A38: Capital expenditure - Municipal Vote
A39: Single-year expenditure appropriation | B39: 2
A40: ='Org structure'!A2 -> Vote 01 - Summary Council | C40: 0 | D40: 0 | E40: 0 | F40: 0 | G40: 0 | H40: 0 | I40: 0 | J40: 0 | K40: 0 | L40: 0
A41: ='Org structure'!A3 -> Vote 02 - Summary Municipal Manager | C41: 0 | D41: 0 | E41: 0 | F41: 0 | G41: 0 | H41: 0 | I41: 0 | J41: 0 | K41: 0 | L41: 0
A42: ='Org structure'!A4 -> Vote 03 - Summary Budget And Treasury Office | C42: =SUM(C43:C43) -> 0 | D42: 0 | E42: 0 | F42: 180 | G42: 180 | H42: 180 | I42: 0 | J42: 0 | K42: 0 | L42: 0
A43: ='Org structure'!E14 -> 03.1 - Budget & Treasury Administration | C43: 0 | D43: 0 | E43: 0 | F43: 180 | G43: 180 | H43: 180 | I43: 0 | J43: 0 | K43: 0 | L43: 0
A44: ='Org structure'!A5 -> Vote 04 - Summary Corporate Services | C44: =SUM(C45:C46) -> 0 | D44: 0 | E44: 101 | F44: 5,136 | G44: 3,497 | H44: 3,497 | I44: 2,616 | J44: 2,137 | K44: 2,222 | L44: 3,636
A45: ='Org structure'!E18 -> 04.1 - Corporate Services Administration | C45: 0 | D45: 0 | E45: 0 | F45: 4,636 | G45: 1,000 | H45: 1,000 | I45: 119 | J45: 1,037 | K45: 1,078 | L45: 1,040
A46: ='Org structure'!E20 -> 04.3 - Administration & Ict | C46: 0 | D46: 0 | E46: 101 | F46: 500 | G46: 2,497 | H46: 2,497 | I46: 2,497 | J46: 1,100 | K46: 1,144 | L46: 2,596
A47: ='Org structure'!A6 -> Vote 05 - Summary Social Services & Development Planing | C47: 0 | D47: 0 | E47: 0 | F47: 0 | G47: 0 | H47: 0 | I47: 0 | J47: 0 | K47: 0 | L47: 0
A48: ='Org structure'!A7 -> Vote 06 - Summary Infrastructure Services | C48: =SUM(C49:C49) -> 0 | D48: 0 | E48: 0 | F48: 2,000 | G48: 1,000 | H48: 1,000 | I48: 0 | J48: 1,040 | K48: 1,082 | L48: 1,116
A49: ='Org structure'!E36 -> 06.1 - Infrastructure Services Administration | C49: 0 | D49: 0 | E49: 0 | F49: 2,000 | G49: 1,000 | H49: 1,000 | I49: 0 | J49: 1,040 | K49: 1,082 | L49: 1,116
A50: ='Org structure'!A8 -> Vote 07 - Summary Water Services | C50: =SUM(C51:C51) -> 0 | D50: 0 | E50: 2,278 | F50: 3,300 | G50: 0 | H50: 0 | I50: 0 | J50: 0 | K50: 0 | L50: 0
A51: ='Org structure'!E43 -> 07.1 - Water Services Administration | C51: 0 | D51: 0 | E51: 2,278 | F51: 3,300 | G51: 0 | H51: 0 | I51: 0 | J51: 0 | K51: 0 | L51: 0
A52: ='Org structure'!A9 -> Vote 08 - | C52: 0 | D52: 0 | E52: 0 | F52: 0 | G52: 0 | H52: 0 | I52: 0 | J52: 0 | K52: 0 | L52: 0
A53: ='Org structure'!A10 -> Vote 09 - | C53: 0 | D53: 0 | E53: 0 | F53: 0 | G53: 0 | H53: 0 | I53: 0 | J53: 0 | K53: 0 | L53: 0
A54: ='Org structure'!A11 -> Vote 10 - | C54: 0 | D54: 0 | E54: 0 | F54: 0 | G54: 0 | H54: 0 | I54: 0 | J54: 0 | K54: 0 | L54: 0
A55: ='Org structure'!A12 -> Vote 11 - | C55: 0 | D55: 0 | E55: 0 | F55: 0 | G55: 0 | H55: 0 | I55: 0 | J55: 0 | K55: 0 | L55: 0
A56: ='Org structure'!A13 -> Vote 12 - | C56: 0 | D56: 0 | E56: 0 | F56: 0 | G56: 0 | H56: 0 | I56: 0 | J56: 0 | K56: 0 | L56: 0
A57: ='Org structure'!A14 -> Vote 13 - | C57: 0 | D57: 0 | E57: 0 | F57: 0 | G57: 0 | H57: 0 | I57: 0 | J57: 0 | K57: 0 | L57: 0
A58: ='Org structure'!A15 -> Vote 14 - | C58: 0 | D58: 0 | E58: 0 | F58: 0 | G58: 0 | H58: 0 | I58: 0 | J58: 0 | K58: 0 | L58: 0
A59: ='Org structure'!A16 -> Vote 15 - Other | C59: 0 | D59: 0 | E59: 0 | F59: 0 | G59: 0 | H59: 0 | I59: 0 | J59: 0 | K59: 0 | L59: 0
A60: Capital single-year expenditure sub-total | C60: =C40+C41+C42+C44+C47+C48+C50+C52+C53+C54+C55+C56+C57+C58+C59 -> 0 | D60: 0 | E60: 2,378 | F60: 10,616 | G60: 4,677 | H60: 4,677 | I60: 2,616 | J60: 3,177 | K60: 3,304 | L60: 4,753
A61: Total Capital Expenditure | C61: =C36+C60 -> 269,118 | D61: 309,604 | E61: 349,075 | F61: 302,060 | G61: 331,597 | H61: 331,597 | I61: 189,599 | J61: 329,349 | K61: 383,719 | L61: 383,592

Sheet A6-FinPos
A1: =muni&" - "&Approve6 -> DC43 Harry Gwala - Table A6 Consolidated Budgeted Financial Position
A2: =desc -> Description | B2: =head27 -> Ref | C2: =head1b -> 2022/23 | D2: =head1A -> 2023/24 | E2: =Head1 -> 2024/25 | F2: =Head2 -> Current Year 2025/26 | J2: =Head3 -> 2026/27 Medium Term Revenue & Expenditure Framework
A3: R thousand | C3: =Head5 -> Audited Outcome | D3: =Head5 -> Audited Outcome | E3: =Head5 -> Audited Outcome | F3: =Head6 -> Original Budget | G3: =Head7 -> Adjusted Budget | H3: =Head8 -> Full Year Forecast | I3: =Head5b -> Pre-audit outcome | J3: =Head9 -> Budget Year 2026/27 | K3: =Head10 -> Budget Year +1 2027/28 | L3: =Head11 -> Budget Year +2 2028/29
A4: ASSETS
A5: Current assets
A6: Cash and cash equivalents | B6: 1 | C6: ='SA3'!C11 -> 124,641 | D6: ='SA3'!D11 -> 209,430 | E6: ='SA3'!E11 -> 261,670 | F6: ='SA3'!F11 -> 173,668 | G6: ='SA3'!G11 -> 213,121 | H6: ='SA3'!H11 -> 213,121 | I6: ='SA3'!I11 -> 46,527 | J6: ='SA3'!J11 -> 220,880 | K6: ='SA3'!K11 -> 246,764 | L6: ='SA3'!L11 -> 259,028
A7: Short term Investments | B7: 2 | C7: ='SA3'!C13 -> 0 | D7: ='SA3'!D13 -> 0 | E7: ='SA3'!E13 -> 0 | F7: ='SA3'!F13 -> 0 | G7: ='SA3'!G13 -> 0 | H7: ='SA3'!H13 -> 0 | I7: ='SA3'!I13 -> 0 | J7: ='SA3'!J13 -> 0 | K7: ='SA3'!K13 -> 0 | L7: ='SA3'!L13 -> 0
A8: Trade and other receivables from exchange transactions | B8: 3 | C8: ='SA3'!C29 -> 32,136 | D8: ='SA3'!D29 -> 12,036 | E8: ='SA3'!E29 -> 12,773 | F8: ='SA3'!F29 -> 23,719 | G8: ='SA3'!G29 -> 2,638 | H8: ='SA3'!H29 -> 2,638 | I8: ='SA3'!I29 -> (3,707) | J8: ='SA3'!J29 -> 11,315 | K8: ='SA3'!K29 -> 16,354 | L8: ='SA3'!L29 -> 15,835
A9: Receivables from non-exchange transactions | B9: 3 | C9: ='SA3'!C50 -> 2,318 | D9: ='SA3'!D50 -> 2,312 | E9: ='SA3'!E50 -> 1,570 | F9: ='SA3'!F50 -> 2,312 | G9: ='SA3'!G50 -> 1,570 | H9: ='SA3'!H50 -> 1,570 | I9: ='SA3'!I50 -> (11) | J9: ='SA3'!J50 -> 1,570 | K9: ='SA3'!K50 -> 1,570 | L9: ='SA3'!L50 -> 1,570
A10: Current portion of non-current receivables | B10: 4 | C10: ='SA3'!C68 -> 0 | D10: ='SA3'!D68 -> 0 | E10: ='SA3'!E68 -> 0 | F10: ='SA3'!F68 -> 0 | G10: ='SA3'!G68 -> 0 | H10: ='SA3'!H68 -> 0 | I10: ='SA3'!I68 -> 0 | J10: ='SA3'!J68 -> 0 | K10: ='SA3'!K68 -> 0 | L10: ='SA3'!L68 -> 0
A11: Inventory | B11: 5 | C11: ='SA3'!C78 -> 716 | D11: ='SA3'!D78 -> 858 | E11: ='SA3'!E78 -> 963 | F11: ='SA3'!F78 -> 858 | G11: ='SA3'!G78 -> 963 | H11: ='SA3'!H78 -> 963 | I11: ='SA3'!I78 -> 26 | J11: ='SA3'!J78 -> 963 | K11: ='SA3'!K78 -> 963 | L11: ='SA3'!L78 -> 963
A12: VAT Receivable | B12: 6 | C12: ='SA3'!C83 -> 34,596 | D12: ='SA3'!D83 -> 19,164 | E12: ='SA3'!E83 -> 32,125 | F12: ='SA3'!F83 -> 19,165 | G12: ='SA3'!G83 -> 32,125 | H12: ='SA3'!H83 -> 32,125 | I12: ='SA3'!I83 -> (10,086) | J12: ='SA3'!J83 -> 32,125 | K12: ='SA3'!K83 -> 32,125 | L12: ='SA3'!L83 -> 32,125
A13: Other current assets | B13: 7 | C13: ='SA3'!C92 -> (5) | D13: ='SA3'!D92 -> (229) | E13: ='SA3'!E92 -> (307) | F13: ='SA3'!F92 -> (229) | G13: ='SA3'!G92 -> (307) | H13: ='SA3'!H92 -> (307) | I13: ='SA3'!I92 -> (224) | J13: ='SA3'!J92 -> (307) | K13: ='SA3'!K92 -> (307) | L13: ='SA3'!L92 -> (307)
A14: Total current assets | C14: =SUM(C6:C13) -> 194,402 | D14: =SUM(D6:D13) -> 243,572 | E14: 308,794 | F14: 219,492 | G14: =SUM(G6:G13) -> 250,110 | H14: 250,110 | I14: 32,524 | J14: 266,547 | K14: 297,469 | L14: 309,214
A15: Non current assets
A16: Investments | B16: 8 | C16: ='SA3'!C108 -> 0 | D16: ='SA3'!D108 -> 0 | E16: ='SA3'!E108 -> 0 | F16: ='SA3'!F108 -> 0 | G16: ='SA3'!G108 -> 0 | H16: ='SA3'!H108 -> 0 | I16: ='SA3'!I108 -> 0 | J16: ='SA3'!J108 -> 0 | K16: ='SA3'!K108 -> 0 | L16: ='SA3'!L108 -> 0
A17: Investment property | B17: 9 | C17: ='SA3'!C113 -> 0 | D17: ='SA3'!D113 -> 0 | E17: ='SA3'!E113 -> 0 | F17: ='SA3'!F113 -> 0 | G17: ='SA3'!G113 -> 0 | H17: ='SA3'!H113 -> 0 | I17: ='SA3'!I113 -> 0 | J17: ='SA3'!J113 -> 0 | K17: ='SA3'!K113 -> 0 | L17: ='SA3'!L113 -> 0
A18: Property, plant and equipment | B18: 10 | C18: ='SA3'!C119+'SA3'!C129 -> 2,890,401 | D18: ='SA3'!D119+'SA3'!D129 -> 2,961,686 | E18: ='SA3'!E119+'SA3'!E129 -> 3,184,700 | F18: ='SA3'!F119+'SA3'!F129 -> 3,443,615 | G18: ='SA3'!G119+'SA3'!G129 -> 3,443,285 | H18: ='SA3'!H119+'SA3'!H129 -> 3,443,285 | I18: ='SA3'!I119+'SA3'!I129 -> 99,106 | J18: ='SA3'!J119+'SA3'!J129 -> 3,703,352 | K18: ='SA3'!K119+'SA3'!K129 -> 4,004,929 | L18: ='SA3'!L119+'SA3'!L129 -> 4,306,470
A19: Biological assets | B19: 11 | C19: ='SA3'!C134 -> 0 | D19: ='SA3'!D134 -> 0 | E19: ='SA3'!E134 -> 0 | F19: ='SA3'!F134 -> 0 | G19: ='SA3'!G134 -> 0 | H19: ='SA3'!H134 -> 0 | I19: ='SA3'!I134 -> 0 | J19: ='SA3'!J134 -> 0 | K19: ='SA3'!K134 -> 0 | L19: ='SA3'!L134 -> 0
A20: Living resources | B20: 12 | C20: ='SA3'!C139 -> 0 | D20: ='SA3'!D139 -> 0 | E20: ='SA3'!E139 -> 0 | F20: ='SA3'!F139 -> 0 | G20: ='SA3'!G139 -> 0 | H20: ='SA3'!H139 -> 0 | I20: ='SA3'!I139 -> 0 | J20: ='SA3'!J139 -> 0 | K20: ='SA3'!K139 -> 0 | L20: ='SA3'!L139 -> 0
A21: Heritage assets | B21: 13 | C21: ='SA3'!C143 -> 0 | D21: ='SA3'!D143 -> 0 | E21: ='SA3'!E143 -> 0 | F21: ='SA3'!F143 -> 0 | G21: ='SA3'!G143 -> 0 | H21: ='SA3'!H143 -> 0 | I21: ='SA3'!I143 -> 0 | J21: ='SA3'!J143 -> 0 | K21: ='SA3'!K143 -> 0 | L21: ='SA3'!L143 -> 0
A22: Intangible assets | B22: 14 | C22: ='SA3'!C148 -> 515 | D22: ='SA3'!D148 -> 313 | E22: ='SA3'!E148 -> 296 | F22: ='SA3'!F148 -> 2,827 | G22: ='SA3'!G148 -> 1,250 | H22: ='SA3'!H148 -> 1,250 | I22: ='SA3'!I148 -> (82) | J22: ='SA3'!J148 -> 2,685 | K22: ='SA3'!K148 -> 2,780 | L22: ='SA3'!L148 -> 2,864
A23: Trade and other receivables from exchange transactions | B23: 15 | C23: ='SA3'!C156 -> 0 | D23: ='SA3'!D156 -> 0 | E23: ='SA3'!E156 -> 0 | F23: ='SA3'!F156 -> 0 | G23: ='SA3'!G156 -> 0 | H23: ='SA3'!H156 -> 0 | I23: ='SA3'!I156 -> 0 | J23: ='SA3'!J156 -> 0 | K23: ='SA3'!K156 -> 0 | L23: ='SA3'!L156 -> 0
A24: Non-current receivables from non-exchange transactions | B24: 15 | C24: ='SA3'!C175 -> 0 | D24: ='SA3'!D175 -> 0 | E24: ='SA3'!E175 -> 0 | F24: ='SA3'!F175 -> 0 | G24: ='SA3'!G175 -> 0 | H24: ='SA3'!H175 -> 0 | I24: ='SA3'!I175 -> 0 | J24: ='SA3'!J175 -> 0 | K24: ='SA3'!K175 -> 0 | L24: ='SA3'!L175 -> 0
A25: Other non-current assets | B25: 16 | C25: ='SA3'!C185 -> 0 | D25: ='SA3'!D185 -> 0 | E25: ='SA3'!E185 -> 0 | F25: ='SA3'!F185 -> 0 | G25: ='SA3'!G185 -> 0 | H25: ='SA3'!H185 -> 0 | I25: ='SA3'!I185 -> 0 | J25: ='SA3'!J185 -> 0 | K25: ='SA3'!K185 -> 0 | L25: ='SA3'!L185 -> 0
A26: Total non current assets | C26: =SUM(C16:C25) -> 2,890,917 | D26: =SUM(D16:D25) -> 2,961,999 | E26: 3,184,996 | F26: 3,446,443 | G26: 3,444,536 | H26: 3,444,536 | I26: 99,024 | J26: 3,706,037 | K26: 4,007,710 | L26: 4,309,334
A27: TOTAL ASSETS | C27: =C14+C26 -> 3,085,318 | D27: =D14+D26 -> 3,205,572 | E27: =E14+E26 -> 3,493,790 | F27: =F14+F26 -> 3,665,935 | G27: 3,694,646 | H27: 3,694,646 | I27: 131,547 | J27: 3,972,584 | K27: 4,305,178 | L27: 4,618,548
A28: LIABILITIES
A29: Current liabilities
A30: Bank overdraft | B30: 17 | C30: ='SA3'!C197 -> 0 | D30: ='SA3'!D197 -> 0 | E30: ='SA3'!E197 -> 0 | F30: ='SA3'!F197 -> 0 | G30: ='SA3'!G197 -> 0 | H30: ='SA3'!H197 -> 0 | I30: ='SA3'!I197 -> 0 | J30: ='SA3'!J197 -> 0 | K30: ='SA3'!K197 -> 0 | L30: ='SA3'!L197 -> 0
A31: Financial liabilities | B31: 18 | C31: ='SA3'!C205 -> 12,806 | D31: ='SA3'!D205 -> 12,806 | E31: ='SA3'!E205 -> 12,806 | F31: ='SA3'!F205 -> 8,006 | G31: ='SA3'!G205 -> 10,406 | H31: ='SA3'!H205 -> 10,406 | I31: ='SA3'!I205 -> (1,500) | J31: ='SA3'!J205 -> 8,006 | K31: ='SA3'!K205 -> 5,606 | L31: ='SA3'!L205 -> 3,206
A32: Consumer deposits | B32: 19 | C32: ='SA3'!C220 -> 2,415 | D32: ='SA3'!D220 -> 3,179 | E32: ='SA3'!E220 -> 3,441 | F32: ='SA3'!F220 -> 3,748 | G32: ='SA3'!G220 -> 4,010 | H32: ='SA3'!H220 -> 4,010 | I32: ='SA3'!I220 -> 74 | J32: ='SA3'!J220 -> 4,010 | K32: ='SA3'!K220 -> 4,010 | L32: ='SA3'!L220 -> 4,010
A33: Trade and other payables from exchange transactions | B33: 20 | C33: ='SA3'!C249 -> 91,868 | D33: ='SA3'!D249 -> 86,935 | E33: ='SA3'!E249 -> 148,140 | F33: ='SA3'!F249 -> 86,356 | G33: ='SA3'!G249 -> 153,257 | H33: ='SA3'!H249 -> 153,257 | I33: ='SA3'!I249 -> (81,928) | J33: ='SA3'!J249 -> 190,233 | K33: ='SA3'!K249 -> 192,233 | L33: ='SA3'!L249 -> 194,233
A34: Trade and other payables from non-exchange transactions | B34: 21 | C34: ='SA3'!C261 -> 21,177 | D34: ='SA3'!D261 -> 10,500 | E34: ='SA3'!E261 -> (0) | F34: ='SA3'!F261 -> 1,483 | G34: ='SA3'!G261 -> 1,483 | H34: ='SA3'!H261 -> 1,483 | I34: ='SA3'!I261 -> 60,035 | J34: ='SA3'!J261 -> 1,483 | K34: ='SA3'!K261 -> 1,483 | L34: ='SA3'!L261 -> 1,483
A35: Provision | B35: 22 | C35: ='SA3'!C273 -> 16,171 | D35: ='SA3'!D273 -> 16,385 | E35: ='SA3'!E273 -> 16,527 | F35: ='SA3'!F273 -> 16,385 | G35: ='SA3'!G273 -> 16,527 | H35: ='SA3'!H273 -> 16,527 | I35: ='SA3'!I273 -> 0 | J35: ='SA3'!J273 -> 16,527 | K35: ='SA3'!K273 -> 16,527 | L35: ='SA3'!L273 -> 16,527
A36: VAT Payable | B36: 23 | C36: ='SA3'!C277 -> 7,535 | D36: ='SA3'!D277 -> 5,282 | E36: ='SA3'!E277 -> 6,655 | F36: ='SA3'!F277 -> 5,282 | G36: ='SA3'!G277 -> 6,655 | H36: ='SA3'!H277 -> 6,655 | I36: ='SA3'!I277 -> (946) | J36: ='SA3'!J277 -> 6,655 | K36: ='SA3'!K277 -> 6,655 | L36: ='SA3'!L277 -> 6,655
A37: Other current liabilities | B37: 24 | C37: ='SA3'!C287 -> 0 | D37: ='SA3'!D287 -> 0 | E37: ='SA3'!E287 -> 0 | F37: ='SA3'!F287 -> 0 | G37: ='SA3'!G287 -> 0 | H37: ='SA3'!H287 -> 0 | I37: ='SA3'!I287 -> 0 | J37: ='SA3'!J287 -> 0 | K37: ='SA3'!K287 -> 0 | L37: ='SA3'!L287 -> 0
A38: Total current liabilities | C38: =SUM(C30:C37) -> 151,972 | D38: =SUM(D30:D37) -> 135,087 | E38: 187,569 | F38: 121,261 | G38: 192,338 | H38: 192,338 | I38: (24,265) | J38: 226,914 | K38: 226,514 | L38: 226,114
A39: Non current liabilities
A40: Financial liabilities | B40: 25 | C40: ='SA3'!C308 -> (0) | D40: ='SA3'!D308 -> (0) | E40: ='SA3'!E308 -> (0) | F40: ='SA3'!F308 -> 0 | G40: ='SA3'!G308 -> 0 | H40: ='SA3'!H308 -> 0 | I40: ='SA3'!I308 -> 0 | J40: ='SA3'!J308 -> 0 | K40: ='SA3'!K308 -> 0 | L40: ='SA3'!L308 -> 0
A41: Provision | B41: 26 | C41: ='SA3'!C320 -> 0 | D41: ='SA3'!D320 -> 0 | E41: ='SA3'!E320 -> 0 | F41: ='SA3'!F320 -> 0 | G41: ='SA3'!G320 -> 0 | H41: ='SA3'!H320 -> 0 | I41: ='SA3'!I320 -> 0 | J41: ='SA3'!J320 -> 0 | K41: ='SA3'!K320 -> 0 | L41: ='SA3'!L320 -> 0
A42: Long term portion of trade payables | B42: 27 | C42: ='SA3'!C326 -> 0 | D42: ='SA3'!D326 -> 0 | E42: ='SA3'!E326 -> 0 | F42: ='SA3'!F326 -> 0 | G42: ='SA3'!G326 -> 0 | H42: ='SA3'!H326 -> 0 | I42: ='SA3'!I326 -> 0 | J42: ='SA3'!J326 -> 0 | K42: ='SA3'!K326 -> 0 | L42: ='SA3'!L326 -> 0
A43: Other non-current liabilities | B43: 28 | C43: ='SA3'!C335 -> 0 | D43: ='SA3'!D335 -> 0 | E43: ='SA3'!E335 -> 0 | F43: ='SA3'!F335 -> 0 | G43: ='SA3'!G335 -> 0 | H43: ='SA3'!H335 -> 0 | I43: ='SA3'!I335 -> 0 | J43: ='SA3'!J335 -> 0 | K43: ='SA3'!K335 -> 0 | L43: ='SA3'!L335 -> 0
A44: Total non current liabilities | C44: =SUM(C40:C43) -> (0) | D44: =SUM(D40:D43) -> (0) | E44: (0) | F44: 0 | G44: 0 | H44: 0 | I44: 0 | J44: 0 | K44: 0 | L44: 0
A45: TOTAL LIABILITIES | C45: =C38+C44 -> 151,972 | D45: =D38+D44 -> 135,087 | E45: =E38+E44 -> 187,569 | F45: =F38+F44 -> 121,261 | G45: 192,338 | H45: 192,338 | I45: (24,265) | J45: 226,914 | K45: =K38+K44 -> 226,514 | L45: 226,114
A46: NET ASSETS | C46: =C27-C45 -> 2,933,346 | D46: 3,070,485 | E46: 3,306,222 | F46: 3,544,674 | G46: 3,502,308 | H46: 3,502,308 | I46: 155,812 | J46: 3,745,670 | K46: 4,078,664 | L46: 4,392,434
A47: COMMUNITY WEALTH/EQUITY
A48: Accumulated surplus/(deficit) | B48: 29 | C48: ='SA3'!C347 -> 2,941,983 | D48: ='SA3'!D347 -> 3,262,762 | E48: ='SA3'!E347 -> 3,305,231 | F48: ='SA3'!F347 -> 3,514,683 | G48: ='SA3'!G347 -> 3,539,376 | H48: ='SA3'!H347 -> 3,539,376 | I48: ='SA3'!I347 -> 184,727 | J48: ='SA3'!J347 -> 3,746,346 | K48: ='SA3'!K347 -> 4,091,527 | L48: ='SA3'!L347 -> 4,405,713
A49: Reserves and funds | B49: 30 | C49: ='SA3'!C359 -> 0 | D49: ='SA3'!D359 -> 0 | E49: ='SA3'!E359 -> 0 | F49: ='SA3'!F359 -> 0 | G49: ='SA3'!G359 -> 0 | H49: ='SA3'!H359 -> 0 | I49: ='SA3'!I359 -> 0 | J49: ='SA3'!J359 -> 0 | K49: ='SA3'!K359 -> 0 | L49: ='SA3'!L359 -> 0
A50: Other | B50: 31 | C50: ='SA3'!C372 -> 0 | D50: ='SA3'!D372 -> 0 | E50: ='SA3'!E372 -> 0 | F50: ='SA3'!F372 -> 0 | G50: ='SA3'!G372 -> 0 | H50: ='SA3'!H372 -> 0 | I50: ='SA3'!I372 -> 0 | J50: ='SA3'!J372 -> 0 | K50: ='SA3'!K372 -> 0 | L50: ='SA3'!L372 -> 0
A51: TOTAL COMMUNITY WEALTH/EQUITY | B51: 32 | C51: =SUM(C48:C50) -> 2,941,983 | D51: =SUM(D48:D50) -> 3,262,762 | E51: 3,305,231 | F51: 3,514,683 | G51: 3,539,376 | H51: 3,539,376 | I51: 184,727 | J51: 3,746,346 | K51: 4,091,527 | L51: 4,405,713
A52: =head27a -> References
A53: 1. Detail breakdown in Table SA3.
A54: 2. Detail breakdown in Table SA3.
A55: 3. Detail breakdown in Table SA3 for Trade receivables from Exchange and Non-exchange transactions
A56: 4. Detail breakdown in Table SA3.
A57: 5. Include 'Construction-work-in-progress' (disclosed separately in annual financial statements) detail in SA3
A58: 6. Detail breakdown in Table SA3.
A59: 7. Detail breakdown in Table SA3.
A60: 8 Detail breakdown in Table SA3.
A61: 9. Detail breakdown in Table SA3.
A62: 10. Include 'Construction-work-in-progress' (disclosed separately in annual financial statements) detail in SA3
A63: 11. Detail breakdown in Table SA3.
A64: 12. Detail breakdown in Table SA3.
A65: 13. Detail breakdown in Table SA3.
A66: 14. Detail breakdown in Table SA3.
A67: 15. Detail breakdown in Table SA3 for Non- Current Trade receivables from Exchange and Non-exchange transactions
A68: 16. Detail breakdown in Table SA3.
A69: 17. Detail breakdown in Table SA3.
A70: 18. Detail breakdown in Table SA3.
A71: 19. Detail breakdown in Table SA3.
A72: 20. Detail breakdown in Table SA3.
A73: 21. Detail breakdown in Table SA3.
A74: 22. Detail breakdown in Table SA3.
A75: 23. Detail breakdown in Table SA3.
A76: 24. Detail breakdown in Table SA3.
A77: 25. Detail breakdown in Table SA3.
A78: 26. Detail breakdown in Table SA3.
A79: 27. Detail breakdown in Table SA3.
A80: 28. Detail breakdown in Table SA3.
A81: 29. Detail breakdown in Table SA3.
A82: 30. Detail breakdown in Table SA3. Includes reserves to be funded by statute.
A83: 31. Detail breakdown in Table SA3.
A84: 32. Net assets must balance with Total Community Wealth/Equity

Sheet A6 Inventory (hidden)
A2: Store Type | B2: Classification | C2: =head1b -> 2022/23 | D2: =head1A -> 2023/24 | E2: =Head1 -> 2024/25 | F2: =Head2 -> Current Year 2025/26 | J2: =Head3 -> 2026/27 Medium Term Revenue & Expenditure Framework
A3: R thousands | C3: =Head5 -> Audited Outcome | D3: =Head5 -> Audited Outcome | E3: =Head5 -> Audited Outcome | F3: =Head6 -> Original Budget | G3: =Head7 -> Adjusted Budget | H3: =Head8 -> Full Year Forecast | I3: =Head5b -> Pre-audit outcome | J3: =Head9 -> Budget Year 2026/27 | K3: =Head10 -> Budget Year +1 2027/28 | L3: =Head11 -> Budget Year +2 2028/29
A4: Agricultural | B4: Opening balance - Agricultural
B5: Acquisitions - Agricultural
B6: Adjustments - Agricultural
B7: Issues - Agricultural
B8: Write Off - Agricultural
B9: Correction of Prior period errors - Agricultural
A10: Agricultural Total | C10: =SUM(C4:C9) -> 0 | D10: =SUM(D4:D9) -> 0 | E10: 0 | F10: 0 | G10: 0 | H10: 0 | I10: 0 | J10: =SUM(J4:J9) -> 0 | K10: 0 | L10: 0
A11: Consumables Standard Rated | B11: Opening balance - Consumables Standard Rated
B12: Acquisitions - Consumables Standard Rated
B13: Adjustments - Consumables Standard Rated
B14: Issues - Consumables Standard Rated
B15: Write Off - Consumables Standard Rated
B16: Correction of Prior period errors - Consumables Standard Rated
A17: Consumables Standard Rated Total | C17: =SUM(C11:C16) -> 0 | D17: =SUM(D11:D16) -> 0 | E17: 0 | F17: 0 | G17: 0 | H17: 0 | I17: 0 | J17: 0 | K17: 0 | L17: 0
A18: Consumables Zero Rated | B18: Opening balance - Consumables Zero Rated
B19: Acquisitions - Consumables Zero Rated
B20: Adjustments - Consumables Zero Rated
B21: Issues - Consumables Zero Rated
B22: Write Off - Consumables Zero Rated
B23: Correction of Prior period errors - Consumables Zero Rated
A24: Consumables Zero Rated Total | C24: =SUM(C18:C23) -> 0 | D24: =SUM(D18:D23) -> 0 | E24: 0 | F24: 0 | G24: 0 | H24: 0 | I24: 0 | J24: 0 | K24: 0 | L24: 0
A25: Finished Goods | B25: Opening balance - Finished Goods
B26: Acquisitions - Finished Goods
B27: Adjustments - Finished Goods
B28: Issues -Finished Goods
B29: Write Off - Finished Goods
B30: Correction of Prior period errors - Finished Goods
A31: Finished Goods Total | C31: =SUM(C25:C30) -> 0 | D31: =SUM(D25:D30) -> 0 | E31: 0 | F31: 0 | G31: 0 | H31: 0 | I31: 0 | J31: 0 | K31: 0 | L31: 0
A32: Housing Stock | B32: Opening balance - Housing Stock
B33: Acquisitions - Housing Stock
B34: Sales - Housing Stock
B35: Transfer - Housing stock
B36: Correction of Prior period errors - Housing stock
A37: Housing Stock Total | C37: =SUM(C32:C36) -> 0 | D37: =SUM(D32:D36) -> 0 | E37: 0 | F37: 0 | G37: 0 | H37: 0 | I37: 0 | J37: 0 | K37: 0 | L37: 0
A38: Land | B38: Opening balance - Land
B39: Acquisitions - Land
B40: Sales - land
B41: Adjustments - Land
B42: Correction of Prior period errors - Land
B43: Transfers - Land
A44: Land Total | C44: =SUM(C38:C43) -> 0 | D44: =SUM(D38:D43) -> 0 | E44: 0 | F44: 0 | G44: 0 | H44: 0 | I44: 0 | J44: 0 | K44: 0 | L44: 0
A45: Materials and Supplies | B45: Opening balance - Materials and Supplies
B46: Acquisitions - Materials and Supplies
B47: Adjustments - Materials and Supplies
B48: Issues - Materials and Supplies
B49: Write Off - Materials and Supplies
B50: Correction of Prior period errors - Materials and Supplies
A51: Materials and Supplies Total | C51: =SUM(C45:C50) -> 0 | D51: =SUM(D45:D50) -> 0 | E51: 0 | F51: 0 | G51: 0 | H51: 0 | I51: 0 | J51: 0 | K51: 0 | L51: 0
A52: Water | B52: Opening balance - Water
B53: Acquisitions - Water bulk purchases
B54: Acquisitions - Water natural sources
B55: Acquisitions - Water treatment works
B56: Billed Authorised Consumption:Billed Metered Consumption:Free Basic Water
B57: Billed Authorised Consumption:Billed Metered Consumption:Revenue Water
B58: Billed Authorised Consumption:Billed Metered Consumption:Subsidised Water
B59: Billed Authorised Consumption:Billed Unmetered Consumption:Free Basic Water
B60: Billed Authorised Consumption:Billed Unmetered Consumption:Revenue Water
B61: Billed Authorised Consumption:Billed Unmetered Consumption:Subsidised Water
B62: Data Transfer and Management Errors
B63: Non-revenue Water
B64: Unavoidable Annual Real Losses
B65: Unbilled Authorised Consumption:Unbilled Metered Consumption
B66: Unbilled Authorised Consumption:Unbilled Unmetered Consumption
B67: Water Losses:Apparent Losses:Customer Meter Inaccuracies
B68: Water Losses:Apparent Losses:Unauthorised Consumption
B69: Water Losses:Real Losses:Leakage and Overflows at Storage Tanks/Reservoirs
B70: Water Losses:Real Losses:Leakage on Service Connections up to the point of Customer Meter
B71: Water Losses:Real Losses:Leakage on Transmission and Distribution Mains
B72: Correction of Prior period errors - Water
A73: Water Total | C73: =SUM(C52:C72) -> 0 | D73: =SUM(D52:D72) -> 0 | E73: 0 | F73: 0 | G73: 0 | H73: 0 | I73: 0 | J73: 0 | K73: 0 | L73: 0
A74: Work-in-progress | B74: Opening balance - WIP
B75: Materials - WIP
B76: Transfer - WIP
A77: Work-in-progress Total | C77: =SUM(C74:C76) -> 0 | D77: =SUM(D74:D76) -> 0 | E77: 0 | F77: 0 | G77: 0 | H77: 0 | I77: 0 | J77: 0 | K77: 0 | L77: =SUM(L74:L76) -> 0
A78: Grand Total | C78: =+C73+C51+C44+C37+C31+C24+C17+C10 -> 0 | D78: =+D73+D51+D44+D37+D31+D24+D17+D10 -> 0 | E78: 0 | F78: 0 | G78: 0 | H78: 0 | I78: 0 | J78: 0 | K78: 0 | L78: 0

Sheet A7-CFlow
A1: =muni&" - "&Approve7 -> DC43 Harry Gwala - Table A7 Consolidated Budgeted Cash Flows
A2: =desc -> Description | B2: =head27 -> Ref | C2: =head1b -> 2022/23 | D2: =head1A -> 2023/24 | E2: =Head1 -> 2024/25 | F2: =Head2 -> Current Year 2025/26 | J2: =Head3 -> 2026/27 Medium Term Revenue & Expenditure Framework
A3: R thousand | C3: =Head5 -> Audited Outcome | D3: =Head5 -> Audited Outcome | E3: =Head5 -> Audited Outcome | F3: =Head6 -> Original Budget | G3: =Head7 -> Adjusted Budget | H3: =Head8 -> Full Year Forecast | I3: =Head5b -> Pre-audit outcome | J3: =Head9 -> Budget Year 2026/27 | K3: =Head10 -> Budget Year +1 2027/28 | L3: =Head11 -> Budget Year +2 2028/29
A4: CASH FLOW FROM OPERATING ACTIVITIES
A5: Receipts
A6: Property rates | C6: 18 | D6: 6 | E6: 0 | F6: 0 | G6: 0 | H6: 0 | I6: 11 | J6: ='SA30'!N5 -> 0 | K6: ='SA30'!O5 -> 0 | L6: ='SA30'!P5 -> 0
A7: Service charges | C7: 51,062 | D7: 62,324 | E7: 69,696 | F7: 71,563 | G7: 79,657 | H7: 79,657 | I7: 56,032 | J7: ='SA30'!N6+'SA30'!N7+'SA30'!N8+'SA30'!N9 -> 84,436 | K7: ='SA30'!O6+'SA30'!O7+'SA30'!O8+'SA30'!O9 -> 89,502 | L7: ='SA30'!P6+'SA30'!P7+'SA30'!P8+'SA30'!P9 -> 94,872
A8: Other revenue | C8: 1,823,061 | D8: 1,805,718 | E8: 1,507,396 | F8: 70,300 | G8: 65,071 | H8: 65,071 | I8: 1,367,740 | J8: ='SA30'!N11+'SA30'!N15+'SA30'!N16+'SA30'!N17+'SA30'!N19+'SA30'!N29 -> 31,753 | K8: ='SA30'!O11+'SA30'!O15+'SA30'!O16+'SA30'!O17+'SA30'!O19+'SA30'!O29 -> 32,625 | L8: ='SA30'!P11+'SA30'!P15+'SA30'!P16+'SA30'!P17+'SA30'!P19+'SA30'!P29 -> 39,363
A9: Transfers and Subsidies - Operational | B9: 1 | C9: 128,367 | D9: 473,045 | E9: 499,995 | F9: 573,989 | G9: 573,989 | H9: 573,989 | I9: 398,223 | J9: ='SA30'!N18 -> 584,089 | K9: ='SA30'!O18 -> 613,842 | L9: ='SA30'!P18 -> 629,931
A10: Transfers and Subsidies - Capital | B10: 1 | C10: 316,011 | D10: 326,130 | E10: 341,906 | F10: 293,458 | G10: 293,458 | H10: 293,458 | I10: 256,000 | J10: ='SA30'!N23+'SA30'!N24 -> 328,867 | K10: ='SA30'!O23+'SA30'!O24 -> 389,426 | L10: ='SA30'!P23+'SA30'!P24 -> 373,731
A11: Interest | C11: 10,858 | D11: 21,988 | E11: 28,012 | F11: 26,046 | G11: 26,043 | H11: 26,043 | I11: 15,868 | J11: ='SA30'!N12+'SA30'!N13 -> 27,572 | K11: ='SA30'!O12+'SA30'!O13 -> 29,185 | L11: ='SA30'!P12+'SA30'!P13 -> 30,889
A12: Dividends | J12: ='SA30'!N14 -> 0 | K12: ='SA30'!O14 -> 0 | L12: ='SA30'!P14 -> 0
A13: Payments
A14: Suppliers and employees | C14: (804,900) | D14: (879,112) | E14: (955,865) | F14: (667,355) | G14: (734,165) | H14: (734,165) | I14: (692,216) | J14: =-('SA30'!N37+'SA30'!N38+'SA30'!N40+'SA30'!N41+'SA30'!N42+'SA30'!N43+'SA30'!N46+'SA30'!N53) -> (739,109) | K14: =-('SA30'!O37+'SA30'!O38+'SA30'!O40+'SA30'!O41+'SA30'!O42+'SA30'!O43+'SA30'!O46+'SA30'!O53) -> (744,168) | L14: =-('SA30'!P37+'SA30'!P38+'SA30'!P40+'SA30'!P41+'SA30'!P42+'SA30'!P43+'SA30'!P46+'SA30'!P53) -> (772,079)
A15: Finance charges | C15: 0 | D15: 0 | E15: 0 | F15: (54) | G15: (14) | H15: (14) | I15: 0 | J15: =-('SA30'!N39) -> (56) | K15: =-('SA30'!O39) -> (58) | L15: =-('SA30'!P39) -> (61)
A16: Transfers and Subsidies | B16: 1 | J16: =-('SA30'!N44+'SA30'!N45) -> 0 | K16: =-('SA30'!O44+'SA30'!O45) -> 0 | L16: =-('SA30'!P44+'SA30'!P45) -> 0
A17: NET CASH FROM/(USED) OPERATING ACTIVITIES | C17: =SUM(C6:C12)+SUM(C14:C16) -> 1,524,477 | D17: =SUM(D6:D12)+SUM(D14:D16) -> 1,810,099 | E17: 1,491,140 | F17: =SUM(F6:F12)+SUM(F14:F16) -> 367,947 | G17: 304,039 | H17: 304,039 | I17: =SUM(I6:I12)+SUM(I14:I16) -> 1,401,657 | J17: 317,552 | K17: 410,354 | L17: 396,647
A19: CASH FLOWS FROM INVESTING ACTIVITIES
A20: Receipts
A21: Proceeds on disposal of PPE | C21: 0 | D21: 0 | E21: 0 | F21: 0 | G21: 0 | H21: 0 | I21: 474 | J21: ='SA30'!N25 -> 0 | K21: ='SA30'!O25 -> 0 | L21: ='SA30'!P25 -> 0
A23: Decrease (increase) in non-current receivables | C23: 0 | D23: 0 | E23: 0 | F23: 0 | G23: 0 | H23: 0 | I23: 0 | J23: ='SA30'!N30 -> 0 | K23: ='SA30'!O30 -> 0 | L23: ='SA30'!P30 -> 0
A24: Decrease (increase) in non-current investments | J24: ='SA30'!N31 -> 0 | K24: ='SA30'!O31 -> 0 | L24: ='SA30'!P31 -> 0
A25: Insurance Refund - Capital | J25: ='SA30'!N32 -> 0 | K25: ='SA30'!O32 -> 0 | L25: ='SA30'!P32 -> 0
A26: Interest on Short Term Investment (Greater then 90 days) and Long Term Investments | J26: ='SA30'!N33 -> 0 | K26: ='SA30'!O33 -> 0 | L26: ='SA30'!P33 -> 0
A27: Payments
A28: Capital assets | C28: (269,118) | D28: (309,604) | E28: (350,553) | F28: (346,012) | G28: (375,549) | H28: (375,549) | I28: (185,338) | J28: =-('SA30'!N50) -> (328,192) | K28: =-('SA30'!O50) -> (382,640) | L28: =-('SA30'!P50) -> (382,552)
A29: Retention (Capital) | J29: =-('SA30'!N51) -> 0 | K29: =-('SA30'!O51) -> 0 | L29: =-('SA30'!P51) -> 0
A30: NET CASH FROM/(USED) INVESTING ACTIVITIES | C30: =+C21+C23+C24+C25+C26+C28+C29 -> (269,118) | D30: =+D21+D23+D24+D25+D26+D28+D29 -> (309,604) | E30: (350,553) | F30: (346,012) | G30: (375,549) | H30: (375,549) | I30: (184,864) | J30: =+J21+J23+J24+J25+J26+J28+J29 -> (328,192) | K30: (382,640) | L30: (382,552)
A32: CASH FLOWS FROM FINANCING ACTIVITIES
A33: Receipts
A34: Short term loans | J34: ='SA30'!N26 -> 0 | K34: ='SA30'!O26 -> 0 | L34: ='SA30'!P26 -> 0
A35: Borrowing long term/refinancing | J35: ='SA30'!N27 -> 0 | K35: ='SA30'!O27 -> 0 | L35: ='SA30'!P27 -> 0
A36: Increase (decrease) in consumer deposits | C36: 0 | D36: (434) | E36: (15) | F36: 569 | G36: 569 | H36: 569 | I36: 21 | J36: ='SA30'!N28 -> 569 | K36: ='SA30'!O28 -> 569 | L36: ='SA30'!P28 -> 569
A37: Payments
A38: Repayment of borrowing | C38: 0 | D38: 0 | E38: 0 | F38: (2,400) | G38: (2,400) | H38: (2,400) | I38: (1,000) | J38: =-('SA30'!N52) -> (2,400) | K38: =-('SA30'!O52) -> (2,400) | L38: =-('SA30'!P52) -> (2,400)
A39: NET CASH FROM/(USED) FINANCING ACTIVITIES | C39: =SUM(C34:C36)+C38 -> 0 | D39: =SUM(D34:D36)+D38 -> (434) | E39: (15) | F39: (1,831) | G39: (1,831) | H39: (1,831) | I39: (979) | J39: (1,831) | K39: (1,831) | L39: (1,831)
A41: NET INCREASE/ (DECREASE) IN CASH HELD | C41: =C17+C30+C39 -> 1,255,359 | D41: 1,500,061 | E41: 1,140,572 | F41: 20,105 | G41: (73,341) | H41: (73,341) | I41: 1,215,814 | J41: =J17+J30+J39 -> (12,471) | K41: 25,883 | L41: 12,265
A42: Cash/cash equivalents at the year begin: | B42: 2 | C42: 50,226 | D42: 124,641 | E42: 209,430 | F42: 163,577 | G42: 296,462 | H42: 296,462 | I42: 0 | J42: ='SA30'!N57 -> 233,351 | K42: =J43 -> 220,880 | L42: =K43 -> 246,764
A43: Cash/cash equivalents at the year end: | B43: 2 | C43: =C41+C42 -> 1,305,586 | D43: =D41+D42 -> 1,624,702 | E43: =E41+E42 -> 1,350,002 | F43: =F41+F42 -> 183,682 | G43: 223,121 | H43: 223,121 | I43: 1,215,814 | J43: 220,880 | K43: 246,764 | L43: 259,028
A44: =head27a -> References
A45: 1. Local/District municipalities to include transfers from/to District/Local Municipalities
A46: 2. Cash equivalents includes investments with maturities of 3 months or less
A47: 3. The MTREF is populated directly from SA30.
A48: Total receipts | C48: =SUM(C6:C12)+SUM(C21:C26) -> 2,329,377 | D48: =SUM(D6:D12)+SUM(D21:D26) -> 2,689,211 | E48: 2,447,005 | F48: 1,035,356 | G48: 1,038,217 | H48: 1,038,217 | I48: 2,094,348 | J48: 1,056,717 | K48: 1,154,581 | L48: 1,168,786
A49: Total payments | C49: =SUM(C14:C16)+SUM(C28:C29) -> (1,074,018) | D49: =SUM(D14:D16)+SUM(D28:D29) -> (1,188,715) | E49: (1,306,418) | F49: (1,013,421) | G49: (1,109,728) | H49: (1,109,728) | I49: (877,555) | J49: (1,067,358) | K49: (1,126,867) | L49: (1,154,691)
C50: =C48+C49 -> 1,255,359 | D50: =D48+D49 -> 1,500,495 | E50: 1,140,587 | F50: 21,936 | G50: (71,511) | H50: (71,511) | I50: 1,216,793 | J50: (10,640) | K50: 27,714 | L50: 14,095
A51: Borrowings & investments & c.deposits | C51: =C24+C35+C36 -> 0 | D51: =D24+D35+D36 -> (434) | E51: (15) | F51: 569 | G51: 569 | H51: 569 | I51: 21 | J51: 569 | K51: 569 | L51: 569
A52: =A38 -> Repayment of borrowing | C52: =C38 -> 0 | D52: =D38 -> 0 | E52: 0 | F52: (2,400) | G52: (2,400) | H52: (2,400) | I52: =I38 -> (1,000) | J52: (2,400) | K52: (2,400) | L52: (2,400)
C53: =C50+C51+C52 -> 1,255,359 | D53: =D50+D51+D52 -> 1,500,061 | E53: 1,140,572 | F53: 20,105 | G53: (73,341) | H53: (73,341) | I53: 1,215,814 | J53: (12,471) | K53: 25,883 | L53: 12,265
C54: =C41-C53 -> 0 | D54: =D41-D53 -> 0 | E54: 0 | F54: 0 | G54: 0 | H54: 0 | I54: 0 | J54: 0 | K54: 0 | L54: 0

Sheet A8-ResRecon
A1: =muni&" - "&Approve8 -> DC43 Harry Gwala - Table A8 Consolidated Cash backed reserves/accumulated surplus reconciliation
A2: =desc -> Description | B2: =head27 -> Ref | C2: =head1b -> 2022/23 | D2: =head1A -> 2023/24 | E2: =Head1 -> 2024/25 | F2: =Head2 -> Current Year 2025/26 | J2: =Head3 -> 2026/27 Medium Term Revenue & Expenditure Framework
A3: R thousand | C3: =Head5 -> Audited Outcome | D3: =Head5 -> Audited Outcome | E3: =Head5 -> Audited Outcome | F3: =Head6 -> Original Budget | G3: =Head7 -> Adjusted Budget | H3: =Head8 -> Full Year Forecast | I3: =Head5b -> Pre-audit outcome | J3: =Head9 -> Budget Year 2026/27 | K3: =Head10 -> Budget Year +1 2027/28 | L3: =Head11 -> Budget Year +2 2028/29
A4: Cash and investments available
A5: =LEFT('A7-CFlow'!A43,37) -> Cash/cash equivalents at the year end | B5: 1 | C5: ='A7-CFlow'!C43 -> 1,305,586 | D5: ='A7-CFlow'!D43 -> 1,624,702 | E5: ='A7-CFlow'!E43 -> 1,350,002 | F5: ='A7-CFlow'!F43 -> 183,682 | G5: ='A7-CFlow'!G43 -> 223,121 | H5: ='A7-CFlow'!H43 -> 223,121 | I5: ='A7-CFlow'!I43 -> 1,215,814 | J5: ='A7-CFlow'!J43 -> 220,880 | K5: ='A7-CFlow'!K43 -> 246,764 | L5: ='A7-CFlow'!L43 -> 259,028
A6: Other current investments > 90 days | C6: ='A6-FinPos'!C7 -> 0 | D6: ='A6-FinPos'!D7 -> 0 | E6: ='A6-FinPos'!E7 -> 0 | F6: ='A6-FinPos'!F7 -> 0 | G6: ='A6-FinPos'!G7 -> 0 | H6: ='A6-FinPos'!H7 -> 0 | I6: ='A6-FinPos'!I7 -> 0 | J6: ='A6-FinPos'!J7 -> 0 | K6: ='A6-FinPos'!K7 -> 0 | L6: ='A6-FinPos'!L7 -> 0
A7: Non current Investments | B7: 1 | C7: ='A6-FinPos'!C16 -> 0 | D7: ='A6-FinPos'!D16 -> 0 | E7: ='A6-FinPos'!E16 -> 0 | F7: ='A6-FinPos'!F16 -> 0 | G7: ='A6-FinPos'!G16 -> 0 | H7: ='A6-FinPos'!H16 -> 0 | I7: ='A6-FinPos'!I16 -> 0 | J7: ='A6-FinPos'!J16 -> 0 | K7: ='A6-FinPos'!K16 -> 0 | L7: ='A6-FinPos'!L16 -> 0
A8: Cash and investments available: | C8: =SUM(C5:C7) -> 1,305,586 | D8: =SUM(D5:D7) -> 1,624,702 | E8: 1,350,002 | F8: 183,682 | G8: 223,121 | H8: 223,121 | I8: 1,215,814 | J8: 220,880 | K8: 246,764 | L8: 259,028
A10: Application of cash and investments
A11: Unspent conditional transfers | C11: ='SA3'!C258 -> 21,177 | D11: ='SA3'!D258 -> 10,500 | E11: ='SA3'!E258 -> (0) | F11: ='SA3'!F258 -> 1,483 | G11: ='SA3'!G258 -> 1,483 | H11: ='SA3'!H258 -> 1,483 | I11: ='SA3'!I258 -> 60,035 | J11: ='SA3'!J258 -> 1,483 | K11: ='SA3'!K258 -> 1,483 | L11: ='SA3'!L258 -> 1,483
A12: Unspent borrowing
A13: Statutory requirements | B13: 2 | C13: 0 | D13: 0 | E13: 0 | F13: 0 | G13: 0 | H13: 0 | I13: 0 | J13: 0 | K13: 0 | L13: 0
A14: Other working capital requirements | B14: 3 | C14: =-C34 -> (683,560) | D14: =-D34 -> (235,803) | E14: (116,555) | F14: =-F34 -> 48,076 | G14: 146,688 | H14: 146,688 | I14: 5,417 | J14: 174,140 | K14: 170,034 | L14: 171,880
A15: Other provisions | C15: 16,171 | D15: 16,385 | E15: 16,527 | F15: 16,385 | G15: 16,527 | H15: 16,527 | I15: 16,527 | J15: 16,527 | K15: 16,527 | L15: 16,527
A16: Long term investments committed | B16: 4 | C16: =C44 -> 0 | D16: =D44 -> 0 | E16: 0 | F16: 0 | G16: 0 | H16: 0 | I16: 0 | J16: 0 | K16: 0 | L16: 0
A17: Reserves to be backed by cash/investments | B17: 5
A18: Total Application of cash and investments: | C18: =SUM(C11:C17) -> (646,212) | D18: =SUM(D11:D17) -> (208,917) | E18: (100,028) | F18: 65,945 | G18: 164,698 | H18: 164,698 | I18: 81,980 | J18: 192,150 | K18: 188,044 | L18: 189,890
A19: Surplus(shortfall) - Excluding Non-Current Creditors Trf to Debt Relief Benefits | C19: =C8-C18 -> 1,951,798 | D19: =D8-D18 -> 1,833,619 | E19: 1,450,030 | F19: 117,737 | G19: 58,423 | H19: 58,423 | I19: 1,133,835 | J19: 28,730 | K19: 58,719 | L19: 69,138
A20: Creditors transferred to Debt Relief - Non-Current portion | C20: ='SA3'!C324 -> 0 | D20: ='SA3'!D324 -> 0 | E20: ='SA3'!E324 -> 0 | F20: ='SA3'!F324 -> 0 | G20: ='SA3'!G324 -> 0 | H20: ='SA3'!H324 -> 0 | I20: ='SA3'!I324 -> 0 | J20: ='SA3'!J324 -> 0 | K20: ='SA3'!K324 -> 0 | L20: ='SA3'!L324 -> 0
A21: Surplus(shortfall) - Including Non-Current Creditors Trf to Debt Relief Benefits | C21: =SUM(C19:C20) -> 1,951,798 | D21: =SUM(D19:D20) -> 1,833,619 | E21: 1,450,030 | F21: 117,737 | G21: 58,423 | H21: 58,423 | I21: 1,133,835 | J21: 28,730 | K21: 58,719 | L21: 69,138
A22: =head27a -> References
A23: 1. Must reconcile with Budgeted Cash Flows
A24: 2. For example: VAT, taxation
A25: 3. Council approval for policy required - include sufficient working capital (e.g. allowing for a % of current debtors > 90 days as uncollectable)
A26: 4. For example: sinking fund requirements for borrowing
A27: 5. Council approval required for each reserve created and basis of cash backing of reserves - Total Reserves to be backed by cash/investments excl Valuation reserve
A30: Other working capital requirements
A31: Debtors | C31: =IF(ISERROR(ROUND(C37*C38,-3)),0,(ROUND(C37*C38,-3))) -> 775,428 | D31: =IF(ISERROR(ROUND(D37*D38,-3)),0,(ROUND(D37*D38,-3))) -> 322,738 | E31: 264,695 | F31: 38,280 | G31: 6,569 | H31: 6,569 | I31: (87,345) | J31: 16,093 | K31: 22,199 | L31: 22,353
A33: Creditors due | C33: ='SA3'!C249 -> 91,868 | D33: ='SA3'!D249 -> 86,935 | E33: ='SA3'!E249 -> 148,140 | F33: ='SA3'!F249 -> 86,356 | G33: ='SA3'!G249 -> 153,257 | H33: ='SA3'!H249 -> 153,257 | I33: ='SA3'!I249 -> (81,928) | J33: ='SA3'!J249 -> 190,233 | K33: ='SA3'!K249 -> 192,233 | L33: ='SA3'!L249 -> 194,233
A34: Total | C34: =C31-C33 -> 683,560 | D34: =D31-D33 -> 235,803 | E34: 116,555 | F34: (48,076) | G34: (146,688) | H34: (146,688) | I34: (5,417) | J34: (174,140) | K34: (170,034) | L34: (171,880)
A36: Debtors collection assumptions
A37: Balance outstanding - debtors | C37: ='A6-FinPos'!C8+'A6-FinPos'!C9+'A6-FinPos'!C10+'A6-FinPos'!C23+'A6-FinPos'!C24 -> 34,454 | D37: ='A6-FinPos'!D8+'A6-FinPos'!D9+'A6-FinPos'!D10+'A6-FinPos'!D23+'A6-FinPos'!D24 -> 14,349 | E37: ='A6-FinPos'!E8+'A6-FinPos'!E9+'A6-FinPos'!E10+'A6-FinPos'!E23+'A6-FinPos'!E24 -> 14,344 | F37: ='A6-FinPos'!F8+'A6-FinPos'!F9+'A6-FinPos'!F10+'A6-FinPos'!F23+'A6-FinPos'!F24 -> 26,031 | G37: ='A6-FinPos'!G8+'A6-FinPos'!G9+'A6-FinPos'!G10+'A6-FinPos'!G23+'A6-FinPos'!G24 -> 4,208 | H37: ='A6-FinPos'!H8+'A6-FinPos'!H9+'A6-FinPos'!H10+'A6-FinPos'!H23+'A6-FinPos'!H24 -> 4,208 | I37: ='A6-FinPos'!I8+'A6-FinPos'!I9+'A6-FinPos'!I10+'A6-FinPos'!I23+'A6-FinPos'!I24 -> (3,719) | J37: ='A6-FinPos'!J8+'A6-FinPos'!J9+'A6-FinPos'!J10+'A6-FinPos'!J23+'A6-FinPos'!J24 -> 12,886 | K37: ='A6-FinPos'!K8+'A6-FinPos'!K9+'A6-FinPos'!K10+'A6-FinPos'!K23+'A6-FinPos'!K24 -> 17,924 | L37: ='A6-FinPos'!L8+'A6-FinPos'!L9+'A6-FinPos'!L10+'A6-FinPos'!L23+'A6-FinPos'!L24 -> 17,405
A38: Estimate of debtors collection rate | C38: =IF(ISERROR('SA10'!D10),0,('SA10'!D10)) -> 2250.6% | D38: =IF(ISERROR('SA10'!E10),0,('SA10'!E10)) -> 2249.3% | E38: =IF(ISERROR('SA10'!F10),0,('SA10'!F10)) -> 1845.4% | F38: =IF(ISERROR('SA10'!G10),0,('SA10'!G10)) -> 147.1% | G38: =IF(ISERROR('SA10'!H10),0,('SA10'!H10)) -> 156.1% | H38: =IF(ISERROR('SA10'!I10),0,('SA10'!I10)) -> 156.1% | I38: =IF(ISERROR('SA10'!J10),0,('SA10'!J10)) -> 2348.8% | J38: =IF(ISERROR('SA10'!K10),0,('SA10'!K10)) -> 124.9% | K38: =IF(ISERROR('SA10'!L10),0,('SA10'!L10)) -> 123.8% | L38: =IF(ISERROR('SA10'!M10),0,('SA10'!M10)) -> 128.4%
K41: `
A42: =A16 -> Long term investments committed
A43: Balance (Insert description; eg sinking fund)
C44: =SUM(C43:C43) -> 0 | D44: 0 | E44: 0 | F44: 0 | G44: 0 | H44: 0 | I44: 0 | J44: 0 | K44: 0 | L44: 0
A45: =A17 -> Reserves to be backed by cash/investments
A46: Housing Development Fund | C46: ='SA3'!C353 -> 0 | D46: ='SA3'!D353 -> 0 | E46: ='SA3'!E353 -> 0 | F46: ='SA3'!F353 -> 0 | G46: ='SA3'!G353 -> 0 | H46: ='SA3'!H353 -> 0 | I46: ='SA3'!I353 -> 0 | J46: ='SA3'!J353 -> 0 | K46: ='SA3'!K353 -> 0 | L46: ='SA3'!L353 -> 0
A47: Capital replacement | C47: ='SA3'!C349 -> 0 | D47: ='SA3'!D349 -> 0 | E47: ='SA3'!E349 -> 0 | F47: ='SA3'!F349 -> 0 | G47: ='SA3'!G349 -> 0 | H47: ='SA3'!H349 -> 0 | I47: ='SA3'!I349 -> 0 | J47: ='SA3'!J349 -> 0 | K47: ='SA3'!K349 -> 0 | L47: ='SA3'!L349 -> 0
A48: Self-insurance | C48: ='SA3'!C357 -> 0 | D48: ='SA3'!D357 -> 0 | E48: ='SA3'!E357 -> 0 | F48: ='SA3'!F357 -> 0 | G48: ='SA3'!G357 -> 0 | H48: ='SA3'!H357 -> 0 | I48: ='SA3'!I357 -> 0 | J48: ='SA3'!J357 -> 0 | K48: ='SA3'!K357 -> 0 | L48: ='SA3'!L357 -> 0
A49: Compensation for Occupational Injuries and Diseases | E49: ='SA3'!C351 -> 0 | F49: ='SA3'!D351 -> 0 | G49: ='SA3'!E351 -> 0 | H49: ='SA3'!F351 -> 0 | I49: ='SA3'!G351 -> 0 | J49: ='SA3'!H351 -> 0 | K49: ='SA3'!I351 -> 0 | L49: ='SA3'!J351 -> 0
A50: Employee Benefit reserve | E50: ='SA3'!C352 -> 0 | F50: ='SA3'!D352 -> 0 | G50: ='SA3'!E352 -> 0 | H50: ='SA3'!F352 -> 0 | I50: ='SA3'!G352 -> 0 | J50: ='SA3'!H352 -> 0 | K50: ='SA3'!I352 -> 0 | L50: ='SA3'!J352 -> 0
A51: Non-current Provisions reserve | E51: ='SA3'!C355 -> 0 | F51: ='SA3'!D355 -> 0 | G51: ='SA3'!E355 -> 0 | H51: ='SA3'!F355 -> 0 | I51: ='SA3'!G355 -> 0 | J51: ='SA3'!H355 -> 0 | K51: ='SA3'!I355 -> 0 | L51: ='SA3'!J355 -> 0
A52: Valuation reserve | E52: ='SA3'!C358 -> 0 | F52: ='SA3'!D358 -> 0 | G52: ='SA3'!E358 -> 0 | H52: ='SA3'!F358 -> 0 | I52: ='SA3'!G358 -> 0 | J52: ='SA3'!H358 -> 0 | K52: ='SA3'!I358 -> 0 | L52: ='SA3'!J358 -> 0
A53: Investment in associate account | E53: ='SA3'!C354 -> 0 | F53: ='SA3'!D354 -> 0 | G53: ='SA3'!E354 -> 0 | H53: ='SA3'!F354 -> 0 | I53: ='SA3'!G354 -> 0 | J53: ='SA3'!H354 -> 0 | K53: ='SA3'!I354 -> 0 | L53: ='SA3'!J354 -> 0
A54: Capitalisation | E54: ='SA3'!C350 -> 0 | F54: ='SA3'!D350 -> 0 | G54: ='SA3'!E350 -> 0 | H54: ='SA3'!F350 -> 0 | I54: ='SA3'!G350 -> 0 | J54: ='SA3'!H350 -> 0 | K54: ='SA3'!I350 -> 0 | L54: ='SA3'!J350 -> 0
B55: 6 | C55: =SUM(C46:C54) -> 0 | D55: =SUM(D46:D54) -> 0 | E55: 0 | F55: 0 | G55: 0 | H55: 0 | I55: 0 | J55: 0 | K55: 0 | L55: 0
A56: Note:
A57: 6. Above reserves do not include Revaluation reserve. Revaluation reserve not required to be cash backed

Sheet A9-Asset
A1: =muni&" - "&Approve9 -> DC43 Harry Gwala - Table A9 Consolidated Asset Management
A2: =desc -> Description | B2: =head27 -> Ref | C2: =head1b -> 2022/23 | D2: =head1A -> 2023/24 | E2: =Head1 -> 2024/25 | F2: =Head2 -> Current Year 2025/26 | I2: =Head3 -> 2026/27 Medium Term Revenue & Expenditure Framework
A3: R thousand | C3: =Head5 -> Audited Outcome | D3: =Head5 -> Audited Outcome | E3: =Head5 -> Audited Outcome | F3: =Head6 -> Original Budget | G3: =Head7 -> Adjusted Budget | H3: =Head8 -> Full Year Forecast | I3: =Head9 -> Budget Year 2026/27 | J3: =Head10 -> Budget Year +1 2027/28 | K3: =Head11 -> Budget Year +2 2028/29
A4: CAPITAL EXPENDITURE
A5: Total New Assets | B5: 1 | C5: =C15+C18+C19+C22+C25+C26+SUM(C29:C35)+C38 -> 257,265 | D5: =D15+D18+D19+D22+D25+D26+SUM(D29:D35)+D38 -> 289,670 | E5: 311,070 | F5: 260,534 | G5: 295,909 | H5: 295,909 | I5: 240,484 | J5: 223,428 | K5: 193,426
A6: Roads Infrastructure | C6: =SA34a!C7 -> 0 | D6: =SA34a!D7 -> 0 | E6: =SA34a!E7 -> 0 | F6: =SA34a!F7 -> 0 | G6: =SA34a!G7 -> 0 | H6: =SA34a!H7 -> 0 | I6: =SA34a!I7 -> 0 | J6: =SA34a!J7 -> 0 | K6: =SA34a!K7 -> 0
A7: Storm water Infrastructure | C7: =SA34a!C12 -> 0 | D7: =SA34a!D12 -> 0 | E7: =SA34a!E12 -> 0 | F7: =SA34a!F12 -> 0 | G7: =SA34a!G12 -> 0 | H7: =SA34a!H12 -> 0 | I7: =SA34a!I12 -> 0 | J7: =SA34a!J12 -> 0 | K7: =SA34a!K12 -> 0
A8: Electrical Infrastructure | C8: =SA34a!C16 -> 0 | D8: =SA34a!D16 -> 0 | E8: =SA34a!E16 -> 0 | F8: =SA34a!F16 -> 0 | G8: =SA34a!G16 -> 0 | H8: =SA34a!H16 -> 0 | I8: =SA34a!I16 -> 0 | J8: =SA34a!J16 -> 0 | K8: =SA34a!K16 -> 0
A9: Water Supply Infrastructure | C9: =SA34a!C26 -> 203,327 | D9: =SA34a!D26 -> 219,163 | E9: =SA34a!E26 -> 279,731 | F9: =SA34a!F26 -> 239,910 | G9: =SA34a!G26 -> 270,168 | H9: =SA34a!H26 -> 270,168 | I9: =SA34a!I26 -> 223,287 | J9: =SA34a!J26 -> 205,693 | K9: =SA34a!K26 -> 174,347
A10: Sanitation Infrastructure | C10: =SA34a!C37 -> 44,534 | D10: =SA34a!D37 -> 64,965 | E10: =SA34a!E37 -> 20,055 | F10: =SA34a!F37 -> 261 | G10: =SA34a!G37 -> 5,135 | H10: =SA34a!H37 -> 5,135 | I10: =SA34a!I37 -> 0 | J10: =SA34a!J37 -> 0 | K10: =SA34a!K37 -> 0
A11: Solid Waste Infrastructure | C11: =SA34a!C44 -> 0 | D11: =SA34a!D44 -> 0 | E11: =SA34a!E44 -> 0 | F11: =SA34a!F44 -> 0 | G11: =SA34a!G44 -> 0 | H11: =SA34a!H44 -> 0 | I11: =SA34a!I44 -> 0 | J11: =SA34a!J44 -> 0 | K11: =SA34a!K44 -> 0
A12: Rail Infrastructure | C12: =SA34a!C52 -> 0 | D12: =SA34a!D52 -> 0 | E12: =SA34a!E52 -> 0 | F12: =SA34a!F52 -> 0 | G12: =SA34a!G52 -> 0 | H12: =SA34a!H52 -> 0 | I12: =SA34a!I52 -> 0 | J12: =SA34a!J52 -> 0 | K12: =SA34a!K52 -> 0
A13: Coastal Infrastructure | C13: =SA34a!C62 -> 0 | D13: =SA34a!D62 -> 0 | E13: =SA34a!E62 -> 0 | F13: =SA34a!F62 -> 0 | G13: =SA34a!G62 -> 0 | H13: =SA34a!H62 -> 0 | I13: =SA34a!I62 -> 0 | J13: =SA34a!J62 -> 0 | K13: =SA34a!K62 -> 0
A14: Information and Communication Infrastructure | C14: =SA34a!C68 -> 0 | D14: =SA34a!D68 -> 0 | E14: =SA34a!E68 -> 0 | F14: =SA34a!F68 -> 0 | G14: =SA34a!G68 -> 0 | H14: =SA34a!H68 -> 0 | I14: =SA34a!I68 -> 0 | J14: =SA34a!J68 -> 0 | K14: =SA34a!K68 -> 0
A15: Infrastructure | C15: =SUM(C6:C14) -> 247,862 | D15: =SUM(D6:D14) -> 284,128 | E15: 299,786 | F15: 240,171 | G15: 275,303 | H15: 275,303 | I15: 223,287 | J15: 205,693 | K15: 174,347
A16: Community Facilities | C16: =SA34a!C75 -> 0 | D16: =SA34a!D75 -> 0 | E16: =SA34a!E75 -> 0 | F16: =SA34a!F75 -> 0 | G16: =SA34a!G75 -> 0 | H16: =SA34a!H75 -> 0 | I16: =SA34a!I75 -> 0 | J16: =SA34a!J75 -> 0 | K16: =SA34a!K75 -> 0
A17: Sport and Recreation Facilities | C17: =SA34a!C98 -> 0 | D17: =SA34a!D98 -> 0 | E17: =SA34a!E98 -> 0 | F17: =SA34a!F98 -> 0 | G17: =SA34a!G98 -> 0 | H17: =SA34a!H98 -> 0 | I17: =SA34a!I98 -> 0 | J17: =SA34a!J98 -> 0 | K17: =SA34a!K98 -> 0
A18: Community Assets | C18: =SUM(C16:C17) -> 0 | D18: =SUM(D16:D17) -> 0 | E18: 0 | F18: 0 | G18: 0 | H18: 0 | I18: 0 | J18: 0 | K18: 0
A19: Heritage Assets | C19: =SA34a!C103 -> 0 | D19: =SA34a!D103 -> 0 | E19: =SA34a!E103 -> 0 | F19: =SA34a!F103 -> 0 | G19: =SA34a!G103 -> 0 | H19: =SA34a!H103 -> 0 | I19: =SA34a!I103 -> 0 | J19: =SA34a!J103 -> 0 | K19: =SA34a!K103 -> 0
A20: Revenue Generating | C20: =SA34a!C111 -> 0 | D20: =SA34a!D111 -> 0 | E20: =SA34a!E111 -> 0 | F20: =SA34a!F111 -> 0 | G20: =SA34a!G111 -> 0 | H20: =SA34a!H111 -> 0 | I20: =SA34a!I111 -> 0 | J20: =SA34a!J111 -> 0 | K20: =SA34a!K111 -> 0
A21: Non-revenue Generating | C21: =SA34a!C114 -> 0 | D21: =SA34a!D114 -> 0 | E21: =SA34a!E114 -> 0 | F21: =SA34a!F114 -> 0 | G21: =SA34a!G114 -> 0 | H21: =SA34a!H114 -> 0 | I21: =SA34a!I114 -> 0 | J21: =SA34a!J114 -> 0 | K21: =SA34a!K114 -> 0
A22: Investment properties | C22: =SUM(C20:C21) -> 0 | D22: =SUM(D20:D21) -> 0 | E22: 0 | F22: 0 | G22: 0 | H22: 0 | I22: 0 | J22: 0 | K22: 0
A23: Operational Buildings | C23: =SA34a!C119 -> 0 | D23: =SA34a!D119 -> 0 | E23: =SA34a!E119 -> 1,268 | F23: =SA34a!F119 -> 6,901 | G23: =SA34a!G119 -> 5,985 | H23: =SA34a!H119 -> 5,985 | I23: =SA34a!I119 -> 3,222 | J23: =SA34a!J119 -> 3,329 | K23: =SA34a!K119 -> 5,076
A24: Housing | C24: =SA34a!C131 -> 0 | D24: =SA34a!D131 -> 0 | E24: =SA34a!E131 -> 1,042 | F24: =SA34a!F131 -> 2,000 | G24: =SA34a!G131 -> 1,000 | H24: =SA34a!H131 -> 1,000 | I24: =SA34a!I131 -> 1,040 | J24: =SA34a!J131 -> 1,082 | K24: =SA34a!K131 -> 1,116
A25: Other Assets | C25: =SUM(C23:C24) -> 0 | D25: =SUM(D23:D24) -> 0 | E25: 2,310 | F25: 8,901 | G25: 6,985 | H25: 6,985 | I25: 4,262 | J25: 4,411 | K25: 6,193
A26: Biological or Cultivated Assets | C26: =SA34a!C136 -> 0 | D26: =SA34a!D136 -> 0 | E26: =SA34a!E136 -> 0 | F26: =SA34a!F136 -> 0 | G26: =SA34a!G136 -> 0 | H26: =SA34a!H136 -> 0 | I26: =SA34a!I136 -> 0 | J26: =SA34a!J136 -> 0 | K26: =SA34a!K136 -> 0
A27: Servitudes | C27: =SA34a!C140 -> 0 | D27: =SA34a!D140 -> 0 | E27: =SA34a!E140 -> 0 | F27: =SA34a!F140 -> 0 | G27: =SA34a!G140 -> 0 | H27: =SA34a!H140 -> 0 | I27: =SA34a!I140 -> 0 | J27: =SA34a!J140 -> 0 | K27: =SA34a!K140 -> 0
A28: Licences and Rights | C28: =SA34a!C141 -> 270 | D28: =SA34a!D141 -> 0 | E28: =SA34a!E141 -> 0 | F28: =SA34a!F141 -> 955 | G28: =SA34a!G141 -> 955 | H28: =SA34a!H141 -> 955 | I28: =SA34a!I141 -> 2,389 | J28: =SA34a!J141 -> 2,485 | K28: =SA34a!K141 -> 2,569
A29: Intangible Assets | C29: =SUM(C27:C28) -> 270 | D29: =SUM(D27:D28) -> 0 | E29: 0 | F29: 955 | G29: 955 | H29: 955 | I29: 2,389 | J29: 2,485 | K29: 2,569
A30: Computer Equipment | C30: =SA34a!C149 -> 410 | D30: =SA34a!D149 -> 943 | E30: =SA34a!E149 -> 2,029 | F30: =SA34a!F149 -> 2,859 | G30: =SA34a!G149 -> 2,873 | H30: =SA34a!H149 -> 2,873 | I30: =SA34a!I149 -> 5,236 | J30: =SA34a!J149 -> 5,320 | K30: =SA34a!K149 -> 2,759
A31: Furniture and Office Equipment | C31: =SA34a!C152 -> 1,293 | D31: =SA34a!D152 -> 2,306 | E31: =SA34a!E152 -> 2,178 | F31: =SA34a!F152 -> 5,288 | G31: =SA34a!G152 -> 5,608 | H31: =SA34a!H152 -> 5,608 | I31: =SA34a!I152 -> 3,242 | J31: =SA34a!J152 -> 3,368 | K31: =SA34a!K152 -> 4,692
A32: Machinery and Equipment | C32: =SA34a!C155 -> 7,430 | D32: =SA34a!D155 -> 1,306 | E32: =SA34a!E155 -> 4,767 | F32: =SA34a!F155 -> 2,360 | G32: =SA34a!G155 -> 4,185 | H32: =SA34a!H155 -> 4,185 | I32: =SA34a!I155 -> 2,069 | J32: =SA34a!J155 -> 2,152 | K32: =SA34a!K155 -> 2,867
A33: Transport Assets | C33: =SA34a!C158 -> 0 | D33: =SA34a!D158 -> 986 | E33: =SA34a!E158 -> 0 | F33: =SA34a!F158 -> 0 | G33: =SA34a!G158 -> 0 | H33: =SA34a!H158 -> 0 | I33: =SA34a!I158 -> 0 | J33: =SA34a!J158 -> 0 | K33: =SA34a!K158 -> 0
A34: Land | C34: =SA34a!C161 -> 0 | D34: =SA34a!D161 -> 0 | E34: =SA34a!E161 -> 0 | F34: =SA34a!F161 -> 0 | G34: =SA34a!G161 -> 0 | H34: =SA34a!H161 -> 0 | I34: =SA34a!I161 -> 0 | J34: =SA34a!J161 -> 0 | K34: =SA34a!K161 -> 0
A35: Zoo's, Marine and Non-biological Animals | C35: =SA34a!C164 -> 0 | D35: =SA34a!D164 -> 0 | E35: =SA34a!E164 -> 0 | F35: =SA34a!F164 -> 0 | G35: =SA34a!G164 -> 0 | H35: =SA34a!H164 -> 0 | I35: =SA34a!I164 -> 0 | J35: =SA34a!J164 -> 0 | K35: =SA34a!K164 -> 0
A36: Mature | C36: =SA34a!C168 -> 0 | D36: =SA34a!D168 -> 0 | E36: =SA34a!E168 -> 0 | F36: =SA34a!F168 -> 0 | G36: =SA34a!G168 -> 0 | H36: =SA34a!H168 -> 0 | I36: =SA34a!I168 -> 0 | J36: =SA34a!J168 -> 0 | K36: =SA34a!K168 -> 0
A37: Immature | C37: =SA34a!C171 -> 0 | D37: =SA34a!D171 -> 0 | E37: =SA34a!E171 -> 0 | F37: =SA34a!F171 -> 0 | G37: =SA34a!G171 -> 0 | H37: =SA34a!H171 -> 0 | I37: =SA34a!I171 -> 0 | J37: =SA34a!J171 -> 0 | K37: =SA34a!K171 -> 0
A38: Living Resources | C38: =SUM(C36:C37) -> 0 | D38: =SUM(D36:D37) -> 0 | E38: 0 | F38: 0 | G38: 0 | H38: 0 | I38: 0 | J38: 0 | K38: 0
A40: Total Renewal of Existing Assets | B40: 2 | C40: =C50+C53+C54+C57+C60+C61+SUM(C64:C70)+C73 -> 6,259 | D40: =D50+D53+D54+D57+D60+D61+SUM(D64:D70)+D73 -> 4,802 | E40: 30,413 | F40: 21,973 | G40: 19,899 | H40: 19,899 | I40: 25,325 | J40: 44,841 | K40: 52,100
A41: Roads Infrastructure | C41: =SA34b!C7 -> 0 | D41: =SA34b!D7 -> 0 | E41: =SA34b!E7 -> 0 | F41: =SA34b!F7 -> 0 | G41: =SA34b!G7 -> 0 | H41: =SA34b!H7 -> 0 | I41: =SA34b!I7 -> 0 | J41: =SA34b!J7 -> 0 | K41: =SA34b!K7 -> 0
A42: Storm water Infrastructure | C42: =SA34b!C12 -> 0 | D42: =SA34b!D12 -> 0 | E42: =SA34b!E12 -> 0 | F42: =SA34b!F12 -> 0 | G42: =SA34b!G12 -> 0 | H42: =SA34b!H12 -> 0 | I42: =SA34b!I12 -> 0 | J42: =SA34b!J12 -> 0 | K42: =SA34b!K12 -> 0
A43: Electrical Infrastructure | C43: =SA34b!C16 -> 0 | D43: =SA34b!D16 -> 0 | E43: =SA34b!E16 -> 0 | F43: =SA34b!F16 -> 0 | G43: =SA34b!G16 -> 0 | H43: =SA34b!H16 -> 0 | I43: =SA34b!I16 -> 0 | J43: =SA34b!J16 -> 0 | K43: =SA34b!K16 -> 0
A44: Water Supply Infrastructure | C44: =SA34b!C26 -> 0 | D44: =SA34b!D26 -> 2,245 | E44: =SA34b!E26 -> 21,914 | F44: =SA34b!F26 -> 7,764 | G44: =SA34b!G26 -> 772 | H44: =SA34b!H26 -> 772 | I44: =SA34b!I26 -> 10,794 | J44: =SA34b!J26 -> 39,225 | K44: =SA34b!K26 -> 42,829
A45: Sanitation Infrastructure | C45: =SA34b!C37 -> 0 | D45: =SA34b!D37 -> 0 | E45: =SA34b!E37 -> 1,658 | F45: =SA34b!F37 -> 1,739 | G45: =SA34b!G37 -> 2,747 | H45: =SA34b!H37 -> 2,747 | I45: =SA34b!I37 -> 9,130 | J45: =SA34b!J37 -> 0 | K45: =SA34b!K37 -> 0
A46: Solid Waste Infrastructure | C46: =SA34b!C44 -> 0 | D46: =SA34b!D44 -> 0 | E46: =SA34b!E44 -> 0 | F46: =SA34b!F44 -> 0 | G46: =SA34b!G44 -> 0 | H46: =SA34b!H44 -> 0 | I46: =SA34b!I44 -> 0 | J46: =SA34b!J44 -> 0 | K46: =SA34b!K44 -> 0
A47: Rail Infrastructure | C47: =SA34b!C52 -> 0 | D47: =SA34b!D52 -> 0 | E47: =SA34b!E52 -> 0 | F47: =SA34b!F52 -> 0 | G47: =SA34b!G52 -> 0 | H47: =SA34b!H52 -> 0 | I47: =SA34b!I52 -> 0 | J47: =SA34b!J52 -> 0 | K47: =SA34b!K52 -> 0
A48: Coastal Infrastructure | C48: =SA34b!C62 -> 0 | D48: =SA34b!D62 -> 0 | E48: =SA34b!E62 -> 0 | F48: =SA34b!F62 -> 0 | G48: =SA34b!G62 -> 0 | H48: =SA34b!H62 -> 0 | I48: =SA34b!I62 -> 0 | J48: =SA34b!J62 -> 0 | K48: =SA34b!K62 -> 0
A49: Information and Communication Infrastructure | C49: =SA34b!C68 -> 0 | D49: =SA34b!D68 -> 0 | E49: =SA34b!E68 -> 0 | F49: =SA34b!F68 -> 0 | G49: =SA34b!G68 -> 0 | H49: =SA34b!H68 -> 0 | I49: =SA34b!I68 -> 0 | J49: =SA34b!J68 -> 0 | K49: =SA34b!K68 -> 0
A50: Infrastructure | C50: =SUM(C41:C49) -> 0 | D50: =SUM(D41:D49) -> 2,245 | E50: 23,573 | F50: 9,503 | G50: 3,519 | H50: 3,519 | I50: 19,925 | J50: 39,225 | K50: 42,829
A51: Community Facilities | C51: =SA34b!C75 -> 0 | D51: =SA34b!D75 -> 0 | E51: =SA34b!E75 -> 0 | F51: =SA34b!F75 -> 0 | G51: =SA34b!G75 -> 0 | H51: =SA34b!H75 -> 0 | I51: =SA34b!I75 -> 0 | J51: =SA34b!J75 -> 0 | K51: =SA34b!K75 -> 0
A52: Sport and Recreation Facilities | C52: =SA34b!C98 -> 0 | D52: =SA34b!D98 -> 0 | E52: =SA34b!E98 -> 0 | F52: =SA34b!F98 -> 0 | G52: =SA34b!G98 -> 0 | H52: =SA34b!H98 -> 0 | I52: =SA34b!I98 -> 0 | J52: =SA34b!J98 -> 0 | K52: =SA34b!K98 -> 0
A53: Community Assets | C53: =SUM(C51:C52) -> 0 | D53: =SUM(D51:D52) -> 0 | E53: 0 | F53: 0 | G53: 0 | H53: 0 | I53: 0 | J53: 0 | K53: 0
A54: Heritage Assets | C54: =SA34b!C103 -> 0 | D54: =SA34b!D103 -> 0 | E54: =SA34b!E103 -> 0 | F54: =SA34b!F103 -> 0 | G54: =SA34b!G103 -> 0 | H54: =SA34b!H103 -> 0 | I54: =SA34b!I103 -> 0 | J54: =SA34b!J103 -> 0 | K54: =SA34b!K103 -> 0
A55: Revenue Generating | C55: =SA34b!C111 -> 0 | D55: =SA34b!D111 -> 0 | E55: =SA34b!E111 -> 0 | F55: =SA34b!F111 -> 0 | G55: =SA34b!G111 -> 0 | H55: =SA34b!H111 -> 0 | I55: =SA34b!I111 -> 0 | J55: =SA34b!J111 -> 0 | K55: =SA34b!K111 -> 0
A56: Non-revenue Generating | C56: =SA34b!C114 -> 0 | D56: =SA34b!D114 -> 0 | E56: =SA34b!E114 -> 0 | F56: =SA34b!F114 -> 0 | G56: =SA34b!G114 -> 0 | H56: =SA34b!H114 -> 0 | I56: =SA34b!I114 -> 0 | J56: =SA34b!J114 -> 0 | K56: =SA34b!K114 -> 0
A57: Investment properties | C57: =SUM(C55:C56) -> 0 | D57: =SUM(D55:D56) -> 0 | E57: 0 | F57: 0 | G57: 0 | H57: 0 | I57: 0 | J57: 0 | K57: 0
A58: Operational Buildings | C58: =SA34b!C119 -> 0 | D58: =SA34b!D119 -> 0 | E58: =SA34b!E119 -> 0 | F58: =SA34b!F119 -> 3,874 | G58: =SA34b!G119 -> 2,374 | H58: =SA34b!H119 -> 2,374 | I58: =SA34b!I119 -> 2,000 | J58: =SA34b!J119 -> 2,080 | K58: =SA34b!K119 -> 2,147
A59: Housing | C59: =SA34b!C131 -> 0 | D59: =SA34b!D131 -> 0 | E59: =SA34b!E131 -> 0 | F59: =SA34b!F131 -> 0 | G59: =SA34b!G131 -> 0 | H59: =SA34b!H131 -> 0 | I59: =SA34b!I131 -> 0 | J59: =SA34b!J131 -> 0 | K59: =SA34b!K131 -> 0
A60: Other Assets | C60: =SUM(C58:C59) -> 0 | D60: =SUM(D58:D59) -> 0 | E60: 0 | F60: 3,874 | G60: 2,374 | H60: 2,374 | I60: 2,000 | J60: 2,080 | K60: 2,147
A61: Biological or Cultivated Assets | C61: =SA34b!C136 -> 0 | D61: =SA34b!D136 -> 0 | E61: =SA34b!E136 -> 0 | F61: =SA34b!F136 -> 0 | G61: =SA34b!G136 -> 0 | H61: =SA34b!H136 -> 0 | I61: =SA34b!I136 -> 0 | J61: =SA34b!J136 -> 0 | K61: =SA34b!K136 -> 0
A62: Servitudes | C62: =SA34b!C140 -> 0 | D62: =SA34b!D140 -> 0 | E62: =SA34b!E140 -> 0 | F62: =SA34b!F140 -> 0 | G62: =SA34b!G140 -> 0 | H62: =SA34b!H140 -> 0 | I62: =SA34b!I140 -> 0 | J62: =SA34b!J140 -> 0 | K62: =SA34b!K140 -> 0
A63: Licences and Rights | C63: =SA34b!C141 -> 0 | D63: =SA34b!D141 -> 0 | E63: =SA34b!E141 -> 0 | F63: =SA34b!F141 -> 0 | G63: =SA34b!G141 -> 0 | H63: =SA34b!H141 -> 0 | I63: =SA34b!I141 -> 0 | J63: =SA34b!J141 -> 0 | K63: =SA34b!K141 -> 0
A64: Intangible Assets | C64: =SUM(C62:C63) -> 0 | D64: =SUM(D62:D63) -> 0 | E64: 0 | F64: 0 | G64: 0 | H64: 0 | I64: 0 | J64: 0 | K64: 0
A65: Computer Equipment | C65: =SA34b!C149 -> 0 | D65: =SA34b!D149 -> 0 | E65: =SA34b!E149 -> 0 | F65: =SA34b!F149 -> 0 | G65: =SA34b!G149 -> 0 | H65: =SA34b!H149 -> 0 | I65: =SA34b!I149 -> 0 | J65: =SA34b!J149 -> 0 | K65: =SA34b!K149 -> 0
A66: Furniture and Office Equipment | C66: =SA34b!C152 -> 0 | D66: =SA34b!D152 -> 0 | E66: =SA34b!E152 -> 0 | F66: =SA34b!F152 -> 0 | G66: =SA34b!G152 -> 0 | H66: =SA34b!H152 -> 0 | I66: =SA34b!I152 -> 0 | J66: =SA34b!J152 -> 0 | K66: =SA34b!K152 -> 0
A67: Machinery and Equipment | C67: =SA34b!C155 -> 0 | D67: =SA34b!D155 -> 0 | E67: =SA34b!E155 -> 0 | F67: =SA34b!F155 -> 0 | G67: =SA34b!G155 -> 0 | H67: =SA34b!H155 -> 0 | I67: =SA34b!I155 -> 0 | J67: =SA34b!J155 -> 0 | K67: =SA34b!K155 -> 0
A68: Transport Assets | C68: =SA34b!C158 -> 6,259 | D68: =SA34b!D158 -> 2,557 | E68: =SA34b!E158 -> 6,841 | F68: =SA34b!F158 -> 8,595 | G68: =SA34b!G158 -> 14,006 | H68: =SA34b!H158 -> 14,006 | I68: =SA34b!I158 -> 3,400 | J68: =SA34b!J158 -> 3,536 | K68: =SA34b!K158 -> 7,124
A69: Land | C69: =SA34b!C161 -> 0 | D69: =SA34b!D161 -> 0 | E69: =SA34b!E161 -> 0 | F69: =SA34b!F161 -> 0 | G69: =SA34b!G161 -> 0 | H69: =SA34b!H161 -> 0 | I69: =SA34b!I161 -> 0 | J69: =SA34b!J161 -> 0 | K69: =SA34b!K161 -> 0
A70: Zoo's, Marine and Non-biological Animals | C70: =SA34b!C164 -> 0 | D70: =SA34b!D164 -> 0 | E70: =SA34b!E164 -> 0 | F70: =SA34b!F164 -> 0 | G70: =SA34b!G164 -> 0 | H70: =SA34b!H164 -> 0 | I70: =SA34b!I164 -> 0 | J70: =SA34b!J164 -> 0 | K70: =SA34b!K164 -> 0
A71: Mature | C71: =SA34b!C168 -> 0 | D71: =SA34b!D168 -> 0 | E71: =SA34b!E168 -> 0 | F71: =SA34b!F168 -> 0 | G71: =SA34b!G168 -> 0 | H71: =SA34b!H168 -> 0 | I71: =SA34b!I168 -> 0 | J71: =SA34b!J168 -> 0 | K71: =SA34b!K168 -> 0
A72: Immature | C72: =SA34b!C171 -> 0 | D72: =SA34b!D171 -> 0 | E72: =SA34b!E171 -> 0 | F72: =SA34b!F171 -> 0 | G72: =SA34b!G171 -> 0 | H72: =SA34b!H171 -> 0 | I72: =SA34b!I171 -> 0 | J72: =SA34b!J171 -> 0 | K72: =SA34b!K171 -> 0
A73: Living Resources | C73: =SUM(C71:C72) -> 0 | D73: 0 | E73: 0 | F73: 0 | G73: 0 | H73: 0 | I73: 0 | J73: 0 | K73: 0
A75: Total Upgrading of Existing Assets | B75: 6 | C75: =C85+C88+C89+C92+C95+C96+SUM(C99:C105)+C108 -> 5,594 | D75: =D85+D88+D89+D92+D95+D96+SUM(D99:D105)+D108 -> 15,131 | E75: 7,592 | F75: 19,553 | G75: 15,789 | H75: 15,789 | I75: 63,540 | J75: 115,449 | K75: 138,066
A76: Roads Infrastructure | C76: =SA34e!C7 -> 0 | D76: =SA34e!D7 -> 0 | E76: =SA34e!E7 -> 0 | F76: =SA34e!F7 -> 0 | G76: =SA34e!G7 -> 0 | H76: =SA34e!H7 -> 0 | I76: =SA34e!I7 -> 0 | J76: =SA34e!J7 -> 0 | K76: =SA34e!K7 -> 0
A77: Storm water Infrastructure | C77: =SA34e!C12 -> 0 | D77: =SA34e!D12 -> 0 | E77: =SA34e!E12 -> 0 | F77: =SA34e!F12 -> 0 | G77: =SA34e!G12 -> 0 | H77: =SA34e!H12 -> 0 | I77: =SA34e!I12 -> 0 | J77: =SA34e!J12 -> 0 | K77: =SA34e!K12 -> 0
A78: Electrical Infrastructure | C78: =SA34e!C16 -> 0 | D78: =SA34e!D16 -> 0 | E78: =SA34e!E16 -> 0 | F78: =SA34e!F16 -> 0 | G78: =SA34e!G16 -> 0 | H78: =SA34e!H16 -> 0 | I78: =SA34e!I16 -> 0 | J78: =SA34e!J16 -> 0 | K78: =SA34e!K16 -> 0
A79: Water Supply Infrastructure | C79: =SA34e!C26 -> 5,594 | D79: =SA34e!D26 -> 15,131 | E79: =SA34e!E26 -> 7,592 | F79: =SA34e!F26 -> 17,379 | G79: =SA34e!G26 -> 9,964 | H79: =SA34e!H26 -> 9,964 | I79: =SA34e!I26 -> 43,781 | J79: =SA34e!J26 -> 58,318 | K79: =SA34e!K26 -> 85,892
A80: Sanitation Infrastructure | C80: =SA34e!C37 -> 0 | D80: =SA34e!D37 -> 0 | E80: =SA34e!E37 -> 0 | F80: =SA34e!F37 -> 2,174 | G80: =SA34e!G37 -> 5,826 | H80: =SA34e!H37 -> 5,826 | I80: =SA34e!I37 -> 19,759 | J80: =SA34e!J37 -> 57,131 | K80: =SA34e!K37 -> 52,174
A81: Solid Waste Infrastructure | C81: =SA34e!C44 -> 0 | D81: =SA34e!D44 -> 0 | E81: =SA34e!E44 -> 0 | F81: =SA34e!F44 -> 0 | G81: =SA34e!G44 -> 0 | H81: =SA34e!H44 -> 0 | I81: =SA34e!I44 -> 0 | J81: =SA34e!J44 -> 0 | K81: =SA34e!K44 -> 0
A82: Rail Infrastructure | C82: =SA34e!C52 -> 0 | D82: =SA34e!D52 -> 0 | E82: =SA34e!E52 -> 0 | F82: =SA34e!F52 -> 0 | G82: =SA34e!G52 -> 0 | H82: =SA34e!H52 -> 0 | I82: =SA34e!I52 -> 0 | J82: =SA34e!J52 -> 0 | K82: =SA34e!K52 -> 0
A83: Coastal Infrastructure | C83: =SA34e!C62 -> 0 | D83: =SA34e!D62 -> 0 | E83: =SA34e!E62 -> 0 | F83: =SA34e!F62 -> 0 | G83: =SA34e!G62 -> 0 | H83: =SA34e!H62 -> 0 | I83: =SA34e!I62 -> 0 | J83: =SA34e!J62 -> 0 | K83: =SA34e!K62 -> 0
A84: Information and Communication Infrastructure | C84: =SA34e!C68 -> 0 | D84: =SA34e!D68 -> 0 | E84: =SA34e!E68 -> 0 | F84: =SA34e!F68 -> 0 | G84: =SA34e!G68 -> 0 | H84: =SA34e!H68 -> 0 | I84: =SA34e!I68 -> 0 | J84: =SA34e!J68 -> 0 | K84: =SA34e!K68 -> 0
A85: Infrastructure | C85: =SUM(C76:C84) -> 5,594 | D85: 15,131 | E85: 7,592 | F85: 19,553 | G85: 15,789 | H85: 15,789 | I85: 63,540 | J85: 115,449 | K85: 138,066
A86: Community Facilities | C86: =SA34e!C75 -> 0 | D86: =SA34e!D75 -> 0 | E86: =SA34e!E75 -> 0 | F86: =SA34e!F75 -> 0 | G86: =SA34e!G75 -> 0 | H86: =SA34e!H75 -> 0 | I86: =SA34e!I75 -> 0 | J86: =SA34e!J75 -> 0 | K86: =SA34e!K75 -> 0
A87: Sport and Recreation Facilities | C87: =SA34e!C98 -> 0 | D87: =SA34e!D98 -> 0 | E87: =SA34e!E98 -> 0 | F87: =SA34e!F98 -> 0 | G87: =SA34e!G98 -> 0 | H87: =SA34e!H98 -> 0 | I87: =SA34e!I98 -> 0 | J87: =SA34e!J98 -> 0 | K87: =SA34e!K98 -> 0
A88: Community Assets | C88: =SUM(C86:C87) -> 0 | D88: 0 | E88: 0 | F88: 0 | G88: 0 | H88: 0 | I88: 0 | J88: 0 | K88: 0
A89: Heritage Assets | C89: =SA34e!C103 -> 0 | D89: =SA34e!D103 -> 0 | E89: =SA34e!E103 -> 0 | F89: =SA34e!F103 -> 0 | G89: =SA34e!G103 -> 0 | H89: =SA34e!H103 -> 0 | I89: =SA34e!I103 -> 0 | J89: =SA34e!J103 -> 0 | K89: =SA34e!K103 -> 0
A90: Revenue Generating | C90: =SA34e!C111 -> 0 | D90: =SA34e!D111 -> 0 | E90: =SA34e!E111 -> 0 | F90: =SA34e!F111 -> 0 | G90: =SA34e!G111 -> 0 | H90: =SA34e!H111 -> 0 | I90: =SA34e!I111 -> 0 | J90: =SA34e!J111 -> 0 | K90: =SA34e!K111 -> 0
A91: Non-revenue Generating | C91: =SA34e!C114 -> 0 | D91: =SA34e!D114 -> 0 | E91: =SA34e!E114 -> 0 | F91: =SA34e!F114 -> 0 | G91: =SA34e!G114 -> 0 | H91: =SA34e!H114 -> 0 | I91: =SA34e!I114 -> 0 | J91: =SA34e!J114 -> 0 | K91: =SA34e!K114 -> 0
A92: Investment properties | C92: =SUM(C90:C91) -> 0 | D92: 0 | E92: 0 | F92: 0 | G92: 0 | H92: 0 | I92: 0 | J92: 0 | K92: 0
A93: Operational Buildings | C93: =SA34e!C119 -> 0 | D93: =SA34e!D119 -> 0 | E93: =SA34e!E119 -> 0 | F93: =SA34e!F119 -> 0 | G93: =SA34e!G119 -> 0 | H93: =SA34e!H119 -> 0 | I93: =SA34e!I119 -> 0 | J93: =SA34e!J119 -> 0 | K93: =SA34e!K119 -> 0
A94: Housing | C94: =SA34e!C131 -> 0 | D94: =SA34e!D131 -> 0 | E94: =SA34e!E131 -> 0 | F94: =SA34e!F131 -> 0 | G94: =SA34e!G131 -> 0 | H94: =SA34e!H131 -> 0 | I94: =SA34e!I131 -> 0 | J94: =SA34e!J131 -> 0 | K94: =SA34e!K131 -> 0
A95: Other Assets | C95: =SUM(C93:C94) -> 0 | D95: 0 | E95: 0 | F95: 0 | G95: 0 | H95: 0 | I95: 0 | J95: 0 | K95: 0
A96: Biological or Cultivated Assets | C96: =SA34e!C136 -> 0 | D96: =SA34e!D136 -> 0 | E96: =SA34e!E136 -> 0 | F96: =SA34e!F136 -> 0 | G96: =SA34e!G136 -> 0 | H96: =SA34e!H136 -> 0 | I96: =SA34e!I136 -> 0 | J96: =SA34e!J136 -> 0 | K96: =SA34e!K136 -> 0
A97: Servitudes | C97: =SA34e!C140 -> 0 | D97: =SA34e!D140 -> 0 | E97: =SA34e!E140 -> 0 | F97: =SA34e!F140 -> 0 | G97: =SA34e!G140 -> 0 | H97: =SA34e!H140 -> 0 | I97: =SA34e!I140 -> 0 | J97: =SA34e!J140 -> 0 | K97: =SA34e!K140 -> 0
A98: Licences and Rights | C98: =SA34e!C141 -> 0 | D98: =SA34e!D141 -> 0 | E98: =SA34e!E141 -> 0 | F98: =SA34e!F141 -> 0 | G98: =SA34e!G141 -> 0 | H98: =SA34e!H141 -> 0 | I98: =SA34e!I141 -> 0 | J98: =SA34e!J141 -> 0 | K98: =SA34e!K141 -> 0
A99: Intangible Assets | C99: =SUM(C97:C98) -> 0 | D99: 0 | E99: 0 | F99: 0 | G99: 0 | H99: 0 | I99: 0 | J99: 0 | K99: 0
A100: Computer Equipment | C100: =SA34e!C149 -> 0 | D100: =SA34e!D149 -> 0 | E100: =SA34e!E149 -> 0 | F100: =SA34e!F149 -> 0 | G100: =SA34e!G149 -> 0 | H100: =SA34e!H149 -> 0 | I100: =SA34e!I149 -> 0 | J100: =SA34e!J149 -> 0 | K100: =SA34e!K149 -> 0
A101: Furniture and Office Equipment | C101: =SA34e!C152 -> 0 | D101: =SA34e!D152 -> 0 | E101: =SA34e!E152 -> 0 | F101: =SA34e!F152 -> 0 | G101: =SA34e!G152 -> 0 | H101: =SA34e!H152 -> 0 | I101: =SA34e!I152 -> 0 | J101: =SA34e!J152 -> 0 | K101: =SA34e!K152 -> 0
A102: Machinery and Equipment | C102: =SA34e!C155 -> 0 | D102: =SA34e!D155 -> 0 | E102: =SA34e!E155 -> 0 | F102: =SA34e!F155 -> 0 | G102: =SA34e!G155 -> 0 | H102: =SA34e!H155 -> 0 | I102: =SA34e!I155 -> 0 | J102: =SA34e!J155 -> 0 | K102: =SA34e!K155 -> 0
A103: Transport Assets | C103: =SA34e!C158 -> 0 | D103: =SA34e!D158 -> 0 | E103: =SA34e!E158 -> 0 | F103: =SA34e!F158 -> 0 | G103: =SA34e!G158 -> 0 | H103: =SA34e!H158 -> 0 | I103: =SA34e!I158 -> 0 | J103: =SA34e!J158 -> 0 | K103: =SA34e!K158 -> 0
A104: Land | C104: =SA34e!C161 -> 0 | D104: =SA34e!D161 -> 0 | E104: =SA34e!E161 -> 0 | F104: =SA34e!F161 -> 0 | G104: =SA34e!G161 -> 0 | H104: =SA34e!H161 -> 0 | I104: =SA34e!I161 -> 0 | J104: =SA34e!J161 -> 0 | K104: =SA34e!K161 -> 0
A105: Zoo's, Marine and Non-biological Animals | C105: =SA34e!C164 -> 0 | D105: =SA34e!D164 -> 0 | E105: =SA34e!E164 -> 0 | F105: =SA34e!F164 -> 0 | G105: =SA34e!G164 -> 0 | H105: =SA34e!H164 -> 0 | I105: =SA34e!I164 -> 0 | J105: =SA34e!J164 -> 0 | K105: =SA34e!K164 -> 0
A106: Mature | C106: =SA34e!C168 -> 0 | D106: =SA34e!D168 -> 0 | E106: =SA34e!E168 -> 0 | F106: =SA34e!F168 -> 0 | G106: =SA34e!G168 -> 0 | H106: =SA34e!H168 -> 0 | I106: =SA34e!I168 -> 0 | J106: =SA34e!J168 -> 0 | K106: =SA34e!K168 -> 0
A107: Immature | C107: =SA34b!C171 -> 0 | D107: =SA34b!D171 -> 0 | E107: =SA34b!E171 -> 0 | F107: =SA34b!F171 -> 0 | G107: =SA34b!G171 -> 0 | H107: =SA34b!H171 -> 0 | I107: =SA34b!I171 -> 0 | J107: =SA34b!J171 -> 0 | K107: =SA34b!K171 -> 0
A108: Living Resources | C108: =SUM(C106:C107) -> 0 | D108: =SUM(D106:D107) -> 0 | E108: 0 | F108: 0 | G108: 0 | H108: 0 | I108: 0 | J108: 0 | K108: 0
A110: Total Capital Expenditure | B110: 4 | C110: =+C5+C40+C75 -> 269,118 | D110: =+D5+D40+D75 -> 309,604 | E110: 349,075 | F110: 302,060 | G110: 331,597 | H110: 331,597 | I110: 329,349 | J110: 383,719 | K110: 383,592
A111: Roads Infrastructure | C111: =+C6+C41+C76 -> 0 | D111: 0 | E111: 0 | F111: 0 | G111: 0 | H111: 0 | I111: 0 | J111: 0 | K111: 0
A112: Storm water Infrastructure | C112: =+C7+C42+C77 -> 0 | D112: 0 | E112: 0 | F112: 0 | G112: 0 | H112: 0 | I112: 0 | J112: 0 | K112: 0
A113: Electrical Infrastructure | C113: =+C8+C43+C78 -> 0 | D113: 0 | E113: 0 | F113: 0 | G113: 0 | H113: 0 | I113: 0 | J113: 0 | K113: 0
A114: Water Supply Infrastructure | C114: =+C9+C44+C79 -> 208,921 | D114: 236,539 | E114: 309,238 | F114: 265,054 | G114: 280,905 | H114: 280,905 | I114: 277,862 | J114: 303,236 | K114: 303,068
A115: Sanitation Infrastructure | C115: =+C10+C45+C80 -> 44,534 | D115: 64,965 | E115: 21,713 | F115: 4,174 | G115: 13,707 | H115: 13,707 | I115: 28,889 | J115: 57,131 | K115: 52,174
A116: Solid Waste Infrastructure | C116: =+C11+C46+C81 -> 0 | D116: 0 | E116: 0 | F116: 0 | G116: 0 | H116: 0 | I116: 0 | J116: 0 | K116: 0
A117: Rail Infrastructure | C117: =+C12+C47+C82 -> 0 | D117: 0 | E117: 0 | F117: 0 | G117: 0 | H117: 0 | I117: 0 | J117: 0 | K117: 0
A118: Coastal Infrastructure | C118: =+C13+C48+C83 -> 0 | D118: 0 | E118: 0 | F118: 0 | G118: 0 | H118: 0 | I118: 0 | J118: 0 | K118: 0
A119: Information and Communication Infrastructure | C119: =+C14+C49+C84 -> 0 | D119: 0 | E119: 0 | F119: 0 | G119: 0 | H119: 0 | I119: 0 | J119: 0 | K119: 0
A120: Infrastructure | C120: =SUM(C111:C119) -> 253,455 | D120: =SUM(D111:D119) -> 301,504 | E120: 330,951 | F120: 269,227 | G120: 294,612 | H120: 294,612 | I120: 306,751 | J120: 360,367 | K120: 355,242
A121: Community Facilities | C121: =+C16+C51+C86 -> 0 | D121: 0 | E121: 0 | F121: 0 | G121: 0 | H121: 0 | I121: 0 | J121: 0 | K121: 0
A122: Sport and Recreation Facilities | C122: =+C17+C52+C87 -> 0 | D122: 0 | E122: 0 | F122: 0 | G122: 0 | H122: 0 | I122: 0 | J122: 0 | K122: 0
A123: Community Assets | C123: =SUM(C121:C122) -> 0 | D123: =SUM(D121:D122) -> 0 | E123: 0 | F123: 0 | G123: 0 | H123: 0 | I123: 0 | J123: 0 | K123: 0
A124: Heritage Assets | C124: =+C19+C54+C89 -> 0 | D124: 0 | E124: 0 | F124: 0 | G124: 0 | H124: 0 | I124: 0 | J124: 0 | K124: 0
A125: Revenue Generating | C125: =+C20+C55+C90 -> 0 | D125: 0 | E125: 0 | F125: 0 | G125: 0 | H125: 0 | I125: 0 | J125: 0 | K125: 0
A126: Non-revenue Generating | C126: =+C21+C56+C91 -> 0 | D126: 0 | E126: 0 | F126: 0 | G126: 0 | H126: 0 | I126: 0 | J126: 0 | K126: 0
A127: Investment properties | C127: =SUM(C125:C126) -> 0 | D127: =SUM(D125:D126) -> 0 | E127: 0 | F127: 0 | G127: 0 | H127: 0 | I127: 0 | J127: 0 | K127: 0
A128: Operational Buildings | C128: =+C23+C58+C93 -> 0 | D128: 0 | E128: 1,268 | F128: 10,775 | G128: 8,359 | H128: 8,359 | I128: 5,222 | J128: 5,409 | K128: 7,223
A129: Housing | C129: =+C24+C59+C94 -> 0 | D129: 0 | E129: 1,042 | F129: 2,000 | G129: 1,000 | H129: 1,000 | I129: 1,040 | J129: 1,082 | K129: 1,116
A130: Other Assets | C130: =SUM(C128:C129) -> 0 | D130: 0 | E130: 2,310 | F130: 12,775 | G130: 9,359 | H130: 9,359 | I130: 6,262 | J130: 6,491 | K130: 8,339
A131: Biological or Cultivated Assets | C131: =+C26+C61+C96 -> 0 | D131: 0 | E131: 0 | F131: 0 | G131: 0 | H131: 0 | I131: 0 | J131: 0 | K131: 0
A132: Servitudes | C132: =+C27+C62+C97 -> 0 | D132: 0 | E132: 0 | F132: 0 | G132: 0 | H132: 0 | I132: 0 | J132: 0 | K132: 0
A133: Licences and Rights | C133: =+C28+C63+C98 -> 270 | D133: 0 | E133: 0 | F133: 955 | G133: 955 | H133: 955 | I133: 2,389 | J133: 2,485 | K133: 2,569
A134: Intangible Assets | C134: =SUM(C132:C133) -> 270 | D134: =SUM(D132:D133) -> 0 | E134: 0 | F134: 955 | G134: 955 | H134: 955 | I134: 2,389 | J134: 2,485 | K134: 2,569
A135: Computer Equipment | C135: =+C30+C65+C100 -> 410 | D135: 943 | E135: 2,029 | F135: 2,859 | G135: 2,873 | H135: 2,873 | I135: 5,236 | J135: 5,320 | K135: 2,759
A136: Furniture and Office Equipment | C136: =+C31+C66+C101 -> 1,293 | D136: 2,306 | E136: 2,178 | F136: 5,288 | G136: 5,608 | H136: 5,608 | I136: 3,242 | J136: 3,368 | K136: 4,692
A137: Machinery and Equipment | C137: =+C32+C67+C102 -> 7,430 | D137: 1,306 | E137: 4,767 | F137: 2,360 | G137: 4,185 | H137: 4,185 | I137: 2,069 | J137: 2,152 | K137: 2,867
A138: Transport Assets | C138: =+C33+C68+C103 -> 6,259 | D138: 3,543 | E138: 6,841 | F138: 8,595 | G138: 14,006 | H138: 14,006 | I138: 3,400 | J138: 3,536 | K138: 7,124
A139: Land | C139: =+C34+C69+C104 -> 0 | D139: 0 | E139: 0 | F139: 0 | G139: 0 | H139: 0 | I139: 0 | J139: 0 | K139: 0
A140: Zoo's, Marine and Non-biological Animals | C140: =+C35+C70+C105 -> 0 | D140: 0 | E140: 0 | F140: 0 | G140: 0 | H140: 0 | I140: 0 | J140: 0 | K140: 0
A141: Mature | C141: =+C36+C71+C106 -> 0 | D141: =+D36+D71+D106 -> 0 | E141: 0 | F141: 0 | G141: 0 | H141: 0 | I141: 0 | J141: 0 | K141: 0
A142: Immature | C142: =+C37+C72+C107 -> 0 | D142: =+D37+D72+D107 -> 0 | E142: 0 | F142: 0 | G142: 0 | H142: 0 | I142: 0 | J142: 0 | K142: 0
A143: Living Resources | C143: =SUM(C141:C142) -> 0 | D143: 0 | E143: 0 | F143: 0 | G143: 0 | H143: 0 | I143: 0 | J143: 0 | K143: 0
A144: TOTAL CAPITAL EXPENDITURE - Asset class | C144: =+C5+C40+C75 -> 269,118 | D144: =+D5+D40+D75 -> 309,604 | E144: 349,075 | F144: 302,060 | G144: 331,597 | H144: 331,597 | I144: 329,349 | J144: 383,719 | K144: 383,592
A146: ASSET REGISTER SUMMARY - PPE (WDV) | B146: 5 | C146: =C156+C159+C160+C163+C166+C167+C170+C171+C172+C173+C174+C175+C176+C179 -> 2,209,283 | D146: =D156+D159+D160+D163+D166+D167+D170+D171+D172+D173+D174+D175+D176+D179 -> 2,357,654 | E146: 2,562,534 | F146: 2,806,919 | G146: 2,788,089 | H146: 2,788,089 | I146: 3,049,590 | J146: 3,351,262 | K146: 3,652,887
A147: Roads Infrastructure | C147: 188 | D147: 184 | E147: 180 | F147: 180 | G147: 180 | H147: 180 | I147: 180 | J147: 180 | K147: 180
A148: Storm water Infrastructure
A149: Electrical Infrastructure | C149: 7,586 | D149: 5,806 | E149: 4,321 | F149: 2,257 | G149: 2,495 | H149: 2,495 | I149: 596 | J149: 116 | K149: 116
A150: Water Supply Infrastructure | C150: 1,946,095 | D150: 2,093,781 | E150: 2,244,278 | F150: 2,504,815 | G150: 2,445,928 | H150: 2,445,928 | I150: 2,692,049 | J150: 2,989,815 | K150: 3,316,806
A151: Sanitation Infrastructure | C151: 190,739 | D151: 195,156 | E151: 249,733 | F151: 209,401 | G151: 255,434 | H151: 255,434 | I151: 272,719 | J151: 292,634 | K151: 279,075
A152: Solid Waste Infrastructure
A153: Rail Infrastructure
A154: Coastal Infrastructure
A155: Information and Communication Infrastructure | C155: 296 | D155: 224 | E155: 160 | F155: 693 | G155: 119 | H155: 119 | I155: 312 | J155: 311 | K155: 309
A156: Infrastructure | C156: =SUM(C147:C155) -> 2,144,905 | D156: =SUM(D147:D155) -> 2,295,152 | E156: 2,498,672 | F156: 2,717,346 | G156: 2,704,156 | H156: 2,704,156 | I156: 2,965,857 | J156: 3,283,056 | K156: 3,596,487
A159: Community Assets | C159: 1,759 | D159: 1,520 | E159: 1,436 | F159: 1,380 | G159: 1,432 | H159: 1,432 | I159: 1,093 | J159: 1,093 | K159: 1,093
A160: Heritage Assets
A163: Investment properties | C163: 0 | D163: 0 | E163: 0 | F163: 0 | G163: 0 | H163: 0 | I163: 0 | J163: 0 | K163: 0
A166: Other Assets | C166: 36,372 | D166: 35,178 | E166: 33,985 | F166: 48,781 | G166: 41,818 | H166: 41,818 | I166: 42,885 | J166: 43,066 | K166: 44,868
A167: Biological or Cultivated Assets
A170: Intangible Assets | C170: 515 | D170: 313 | E170: 296 | F170: 2,827 | G170: 1,250 | H170: 1,250 | I170: 2,685 | J170: 2,780 | K170: 2,864
A171: Computer Equipment | C171: 4,392 | D171: 3,660 | E171: 5,077 | F171: 4,811 | G171: 4,965 | H171: 4,965 | I171: 6,867 | J171: 3,464 | K171: (2,697)
A172: Furniture and Office Equipment | C172: 1,739 | D172: 3,342 | E172: 3,570 | F172: 15,784 | G172: 9,430 | H172: 9,430 | I172: 14,654 | J172: 13,883 | K172: 14,278
A173: Machinery and Equipment | C173: 1,772 | D173: 2,449 | E173: 3,167 | F173: 8,685 | G173: 6,724 | H173: 6,724 | I173: 5,846 | J173: 5,156 | K173: 5,074
A174: Transport Assets | C174: 17,831 | D174: 16,039 | E174: 16,332 | F174: 7,306 | G174: 18,314 | H174: 18,314 | I174: 9,704 | J174: (1,237) | K174: (9,080)
A175: Land
A176: Zoo's, Marine and Non-biological Animals
A179: Living Resources
A180: TOTAL ASSET REGISTER SUMMARY - PPE (WDV) | B180: 5 | C180: =C156+C159+C160+C163+C166+C167+C170+C171+C172+C173+C174+C175+C176+C179 -> 2,209,283 | D180: =D156+D159+D160+D163+D166+D167+D170+D171+D172+D173+D174+D175+D176+D179 -> 2,357,654 | E180: 2,562,534 | F180: =F156+F159+F160+F163+F166+F167+F170+F171+F172+F173+F174+F175+F176+F179 -> 2,806,919 | G180: =G156+G159+G160+G163+G166+G167+G170+G171+G172+G173+G174+G175+G176+G179 -> 2,788,089 | H180: 2,788,089 | I180: 3,049,590 | J180: 3,351,262 | K180: 3,652,887
A182: EXPENDITURE OTHER ITEMS | C182: =SUM(C183:C184) -> 145,531 | D182: =SUM(D183:D184) -> 280,712 | E182: 156,783 | F182: 152,980 | G182: 155,034 | H182: 155,034 | I182: 145,645 | J182: 150,456 | K182: 155,277
A183: Depreciation | B183: 7 | C183: =SA34d!C175 -> 93,063 | D183: =SA34d!D175 -> 236,930 | E183: =SA34d!E175 -> 116,317 | F183: =SA34d!F175 -> 107,788 | G183: =SA34d!G175 -> 107,788 | H183: =SA34d!H175 -> 107,788 | I183: =SA34d!I175 -> 114,839 | J183: =SA34d!J175 -> 118,634 | K183: =SA34d!K175 -> 122,437
A184: Repairs and Maintenance by Asset Class | B184: 3 | C184: =C194+C197+C198+C201+C204+C205+SUM(C208:C214)+C217 -> 52,468 | D184: =D194+D197+D198+D201+D204+D205+SUM(D208:D214)+D217 -> 43,781 | E184: 40,466 | F184: 45,192 | G184: 47,246 | H184: 47,246 | I184: 30,805 | J184: 31,822 | K184: 32,840
A185: Roads Infrastructure | C185: =SA34c!C7 -> 0 | D185: =SA34c!D7 -> 0 | E185: =SA34c!E7 -> 0 | F185: =SA34c!F7 -> 0 | G185: =SA34c!G7 -> 0 | H185: =SA34c!H7 -> 0 | I185: =SA34c!I7 -> 0 | J185: =SA34c!J7 -> 0 | K185: =SA34c!K7 -> 0
A186: Storm water Infrastructure | C186: =SA34c!C12 -> 0 | D186: =SA34c!D12 -> 0 | E186: =SA34c!E12 -> 0 | F186: =SA34c!F12 -> 0 | G186: =SA34c!G12 -> 0 | H186: =SA34c!H12 -> 0 | I186: =SA34c!I12 -> 0 | J186: =SA34c!J12 -> 0 | K186: =SA34c!K12 -> 0
A187: Electrical Infrastructure | C187: =SA34c!C16 -> 0 | D187: =SA34c!D16 -> 0 | E187: =SA34c!E16 -> 0 | F187: =SA34c!F16 -> 0 | G187: =SA34c!G16 -> 0 | H187: =SA34c!H16 -> 0 | I187: =SA34c!I16 -> 0 | J187: =SA34c!J16 -> 0 | K187: =SA34c!K16 -> 0
A188: Water Supply Infrastructure | C188: =SA34c!C26 -> 45,120 | D188: =SA34c!D26 -> 39,357 | E188: =SA34c!E26 -> 35,932 | F188: =SA34c!F26 -> 40,241 | G188: =SA34c!G26 -> 45,016 | H188: =SA34c!H26 -> 45,016 | I188: =SA34c!I26 -> 28,413 | J188: =SA34c!J26 -> 29,350 | K188: =SA34c!K26 -> 30,290
A189: Sanitation Infrastructure | C189: =SA34c!C37 -> 0 | D189: =SA34c!D37 -> 0 | E189: =SA34c!E37 -> 0 | F189: =SA34c!F37 -> 0 | G189: =SA34c!G37 -> 0 | H189: =SA34c!H37 -> 0 | I189: =SA34c!I37 -> 0 | J189: =SA34c!J37 -> 0 | K189: =SA34c!K37 -> 0
A190: Solid Waste Infrastructure | C190: =SA34c!C44 -> 0 | D190: =SA34c!D44 -> 0 | E190: =SA34c!E44 -> 0 | F190: =SA34c!F44 -> 0 | G190: =SA34c!G44 -> 0 | H190: =SA34c!H44 -> 0 | I190: =SA34c!I44 -> 0 | J190: =SA34c!J44 -> 0 | K190: =SA34c!K44 -> 0
A191: Rail Infrastructure | C191: =SA34c!C52 -> 0 | D191: =SA34c!D52 -> 0 | E191: =SA34c!E52 -> 0 | F191: =SA34c!F52 -> 0 | G191: =SA34c!G52 -> 0 | H191: =SA34c!H52 -> 0 | I191: =SA34c!I52 -> 0 | J191: =SA34c!J52 -> 0 | K191: =SA34c!K52 -> 0
A192: Coastal Infrastructure | C192: =SA34c!C62 -> 0 | D192: =SA34c!D62 -> 0 | E192: =SA34c!E62 -> 0 | F192: =SA34c!F62 -> 0 | G192: =SA34c!G62 -> 0 | H192: =SA34c!H62 -> 0 | I192: =SA34c!I62 -> 0 | J192: =SA34c!J62 -> 0 | K192: =SA34c!K62 -> 0
A193: Information and Communication Infrastructure | C193: =SA34c!C68 -> 0 | D193: =SA34c!D68 -> 0 | E193: =SA34c!E68 -> 0 | F193: =SA34c!F68 -> 0 | G193: =SA34c!G68 -> 0 | H193: =SA34c!H68 -> 0 | I193: =SA34c!I68 -> 0 | J193: =SA34c!J68 -> 0 | K193: =SA34c!K68 -> 0
A194: Infrastructure | C194: =SUM(C185:C193) -> 45,120 | D194: =SUM(D185:D193) -> 39,357 | E194: 35,932 | F194: 40,241 | G194: 45,016 | H194: 45,016 | I194: 28,413 | J194: 29,350 | K194: 30,290
A195: Community Facilities | C195: =SA34c!C75 -> 0 | D195: =SA34c!D75 -> 0 | E195: =SA34c!E75 -> 0 | F195: =SA34c!F75 -> 0 | G195: =SA34c!G75 -> 0 | H195: =SA34c!H75 -> 0 | I195: =SA34c!I75 -> 0 | J195: =SA34c!J75 -> 0 | K195: =SA34c!K75 -> 0
A196: Sport and Recreation Facilities | C196: =SA34c!C98 -> 63 | D196: =SA34c!D98 -> 87 | E196: =SA34c!E98 -> 77 | F196: =SA34c!F98 -> 273 | G196: =SA34c!G98 -> 170 | H196: =SA34c!H98 -> 170 | I196: =SA34c!I98 -> 250 | J196: =SA34c!J98 -> 258 | K196: =SA34c!K98 -> 267
A197: Community Assets | C197: =SUM(C195:C196) -> 63 | D197: 87 | E197: 77 | F197: 273 | G197: 170 | H197: 170 | I197: 250 | J197: 258 | K197: 267
A198: Heritage Assets | C198: =SA34c!C103 -> 0 | D198: =SA34c!D103 -> 0 | E198: =SA34c!E103 -> 0 | F198: =SA34c!F103 -> 0 | G198: =SA34c!G103 -> 0 | H198: =SA34c!H103 -> 0 | I198: =SA34c!I103 -> 0 | J198: =SA34c!J103 -> 0 | K198: =SA34c!K103 -> 0
A199: Revenue Generating | C199: =SA34c!C111 -> 0 | D199: =SA34c!D111 -> 0 | E199: =SA34c!E111 -> 0 | F199: =SA34c!F111 -> 0 | G199: =SA34c!G111 -> 0 | H199: =SA34c!H111 -> 0 | I199: =SA34c!I111 -> 0 | J199: =SA34c!J111 -> 0 | K199: =SA34c!K111 -> 0
A200: Non-revenue Generating | C200: =SA34c!C114 -> 0 | D200: =SA34c!D114 -> 0 | E200: =SA34c!E114 -> 0 | F200: =SA34c!F114 -> 0 | G200: =SA34c!G114 -> 0 | H200: =SA34c!H114 -> 0 | I200: =SA34c!I114 -> 0 | J200: =SA34c!J114 -> 0 | K200: =SA34c!K114 -> 0
A201: Investment properties | C201: =SUM(C199:C200) -> 0 | D201: 0 | E201: 0 | F201: 0 | G201: 0 | H201: 0 | I201: 0 | J201: 0 | K201: 0
